Workbook

Sheet Cover
C6: COVIDTracer
C10: A Planning Tool to Illustrate the Resources Needed and Potential Impact of Contact Tracing and Monitoring of COVID-19 cases
C13: v1.2 *DRAFT VERSION - STILL UNDER DEVELOPMENT*
C15: Authors (alphabetical order):
C16: Bishwa B. Adhikari
C17: Leah S. Fischer
C18: Bradford Greening Jr.
C19: Seonghye Jeon
C20: Emily B. Kahn
C21: Gloria J. Kang
C22: Martin I. Meltzer
C23: Gabriel Rainisch
C24: Michael L. Washington
C26: Health Economics and Modeling Unit: hemu@cdc.gov
D28: Centers for Disease Control and Prevention
C29: Atlanta, Georgia
B30: Updated: | C30: 2020-06-02 | J30: Note: For COVIDTracer to work correctly, users must meet ALL of the following criteria: 1) Enable macros by clicking the "Enable Content" button when opening file. 2) Use Microsoft Office Excel 2013 or later in a Windows environment 3) Do not use browser or mobile version of Office - open file in Desktop app.

Sheet A. Outbreak Details
BE5: Yes | BF5: Daily case counts are rapidly increasing
BE6: No | BF6: Daily case counts are slowly increasing
BF7: Daily case counts have plateaued
BF8: Daily case counts are slowly decreasing
B9: Step 1: | C9: Enter the population of your jurisdiction | BF9: Daily case counts are rapidly decreasing
C10: Total Population | F10: 100000 | G10: persons | BF10: Manually enter % effectiveness
B12: Step 2: | C12: Enter information about case counts in your jurisdiction
C13: Today's Date | F13: 2020-06-02
C14: Total cases to date | F14: 1900 | G14: cases
C15: Cases in the last 14 days | F15: 590 | G15: cases
C16: Note: These data inputs will only create curves for the purpose of calculating resources needs. They are not intended as, nor should be intepreted as, forecasts of future cases
B18: Step3: | C18: Enter estimates about the effectiveness of social distancing measures implemented through the present date
C19: Have social distancing measures already started? | F19: Yes
C20: Will social distancing measures begin prior to initiating contact tracing? | F20: No
C21: Date social distancing measures will begin in jurisdiction | F21: 2020-06-02 | G21: =IF(F19="Yes", $F$13, IF(F20="No", 'B. Impact of contact tracing'!$F$12, F21)) -> 2020-06-02
C22: Pattern of change in daily case counts over the last 14 days | F22: Daily case counts have plateaued | G22: 0.42 | H22: =IF(F22=BF10, G22, IF(F22=BF5, 'Initial Case Distribution'!H70, IF(F22=BF6, 'Initial Case Distribution'!H71, IF(F22=BF7, 'Initial Case Distribution'!H72, IF(F22=BF8, 'Initial Case Distribution'!H73, 'Initial Case Distribution'!H74))))) -> 0.5
B24: Step 4: | C24: (OPTIONAL/ADVANCED) Epidemiologic Parameters
C25: ^It is recommended that the default parameters be used, however, if the user understands the implications for results, changes can be made below.
E26: Allows the user to modify the parameters that inform the modeled estimates of future cases.

Sheet Data (hidden)
A1: Duration: | B1: 1 | C1: 6 | D1: 0.15
A2: Attack rate: | B2: 1 | C2: 8 | D2: 0.25
C3: 12 | D3: 0.35

Sheet B. Impact of contact tracing
BC5: Low Estimate: Initial R0 | BF5: Manual
BC6: High Estimate: Initial R0 | BF6: Days past Peak | BH6: Modified Infectivity Distributions
BC7: Low Estimate: Initial R0 | BI7: Base | BJ7: S1 | BK7: S2 | BL7: S3
B8: Step 1: | C8: Enter the date on which contact tracing interventions will begin | BF8: Symptoms | BH8: 1 | BI8: ='D. Epi Parameters'!D14 -> 0 | BJ8: =IF($BH8<F$17, $BI8, 0) -> 0 | BK8: =IF($BH8<G$17, $BI8, 0) -> 0 | BL8: 0
C9: Choose entry method | F9: Manual | BF9: Contact ID | BH9: 2 | BI9: ='D. Epi Parameters'!D15 -> 0 | BJ9: =IF($BH9<F$17, $BI9, 0) -> 0 | BK9: =IF($BH9<G$17, $BI9, 0) -> 0 | BL9: =IF($BH9<H$17, $BI9, 0) -> 0
C10: Days past epidemic peak | G10: 10 | K10: Timing of Case Isolation | BH10: 3 | BI10: ='D. Epi Parameters'!D16 -> 0 | BJ10: 0 | BK10: 0 | BL10: 0
C11: Date contact tracing begins (no ramp-up) | F11: 2020-06-16 | G11: =INDEX('Calc - Base'!I21:I400, MATCH('Calc - Base'!S4, 'Calc - Base'!L21:L400, 0)) + $G$10 -> 2020-06-12 | K11: Day | L11: Strategy 1 | M11: Strategy 2 | N11: Strategy 3 | BF11: Yes | BH11: 4 | BI11: ='D. Epi Parameters'!D17 -> 0.2 | BJ11: 0.2 | BK11: 0.2 | BL11: 0
C12: Date chosen | F12: =IF($F$9=$BF$5, $F$11, $G$11) -> 2020-06-16 | G12: =IF($F$9=$BF$6,_xlfn.CONCAT("(Peak + ",$G$10," days)"), "") ->  | K12: 1 | L12: =BJ8 -> 0 | M12: =BK8 -> 0 | N12: =BL8 -> 0 | BF12: No | BH12: 5 | BI12: ='D. Epi Parameters'!D18 -> 0.2 | BJ12: 0.2 | BK12: 0.2 | BL12: 0
K13: 2 | L13: 0 | M13: 0 | N13: 0 | BH13: 6 | BI13: ='D. Epi Parameters'!D19 -> 0.2 | BJ13: 0.2 | BK13: 0 | BL13: 0
B14: Step 2: | C14: Set up the scenarios for contact tracing strategies | K14: 3 | L14: 0 | M14: 0 | N14: 0 | BH14: 7 | BI14: ='D. Epi Parameters'!D20 -> 0.2 | BJ14: 0 | BK14: 0 | BL14: 0
K15: 4 | L15: 0.2 | M15: 0.2 | N15: 0 | BH15: 8 | BI15: ='D. Epi Parameters'!D21 -> 0.2 | BJ15: 0 | BK15: 0 | BL15: 0
F16: Strategy 1 | G16: Strategy 2 | H16: Strategy 3 | K16: 5 | L16: 0.2 | M16: 0.2 | N16: 0 | BH16: 9 | BI16: ='D. Epi Parameters'!D22 -> 0 | BJ16: 0 | BK16: 0 | BL16: 0
C17: Number of days after infection that case is isolated | F17: 7 | G17: 6 | H17: 4 | K17: 6 | L17: 0.2 | M17: 0 | N17: 0 | BH17: 10 | BI17: ='D. Epi Parameters'!D23 -> 0 | BJ17: 0 | BK17: 0 | BL17: 0
C18: % of all cases successfully isolated and contacts traced and monitored | F18: 0.5 | G18: 0.45 | H18: 0.4 | K18: 7 | L18: 0 | M18: 0 | N18: 0 | BH18: 11 | BI18: ='D. Epi Parameters'!D24 -> 0 | BJ18: 0 | BK18: 0 | BL18: 0
C19: Strategy Trigger | F19: Symptoms | G19: Symptoms | H19: Contact ID | K19: 8 | L19: 0 | M19: 0 | N19: 0 | BH19: 12 | BI19: ='D. Epi Parameters'!D25 -> 0 | BJ19: 0 | BK19: 0 | BL19: 0
C20: Contacts are identified and listed? | F20: No | G20: Yes | H20: Yes | K20: 9 | L20: 0 | M20: 0 | N20: 0 | BH20: 13 | BI20: ='D. Epi Parameters'!D26 -> 0 | BJ20: 0 | BK20: 0 | BL20: 0
C21: Contacts follow-up occurs? | F21: No | G21: No | H21: Yes | K21: 10 | L21: 0 | M21: 0 | N21: 0 | P21: Legend | BH21: 14 | BI21: ='D. Epi Parameters'!D27 -> 0 | BJ21: 0 | BK21: 0 | BL21: 0
C22: *Successfully traced = the strategy worked as assumed and transmission to the next generation was prevented | K22: 11 | L22: 0 | M22: 0 | N22: 0 | O22: Infected, not yet infectious
K23: 12 | L23: 0 | M23: 0 | N23: 0 | O23: Infectious, pre-symptomatic
B24: Step 3: | C24: Account for additional effects of continued social distancing measures | K24: 13 | L24: 0 | M24: 0 | N24: 0 | O24: Infectious & symptomatic
K25: 14 | L25: 0 | M25: 0 | N25: 0 | O25: Recovering, no longer infectious
F26: =F16 -> Strategy 1 | G26: =G16 -> Strategy 2 | H26: =H16 -> Strategy 3
C27: Will partial social distancing restrictions continue? | F27: No | G27: No | H27: No
C28: Estimated % reduction in transmission due to continued partial social distancing | F28: 0 | G28: 0 | H28: 0
C29: Combined % reduction in transmission from contact tracing + continued social distancing, if applicable | F29: =IF(F27=$BF$12, 'Calc - Likely, S1'!$B$39, MIN(1, SUM(F28, 'Calc - Likely, S1'!$B$39))) -> 0.13 | G29: =IF(G27=$BF$12, 'Calc - Likely, S2'!$B$39, MIN(1, SUM(G28, 'Calc - Likely, S2'!$B$39))) -> 0.1755 | H29: =IF(H27=$BF$12, 'Calc - Likely, S3'!$B$39, MIN(1, SUM(H28, 'Calc - Likely, S3'!$B$39))) -> 0.4
B45: *These figures show the reduction in cases that may occur compared to the base case if contact tracing were initiated on the chosen date, given all of the provided assumptions. The red dotted line shows when contact tracing strategies were initiated.

Sheet C. Tracing Resources
BA5: 1
BA6: 2
B8: Step 1: | C8: Enter the estimated number of contacts per case | D8: Lower | E8: Upper
C9: Contacts per case | D9: 5 | E9: 20 | F9: contacts per case
C10: False Alerts per case | D10: 0 | E10: 0 | F10: alerts per case
C11: Number of days contacts are monitored | D11: 14 | E11: 14 | F11: days
B13: Step 2: | C13: Enter the daily work hours and overhead hours | D13: Lower | E13: Upper
C14: Daily shift length (hours) | D14: 8 | E14: 12 | F14: hours per day
C15: Overhead hours (e.g., prep time, supervisory time, support staff) | D15: 0.05 | E15: 0.05 | F15: of total hours needed
B17: Step 3: | C17: Enter the estimated time needed to interview and monitor cases and contacts
D18: Staff Group | E18: Lower | F18: Upper
C19: Initial case interviews | D19: 1 | E19: 1 | F19: 2 | G19: hours per case
C20: Initial case interviews (false case alerts) | D20: 1 | E20: 2 | F20: 4 | G20: hours per alert
C21: Initial contact interviews | D21: 1 | E21: 0.5 | F21: 1 | G21: hours per contact
C22: Case/contact monitoring & follow-up | D22: 2 | E22: 0.25 | F22: 1 | G22: hours per day
C23: †For each case, there are a number of associated contacts (see Step 1). The time entered here represents the daily hours per case/contact required to monitor both the cases and associated contacts. If the number of assumed contacts-per-case are notably changed (in Step 1), users are advised to concurrently alter the monitoring time.

Sheet D. Epi Parameters
BA5: New Daily Cases
BA6: Cumulative Cases | BG6: Disease Stage Text
BG7: =K17 -> 3 | BH7: =H17 -> Infected, not yet infectious | BI7: 1 | BJ7: =IFERROR(INDEX($BH$7:$BH$10, MATCH(BI7, $BG$7:$BG$10, 0)), "") -> 
BA8: Chart Titles | BB8: Y-Limits | BC8: X-Limits | BG8: =BG7+K18 -> 5 | BH8: =H18 -> Infectious, pre-symptomatic | BI8: 2
B9: Step 1: | C9: Enter information about how quickly the disease spreads without mitigation | BA9: =_xlfn.CONCAT(BA5, "(R0 = ", TEXT($F$10, "0.00"), ")") -> New Daily Cases (R0 = 2.00) | BB9: 0 | BC9: ='A. Outbreak Details'!F13-10 -> 2020-05-23 | BG9: =BG8+K19 -> 8 | BH9: Infectious & symptomatic | BI9: 3 | BJ9: =IFERROR(INDEX($BH$7:$BH$10, MATCH(BI9, $BG$7:$BG$10, 0)), "") -> Infected, not yet infectious
C10: New Infections per Case (R0) | F10: 2 | G10: infections | BA10: =_xlfn.CONCAT(BA6, "(R0 = ", TEXT($F$10, "0.00"), ")") -> Cumulative Cases (R0 = 2.00) | BB10: ='A. Outbreak Details'!F10*0.9 -> 90000 | BC10: =BC9+385 -> 2021-06-12 | BG10: =BG9+K20 -> 14 | BH10: Recovering, no longer infectious | BI10: 4 | BJ10: =IFERROR(INDEX($BH$7:$BH$10, MATCH(BI10, $BG$7:$BG$10, 0)), "") -> 
BI11: 5 | BJ11: Infectious, pre-symptomatic
B12: Step 2: | C12: Enter information about how the disease transmission occurs over the duration of illness (without mitigation) | BI12: 6
C13: Day | BI13: 7
C14: 1 | D14: 0 | E14: =BJ7 ->  | BI14: 8 | BJ14: Infectious & symptomatic
C15: 2 | D15: 0 | E15: =BJ8 ->  | BI15: 9
C16: 3 | D16: 0 | E16: Infected, not yet infectious | H16: Disease Stage (with Color Legend) | BI16: 10
C17: 4 | D17: 0.2 | H17: Infected, not yet infectious | K17: 3 | L17: days | BI17: 11
C18: 5 | D18: 0.2 | E18: Infectious, pre-symptomatic | H18: Infectious, pre-symptomatic | K18: 2 | L18: days | BI18: 12
C19: 6 | D19: 0.2 | H19: Infectious & symptomatic | K19: 3 | L19: days | BI19: 13
C20: 7 | D20: 0.2 | H20: Recovering, no longer infectious | K20: =14-SUM($K$17:$K$19) -> 6 | L20: days | BI20: 14 | BJ20: Recovering, no longer infectious
C21: 8 | D21: 0.2 | E21: Infectious & symptomatic | H21: Total Duration of Infection/Illness | K21: =SUM(K17:K20) -> 14 | L21: days | CA21: Step 3: | CB21: Enter information about how deadly the illness is
C22: 9 | D22: 0 | CB22: Estimated Case Fatality Rate | CE22: 0.0109
C23: 10 | D23: 0 | CB23: % Increase in Case Fatality Rate if Hospitals Overloaded | CE23: 0.0102
C24: 11 | D24: 0
C25: 12 | D25: 0
C26: 13 | D26: 0
C27: 14 | D27: 0 | E27: Recovering, no longer infectious
D28: =SUM(D14:D27) -> 1 | E28: (Must equal 100%)
B30: Step 3: | C30: Enter information about asymptomatic cases
C31: % of cases that are asymptomatic | F31: 0.35 | G31: of cases
C32: Infectiousness of Asymptomatic Cases (Relative to Symptomatic Cases) | F32: 1 | N32: *These figures show the cases that may occur if current social distancing interventions were to continue unchanged into the future (Base case for the model).

Sheet RESULTS
B5: Results: Potential impact of Contact Tracing on COVID-19 cases and resources needed | BA5: Chart Text
BA6: Maximum daily staff needed by strategy | BD6: Staffing Needs by Group
BA7: Maximum staff needed per day
B8: Result 1: Potential Impact of Contact Tracing Strategies on Future Epidemic Trajectory | BA8: New cases per day by strategy
BA9: Cumulative cases by strategy
BA10: Contact Tracing Starts | BB10: =TEXT($S$13, "[$-en-US]d-mmm-yyyy;@") -> 16-Jun-2020
BA11: Chart Titles
N12: Table 1: Outbreak duration and total cases by type of intervention | BA12: =IFERROR(_xlfn.CONCAT(BA6, "(", $BA$10, " ", $BB$10, ")"), CONCATENATE(BA6, "(", $BA$10, " ", $BB$10, ")")) -> Maximum daily staff needed by strategy (Contact Tracing Starts 16-Jun-2020)
R13: contact tracing start date: | S13: ='B. Impact of contact tracing'!$F$12 -> 2020-06-16 | BA13: =IFERROR(_xlfn.CONCAT(BA8, "(", $BA$10, " ", $BB$10, ")"), CONCATENATE(BA8, "(", $BA$10, " ", $BB$10, ")")) -> New cases per day by strategy (Contact Tracing Starts 16-Jun-2020)
P14: Type of contact tracing | BA14: =IFERROR(_xlfn.CONCAT(BA9, "(", $BA$10, " ", $BB$10, ")"), CONCATENATE(BA9, "(", $BA$10, " ", $BB$10, ")")) -> Cumulative cases by strategy (Contact Tracing Starts 16-Jun-2020)
P15: Base Case | Q15: ='B. Impact of contact tracing'!F16 -> Strategy 1 | R15: ='B. Impact of contact tracing'!G16 -> Strategy 2 | S15: ='B. Impact of contact tracing'!H16 -> Strategy 3 | BA15: Y-axis labels | BB15: X-axis labels
N16: Duration (days) | P16: =IF('Case Counts'!V369>=1,"> 365",SUM(COUNTIF('Case Counts'!V5:V369,">=1"))) -> > 365 | Q16: =IF('Case Counts'!W369>=1,"> 365",SUM(COUNTIF('Case Counts'!W5:W369,">=1"))) -> 142 | R16: =IF('Case Counts'!X369>=1,"> 365",SUM(COUNTIF('Case Counts'!X5:X369,">=1"))) -> 155 | S16: =IF('Case Counts'!Y369>=1,"> 365",SUM(COUNTIF('Case Counts'!Y5:Y369,">=1"))) -> 334 | BA16: Cases | BB16: Days
N17: Date of Peak | P17: =INDEX('Case Counts'!$U$4:$U$369, MATCH('Calc - Base'!S5, 'Case Counts'!$T$4:$T$369, 0)) -> 2020-06-02 | Q17: =INDEX('Case Counts'!$U$4:$U$369, MATCH('Calc - Likely, S1'!S5, 'Case Counts'!$T$4:$T$369, 0)) -> 2020-08-05 | R17: =INDEX('Case Counts'!$U$4:$U$369, MATCH('Calc - Likely, S2'!S5, 'Case Counts'!$T$4:$T$369, 0)) -> 2020-08-09 | S17: =INDEX('Case Counts'!$U$4:$U$369, MATCH('Calc - Likely, S3'!S5, 'Case Counts'!$T$4:$T$369, 0)) -> 2020-09-23 | BA17: Staff
N18: Cases on Peak Day | P18: ='Calc - Base'!S4 -> 41.34214286 | Q18: ='Calc - Likely, S1'!S4 -> 1780.640824 | R18: ='Calc - Likely, S2'!S4 -> 1484.610737 | S18: ='Calc - Likely, S3'!S4 -> 223.5729846
N19: Total number of cases | P19: =MAX('Case Counts'!Z59:Z424) -> 5205.202729 | Q19: =MAX('Case Counts'!AA52:AA417) -> 68871.08253 | R19: =MAX('Case Counts'!AB52:AB417) -> 64588.66015 | S19: =MAX('Case Counts'!AC52:AC417) -> 28889.90455
BB24: Lower | BC24: Upper
B25: Result 2: Estimated Staffing Needs | BA25: =J30 -> Strategy 1 | BB25: =J32 -> 155.8060721 | BC25: =K32 -> 467.4182164
BA26: =L30 -> Strategy 2 | BB26: =L32 -> 454.6620381 | BC26: =M32 -> 4286.813502
I27: Table 2: Contact tracing resource needs | BA27: =N30 -> Strategy 3 | BB27: =N32 -> 136.3743614 | BC27: =O32 -> 1052.579922
N28: contact tracing start date: | O28: ='B. Impact of contact tracing'!$F$12 -> 2020-06-16
J29: Type of contact tracing | BB29: Lower | BC29: Upper
J30: =Q15 -> Strategy 1 | L30: =R15 -> Strategy 2 | N30: =S15 -> Strategy 3 | BA30: =J30 -> Strategy 1 | BB30: =J35 -> 71717.46151 | BC30: =K35 -> 143434.923
J31: Lower | K31: Upper | L31: Lower | M31: Upper | N31: Lower | O31: Upper | BA31: =L30 -> Strategy 2 | BB31: =L35 -> 235273.213 | BC31: =M35 -> 1478860.196
I32: Max daily staff needs | J32: =MAX('Staff Needed'!V5:V370) -> 155.8060721 | K32: =MAX('Staff Needed'!W5:W370) -> 467.4182164 | L32: =MAX('Staff Needed'!X5:X370) -> 454.6620381 | M32: =MAX('Staff Needed'!Y5:Y370) -> 4286.813502 | N32: =MAX('Staff Needed'!Z5:Z370) -> 136.3743614 | O32: =MAX('Staff Needed'!AA5:AA370) -> 1052.579922 | BA32: =N30 -> Strategy 3 | BB32: =N35 -> 209111.6939 | BC32: =O35 -> 1074344.573
I33: Group 1 | J33: =MAX('Staff Needed'!AB5:AB370) -> 155.8060721 | K33: =MAX('Staff Needed'!AC5:AC370) -> 467.4182164 | L33: =MAX('Staff Needed'!AD5:AD370) -> 454.6620381 | M33: =MAX('Staff Needed'!AE5:AE370) -> 4286.813502 | N33: =MAX('Staff Needed'!AF5:AF370) -> 68.46922654 | O33: =MAX('Staff Needed'!AG5:AG370) -> 645.566993
I34: Group 2 | J34: =MAX('Staff Needed'!AH5:AH370) -> 0 | K34: =MAX('Staff Needed'!AI5:AI370) -> 0 | L34: =MAX('Staff Needed'!AJ5:AJ370) -> 0 | M34: =MAX('Staff Needed'!AK5:AK370) -> 0 | N34: =MAX('Staff Needed'!AL5:AL370) -> 68.22288436 | O34: =MAX('Staff Needed'!AM5:AM370) -> 409.3373061 | BB34: Strategy 1 | BD34: Strategy 2 | BF34: Strategy 3
I35: Total hours needed | J35: =SUM('Person Hours'!V5:V370) -> 71717.46151 | K35: =SUM('Person Hours'!W5:W370) -> 143434.923 | L35: =SUM('Person Hours'!X5:X370) -> 235273.213 | M35: =SUM('Person Hours'!Y5:Y370) -> 1478860.196 | N35: =SUM('Person Hours'!Z5:Z370) -> 209111.6939 | O35: =SUM('Person Hours'!AA5:AA370) -> 1074344.573 | BB35: Lower | BC35: Upper | BD35: Lower | BE35: Upper | BF35: Lower | BG35: Upper
I36: =I33 -> Group 1 | J36: =SUM('Person Hours'!AB5:AB370) -> 71717.46151 | K36: =SUM('Person Hours'!AC5:AC370) -> 143434.923 | L36: =SUM('Person Hours'!AD5:AD370) -> 235273.213 | M36: =SUM('Person Hours'!AE5:AE370) -> 1478860.196 | N36: =SUM('Person Hours'!AF5:AF370) -> 104080.2862 | O36: =SUM('Person Hours'!AG5:AG370) -> 654218.942 | BA36: Group 1 | BB36: =J36/SUM(J36:J37) -> 1 | BC36: 1 | BD36: 1 | BE36: 1 | BF36: 0.4977258053 | BG36: 0.6089470349
I37: =I34 -> Group 2 | J37: =SUM('Person Hours'!AH5:AH370) -> 0 | K37: =SUM('Person Hours'!AI5:AI370) -> 0 | L37: =SUM('Person Hours'!AJ5:AJ370) -> 0 | M37: =SUM('Person Hours'!AK5:AK370) -> 0 | N37: =SUM('Person Hours'!AL5:AL370) -> 105031.4077 | O37: =SUM('Person Hours'!AM5:AM370) -> 420125.6306 | BA37: Group 2 | BB37: =J37/SUM(J36:J37) -> 0 | BC37: 0 | BD37: 0 | BE37: 0 | BF37: 0.5022741947 | BG37: 0.3910529651

Sheet SA_Case Counts
B5: "What-If" Sensitivity Analysis: Potential Impact of Contact Tracing on Future Case Counts | BA5: Chart Text | BF5: Scenario Options | BJ5: Chosen Scenario | BK5: =$E$9 -> Strategy 3 | BL5: =IF($BK$5 = $BF$6, 'B. Impact of contact tracing'!$F$19, IF($BK$5 = $BF$7, 'B. Impact of contact tracing'!$G$19, 'B. Impact of contact tracing'!$H$19)) -> Contact ID | BR5: R0 | BS5: Date CT Begins | BT5: Isolation Day | BU5: % Adherence | BW5: Modified Infectivity Distributions
BA6: Maximum daily staff needed by strategy | BF6: ='B. Impact of contact tracing'!F16 -> Strategy 1 | BL6: New Cases By Day | BN6: Cumulative Cases | BQ6: =BF6 -> Strategy 1 | BR6: ='D. Epi Parameters'!$F$10 -> 2 | BS6: ='B. Impact of contact tracing'!$F$12 -> 2020-06-16 | BT6: ='B. Impact of contact tracing'!F17 -> 7 | BU6: ='B. Impact of contact tracing'!F18 -> 0.5 | BX6: Base | BY6: What-If
BA7: Maximum staff needed per day | BF7: ='B. Impact of contact tracing'!G16 -> Strategy 2 | BL7: Chosen Scenario | BM7: What-If | BN7: Chosen Scenario | BO7: What-If | BQ7: =BF7 -> Strategy 2 | BR7: ='D. Epi Parameters'!$F$10 -> 2 | BS7: ='B. Impact of contact tracing'!$F$12 -> 2020-06-16 | BT7: ='B. Impact of contact tracing'!G17 -> 6 | BU7: ='B. Impact of contact tracing'!G18 -> 0.45 | BW7: 1 | BX7: ='D. Epi Parameters'!D14 -> 0 | BY7: =IF($BW7<$F$15, $BX7, 0) -> 0
BA8: New daily cases by strategy | BF8: ='B. Impact of contact tracing'!H16 -> Strategy 3 | BJ8: Day | BK8: Date | BQ8: =BF8 -> Strategy 3 | BR8: ='D. Epi Parameters'!$F$10 -> 2 | BS8: ='B. Impact of contact tracing'!$F$12 -> 2020-06-16 | BT8: ='B. Impact of contact tracing'!H17 -> 4 | BU8: ='B. Impact of contact tracing'!H18 -> 0.4 | BW8: 2 | BX8: ='D. Epi Parameters'!D15 -> 0 | BY8: 0
B9: Step 1: | C9: Choose A Contact Tracing Strategy | E9: Strategy 3 | I9: Your "what-if" scenario would change the estimated outbreak trajectory as follows: | P9: Staffing needs would change like this: | BA9: Cumulative cases by strategy | BJ9: 0 | BK9: =VLOOKUP(BJ9, 'Calc - Base'!$H$35:$I$400, 2) -> 2020-06-02 | BL9: =IF($BK$5 = $BF$6, 'Case Counts'!W4, IF($BK$5 = $BF$7, 'Case Counts'!X4, 'Case Counts'!Y4)) -> 41.34214286 | BM9: ='Calc - SA_Case Counts'!L35 -> 41.34214286 | BN9: =IF($BK$5 = $BF$6, 'Case Counts'!AA4, IF($BK$5 = $BF$7, 'Case Counts'!AB4, 'Case Counts'!AC4)) -> 41.34214286 | BO9: =BM9 -> 41.34214286 | BW9: 3 | BX9: ='D. Epi Parameters'!D16 -> 0 | BY9: 0
BA10: Contact Tracing Starts | BB10: =TEXT($S$13, "[$-en-US]d-mmm-yyyy;@") -> 0-Jan-1900 | BJ10: 1 | BK10: =VLOOKUP(BJ10, 'Calc - Base'!$H$35:$I$400, 2) -> 2020-06-03 | BL10: =IF($BK$5 = $BF$6, 'Case Counts'!W5, IF($BK$5 = $BF$7, 'Case Counts'!X5, 'Case Counts'!Y5)) -> 41.3247201 | BM10: ='Calc - SA_Case Counts'!L36 -> 41.3247201 | BN10: =IF($BK$5 = $BF$6, 'Case Counts'!AA5, IF($BK$5 = $BF$7, 'Case Counts'!AB5, 'Case Counts'!AC5)) -> 82.66686295 | BO10: =BO9+BM10 -> 82.66686295 | BW10: 4 | BX10: ='D. Epi Parameters'!D17 -> 0.2 | BY10: 0.2
B11: Step 2: | C11: Set your "What-If" Scenario | BA11: Chart Titles | BJ11: 2 | BK11: =VLOOKUP(BJ11, 'Calc - Base'!$H$35:$I$400, 2) -> 2020-06-04 | BL11: =IF($BK$5 = $BF$6, 'Case Counts'!W6, IF($BK$5 = $BF$7, 'Case Counts'!X6, 'Case Counts'!Y6)) -> 41.30730468 | BM11: ='Calc - SA_Case Counts'!L37 -> 41.30730468 | BN11: =IF($BK$5 = $BF$6, 'Case Counts'!AA6, IF($BK$5 = $BF$7, 'Case Counts'!AB6, 'Case Counts'!AC6)) -> 123.9741676 | BO11: =BO10+BM11 -> 123.9741676 | BQ11: Ranges | BW11: 5 | BX11: ='D. Epi Parameters'!D18 -> 0.2 | BY11: 0.2
E12: Original Scenario | F12: What-If | BA12: Maximum staff needed per day | BJ12: 3 | BK12: =VLOOKUP(BJ12, 'Calc - Base'!$H$35:$I$400, 2) -> 2020-06-05 | BL12: =IF($BK$5 = $BF$6, 'Case Counts'!W7, IF($BK$5 = $BF$7, 'Case Counts'!X7, 'Case Counts'!Y7)) -> 41.2898966 | BM12: ='Calc - SA_Case Counts'!L38 -> 41.2898966 | BN12: =IF($BK$5 = $BF$6, 'Case Counts'!AA7, IF($BK$5 = $BF$7, 'Case Counts'!AB7, 'Case Counts'!AC7)) -> 165.2640642 | BO12: 165.2640642 | BQ12: 0 | BR12: 0 | BW12: 6 | BX12: ='D. Epi Parameters'!D19 -> 0.2 | BY12: 0
C13: R0 | E13: =IF($BK$5 = $BF$6, BR6, IF($BK$5 = $BF$7, BR7, BR8)) -> 2 | F13: 2 | BA13: New cases, daily | BJ13: 4 | BK13: =VLOOKUP(BJ13, 'Calc - Base'!$H$35:$I$400, 2) -> 2020-06-06 | BL13: =IF($BK$5 = $BF$6, 'Case Counts'!W8, IF($BK$5 = $BF$7, 'Case Counts'!X8, 'Case Counts'!Y8)) -> 41.11566037 | BM13: ='Calc - SA_Case Counts'!L39 -> 41.11566037 | BN13: =IF($BK$5 = $BF$6, 'Case Counts'!AA8, IF($BK$5 = $BF$7, 'Case Counts'!AB8, 'Case Counts'!AC8)) -> 206.3797246 | BO13: 206.3797246 | BQ13: =ROUNDUP(MAX(BL9:BM374), -2) -> 300 | BR13: =ROUNDUP(MAX(BN9:BO374), -2) -> 28900 | BW13: 7 | BX13: ='D. Epi Parameters'!D20 -> 0.2 | BY13: 0
C14: Date Contact Tracing Begins | E14: =IF($BK$5 = $BF$6, BS6, IF($BK$5 = $BF$7, BS7, BS8)) -> 2020-06-16 | F14: 2020-07-30 | BA14: =IFERROR(_xlfn.CONCAT(BA9, "(", $BA$10, " ", $BB$10, ")"), CONCATENATE(BA9, "(", $BA$10, " ", $BB$10, ")")) -> Cumulative cases by strategy (Contact Tracing Starts 0-Jan-1900) | BJ14: 5 | BK14: =VLOOKUP(BJ14, 'Calc - Base'!$H$35:$I$400, 2) -> 2020-06-07 | BL14: =IF($BK$5 = $BF$6, 'Case Counts'!W9, IF($BK$5 = $BF$7, 'Case Counts'!X9, 'Case Counts'!Y9)) -> 40.93821811 | BM14: ='Calc - SA_Case Counts'!L40 -> 40.93821811 | BN14: =IF($BK$5 = $BF$6, 'Case Counts'!AA9, IF($BK$5 = $BF$7, 'Case Counts'!AB9, 'Case Counts'!AC9)) -> 247.3179427 | BO14: 247.3179427 | BQ14: Contact Tracing Begins | BW14: 8 | BX14: ='D. Epi Parameters'!D21 -> 0.2 | BY14: 0
C15: Days after infection that isolation starts | E15: =IF($BK$5 = $BF$6, BT6, IF($BK$5 = $BF$7, BT7, BT8)) -> 4 | F15: 6 | BA15: Y-axis labels | BB15: X-axis labels | BJ15: 6 | BK15: =VLOOKUP(BJ15, 'Calc - Base'!$H$35:$I$400, 2) -> 2020-06-08 | BL15: =IF($BK$5 = $BF$6, 'Case Counts'!W10, IF($BK$5 = $BF$7, 'Case Counts'!X10, 'Case Counts'!Y10)) -> 40.75757602 | BM15: ='Calc - SA_Case Counts'!L41 -> 40.75757602 | BN15: =IF($BK$5 = $BF$6, 'Case Counts'!AA10, IF($BK$5 = $BF$7, 'Case Counts'!AB10, 'Case Counts'!AC10)) -> 288.0755187 | BO15: 288.0755187 | BQ15: Date | BR15: Day | BW15: 9 | BX15: ='D. Epi Parameters'!D22 -> 0 | BY15: 0
C16: % CT adherence | E16: =IF($BK$5 = $BF$6, BU6, IF($BK$5 = $BF$7, BU7, BU8)) -> 0.4 | F16: 0.85 | BA16: Cases | BB16: Days | BJ16: 7 | BK16: =VLOOKUP(BJ16, 'Calc - Base'!$H$35:$I$400, 2) -> 2020-06-09 | BL16: =IF($BK$5 = $BF$6, 'Case Counts'!W11, IF($BK$5 = $BF$7, 'Case Counts'!X11, 'Case Counts'!Y11)) -> 40.57374026 | BM16: ='Calc - SA_Case Counts'!L42 -> 40.57374026 | BN16: =IF($BK$5 = $BF$6, 'Case Counts'!AA11, IF($BK$5 = $BF$7, 'Case Counts'!AB11, 'Case Counts'!AC11)) -> 328.649259 | BO16: 328.649259 | BP16: Base | BQ16: =E14 -> 2020-06-16 | BR16: =INDEX($BJ$9:$BJ$374, MATCH(BQ16, $BK$9:$BK$374, 0)) -> 14 | BW16: 10 | BX16: ='D. Epi Parameters'!D23 -> 0 | BY16: 0
BA17: Staff | BJ17: 8 | BK17: =VLOOKUP(BJ17, 'Calc - Base'!$H$35:$I$400, 2) -> 2020-06-10 | BL17: =IF($BK$5 = $BF$6, 'Case Counts'!W12, IF($BK$5 = $BF$7, 'Case Counts'!X12, 'Case Counts'!Y12)) -> 40.35604888 | BM17: ='Calc - SA_Case Counts'!L43 -> 40.35604888 | BN17: =IF($BK$5 = $BF$6, 'Case Counts'!AA12, IF($BK$5 = $BF$7, 'Case Counts'!AB12, 'Case Counts'!AC12)) -> 369.0053079 | BO17: 369.0053079 | BP17: What-If | BQ17: =F14 -> 2020-07-30 | BR17: =INDEX($BJ$9:$BJ$374, MATCH(BQ17, $BK$9:$BK$374, 0)) -> 58 | BW17: 11 | BX17: ='D. Epi Parameters'!D24 -> 0 | BY17: 0
BJ18: 9 | BK18: =VLOOKUP(BJ18, 'Calc - Base'!$H$35:$I$400, 2) -> 2020-06-11 | BL18: =IF($BK$5 = $BF$6, 'Case Counts'!W13, IF($BK$5 = $BF$7, 'Case Counts'!X13, 'Case Counts'!Y13)) -> 40.26043961 | BM18: ='Calc - SA_Case Counts'!L44 -> 40.26043961 | BN18: =IF($BK$5 = $BF$6, 'Case Counts'!AA13, IF($BK$5 = $BF$7, 'Case Counts'!AB13, 'Case Counts'!AC13)) -> 409.2657475 | BO18: 409.2657475 | BW18: 12 | BX18: ='D. Epi Parameters'!D25 -> 0 | BY18: 0
BJ19: 10 | BK19: =VLOOKUP(BJ19, 'Calc - Base'!$H$35:$I$400, 2) -> 2020-06-12 | BL19: =IF($BK$5 = $BF$6, 'Case Counts'!W14, IF($BK$5 = $BF$7, 'Case Counts'!X14, 'Case Counts'!Y14)) -> 40.13304481 | BM19: ='Calc - SA_Case Counts'!L45 -> 40.13304481 | BN19: =IF($BK$5 = $BF$6, 'Case Counts'!AA14, IF($BK$5 = $BF$7, 'Case Counts'!AB14, 'Case Counts'!AC14)) -> 449.3987923 | BO19: 449.3987923 | BW19: 13 | BX19: ='D. Epi Parameters'!D26 -> 0 | BY19: 0
BJ20: 11 | BK20: =VLOOKUP(BJ20, 'Calc - Base'!$H$35:$I$400, 2) -> 2020-06-13 | BL20: =IF($BK$5 = $BF$6, 'Case Counts'!W15, IF($BK$5 = $BF$7, 'Case Counts'!X15, 'Case Counts'!Y15)) -> 39.97329145 | BM20: ='Calc - SA_Case Counts'!L46 -> 39.97329145 | BN20: =IF($BK$5 = $BF$6, 'Case Counts'!AA15, IF($BK$5 = $BF$7, 'Case Counts'!AB15, 'Case Counts'!AC15)) -> 489.3720837 | BO20: 489.3720837 | BQ20: Lower | BR20: Upper | BW20: 14 | BX20: ='D. Epi Parameters'!D27 -> 0 | BY20: 0
BJ21: 12 | BK21: =VLOOKUP(BJ21, 'Calc - Base'!$H$35:$I$400, 2) -> 2020-06-14 | BL21: =IF($BK$5 = $BF$6, 'Case Counts'!W16, IF($BK$5 = $BF$7, 'Case Counts'!X16, 'Case Counts'!Y16)) -> 39.77462145 | BM21: ='Calc - SA_Case Counts'!L47 -> 39.77462145 | BN21: =IF($BK$5 = $BF$6, 'Case Counts'!AA16, IF($BK$5 = $BF$7, 'Case Counts'!AB16, 'Case Counts'!AC16)) -> 529.1467052 | BO21: 529.1467052 | BP21: =BF6 -> Strategy 1 | BQ21: =MAX('Staff Needed'!V5:V370) -> 155.8060721 | BR21: =MAX('Staff Needed'!W5:W370) -> 467.4182164
BJ22: 13 | BK22: =VLOOKUP(BJ22, 'Calc - Base'!$H$35:$I$400, 2) -> 2020-06-15 | BL22: =IF($BK$5 = $BF$6, 'Case Counts'!W17, IF($BK$5 = $BF$7, 'Case Counts'!X17, 'Case Counts'!Y17)) -> 39.59152475 | BM22: ='Calc - SA_Case Counts'!L48 -> 39.59152475 | BN22: =IF($BK$5 = $BF$6, 'Case Counts'!AA17, IF($BK$5 = $BF$7, 'Case Counts'!AB17, 'Case Counts'!AC17)) -> 568.7382299 | BO22: 568.7382299 | BP22: =BF7 -> Strategy 2 | BQ22: =MAX('Staff Needed'!X5:X370) -> 454.6620381 | BR22: =MAX('Staff Needed'!Y5:Y370) -> 4286.813502
BJ23: 14 | BK23: =VLOOKUP(BJ23, 'Calc - Base'!$H$35:$I$400, 2) -> 2020-06-16 | BL23: =IF($BK$5 = $BF$6, 'Case Counts'!W18, IF($BK$5 = $BF$7, 'Case Counts'!X18, 'Case Counts'!Y18)) -> 47.30208057 | BM23: ='Calc - SA_Case Counts'!L49 -> 39.41840048 | BN23: =IF($BK$5 = $BF$6, 'Case Counts'!AA18, IF($BK$5 = $BF$7, 'Case Counts'!AB18, 'Case Counts'!AC18)) -> 616.0403105 | BO23: 608.1566304 | BP23: =BF8 -> Strategy 3 | BQ23: =MAX('Staff Needed'!Z5:Z370) -> 136.3743614 | BR23: =MAX('Staff Needed'!AA5:AA370) -> 1052.579922
BJ24: 15 | BK24: =VLOOKUP(BJ24, 'Calc - Base'!$H$35:$I$400, 2) -> 2020-06-17 | BL24: =IF($BK$5 = $BF$6, 'Case Counts'!W19, IF($BK$5 = $BF$7, 'Case Counts'!X19, 'Case Counts'!Y19)) -> 47.09564695 | BM24: ='Calc - SA_Case Counts'!L50 -> 39.24954637 | BN24: =IF($BK$5 = $BF$6, 'Case Counts'!AA19, IF($BK$5 = $BF$7, 'Case Counts'!AB19, 'Case Counts'!AC19)) -> 663.1359575 | BO24: 647.4061768
BJ25: 16 | BK25: =VLOOKUP(BJ25, 'Calc - Base'!$H$35:$I$400, 2) -> 2020-06-18 | BL25: =IF($BK$5 = $BF$6, 'Case Counts'!W20, IF($BK$5 = $BF$7, 'Case Counts'!X20, 'Case Counts'!Y20)) -> 46.88602177 | BM25: ='Calc - SA_Case Counts'!L51 -> 39.07799237 | BN25: =IF($BK$5 = $BF$6, 'Case Counts'!AA20, IF($BK$5 = $BF$7, 'Case Counts'!AB20, 'Case Counts'!AC20)) -> 710.0219792 | BO25: 686.4841692 | BQ25: Lower | BR25: Upper
BJ26: 17 | BK26: =VLOOKUP(BJ26, 'Calc - Base'!$H$35:$I$400, 2) -> 2020-06-19 | BL26: =IF($BK$5 = $BF$6, 'Case Counts'!W21, IF($BK$5 = $BF$7, 'Case Counts'!X21, 'Case Counts'!Y21)) -> 46.68476374 | BM26: ='Calc - SA_Case Counts'!L52 -> 38.91337233 | BN26: =IF($BK$5 = $BF$6, 'Case Counts'!AA21, IF($BK$5 = $BF$7, 'Case Counts'!AB21, 'Case Counts'!AC21)) -> 756.706743 | BO26: 725.3975415 | BP26: =K30 -> Original Scenario | BQ26: =IF($BK$5 = $BF$6, BQ21, IF($BK$5=$BF$7, BQ22,BQ23)) -> 136.3743614 | BR26: =IF($BK$5 = $BF$6, BR21, IF($BK$5=$BF$7, BR22,BR23)) -> 1052.579922
BJ27: 18 | BK27: =VLOOKUP(BJ27, 'Calc - Base'!$H$35:$I$400, 2) -> 2020-06-20 | BL27: =IF($BK$5 = $BF$6, 'Case Counts'!W22, IF($BK$5 = $BF$7, 'Case Counts'!X22, 'Case Counts'!Y22)) -> 48.30748063 | BM27: ='Calc - SA_Case Counts'!L53 -> 38.73384132 | BN27: =IF($BK$5 = $BF$6, 'Case Counts'!AA22, IF($BK$5 = $BF$7, 'Case Counts'!AB22, 'Case Counts'!AC22)) -> 805.0142236 | BO27: 764.1313828 | BP27: =L30 -> What-If | BQ27: =MAX('Calc - SA_Case Counts'!AT40:AT405) -> 18.91465158 | BR27: =MAX('Calc - SA_Case Counts'!AU40:AU405) -> 144.784268
BJ28: 19 | BK28: =VLOOKUP(BJ28, 'Calc - Base'!$H$35:$I$400, 2) -> 2020-06-21 | BL28: =IF($BK$5 = $BF$6, 'Case Counts'!W23, IF($BK$5 = $BF$7, 'Case Counts'!X23, 'Case Counts'!Y23)) -> 49.90933067 | BM28: ='Calc - SA_Case Counts'!L54 -> 38.54644153 | BN28: =IF($BK$5 = $BF$6, 'Case Counts'!AA23, IF($BK$5 = $BF$7, 'Case Counts'!AB23, 'Case Counts'!AC23)) -> 854.9235543 | BO28: 802.6778243
BJ29: 20 | BK29: =VLOOKUP(BJ29, 'Calc - Base'!$H$35:$I$400, 2) -> 2020-06-22 | BL29: =IF($BK$5 = $BF$6, 'Case Counts'!W24, IF($BK$5 = $BF$7, 'Case Counts'!X24, 'Case Counts'!Y24)) -> 51.49707829 | BM29: ='Calc - SA_Case Counts'!L55 -> 38.35695616 | BN29: =IF($BK$5 = $BF$6, 'Case Counts'!AA24, IF($BK$5 = $BF$7, 'Case Counts'!AB24, 'Case Counts'!AC24)) -> 906.4206326 | BO29: 841.0347805 | BQ29: Base | BR29: What-If
K30: =E12 -> Original Scenario | L30: =F12 -> What-If | M30: Difference | BJ30: 21 | BK30: =VLOOKUP(BJ30, 'Calc - Base'!$H$35:$I$400, 2) -> 2020-06-23 | BL30: =IF($BK$5 = $BF$6, 'Case Counts'!W25, IF($BK$5 = $BF$7, 'Case Counts'!X25, 'Case Counts'!Y25)) -> 53.08169902 | BM30: ='Calc - SA_Case Counts'!L56 -> 38.17430652 | BN30: =IF($BK$5 = $BF$6, 'Case Counts'!AA25, IF($BK$5 = $BF$7, 'Case Counts'!AB25, 'Case Counts'!AC25)) -> 959.5023316 | BO30: 879.209087 | BP30: Day of Peak | BQ30: =INDEX(BJ9:BJ374, MATCH($BQ$32, BL9:BL374, 0)) -> 113 | BR30: =INDEX(BJ9:BJ374, MATCH($BR$32, BM9:BM374, 0)) -> 0
I31: Duration (days) | K31: =IF($BL$374>=1,"> 365", SUM(COUNTIF($BL$9:$BL$374,">=1"))) -> 335 | L31: =IF($BM$374>=1,"> 365", SUM(COUNTIF($BM$9:$BM$374,">=1"))) -> 278 | M31: =IFERROR(L31-K31, "N/A") -> -57 | BJ31: 22 | BK31: =VLOOKUP(BJ31, 'Calc - Base'!$H$35:$I$400, 2) -> 2020-06-24 | BL31: =IF($BK$5 = $BF$6, 'Case Counts'!W26, IF($BK$5 = $BF$7, 'Case Counts'!X26, 'Case Counts'!Y26)) -> 55.08472227 | BM31: ='Calc - SA_Case Counts'!L57 -> 37.99255372 | BN31: =IF($BK$5 = $BF$6, 'Case Counts'!AA26, IF($BK$5 = $BF$7, 'Case Counts'!AB26, 'Case Counts'!AC26)) -> 1014.587054 | BO31: 917.2016407 | BP31: Date of Peak | BQ31: =INDEX(BK9:BK374, MATCH($BQ$32, BL9:BL374, 0)) -> 2020-09-23 | BR31: =INDEX(BK9:BK374, MATCH($BR$32, BM9:BM374, 0)) -> 2020-06-02
I32: Day of Peak | K32: =BQ31 -> 2020-09-23 | L32: =BR31 -> 2020-06-02 | M32: =IFERROR(L32-K32, "N/A") -> -113 | BJ32: 23 | BK32: =VLOOKUP(BJ32, 'Calc - Base'!$H$35:$I$400, 2) -> 2020-06-25 | BL32: =IF($BK$5 = $BF$6, 'Case Counts'!W27, IF($BK$5 = $BF$7, 'Case Counts'!X27, 'Case Counts'!Y27)) -> 55.66098808 | BM32: ='Calc - SA_Case Counts'!L58 -> 37.80822793 | BN32: =IF($BK$5 = $BF$6, 'Case Counts'!AA27, IF($BK$5 = $BF$7, 'Case Counts'!AB27, 'Case Counts'!AC27)) -> 1070.248042 | BO32: 955.0098687 | BP32: Cases @ Peak | BQ32: =MAX(BL9:BL374) -> 223.5729846 | BR32: =MAX(BM9:BM374) -> 41.34214286
I33: Cases @ Peak | K33: =BQ32 -> 223.5729846 | L33: =BR32 -> 41.34214286 | M33: -182.2308417 | BJ33: 24 | BK33: =VLOOKUP(BJ33, 'Calc - Base'!$H$35:$I$400, 2) -> 2020-06-26 | BL33: =IF($BK$5 = $BF$6, 'Case Counts'!W28, IF($BK$5 = $BF$7, 'Case Counts'!X28, 'Case Counts'!Y28)) -> 56.65404403 | BM33: ='Calc - SA_Case Counts'!L59 -> 37.62009759 | BN33: =IF($BK$5 = $BF$6, 'Case Counts'!AA28, IF($BK$5 = $BF$7, 'Case Counts'!AB28, 'Case Counts'!AC28)) -> 1126.902086 | BO33: 992.6299663
I34: Total number of cases | K34: =MAX(BN9:BN374) -> 28889.90455 | L34: =MAX(BO9:BO374) -> 4183.702143 | M34: =L34-K34 -> -24706.20241 | BJ34: 25 | BK34: =VLOOKUP(BJ34, 'Calc - Base'!$H$35:$I$400, 2) -> 2020-06-27 | BL34: =IF($BK$5 = $BF$6, 'Case Counts'!W29, IF($BK$5 = $BF$7, 'Case Counts'!X29, 'Case Counts'!Y29)) -> 58.06291833 | BM34: ='Calc - SA_Case Counts'!L60 -> 37.43001983 | BN34: =IF($BK$5 = $BF$6, 'Case Counts'!AA29, IF($BK$5 = $BF$7, 'Case Counts'!AB29, 'Case Counts'!AC29)) -> 1184.965004 | BO34: 1030.059986
BJ35: 26 | BK35: =VLOOKUP(BJ35, 'Calc - Base'!$H$35:$I$400, 2) -> 2020-06-28 | BL35: =IF($BK$5 = $BF$6, 'Case Counts'!W30, IF($BK$5 = $BF$7, 'Case Counts'!X30, 'Case Counts'!Y30)) -> 59.98195045 | BM35: ='Calc - SA_Case Counts'!L61 -> 37.23682482 | BN35: =IF($BK$5 = $BF$6, 'Case Counts'!AA30, IF($BK$5 = $BF$7, 'Case Counts'!AB30, 'Case Counts'!AC30)) -> 1244.946955 | BO35: 1067.296811
BJ36: 27 | BK36: =VLOOKUP(BJ36, 'Calc - Base'!$H$35:$I$400, 2) -> 2020-06-29 | BL36: =IF($BK$5 = $BF$6, 'Case Counts'!W31, IF($BK$5 = $BF$7, 'Case Counts'!X31, 'Case Counts'!Y31)) -> 61.6541653 | BM36: ='Calc - SA_Case Counts'!L62 -> 37.04291093 | BN36: =IF($BK$5 = $BF$6, 'Case Counts'!AA31, IF($BK$5 = $BF$7, 'Case Counts'!AB31, 'Case Counts'!AC31)) -> 1306.60112 | BO36: 1104.339722
BJ37: 28 | BK37: =VLOOKUP(BJ37, 'Calc - Base'!$H$35:$I$400, 2) -> 2020-06-30 | BL37: =IF($BK$5 = $BF$6, 'Case Counts'!W32, IF($BK$5 = $BF$7, 'Case Counts'!X32, 'Case Counts'!Y32)) -> 63.18174361 | BM37: ='Calc - SA_Case Counts'!L63 -> 36.84906686 | BN37: =IF($BK$5 = $BF$6, 'Case Counts'!AA32, IF($BK$5 = $BF$7, 'Case Counts'!AB32, 'Case Counts'!AC32)) -> 1369.782864 | BO37: 1141.188789
BJ38: 29 | BK38: =VLOOKUP(BJ38, 'Calc - Base'!$H$35:$I$400, 2) -> 2020-07-01 | BL38: =IF($BK$5 = $BF$6, 'Case Counts'!W33, IF($BK$5 = $BF$7, 'Case Counts'!X33, 'Case Counts'!Y33)) -> 64.66477814 | BM38: ='Calc - SA_Case Counts'!L64 -> 36.65531845 | BN38: =IF($BK$5 = $BF$6, 'Case Counts'!AA33, IF($BK$5 = $BF$7, 'Case Counts'!AB33, 'Case Counts'!AC33)) -> 1434.447642 | BO38: 1177.844107
BJ39: 30 | BK39: =VLOOKUP(BJ39, 'Calc - Base'!$H$35:$I$400, 2) -> 2020-07-02 | BL39: =IF($BK$5 = $BF$6, 'Case Counts'!W34, IF($BK$5 = $BF$7, 'Case Counts'!X34, 'Case Counts'!Y34)) -> 66.22238919 | BM39: ='Calc - SA_Case Counts'!L65 -> 36.45973539 | BN39: =IF($BK$5 = $BF$6, 'Case Counts'!AA34, IF($BK$5 = $BF$7, 'Case Counts'!AB34, 'Case Counts'!AC34)) -> 1500.670031 | BO39: 1214.303843
BJ40: 31 | BK40: =VLOOKUP(BJ40, 'Calc - Base'!$H$35:$I$400, 2) -> 2020-07-03 | BL40: =IF($BK$5 = $BF$6, 'Case Counts'!W35, IF($BK$5 = $BF$7, 'Case Counts'!X35, 'Case Counts'!Y35)) -> 67.70007152 | BM40: ='Calc - SA_Case Counts'!L66 -> 36.26200653 | BN40: =IF($BK$5 = $BF$6, 'Case Counts'!AA35, IF($BK$5 = $BF$7, 'Case Counts'!AB35, 'Case Counts'!AC35)) -> 1568.370103 | BO40: 1250.565849
BJ41: 32 | BK41: =VLOOKUP(BJ41, 'Calc - Base'!$H$35:$I$400, 2) -> 2020-07-04 | BL41: =IF($BK$5 = $BF$6, 'Case Counts'!W36, IF($BK$5 = $BF$7, 'Case Counts'!X36, 'Case Counts'!Y36)) -> 69.39500292 | BM41: ='Calc - SA_Case Counts'!L67 -> 36.06264611 | BN41: =IF($BK$5 = $BF$6, 'Case Counts'!AA36, IF($BK$5 = $BF$7, 'Case Counts'!AB36, 'Case Counts'!AC36)) -> 1637.765105 | BO41: 1286.628495
BJ42: 33 | BK42: =VLOOKUP(BJ42, 'Calc - Base'!$H$35:$I$400, 2) -> 2020-07-05 | BL42: =IF($BK$5 = $BF$6, 'Case Counts'!W37, IF($BK$5 = $BF$7, 'Case Counts'!X37, 'Case Counts'!Y37)) -> 71.19967595 | BM42: ='Calc - SA_Case Counts'!L68 -> 35.86241086 | BN42: =IF($BK$5 = $BF$6, 'Case Counts'!AA37, IF($BK$5 = $BF$7, 'Case Counts'!AB37, 'Case Counts'!AC37)) -> 1708.964781 | BO42: 1322.490906
BJ43: 34 | BK43: =VLOOKUP(BJ43, 'Calc - Base'!$H$35:$I$400, 2) -> 2020-07-06 | BL43: =IF($BK$5 = $BF$6, 'Case Counts'!W38, IF($BK$5 = $BF$7, 'Case Counts'!X38, 'Case Counts'!Y38)) -> 73.03472243 | BM43: ='Calc - SA_Case Counts'!L69 -> 35.66132298 | BN43: =IF($BK$5 = $BF$6, 'Case Counts'!AA38, IF($BK$5 = $BF$7, 'Case Counts'!AB38, 'Case Counts'!AC38)) -> 1781.999504 | BO43: 1358.152229
BJ44: 35 | BK44: =VLOOKUP(BJ44, 'Calc - Base'!$H$35:$I$400, 2) -> 2020-07-07 | BL44: =IF($BK$5 = $BF$6, 'Case Counts'!W39, IF($BK$5 = $BF$7, 'Case Counts'!X39, 'Case Counts'!Y39)) -> 74.76353018 | BM44: ='Calc - SA_Case Counts'!L70 -> 35.45957078 | BN44: =IF($BK$5 = $BF$6, 'Case Counts'!AA39, IF($BK$5 = $BF$7, 'Case Counts'!AB39, 'Case Counts'!AC39)) -> 1856.763034 | BO44: 1393.6118
BJ45: 36 | BK45: =VLOOKUP(BJ45, 'Calc - Base'!$H$35:$I$400, 2) -> 2020-07-08 | BL45: =IF($BK$5 = $BF$6, 'Case Counts'!W40, IF($BK$5 = $BF$7, 'Case Counts'!X40, 'Case Counts'!Y40)) -> 76.49350541 | BM45: ='Calc - SA_Case Counts'!L71 -> 35.25697776 | BN45: =IF($BK$5 = $BF$6, 'Case Counts'!AA40, IF($BK$5 = $BF$7, 'Case Counts'!AB40, 'Case Counts'!AC40)) -> 1933.256539 | BO45: 1428.868778
BJ46: 37 | BK46: =VLOOKUP(BJ46, 'Calc - Base'!$H$35:$I$400, 2) -> 2020-07-09 | BL46: =IF($BK$5 = $BF$6, 'Case Counts'!W41, IF($BK$5 = $BF$7, 'Case Counts'!X41, 'Case Counts'!Y41)) -> 78.28324913 | BM46: ='Calc - SA_Case Counts'!L72 -> 35.05336155 | BN46: =IF($BK$5 = $BF$6, 'Case Counts'!AA41, IF($BK$5 = $BF$7, 'Case Counts'!AB41, 'Case Counts'!AC41)) -> 2011.539789 | BO46: 1463.922139
BJ47: 38 | BK47: =VLOOKUP(BJ47, 'Calc - Base'!$H$35:$I$400, 2) -> 2020-07-10 | BL47: =IF($BK$5 = $BF$6, 'Case Counts'!W42, IF($BK$5 = $BF$7, 'Case Counts'!X42, 'Case Counts'!Y42)) -> 80.14973584 | BM47: ='Calc - SA_Case Counts'!L73 -> 34.84853941 | BN47: =IF($BK$5 = $BF$6, 'Case Counts'!AA42, IF($BK$5 = $BF$7, 'Case Counts'!AB42, 'Case Counts'!AC42)) -> 2091.689524 | BO47: 1498.770679
BJ48: 39 | BK48: =VLOOKUP(BJ48, 'Calc - Base'!$H$35:$I$400, 2) -> 2020-07-11 | BL48: =IF($BK$5 = $BF$6, 'Case Counts'!W43, IF($BK$5 = $BF$7, 'Case Counts'!X43, 'Case Counts'!Y43)) -> 82.05093022 | BM48: ='Calc - SA_Case Counts'!L74 -> 34.6427382 | BN48: =IF($BK$5 = $BF$6, 'Case Counts'!AA43, IF($BK$5 = $BF$7, 'Case Counts'!AB43, 'Case Counts'!AC43)) -> 2173.740455 | BO48: 1533.413417
BJ49: 40 | BK49: =VLOOKUP(BJ49, 'Calc - Base'!$H$35:$I$400, 2) -> 2020-07-12 | BL49: =IF($BK$5 = $BF$6, 'Case Counts'!W44, IF($BK$5 = $BF$7, 'Case Counts'!X44, 'Case Counts'!Y44)) -> 84.00525852 | BM49: ='Calc - SA_Case Counts'!L75 -> 34.43621036 | BN49: =IF($BK$5 = $BF$6, 'Case Counts'!AA44, IF($BK$5 = $BF$7, 'Case Counts'!AB44, 'Case Counts'!AC44)) -> 2257.745713 | BO49: 1567.849627
BJ50: 41 | BK50: =VLOOKUP(BJ50, 'Calc - Base'!$H$35:$I$400, 2) -> 2020-07-13 | BL50: =IF($BK$5 = $BF$6, 'Case Counts'!W45, IF($BK$5 = $BF$7, 'Case Counts'!X45, 'Case Counts'!Y45)) -> 85.97617974 | BM50: ='Calc - SA_Case Counts'!L76 -> 34.22907339 | BN50: =IF($BK$5 = $BF$6, 'Case Counts'!AA45, IF($BK$5 = $BF$7, 'Case Counts'!AB45, 'Case Counts'!AC45)) -> 2343.721893 | BO50: 1602.0787
BJ51: 42 | BK51: =VLOOKUP(BJ51, 'Calc - Base'!$H$35:$I$400, 2) -> 2020-07-14 | BL51: =IF($BK$5 = $BF$6, 'Case Counts'!W46, IF($BK$5 = $BF$7, 'Case Counts'!X46, 'Case Counts'!Y46)) -> 87.95591263 | BM51: ='Calc - SA_Case Counts'!L77 -> 34.02126322 | BN51: =IF($BK$5 = $BF$6, 'Case Counts'!AA46, IF($BK$5 = $BF$7, 'Case Counts'!AB46, 'Case Counts'!AC46)) -> 2431.677805 | BO51: 1636.099964
BJ52: 43 | BK52: =VLOOKUP(BJ52, 'Calc - Base'!$H$35:$I$400, 2) -> 2020-07-15 | BL52: =IF($BK$5 = $BF$6, 'Case Counts'!W47, IF($BK$5 = $BF$7, 'Case Counts'!X47, 'Case Counts'!Y47)) -> 89.94527879 | BM52: ='Calc - SA_Case Counts'!L78 -> 33.81275538 | BN52: =IF($BK$5 = $BF$6, 'Case Counts'!AA47, IF($BK$5 = $BF$7, 'Case Counts'!AB47, 'Case Counts'!AC47)) -> 2521.623084 | BO52: 1669.912719
BJ53: 44 | BK53: =VLOOKUP(BJ53, 'Calc - Base'!$H$35:$I$400, 2) -> 2020-07-16 | BL53: =IF($BK$5 = $BF$6, 'Case Counts'!W48, IF($BK$5 = $BF$7, 'Case Counts'!X48, 'Case Counts'!Y48)) -> 91.98065674 | BM53: ='Calc - SA_Case Counts'!L79 -> 33.60353778 | BN53: =IF($BK$5 = $BF$6, 'Case Counts'!AA48, IF($BK$5 = $BF$7, 'Case Counts'!AB48, 'Case Counts'!AC48)) -> 2613.603741 | BO53: 1703.516257
BJ54: 45 | BK54: =VLOOKUP(BJ54, 'Calc - Base'!$H$35:$I$400, 2) -> 2020-07-17 | BL54: =IF($BK$5 = $BF$6, 'Case Counts'!W49, IF($BK$5 = $BF$7, 'Case Counts'!X49, 'Case Counts'!Y49)) -> 94.06525773 | BM54: ='Calc - SA_Case Counts'!L80 -> 33.39365504 | BN54: =IF($BK$5 = $BF$6, 'Case Counts'!AA49, IF($BK$5 = $BF$7, 'Case Counts'!AB49, 'Case Counts'!AC49)) -> 2707.668999 | BO54: 1736.909912
BJ55: 46 | BK55: =VLOOKUP(BJ55, 'Calc - Base'!$H$35:$I$400, 2) -> 2020-07-18 | BL55: =IF($BK$5 = $BF$6, 'Case Counts'!W50, IF($BK$5 = $BF$7, 'Case Counts'!X50, 'Case Counts'!Y50)) -> 96.18706747 | BM55: ='Calc - SA_Case Counts'!L81 -> 33.18317444 | BN55: =IF($BK$5 = $BF$6, 'Case Counts'!AA50, IF($BK$5 = $BF$7, 'Case Counts'!AB50, 'Case Counts'!AC50)) -> 2803.856066 | BO55: 1770.093086
BJ56: 47 | BK56: =VLOOKUP(BJ56, 'Calc - Base'!$H$35:$I$400, 2) -> 2020-07-19 | BL56: =IF($BK$5 = $BF$6, 'Case Counts'!W51, IF($BK$5 = $BF$7, 'Case Counts'!X51, 'Case Counts'!Y51)) -> 98.33042497 | BM56: ='Calc - SA_Case Counts'!L82 -> 32.97219367 | BN56: =IF($BK$5 = $BF$6, 'Case Counts'!AA51, IF($BK$5 = $BF$7, 'Case Counts'!AB51, 'Case Counts'!AC51)) -> 2902.186491 | BO56: 1803.06528
BJ57: 48 | BK57: =VLOOKUP(BJ57, 'Calc - Base'!$H$35:$I$400, 2) -> 2020-07-20 | BL57: =IF($BK$5 = $BF$6, 'Case Counts'!W52, IF($BK$5 = $BF$7, 'Case Counts'!X52, 'Case Counts'!Y52)) -> 100.4976555 | BM57: ='Calc - SA_Case Counts'!L83 -> 32.76076419 | BN57: =IF($BK$5 = $BF$6, 'Case Counts'!AA52, IF($BK$5 = $BF$7, 'Case Counts'!AB52, 'Case Counts'!AC52)) -> 3002.684147 | BO57: 1835.826044
BJ58: 49 | BK58: =VLOOKUP(BJ58, 'Calc - Base'!$H$35:$I$400, 2) -> 2020-07-21 | BL58: =IF($BK$5 = $BF$6, 'Case Counts'!W53, IF($BK$5 = $BF$7, 'Case Counts'!X53, 'Case Counts'!Y53)) -> 102.6875923 | BM58: ='Calc - SA_Case Counts'!L84 -> 32.54889733 | BN58: =IF($BK$5 = $BF$6, 'Case Counts'!AA53, IF($BK$5 = $BF$7, 'Case Counts'!AB53, 'Case Counts'!AC53)) -> 3105.371739 | BO58: 1868.374942
BJ59: 50 | BK59: =VLOOKUP(BJ59, 'Calc - Base'!$H$35:$I$400, 2) -> 2020-07-22 | BL59: =IF($BK$5 = $BF$6, 'Case Counts'!W54, IF($BK$5 = $BF$7, 'Case Counts'!X54, 'Case Counts'!Y54)) -> 104.9046594 | BM59: ='Calc - SA_Case Counts'!L85 -> 32.33659477 | BN59: =IF($BK$5 = $BF$6, 'Case Counts'!AA54, IF($BK$5 = $BF$7, 'Case Counts'!AB54, 'Case Counts'!AC54)) -> 3210.276398 | BO59: 1900.711536
BJ60: 51 | BK60: =VLOOKUP(BJ60, 'Calc - Base'!$H$35:$I$400, 2) -> 2020-07-23 | BL60: =IF($BK$5 = $BF$6, 'Case Counts'!W55, IF($BK$5 = $BF$7, 'Case Counts'!X55, 'Case Counts'!Y55)) -> 107.1514539 | BM60: ='Calc - SA_Case Counts'!L86 -> 32.12388926 | BN60: =IF($BK$5 = $BF$6, 'Case Counts'!AA55, IF($BK$5 = $BF$7, 'Case Counts'!AB55, 'Case Counts'!AC55)) -> 3317.427852 | BO60: 1932.835426
BJ61: 52 | BK61: =VLOOKUP(BJ61, 'Calc - Base'!$H$35:$I$400, 2) -> 2020-07-24 | BL61: =IF($BK$5 = $BF$6, 'Case Counts'!W56, IF($BK$5 = $BF$7, 'Case Counts'!X56, 'Case Counts'!Y56)) -> 109.4308916 | BM61: ='Calc - SA_Case Counts'!L87 -> 31.91082808 | BN61: =IF($BK$5 = $BF$6, 'Case Counts'!AA56, IF($BK$5 = $BF$7, 'Case Counts'!AB56, 'Case Counts'!AC56)) -> 3426.858744 | BO61: 1964.746254
BJ62: 53 | BK62: =VLOOKUP(BJ62, 'Calc - Base'!$H$35:$I$400, 2) -> 2020-07-25 | BL62: =IF($BK$5 = $BF$6, 'Case Counts'!W57, IF($BK$5 = $BF$7, 'Case Counts'!X57, 'Case Counts'!Y57)) -> 111.7373307 | BM62: ='Calc - SA_Case Counts'!L88 -> 31.69746297 | BN62: =IF($BK$5 = $BF$6, 'Case Counts'!AA57, IF($BK$5 = $BF$7, 'Case Counts'!AB57, 'Case Counts'!AC57)) -> 3538.596075 | BO62: 1996.443717
BJ63: 54 | BK63: =VLOOKUP(BJ63, 'Calc - Base'!$H$35:$I$400, 2) -> 2020-07-26 | BL63: =IF($BK$5 = $BF$6, 'Case Counts'!W58, IF($BK$5 = $BF$7, 'Case Counts'!X58, 'Case Counts'!Y58)) -> 114.0654272 | BM63: ='Calc - SA_Case Counts'!L89 -> 31.48383726 | BN63: =IF($BK$5 = $BF$6, 'Case Counts'!AA58, IF($BK$5 = $BF$7, 'Case Counts'!AB58, 'Case Counts'!AC58)) -> 3652.661502 | BO63: 2027.927554
BJ64: 55 | BK64: =VLOOKUP(BJ64, 'Calc - Base'!$H$35:$I$400, 2) -> 2020-07-27 | BL64: =IF($BK$5 = $BF$6, 'Case Counts'!W59, IF($BK$5 = $BF$7, 'Case Counts'!X59, 'Case Counts'!Y59)) -> 116.413172 | BM64: ='Calc - SA_Case Counts'!L90 -> 31.26998761 | BN64: =IF($BK$5 = $BF$6, 'Case Counts'!AA59, IF($BK$5 = $BF$7, 'Case Counts'!AB59, 'Case Counts'!AC59)) -> 3769.074674 | BO64: 2059.197541
BJ65: 56 | BK65: =VLOOKUP(BJ65, 'Calc - Base'!$H$35:$I$400, 2) -> 2020-07-28 | BL65: =IF($BK$5 = $BF$6, 'Case Counts'!W60, IF($BK$5 = $BF$7, 'Case Counts'!X60, 'Case Counts'!Y60)) -> 118.7827658 | BM65: ='Calc - SA_Case Counts'!L91 -> 31.0559409 | BN65: =IF($BK$5 = $BF$6, 'Case Counts'!AA60, IF($BK$5 = $BF$7, 'Case Counts'!AB60, 'Case Counts'!AC60)) -> 3887.85744 | BO65: 2090.253482
BJ66: 57 | BK66: =VLOOKUP(BJ66, 'Calc - Base'!$H$35:$I$400, 2) -> 2020-07-29 | BL66: =IF($BK$5 = $BF$6, 'Case Counts'!W61, IF($BK$5 = $BF$7, 'Case Counts'!X61, 'Case Counts'!Y61)) -> 121.1745863 | BM66: ='Calc - SA_Case Counts'!L92 -> 30.84172403 | BN66: =IF($BK$5 = $BF$6, 'Case Counts'!AA61, IF($BK$5 = $BF$7, 'Case Counts'!AB61, 'Case Counts'!AC61)) -> 4009.032026 | BO66: 2121.095206
BJ67: 58 | BK67: =VLOOKUP(BJ67, 'Calc - Base'!$H$35:$I$400, 2) -> 2020-07-30 | BL67: =IF($BK$5 = $BF$6, 'Case Counts'!W62, IF($BK$5 = $BF$7, 'Case Counts'!X62, 'Case Counts'!Y62)) -> 123.5880565 | BM67: ='Calc - SA_Case Counts'!L93 -> 29.80605579 | BN67: =IF($BK$5 = $BF$6, 'Case Counts'!AA62, IF($BK$5 = $BF$7, 'Case Counts'!AB62, 'Case Counts'!AC62)) -> 4132.620083 | BO67: 2150.901262
BJ68: 59 | BK68: =VLOOKUP(BJ68, 'Calc - Base'!$H$35:$I$400, 2) -> 2020-07-31 | BL68: =IF($BK$5 = $BF$6, 'Case Counts'!W63, IF($BK$5 = $BF$7, 'Case Counts'!X63, 'Case Counts'!Y63)) -> 126.0211436 | BM68: ='Calc - SA_Case Counts'!L94 -> 29.59594161 | BN68: =IF($BK$5 = $BF$6, 'Case Counts'!AA63, IF($BK$5 = $BF$7, 'Case Counts'!AB63, 'Case Counts'!AC63)) -> 4258.641226 | BO68: 2180.497204
BJ69: 60 | BK69: =VLOOKUP(BJ69, 'Calc - Base'!$H$35:$I$400, 2) -> 2020-08-01 | BL69: =IF($BK$5 = $BF$6, 'Case Counts'!W64, IF($BK$5 = $BF$7, 'Case Counts'!X64, 'Case Counts'!Y64)) -> 128.4717302 | BM69: ='Calc - SA_Case Counts'!L95 -> 29.38580209 | BN69: =IF($BK$5 = $BF$6, 'Case Counts'!AA64, IF($BK$5 = $BF$7, 'Case Counts'!AB64, 'Case Counts'!AC64)) -> 4387.112956 | BO69: 2209.883006
BJ70: 61 | BK70: =VLOOKUP(BJ70, 'Calc - Base'!$H$35:$I$400, 2) -> 2020-08-02 | BL70: =IF($BK$5 = $BF$6, 'Case Counts'!W65, IF($BK$5 = $BF$7, 'Case Counts'!X65, 'Case Counts'!Y65)) -> 130.9371336 | BM70: ='Calc - SA_Case Counts'!L96 -> 29.17566435 | BN70: =IF($BK$5 = $BF$6, 'Case Counts'!AA65, IF($BK$5 = $BF$7, 'Case Counts'!AB65, 'Case Counts'!AC65)) -> 4518.05009 | BO70: 2239.05867
BJ71: 62 | BK71: =VLOOKUP(BJ71, 'Calc - Base'!$H$35:$I$400, 2) -> 2020-08-03 | BL71: =IF($BK$5 = $BF$6, 'Case Counts'!W66, IF($BK$5 = $BF$7, 'Case Counts'!X66, 'Case Counts'!Y66)) -> 133.4158199 | BM71: ='Calc - SA_Case Counts'!L97 -> 28.65062852 | BN71: =IF($BK$5 = $BF$6, 'Case Counts'!AA66, IF($BK$5 = $BF$7, 'Case Counts'!AB66, 'Case Counts'!AC66)) -> 4651.46591 | BO71: 2267.709299
BJ72: 63 | BK72: =VLOOKUP(BJ72, 'Calc - Base'!$H$35:$I$400, 2) -> 2020-08-04 | BL72: =IF($BK$5 = $BF$6, 'Case Counts'!W67, IF($BK$5 = $BF$7, 'Case Counts'!X67, 'Case Counts'!Y67)) -> 135.9070006 | BM72: ='Calc - SA_Case Counts'!L98 -> 28.12759967 | BN72: =IF($BK$5 = $BF$6, 'Case Counts'!AA67, IF($BK$5 = $BF$7, 'Case Counts'!AB67, 'Case Counts'!AC67)) -> 4787.37291 | BO72: 2295.836898
BJ73: 64 | BK73: =VLOOKUP(BJ73, 'Calc - Base'!$H$35:$I$400, 2) -> 2020-08-05 | BL73: =IF($BK$5 = $BF$6, 'Case Counts'!W68, IF($BK$5 = $BF$7, 'Case Counts'!X68, 'Case Counts'!Y68)) -> 138.4098619 | BM73: ='Calc - SA_Case Counts'!L99 -> 27.8741453 | BN73: =IF($BK$5 = $BF$6, 'Case Counts'!AA68, IF($BK$5 = $BF$7, 'Case Counts'!AB68, 'Case Counts'!AC68)) -> 4925.782772 | BO73: 2323.711044
BJ74: 65 | BK74: =VLOOKUP(BJ74, 'Calc - Base'!$H$35:$I$400, 2) -> 2020-08-06 | BL74: =IF($BK$5 = $BF$6, 'Case Counts'!W69, IF($BK$5 = $BF$7, 'Case Counts'!X69, 'Case Counts'!Y69)) -> 140.9224965 | BM74: ='Calc - SA_Case Counts'!L100 -> 27.62112497 | BN74: =IF($BK$5 = $BF$6, 'Case Counts'!AA69, IF($BK$5 = $BF$7, 'Case Counts'!AB69, 'Case Counts'!AC69)) -> 5066.705269 | BO74: 2351.332169
BJ75: 66 | BK75: =VLOOKUP(BJ75, 'Calc - Base'!$H$35:$I$400, 2) -> 2020-08-07 | BL75: =IF($BK$5 = $BF$6, 'Case Counts'!W70, IF($BK$5 = $BF$7, 'Case Counts'!X70, 'Case Counts'!Y70)) -> 143.4425781 | BM75: ='Calc - SA_Case Counts'!L101 -> 27.24795015 | BN75: =IF($BK$5 = $BF$6, 'Case Counts'!AA70, IF($BK$5 = $BF$7, 'Case Counts'!AB70, 'Case Counts'!AC70)) -> 5210.147847 | BO75: =BO74+BM75 -> 2378.580119
BJ76: 67 | BK76: =VLOOKUP(BJ76, 'Calc - Base'!$H$35:$I$400, 2) -> 2020-08-08 | BL76: =IF($BK$5 = $BF$6, 'Case Counts'!W71, IF($BK$5 = $BF$7, 'Case Counts'!X71, 'Case Counts'!Y71)) -> 145.9677441 | BM76: ='Calc - SA_Case Counts'!L102 -> 26.80270185 | BN76: =IF($BK$5 = $BF$6, 'Case Counts'!AA71, IF($BK$5 = $BF$7, 'Case Counts'!AB71, 'Case Counts'!AC71)) -> 5356.115591 | BO76: 2405.382821
BJ77: 68 | BK77: =VLOOKUP(BJ77, 'Calc - Base'!$H$35:$I$400, 2) -> 2020-08-09 | BL77: =IF($BK$5 = $BF$6, 'Case Counts'!W72, IF($BK$5 = $BF$7, 'Case Counts'!X72, 'Case Counts'!Y72)) -> 148.4959163 | BM77: ='Calc - SA_Case Counts'!L103 -> 26.44369901 | BN77: =IF($BK$5 = $BF$6, 'Case Counts'!AA72, IF($BK$5 = $BF$7, 'Case Counts'!AB72, 'Case Counts'!AC72)) -> 5504.611507 | BO77: 2431.82652
BJ78: 69 | BK78: =VLOOKUP(BJ78, 'Calc - Base'!$H$35:$I$400, 2) -> 2020-08-10 | BL78: =IF($BK$5 = $BF$6, 'Case Counts'!W73, IF($BK$5 = $BF$7, 'Case Counts'!X73, 'Case Counts'!Y73)) -> 151.0250741 | BM78: ='Calc - SA_Case Counts'!L104 -> 26.17035572 | BN78: =IF($BK$5 = $BF$6, 'Case Counts'!AA73, IF($BK$5 = $BF$7, 'Case Counts'!AB73, 'Case Counts'!AC73)) -> 5655.636581 | BO78: 2457.996875
BJ79: 70 | BK79: =VLOOKUP(BJ79, 'Calc - Base'!$H$35:$I$400, 2) -> 2020-08-11 | BL79: =IF($BK$5 = $BF$6, 'Case Counts'!W74, IF($BK$5 = $BF$7, 'Case Counts'!X74, 'Case Counts'!Y74)) -> 153.5532878 | BM79: ='Calc - SA_Case Counts'!L105 -> 25.84894656 | BN79: =IF($BK$5 = $BF$6, 'Case Counts'!AA74, IF($BK$5 = $BF$7, 'Case Counts'!AB74, 'Case Counts'!AC74)) -> 5809.189869 | BO79: 2483.845822
BJ80: 71 | BK80: =VLOOKUP(BJ80, 'Calc - Base'!$H$35:$I$400, 2) -> 2020-08-12 | BL80: =IF($BK$5 = $BF$6, 'Case Counts'!W75, IF($BK$5 = $BF$7, 'Case Counts'!X75, 'Case Counts'!Y75)) -> 156.0784559 | BM80: ='Calc - SA_Case Counts'!L106 -> 25.46988023 | BN80: =IF($BK$5 = $BF$6, 'Case Counts'!AA75, IF($BK$5 = $BF$7, 'Case Counts'!AB75, 'Case Counts'!AC75)) -> 5965.268325 | BO80: 2509.315702
BJ81: 72 | BK81: =VLOOKUP(BJ81, 'Calc - Base'!$H$35:$I$400, 2) -> 2020-08-13 | BL81: =IF($BK$5 = $BF$6, 'Case Counts'!W76, IF($BK$5 = $BF$7, 'Case Counts'!X76, 'Case Counts'!Y76)) -> 158.5982056 | BM81: ='Calc - SA_Case Counts'!L107 -> 25.10512821 | BN81: =IF($BK$5 = $BF$6, 'Case Counts'!AA76, IF($BK$5 = $BF$7, 'Case Counts'!AB76, 'Case Counts'!AC76)) -> 6123.866531 | BO81: 2534.42083
BJ82: 73 | BK82: =VLOOKUP(BJ82, 'Calc - Base'!$H$35:$I$400, 2) -> 2020-08-14 | BL82: =IF($BK$5 = $BF$6, 'Case Counts'!W77, IF($BK$5 = $BF$7, 'Case Counts'!X77, 'Case Counts'!Y77)) -> 161.1099153 | BM82: ='Calc - SA_Case Counts'!L108 -> 24.79537685 | BN82: =IF($BK$5 = $BF$6, 'Case Counts'!AA77, IF($BK$5 = $BF$7, 'Case Counts'!AB77, 'Case Counts'!AC77)) -> 6284.976446 | BO82: 2559.216207
BJ83: 74 | BK83: =VLOOKUP(BJ83, 'Calc - Base'!$H$35:$I$400, 2) -> 2020-08-15 | BL83: =IF($BK$5 = $BF$6, 'Case Counts'!W78, IF($BK$5 = $BF$7, 'Case Counts'!X78, 'Case Counts'!Y78)) -> 163.6109786 | BM83: ='Calc - SA_Case Counts'!L109 -> 24.49415568 | BN83: =IF($BK$5 = $BF$6, 'Case Counts'!AA78, IF($BK$5 = $BF$7, 'Case Counts'!AB78, 'Case Counts'!AC78)) -> 6448.587424 | BO83: 2583.710363
BJ84: 75 | BK84: =VLOOKUP(BJ84, 'Calc - Base'!$H$35:$I$400, 2) -> 2020-08-16 | BL84: =IF($BK$5 = $BF$6, 'Case Counts'!W79, IF($BK$5 = $BF$7, 'Case Counts'!X79, 'Case Counts'!Y79)) -> 166.0988604 | BM84: ='Calc - SA_Case Counts'!L110 -> 24.15849205 | BN84: =IF($BK$5 = $BF$6, 'Case Counts'!AA79, IF($BK$5 = $BF$7, 'Case Counts'!AB79, 'Case Counts'!AC79)) -> 6614.686285 | BO84: 2607.868855
BJ85: 76 | BK85: =VLOOKUP(BJ85, 'Calc - Base'!$H$35:$I$400, 2) -> 2020-08-17 | BL85: =IF($BK$5 = $BF$6, 'Case Counts'!W80, IF($BK$5 = $BF$7, 'Case Counts'!X80, 'Case Counts'!Y80)) -> 168.5710453 | BM85: ='Calc - SA_Case Counts'!L111 -> 23.81362088 | BN85: =IF($BK$5 = $BF$6, 'Case Counts'!AA80, IF($BK$5 = $BF$7, 'Case Counts'!AB80, 'Case Counts'!AC80)) -> 6783.25733 | BO85: 2631.682476
BJ86: 77 | BK86: =VLOOKUP(BJ86, 'Calc - Base'!$H$35:$I$400, 2) -> 2020-08-18 | BL86: =IF($BK$5 = $BF$6, 'Case Counts'!W81, IF($BK$5 = $BF$7, 'Case Counts'!X81, 'Case Counts'!Y81)) -> 171.0249223 | BM86: ='Calc - SA_Case Counts'!L112 -> 23.49432618 | BN86: =IF($BK$5 = $BF$6, 'Case Counts'!AA81, IF($BK$5 = $BF$7, 'Case Counts'!AB81, 'Case Counts'!AC81)) -> 6954.282252 | BO86: 2655.176802
BJ87: 78 | BK87: =VLOOKUP(BJ87, 'Calc - Base'!$H$35:$I$400, 2) -> 2020-08-19 | BL87: =IF($BK$5 = $BF$6, 'Case Counts'!W82, IF($BK$5 = $BF$7, 'Case Counts'!X82, 'Case Counts'!Y82)) -> 173.4577769 | BM87: ='Calc - SA_Case Counts'!L113 -> 23.1942854 | BN87: =IF($BK$5 = $BF$6, 'Case Counts'!AA82, IF($BK$5 = $BF$7, 'Case Counts'!AB82, 'Case Counts'!AC82)) -> 7127.740029 | BO87: 2678.371087
BJ88: 79 | BK88: =VLOOKUP(BJ88, 'Calc - Base'!$H$35:$I$400, 2) -> 2020-08-20 | BL88: =IF($BK$5 = $BF$6, 'Case Counts'!W83, IF($BK$5 = $BF$7, 'Case Counts'!X83, 'Case Counts'!Y83)) -> 175.8667904 | BM88: ='Calc - SA_Case Counts'!L114 -> 22.88523855 | BN88: =IF($BK$5 = $BF$6, 'Case Counts'!AA83, IF($BK$5 = $BF$7, 'Case Counts'!AB83, 'Case Counts'!AC83)) -> 7303.60682 | BO88: 2701.256326
BJ89: 80 | BK89: =VLOOKUP(BJ89, 'Calc - Base'!$H$35:$I$400, 2) -> 2020-08-21 | BL89: =IF($BK$5 = $BF$6, 'Case Counts'!W84, IF($BK$5 = $BF$7, 'Case Counts'!X84, 'Case Counts'!Y84)) -> 178.2490832 | BM89: ='Calc - SA_Case Counts'!L115 -> 22.56421152 | BN89: =IF($BK$5 = $BF$6, 'Case Counts'!AA84, IF($BK$5 = $BF$7, 'Case Counts'!AB84, 'Case Counts'!AC84)) -> 7481.855903 | BO89: 2723.820538
BJ90: 81 | BK90: =VLOOKUP(BJ90, 'Calc - Base'!$H$35:$I$400, 2) -> 2020-08-22 | BL90: =IF($BK$5 = $BF$6, 'Case Counts'!W85, IF($BK$5 = $BF$7, 'Case Counts'!X85, 'Case Counts'!Y85)) -> 180.6017557 | BM90: ='Calc - SA_Case Counts'!L116 -> 22.25132018 | BN90: =IF($BK$5 = $BF$6, 'Case Counts'!AA85, IF($BK$5 = $BF$7, 'Case Counts'!AB85, 'Case Counts'!AC85)) -> 7662.457659 | BO90: 2746.071858
BJ91: 82 | BK91: =VLOOKUP(BJ91, 'Calc - Base'!$H$35:$I$400, 2) -> 2020-08-23 | BL91: =IF($BK$5 = $BF$6, 'Case Counts'!W86, IF($BK$5 = $BF$7, 'Case Counts'!X86, 'Case Counts'!Y86)) -> 182.9219214 | BM91: ='Calc - SA_Case Counts'!L117 -> 21.95373607 | BN91: =IF($BK$5 = $BF$6, 'Case Counts'!AA86, IF($BK$5 = $BF$7, 'Case Counts'!AB86, 'Case Counts'!AC86)) -> 7845.37958 | BO91: 2768.025594
BJ92: 83 | BK92: =VLOOKUP(BJ92, 'Calc - Base'!$H$35:$I$400, 2) -> 2020-08-24 | BL92: =IF($BK$5 = $BF$6, 'Case Counts'!W87, IF($BK$5 = $BF$7, 'Case Counts'!X87, 'Case Counts'!Y87)) -> 185.2066823 | BM92: ='Calc - SA_Case Counts'!L118 -> 21.65923004 | BN92: =IF($BK$5 = $BF$6, 'Case Counts'!AA87, IF($BK$5 = $BF$7, 'Case Counts'!AB87, 'Case Counts'!AC87)) -> 8030.586262 | BO92: 2789.684824
BJ93: 84 | BK93: =VLOOKUP(BJ93, 'Calc - Base'!$H$35:$I$400, 2) -> 2020-08-25 | BL93: =IF($BK$5 = $BF$6, 'Case Counts'!W88, IF($BK$5 = $BF$7, 'Case Counts'!X88, 'Case Counts'!Y88)) -> 187.4531019 | BM93: ='Calc - SA_Case Counts'!L119 -> 21.35895964 | BN93: =IF($BK$5 = $BF$6, 'Case Counts'!AA88, IF($BK$5 = $BF$7, 'Case Counts'!AB88, 'Case Counts'!AC88)) -> 8218.039364 | BO93: 2811.043783
BJ94: 85 | BK94: =VLOOKUP(BJ94, 'Calc - Base'!$H$35:$I$400, 2) -> 2020-08-26 | BL94: =IF($BK$5 = $BF$6, 'Case Counts'!W89, IF($BK$5 = $BF$7, 'Case Counts'!X89, 'Case Counts'!Y89)) -> 189.6581984 | BM94: ='Calc - SA_Case Counts'!L120 -> 21.05947269 | BN94: =IF($BK$5 = $BF$6, 'Case Counts'!AA89, IF($BK$5 = $BF$7, 'Case Counts'!AB89, 'Case Counts'!AC89)) -> 8407.697563 | BO94: 2832.103256
BJ95: 86 | BK95: =VLOOKUP(BJ95, 'Calc - Base'!$H$35:$I$400, 2) -> 2020-08-27 | BL95: =IF($BK$5 = $BF$6, 'Case Counts'!W90, IF($BK$5 = $BF$7, 'Case Counts'!X90, 'Case Counts'!Y90)) -> 191.8189704 | BM95: ='Calc - SA_Case Counts'!L121 -> 20.76901752 | BN95: =IF($BK$5 = $BF$6, 'Case Counts'!AA90, IF($BK$5 = $BF$7, 'Case Counts'!AB90, 'Case Counts'!AC90)) -> 8599.516533 | BO95: 2852.872274
BJ96: 87 | BK96: =VLOOKUP(BJ96, 'Calc - Base'!$H$35:$I$400, 2) -> 2020-08-28 | BL96: =IF($BK$5 = $BF$6, 'Case Counts'!W91, IF($BK$5 = $BF$7, 'Case Counts'!X91, 'Case Counts'!Y91)) -> 193.9324184 | BM96: ='Calc - SA_Case Counts'!L122 -> 20.48502136 | BN96: =IF($BK$5 = $BF$6, 'Case Counts'!AA91, IF($BK$5 = $BF$7, 'Case Counts'!AB91, 'Case Counts'!AC91)) -> 8793.448951 | BO96: 2873.357295
BJ97: 88 | BK97: =VLOOKUP(BJ97, 'Calc - Base'!$H$35:$I$400, 2) -> 2020-08-29 | BL97: =IF($BK$5 = $BF$6, 'Case Counts'!W92, IF($BK$5 = $BF$7, 'Case Counts'!X92, 'Case Counts'!Y92)) -> 195.9955601 | BM97: ='Calc - SA_Case Counts'!L123 -> 20.20083904 | BN97: =IF($BK$5 = $BF$6, 'Case Counts'!AA92, IF($BK$5 = $BF$7, 'Case Counts'!AB92, 'Case Counts'!AC92)) -> 8989.444512 | BO97: 2893.558134
BJ98: 89 | BK98: =VLOOKUP(BJ98, 'Calc - Base'!$H$35:$I$400, 2) -> 2020-08-30 | BL98: =IF($BK$5 = $BF$6, 'Case Counts'!W93, IF($BK$5 = $BF$7, 'Case Counts'!X93, 'Case Counts'!Y93)) -> 198.005435 | BM98: ='Calc - SA_Case Counts'!L124 -> 19.91645465 | BN98: =IF($BK$5 = $BF$6, 'Case Counts'!AA93, IF($BK$5 = $BF$7, 'Case Counts'!AB93, 'Case Counts'!AC93)) -> 9187.449947 | BO98: 2913.474589
BJ99: 90 | BK99: =VLOOKUP(BJ99, 'Calc - Base'!$H$35:$I$400, 2) -> 2020-08-31 | BL99: =IF($BK$5 = $BF$6, 'Case Counts'!W94, IF($BK$5 = $BF$7, 'Case Counts'!X94, 'Case Counts'!Y94)) -> 199.9591058 | BM99: ='Calc - SA_Case Counts'!L125 -> 19.6367057 | BN99: =IF($BK$5 = $BF$6, 'Case Counts'!AA94, IF($BK$5 = $BF$7, 'Case Counts'!AB94, 'Case Counts'!AC94)) -> 9387.409052 | BO99: 2933.111294
BJ100: 91 | BK100: =VLOOKUP(BJ100, 'Calc - Base'!$H$35:$I$400, 2) -> 2020-09-01 | BL100: =IF($BK$5 = $BF$6, 'Case Counts'!W95, IF($BK$5 = $BF$7, 'Case Counts'!X95, 'Case Counts'!Y95)) -> 201.8536568 | BM100: ='Calc - SA_Case Counts'!L126 -> 19.36291716 | BN100: =IF($BK$5 = $BF$6, 'Case Counts'!AA95, IF($BK$5 = $BF$7, 'Case Counts'!AB95, 'Case Counts'!AC95)) -> 9589.262709 | BO100: 2952.474212
BJ101: 92 | BK101: =VLOOKUP(BJ101, 'Calc - Base'!$H$35:$I$400, 2) -> 2020-09-02 | BL101: =IF($BK$5 = $BF$6, 'Case Counts'!W96, IF($BK$5 = $BF$7, 'Case Counts'!X96, 'Case Counts'!Y96)) -> 203.6862014 | BM101: ='Calc - SA_Case Counts'!L127 -> 19.09191351 | BN101: =IF($BK$5 = $BF$6, 'Case Counts'!AA96, IF($BK$5 = $BF$7, 'Case Counts'!AB96, 'Case Counts'!AC96)) -> 9792.948911 | BO101: 2971.566125
BJ102: 93 | BK102: =VLOOKUP(BJ102, 'Calc - Base'!$H$35:$I$400, 2) -> 2020-09-03 | BL102: =IF($BK$5 = $BF$6, 'Case Counts'!W97, IF($BK$5 = $BF$7, 'Case Counts'!X97, 'Case Counts'!Y97)) -> 205.4538956 | BM102: ='Calc - SA_Case Counts'!L128 -> 18.82185334 | BN102: =IF($BK$5 = $BF$6, 'Case Counts'!AA97, IF($BK$5 = $BF$7, 'Case Counts'!AB97, 'Case Counts'!AC97)) -> 9998.402806 | BO102: 2990.387978
BJ103: 94 | BK103: =VLOOKUP(BJ103, 'Calc - Base'!$H$35:$I$400, 2) -> 2020-09-04 | BL103: =IF($BK$5 = $BF$6, 'Case Counts'!W98, IF($BK$5 = $BF$7, 'Case Counts'!X98, 'Case Counts'!Y98)) -> 207.1539529 | BM103: ='Calc - SA_Case Counts'!L129 -> 18.5545127 | BN103: =IF($BK$5 = $BF$6, 'Case Counts'!AA98, IF($BK$5 = $BF$7, 'Case Counts'!AB98, 'Case Counts'!AC98)) -> 10205.55676 | BO103: 3008.942491
BJ104: 95 | BK104: =VLOOKUP(BJ104, 'Calc - Base'!$H$35:$I$400, 2) -> 2020-09-05 | BL104: =IF($BK$5 = $BF$6, 'Case Counts'!W99, IF($BK$5 = $BF$7, 'Case Counts'!X99, 'Case Counts'!Y99)) -> 208.7836539 | BM104: ='Calc - SA_Case Counts'!L130 -> 18.29170446 | BN104: =IF($BK$5 = $BF$6, 'Case Counts'!AA99, IF($BK$5 = $BF$7, 'Case Counts'!AB99, 'Case Counts'!AC99)) -> 10414.34041 | BO104: 3027.234196
BJ105: 96 | BK105: =VLOOKUP(BJ105, 'Calc - Base'!$H$35:$I$400, 2) -> 2020-09-06 | BL105: =IF($BK$5 = $BF$6, 'Case Counts'!W100, IF($BK$5 = $BF$7, 'Case Counts'!X100, 'Case Counts'!Y100)) -> 210.3403516 | BM105: ='Calc - SA_Case Counts'!L131 -> 18.03261524 | BN105: =IF($BK$5 = $BF$6, 'Case Counts'!AA100, IF($BK$5 = $BF$7, 'Case Counts'!AB100, 'Case Counts'!AC100)) -> 10624.68076 | BO105: 3045.266811
BJ106: 97 | BK106: =VLOOKUP(BJ106, 'Calc - Base'!$H$35:$I$400, 2) -> 2020-09-07 | BL106: =IF($BK$5 = $BF$6, 'Case Counts'!W101, IF($BK$5 = $BF$7, 'Case Counts'!X101, 'Case Counts'!Y101)) -> 211.8214774 | BM106: ='Calc - SA_Case Counts'!L132 -> 17.77568319 | BN106: =IF($BK$5 = $BF$6, 'Case Counts'!AA101, IF($BK$5 = $BF$7, 'Case Counts'!AB101, 'Case Counts'!AC101)) -> 10836.50224 | BO106: 3063.042494
BJ107: 98 | BK107: =VLOOKUP(BJ107, 'Calc - Base'!$H$35:$I$400, 2) -> 2020-09-08 | BL107: =IF($BK$5 = $BF$6, 'Case Counts'!W102, IF($BK$5 = $BF$7, 'Case Counts'!X102, 'Case Counts'!Y102)) -> 213.2245477 | BM107: ='Calc - SA_Case Counts'!L133 -> 17.52105017 | BN107: =IF($BK$5 = $BF$6, 'Case Counts'!AA102, IF($BK$5 = $BF$7, 'Case Counts'!AB102, 'Case Counts'!AC102)) -> 11049.72679 | BO107: 3080.563544
BJ108: 99 | BK108: =VLOOKUP(BJ108, 'Calc - Base'!$H$35:$I$400, 2) -> 2020-09-09 | BL108: =IF($BK$5 = $BF$6, 'Case Counts'!W103, IF($BK$5 = $BF$7, 'Case Counts'!X103, 'Case Counts'!Y103)) -> 214.5471732 | BM108: ='Calc - SA_Case Counts'!L134 -> 17.2698661 | BN108: =IF($BK$5 = $BF$6, 'Case Counts'!AA103, IF($BK$5 = $BF$7, 'Case Counts'!AB103, 'Case Counts'!AC103)) -> 11264.27396 | BO108: 3097.83341
BJ109: 100 | BK109: =VLOOKUP(BJ109, 'Calc - Base'!$H$35:$I$400, 2) -> 2020-09-10 | BL109: =IF($BK$5 = $BF$6, 'Case Counts'!W104, IF($BK$5 = $BF$7, 'Case Counts'!X104, 'Case Counts'!Y104)) -> 215.7870686 | BM109: ='Calc - SA_Case Counts'!L135 -> 17.02232162 | BN109: =IF($BK$5 = $BF$6, 'Case Counts'!AA104, IF($BK$5 = $BF$7, 'Case Counts'!AB104, 'Case Counts'!AC104)) -> 11480.06103 | BO109: 3114.855732
BJ110: 101 | BK110: =VLOOKUP(BJ110, 'Calc - Base'!$H$35:$I$400, 2) -> 2020-09-11 | BL110: =IF($BK$5 = $BF$6, 'Case Counts'!W105, IF($BK$5 = $BF$7, 'Case Counts'!X105, 'Case Counts'!Y105)) -> 216.9420621 | BM110: ='Calc - SA_Case Counts'!L136 -> 16.77760939 | BN110: =IF($BK$5 = $BF$6, 'Case Counts'!AA105, IF($BK$5 = $BF$7, 'Case Counts'!AB105, 'Case Counts'!AC105)) -> 11697.00309 | BO110: 3131.633341
BJ111: 102 | BK111: =VLOOKUP(BJ111, 'Calc - Base'!$H$35:$I$400, 2) -> 2020-09-12 | BL111: =IF($BK$5 = $BF$6, 'Case Counts'!W106, IF($BK$5 = $BF$7, 'Case Counts'!X106, 'Case Counts'!Y106)) -> 218.0101029 | BM111: ='Calc - SA_Case Counts'!L137 -> 16.53534431 | BN111: =IF($BK$5 = $BF$6, 'Case Counts'!AA106, IF($BK$5 = $BF$7, 'Case Counts'!AB106, 'Case Counts'!AC106)) -> 11915.0132 | BO111: 3148.168686
BJ112: 103 | BK112: =VLOOKUP(BJ112, 'Calc - Base'!$H$35:$I$400, 2) -> 2020-09-13 | BL112: =IF($BK$5 = $BF$6, 'Case Counts'!W107, IF($BK$5 = $BF$7, 'Case Counts'!X107, 'Case Counts'!Y107)) -> 218.9892678 | BM112: ='Calc - SA_Case Counts'!L138 -> 16.29598146 | BN112: =IF($BK$5 = $BF$6, 'Case Counts'!AA107, IF($BK$5 = $BF$7, 'Case Counts'!AB107, 'Case Counts'!AC107)) -> 12134.00246 | BO112: 3164.464667
BJ113: 104 | BK113: =VLOOKUP(BJ113, 'Calc - Base'!$H$35:$I$400, 2) -> 2020-09-14 | BL113: =IF($BK$5 = $BF$6, 'Case Counts'!W108, IF($BK$5 = $BF$7, 'Case Counts'!X108, 'Case Counts'!Y108)) -> 219.8777666 | BM113: ='Calc - SA_Case Counts'!L139 -> 16.05989895 | BN113: =IF($BK$5 = $BF$6, 'Case Counts'!AA108, IF($BK$5 = $BF$7, 'Case Counts'!AB108, 'Case Counts'!AC108)) -> 12353.88023 | BO113: 3180.524566
BJ114: 105 | BK114: =VLOOKUP(BJ114, 'Calc - Base'!$H$35:$I$400, 2) -> 2020-09-15 | BL114: =IF($BK$5 = $BF$6, 'Case Counts'!W109, IF($BK$5 = $BF$7, 'Case Counts'!X109, 'Case Counts'!Y109)) -> 220.6739493 | BM114: ='Calc - SA_Case Counts'!L140 -> 15.82684331 | BN114: =IF($BK$5 = $BF$6, 'Case Counts'!AA109, IF($BK$5 = $BF$7, 'Case Counts'!AB109, 'Case Counts'!AC109)) -> 12574.55418 | BO114: 3196.351409
BJ115: 106 | BK115: =VLOOKUP(BJ115, 'Calc - Base'!$H$35:$I$400, 2) -> 2020-09-16 | BL115: =IF($BK$5 = $BF$6, 'Case Counts'!W110, IF($BK$5 = $BF$7, 'Case Counts'!X110, 'Case Counts'!Y110)) -> 221.3763125 | BM115: ='Calc - SA_Case Counts'!L141 -> 15.5964426 | BN115: =IF($BK$5 = $BF$6, 'Case Counts'!AA110, IF($BK$5 = $BF$7, 'Case Counts'!AB110, 'Case Counts'!AC110)) -> 12795.93049 | BO115: 3211.947852
BJ116: 107 | BK116: =VLOOKUP(BJ116, 'Calc - Base'!$H$35:$I$400, 2) -> 2020-09-17 | BL116: =IF($BK$5 = $BF$6, 'Case Counts'!W111, IF($BK$5 = $BF$7, 'Case Counts'!X111, 'Case Counts'!Y111)) -> 221.983506 | BM116: ='Calc - SA_Case Counts'!L142 -> 15.36875035 | BN116: =IF($BK$5 = $BF$6, 'Case Counts'!AA111, IF($BK$5 = $BF$7, 'Case Counts'!AB111, 'Case Counts'!AC111)) -> 13017.914 | BO116: 3227.316602
BJ117: 108 | BK117: =VLOOKUP(BJ117, 'Calc - Base'!$H$35:$I$400, 2) -> 2020-09-18 | BL117: =IF($BK$5 = $BF$6, 'Case Counts'!W112, IF($BK$5 = $BF$7, 'Case Counts'!X112, 'Case Counts'!Y112)) -> 222.4943381 | BM117: ='Calc - SA_Case Counts'!L143 -> 15.14402238 | BN117: =IF($BK$5 = $BF$6, 'Case Counts'!AA112, IF($BK$5 = $BF$7, 'Case Counts'!AB112, 'Case Counts'!AC112)) -> 13240.40834 | BO117: 3242.460625
BJ118: 109 | BK118: =VLOOKUP(BJ118, 'Calc - Base'!$H$35:$I$400, 2) -> 2020-09-19 | BL118: =IF($BK$5 = $BF$6, 'Case Counts'!W113, IF($BK$5 = $BF$7, 'Case Counts'!X113, 'Case Counts'!Y113)) -> 222.90778 | BM118: ='Calc - SA_Case Counts'!L144 -> 14.92226055 | BN118: =IF($BK$5 = $BF$6, 'Case Counts'!AA113, IF($BK$5 = $BF$7, 'Case Counts'!AB113, 'Case Counts'!AC113)) -> 13463.31612 | BO118: 3257.382885
BJ119: 110 | BK119: =VLOOKUP(BJ119, 'Calc - Base'!$H$35:$I$400, 2) -> 2020-09-20 | BL119: =IF($BK$5 = $BF$6, 'Case Counts'!W114, IF($BK$5 = $BF$7, 'Case Counts'!X114, 'Case Counts'!Y114)) -> 223.2229701 | BM119: ='Calc - SA_Case Counts'!L145 -> 14.70324972 | BN119: =IF($BK$5 = $BF$6, 'Case Counts'!AA114, IF($BK$5 = $BF$7, 'Case Counts'!AB114, 'Case Counts'!AC114)) -> 13686.53909 | BO119: 3272.086135
BJ120: 111 | BK120: =VLOOKUP(BJ120, 'Calc - Base'!$H$35:$I$400, 2) -> 2020-09-21 | BL120: =IF($BK$5 = $BF$6, 'Case Counts'!W115, IF($BK$5 = $BF$7, 'Case Counts'!X115, 'Case Counts'!Y115)) -> 223.439217 | BM120: ='Calc - SA_Case Counts'!L146 -> 14.4868989 | BN120: =IF($BK$5 = $BF$6, 'Case Counts'!AA115, IF($BK$5 = $BF$7, 'Case Counts'!AB115, 'Case Counts'!AC115)) -> 13909.9783 | BO120: 3286.573034
BJ121: 112 | BK121: =VLOOKUP(BJ121, 'Calc - Base'!$H$35:$I$400, 2) -> 2020-09-22 | BL121: =IF($BK$5 = $BF$6, 'Case Counts'!W116, IF($BK$5 = $BF$7, 'Case Counts'!X116, 'Case Counts'!Y116)) -> 223.5560026 | BM121: ='Calc - SA_Case Counts'!L147 -> 14.27330828 | BN121: =IF($BK$5 = $BF$6, 'Case Counts'!AA116, IF($BK$5 = $BF$7, 'Case Counts'!AB116, 'Case Counts'!AC116)) -> 14133.53431 | BO121: 3300.846342
BJ122: 113 | BK122: =VLOOKUP(BJ122, 'Calc - Base'!$H$35:$I$400, 2) -> 2020-09-23 | BL122: =IF($BK$5 = $BF$6, 'Case Counts'!W117, IF($BK$5 = $BF$7, 'Case Counts'!X117, 'Case Counts'!Y117)) -> 223.5729846 | BM122: ='Calc - SA_Case Counts'!L148 -> 14.06253996 | BN122: =IF($BK$5 = $BF$6, 'Case Counts'!AA117, IF($BK$5 = $BF$7, 'Case Counts'!AB117, 'Case Counts'!AC117)) -> 14357.10729 | BO122: 3314.908882
BJ123: 114 | BK123: =VLOOKUP(BJ123, 'Calc - Base'!$H$35:$I$400, 2) -> 2020-09-24 | BL123: =IF($BK$5 = $BF$6, 'Case Counts'!W118, IF($BK$5 = $BF$7, 'Case Counts'!X118, 'Case Counts'!Y118)) -> 223.4899986 | BM123: ='Calc - SA_Case Counts'!L149 -> 13.85450647 | BN123: =IF($BK$5 = $BF$6, 'Case Counts'!AA118, IF($BK$5 = $BF$7, 'Case Counts'!AB118, 'Case Counts'!AC118)) -> 14580.59729 | BO123: 3328.763389
BJ124: 115 | BK124: =VLOOKUP(BJ124, 'Calc - Base'!$H$35:$I$400, 2) -> 2020-09-25 | BL124: =IF($BK$5 = $BF$6, 'Case Counts'!W119, IF($BK$5 = $BF$7, 'Case Counts'!X119, 'Case Counts'!Y119)) -> 223.3070587 | BM124: ='Calc - SA_Case Counts'!L150 -> 13.6491065 | BN124: =IF($BK$5 = $BF$6, 'Case Counts'!AA119, IF($BK$5 = $BF$7, 'Case Counts'!AB119, 'Case Counts'!AC119)) -> 14803.90435 | BO124: 3342.412495
BJ125: 116 | BK125: =VLOOKUP(BJ125, 'Calc - Base'!$H$35:$I$400, 2) -> 2020-09-26 | BL125: =IF($BK$5 = $BF$6, 'Case Counts'!W120, IF($BK$5 = $BF$7, 'Case Counts'!X120, 'Case Counts'!Y120)) -> 223.0243581 | BM125: ='Calc - SA_Case Counts'!L151 -> 13.44634314 | BN125: =IF($BK$5 = $BF$6, 'Case Counts'!AA120, IF($BK$5 = $BF$7, 'Case Counts'!AB120, 'Case Counts'!AC120)) -> 15026.92871 | BO125: 3355.858838
BJ126: 117 | BK126: =VLOOKUP(BJ126, 'Calc - Base'!$H$35:$I$400, 2) -> 2020-09-27 | BL126: =IF($BK$5 = $BF$6, 'Case Counts'!W121, IF($BK$5 = $BF$7, 'Case Counts'!X121, 'Case Counts'!Y121)) -> 222.6422684 | BM126: ='Calc - SA_Case Counts'!L152 -> 13.24625782 | BN126: =IF($BK$5 = $BF$6, 'Case Counts'!AA121, IF($BK$5 = $BF$7, 'Case Counts'!AB121, 'Case Counts'!AC121)) -> 15249.57097 | BO126: 3369.105096
BJ127: 118 | BK127: =VLOOKUP(BJ127, 'Calc - Base'!$H$35:$I$400, 2) -> 2020-09-28 | BL127: =IF($BK$5 = $BF$6, 'Case Counts'!W122, IF($BK$5 = $BF$7, 'Case Counts'!X122, 'Case Counts'!Y122)) -> 222.1613388 | BM127: ='Calc - SA_Case Counts'!L153 -> 13.04882647 | BN127: =IF($BK$5 = $BF$6, 'Case Counts'!AA122, IF($BK$5 = $BF$7, 'Case Counts'!AB122, 'Case Counts'!AC122)) -> 15471.73231 | BO127: 3382.153922
BJ128: 119 | BK128: =VLOOKUP(BJ128, 'Calc - Base'!$H$35:$I$400, 2) -> 2020-09-29 | BL128: =IF($BK$5 = $BF$6, 'Case Counts'!W123, IF($BK$5 = $BF$7, 'Case Counts'!X123, 'Case Counts'!Y123)) -> 221.5822942 | BM128: ='Calc - SA_Case Counts'!L154 -> 12.85397894 | BN128: =IF($BK$5 = $BF$6, 'Case Counts'!AA123, IF($BK$5 = $BF$7, 'Case Counts'!AB123, 'Case Counts'!AC123)) -> 15693.31461 | BO128: 3395.007901
BJ129: 120 | BK129: =VLOOKUP(BJ129, 'Calc - Base'!$H$35:$I$400, 2) -> 2020-09-30 | BL129: =IF($BK$5 = $BF$6, 'Case Counts'!W124, IF($BK$5 = $BF$7, 'Case Counts'!X124, 'Case Counts'!Y124)) -> 220.906033 | BM129: ='Calc - SA_Case Counts'!L155 -> 12.6616797 | BN129: =IF($BK$5 = $BF$6, 'Case Counts'!AA124, IF($BK$5 = $BF$7, 'Case Counts'!AB124, 'Case Counts'!AC124)) -> 15914.22064 | BO129: 3407.669581
BJ130: 121 | BK130: =VLOOKUP(BJ130, 'Calc - Base'!$H$35:$I$400, 2) -> 2020-10-01 | BL130: =IF($BK$5 = $BF$6, 'Case Counts'!W125, IF($BK$5 = $BF$7, 'Case Counts'!X125, 'Case Counts'!Y125)) -> 220.1336241 | BM130: ='Calc - SA_Case Counts'!L156 -> 12.47193589 | BN130: =IF($BK$5 = $BF$6, 'Case Counts'!AA125, IF($BK$5 = $BF$7, 'Case Counts'!AB125, 'Case Counts'!AC125)) -> 16134.35427 | BO130: 3420.141517
BJ131: 122 | BK131: =VLOOKUP(BJ131, 'Calc - Base'!$H$35:$I$400, 2) -> 2020-10-02 | BL131: =IF($BK$5 = $BF$6, 'Case Counts'!W126, IF($BK$5 = $BF$7, 'Case Counts'!X126, 'Case Counts'!Y126)) -> 219.2663034 | BM131: ='Calc - SA_Case Counts'!L157 -> 12.28474107 | BN131: =IF($BK$5 = $BF$6, 'Case Counts'!AA126, IF($BK$5 = $BF$7, 'Case Counts'!AB126, 'Case Counts'!AC126)) -> 16353.62057 | BO131: 3432.426258
BJ132: 123 | BK132: =VLOOKUP(BJ132, 'Calc - Base'!$H$35:$I$400, 2) -> 2020-10-03 | BL132: =IF($BK$5 = $BF$6, 'Case Counts'!W127, IF($BK$5 = $BF$7, 'Case Counts'!X127, 'Case Counts'!Y127)) -> 218.305469 | BM132: ='Calc - SA_Case Counts'!L158 -> 12.1000539 | BN132: =IF($BK$5 = $BF$6, 'Case Counts'!AA127, IF($BK$5 = $BF$7, 'Case Counts'!AB127, 'Case Counts'!AC127)) -> 16571.92604 | BO132: 3444.526312
BJ133: 124 | BK133: =VLOOKUP(BJ133, 'Calc - Base'!$H$35:$I$400, 2) -> 2020-10-04 | BL133: =IF($BK$5 = $BF$6, 'Case Counts'!W128, IF($BK$5 = $BF$7, 'Case Counts'!X128, 'Case Counts'!Y128)) -> 217.2526772 | BM133: ='Calc - SA_Case Counts'!L159 -> 11.91783321 | BN133: =IF($BK$5 = $BF$6, 'Case Counts'!AA128, IF($BK$5 = $BF$7, 'Case Counts'!AB128, 'Case Counts'!AC128)) -> 16789.17871 | BO133: 3456.444145
BJ134: 125 | BK134: =VLOOKUP(BJ134, 'Calc - Base'!$H$35:$I$400, 2) -> 2020-10-05 | BL134: =IF($BK$5 = $BF$6, 'Case Counts'!W129, IF($BK$5 = $BF$7, 'Case Counts'!X129, 'Case Counts'!Y129)) -> 216.109636 | BM134: ='Calc - SA_Case Counts'!L160 -> 11.73806294 | BN134: =IF($BK$5 = $BF$6, 'Case Counts'!AA129, IF($BK$5 = $BF$7, 'Case Counts'!AB129, 'Case Counts'!AC129)) -> 17005.28835 | BO134: 3468.182208
BJ135: 126 | BK135: =VLOOKUP(BJ135, 'Calc - Base'!$H$35:$I$400, 2) -> 2020-10-06 | BL135: =IF($BK$5 = $BF$6, 'Case Counts'!W130, IF($BK$5 = $BF$7, 'Case Counts'!X130, 'Case Counts'!Y130)) -> 214.8782002 | BM135: ='Calc - SA_Case Counts'!L161 -> 11.56073377 | BN135: =IF($BK$5 = $BF$6, 'Case Counts'!AA130, IF($BK$5 = $BF$7, 'Case Counts'!AB130, 'Case Counts'!AC130)) -> 17220.16655 | BO135: 3479.742942
BJ136: 127 | BK136: =VLOOKUP(BJ136, 'Calc - Base'!$H$35:$I$400, 2) -> 2020-10-07 | BL136: =IF($BK$5 = $BF$6, 'Case Counts'!W131, IF($BK$5 = $BF$7, 'Case Counts'!X131, 'Case Counts'!Y131)) -> 213.5603643 | BM136: ='Calc - SA_Case Counts'!L162 -> 11.38581985 | BN136: =IF($BK$5 = $BF$6, 'Case Counts'!AA131, IF($BK$5 = $BF$7, 'Case Counts'!AB131, 'Case Counts'!AC131)) -> 17433.72692 | BO136: 3491.128762
BJ137: 128 | BK137: =VLOOKUP(BJ137, 'Calc - Base'!$H$35:$I$400, 2) -> 2020-10-08 | BL137: =IF($BK$5 = $BF$6, 'Case Counts'!W132, IF($BK$5 = $BF$7, 'Case Counts'!X132, 'Case Counts'!Y132)) -> 212.1582559 | BM137: ='Calc - SA_Case Counts'!L163 -> 11.21328585 | BN137: =IF($BK$5 = $BF$6, 'Case Counts'!AA132, IF($BK$5 = $BF$7, 'Case Counts'!AB132, 'Case Counts'!AC132)) -> 17645.88517 | BO137: 3502.342048
BJ138: 129 | BK138: =VLOOKUP(BJ138, 'Calc - Base'!$H$35:$I$400, 2) -> 2020-10-09 | BL138: =IF($BK$5 = $BF$6, 'Case Counts'!W133, IF($BK$5 = $BF$7, 'Case Counts'!X133, 'Case Counts'!Y133)) -> 210.6741283 | BM138: ='Calc - SA_Case Counts'!L164 -> 11.04310574 | BN138: =IF($BK$5 = $BF$6, 'Case Counts'!AA133, IF($BK$5 = $BF$7, 'Case Counts'!AB133, 'Case Counts'!AC133)) -> 17856.5593 | BO138: 3513.385153
BJ139: 130 | BK139: =VLOOKUP(BJ139, 'Calc - Base'!$H$35:$I$400, 2) -> 2020-10-10 | BL139: =IF($BK$5 = $BF$6, 'Case Counts'!W134, IF($BK$5 = $BF$7, 'Case Counts'!X134, 'Case Counts'!Y134)) -> 209.1103531 | BM139: ='Calc - SA_Case Counts'!L165 -> 10.87526287 | BN139: =IF($BK$5 = $BF$6, 'Case Counts'!AA134, IF($BK$5 = $BF$7, 'Case Counts'!AB134, 'Case Counts'!AC134)) -> 18065.66965 | BO139: =BO138+BM139 -> 3524.260416
BJ140: 131 | BK140: =VLOOKUP(BJ140, 'Calc - Base'!$H$35:$I$400, 2) -> 2020-10-11 | BL140: =IF($BK$5 = $BF$6, 'Case Counts'!W135, IF($BK$5 = $BF$7, 'Case Counts'!X135, 'Case Counts'!Y135)) -> 207.4694116 | BM140: ='Calc - SA_Case Counts'!L166 -> 10.70973637 | BN140: =IF($BK$5 = $BF$6, 'Case Counts'!AA135, IF($BK$5 = $BF$7, 'Case Counts'!AB135, 'Case Counts'!AC135)) -> 18273.13906 | BO140: 3534.970153
BJ141: 132 | BK141: =VLOOKUP(BJ141, 'Calc - Base'!$H$35:$I$400, 2) -> 2020-10-12 | BL141: =IF($BK$5 = $BF$6, 'Case Counts'!W136, IF($BK$5 = $BF$7, 'Case Counts'!X136, 'Case Counts'!Y136)) -> 205.7538874 | BM141: ='Calc - SA_Case Counts'!L167 -> 10.54649741 | BN141: =IF($BK$5 = $BF$6, 'Case Counts'!AA136, IF($BK$5 = $BF$7, 'Case Counts'!AB136, 'Case Counts'!AC136)) -> 18478.89295 | BO141: 3545.51665
BJ142: 133 | BK142: =VLOOKUP(BJ142, 'Calc - Base'!$H$35:$I$400, 2) -> 2020-10-13 | BL142: =IF($BK$5 = $BF$6, 'Case Counts'!W137, IF($BK$5 = $BF$7, 'Case Counts'!X137, 'Case Counts'!Y137)) -> 203.9664571 | BM142: ='Calc - SA_Case Counts'!L168 -> 10.38551803 | BN142: =IF($BK$5 = $BF$6, 'Case Counts'!AA137, IF($BK$5 = $BF$7, 'Case Counts'!AB137, 'Case Counts'!AC137)) -> 18682.85941 | BO142: 3555.902168
BJ143: 134 | BK143: =VLOOKUP(BJ143, 'Calc - Base'!$H$35:$I$400, 2) -> 2020-10-14 | BL143: =IF($BK$5 = $BF$6, 'Case Counts'!W138, IF($BK$5 = $BF$7, 'Case Counts'!X138, 'Case Counts'!Y138)) -> 202.1098822 | BM143: ='Calc - SA_Case Counts'!L169 -> 10.22677627 | BN143: =IF($BK$5 = $BF$6, 'Case Counts'!AA138, IF($BK$5 = $BF$7, 'Case Counts'!AB138, 'Case Counts'!AC138)) -> 18884.96929 | BO143: 3566.128944
BJ144: 135 | BK144: =VLOOKUP(BJ144, 'Calc - Base'!$H$35:$I$400, 2) -> 2020-10-15 | BL144: =IF($BK$5 = $BF$6, 'Case Counts'!W139, IF($BK$5 = $BF$7, 'Case Counts'!X139, 'Case Counts'!Y139)) -> 200.1869999 | BM144: ='Calc - SA_Case Counts'!L170 -> 10.07025123 | BN144: =IF($BK$5 = $BF$6, 'Case Counts'!AA139, IF($BK$5 = $BF$7, 'Case Counts'!AB139, 'Case Counts'!AC139)) -> 19085.15629 | BO144: 3576.199196
BJ145: 136 | BK145: =VLOOKUP(BJ145, 'Calc - Base'!$H$35:$I$400, 2) -> 2020-10-16 | BL145: =IF($BK$5 = $BF$6, 'Case Counts'!W140, IF($BK$5 = $BF$7, 'Case Counts'!X140, 'Case Counts'!Y140)) -> 198.2007144 | BM145: ='Calc - SA_Case Counts'!L171 -> 9.915917976 | BN145: =IF($BK$5 = $BF$6, 'Case Counts'!AA140, IF($BK$5 = $BF$7, 'Case Counts'!AB140, 'Case Counts'!AC140)) -> 19283.35701 | BO145: 3586.115113
BJ146: 137 | BK146: =VLOOKUP(BJ146, 'Calc - Base'!$H$35:$I$400, 2) -> 2020-10-17 | BL146: =IF($BK$5 = $BF$6, 'Case Counts'!W141, IF($BK$5 = $BF$7, 'Case Counts'!X141, 'Case Counts'!Y141)) -> 196.1539879 | BM146: ='Calc - SA_Case Counts'!L172 -> 9.763749767 | BN146: =IF($BK$5 = $BF$6, 'Case Counts'!AA141, IF($BK$5 = $BF$7, 'Case Counts'!AB141, 'Case Counts'!AC141)) -> 19479.51099 | BO146: 3595.878863
BJ147: 138 | BK147: =VLOOKUP(BJ147, 'Calc - Base'!$H$35:$I$400, 2) -> 2020-10-18 | BL147: =IF($BK$5 = $BF$6, 'Case Counts'!W142, IF($BK$5 = $BF$7, 'Case Counts'!X142, 'Case Counts'!Y142)) -> 194.0498314 | BM147: ='Calc - SA_Case Counts'!L173 -> 9.613722339 | BN147: =IF($BK$5 = $BF$6, 'Case Counts'!AA142, IF($BK$5 = $BF$7, 'Case Counts'!AB142, 'Case Counts'!AC142)) -> 19673.56082 | BO147: 3605.492586
BJ148: 139 | BK148: =VLOOKUP(BJ148, 'Calc - Base'!$H$35:$I$400, 2) -> 2020-10-19 | BL148: =IF($BK$5 = $BF$6, 'Case Counts'!W143, IF($BK$5 = $BF$7, 'Case Counts'!X143, 'Case Counts'!Y143)) -> 191.8912964 | BM148: ='Calc - SA_Case Counts'!L174 -> 9.46581351 | BN148: =IF($BK$5 = $BF$6, 'Case Counts'!AA143, IF($BK$5 = $BF$7, 'Case Counts'!AB143, 'Case Counts'!AC143)) -> 19865.45212 | BO148: 3614.958399
BJ149: 140 | BK149: =VLOOKUP(BJ149, 'Calc - Base'!$H$35:$I$400, 2) -> 2020-10-20 | BL149: =IF($BK$5 = $BF$6, 'Case Counts'!W144, IF($BK$5 = $BF$7, 'Case Counts'!X144, 'Case Counts'!Y144)) -> 189.6814653 | BM149: ='Calc - SA_Case Counts'!L175 -> 9.319999952 | BN149: =IF($BK$5 = $BF$6, 'Case Counts'!AA144, IF($BK$5 = $BF$7, 'Case Counts'!AB144, 'Case Counts'!AC144)) -> 20055.13359 | BO149: 3624.278399
BJ150: 141 | BK150: =VLOOKUP(BJ150, 'Calc - Base'!$H$35:$I$400, 2) -> 2020-10-21 | BL150: =IF($BK$5 = $BF$6, 'Case Counts'!W145, IF($BK$5 = $BF$7, 'Case Counts'!X145, 'Case Counts'!Y145)) -> 187.4234433 | BM150: ='Calc - SA_Case Counts'!L176 -> 9.176256621 | BN150: =IF($BK$5 = $BF$6, 'Case Counts'!AA145, IF($BK$5 = $BF$7, 'Case Counts'!AB145, 'Case Counts'!AC145)) -> 20242.55703 | BO150: 3633.454656
BJ151: 142 | BK151: =VLOOKUP(BJ151, 'Calc - Base'!$H$35:$I$400, 2) -> 2020-10-22 | BL151: =IF($BK$5 = $BF$6, 'Case Counts'!W146, IF($BK$5 = $BF$7, 'Case Counts'!X146, 'Case Counts'!Y146)) -> 185.1203496 | BM151: ='Calc - SA_Case Counts'!L177 -> 9.034558939 | BN151: =IF($BK$5 = $BF$6, 'Case Counts'!AA146, IF($BK$5 = $BF$7, 'Case Counts'!AB146, 'Case Counts'!AC146)) -> 20427.67738 | BO151: 3642.489215
BJ152: 143 | BK152: =VLOOKUP(BJ152, 'Calc - Base'!$H$35:$I$400, 2) -> 2020-10-23 | BL152: =IF($BK$5 = $BF$6, 'Case Counts'!W147, IF($BK$5 = $BF$7, 'Case Counts'!X147, 'Case Counts'!Y147)) -> 182.7753089 | BM152: ='Calc - SA_Case Counts'!L178 -> 8.894883828 | BN152: =IF($BK$5 = $BF$6, 'Case Counts'!AA147, IF($BK$5 = $BF$7, 'Case Counts'!AB147, 'Case Counts'!AC147)) -> 20610.45269 | BO152: 3651.384098
BJ153: 144 | BK153: =VLOOKUP(BJ153, 'Calc - Base'!$H$35:$I$400, 2) -> 2020-10-24 | BL153: =IF($BK$5 = $BF$6, 'Case Counts'!W148, IF($BK$5 = $BF$7, 'Case Counts'!X148, 'Case Counts'!Y148)) -> 180.3914437 | BM153: ='Calc - SA_Case Counts'!L179 -> 8.757208409 | BN153: =IF($BK$5 = $BF$6, 'Case Counts'!AA148, IF($BK$5 = $BF$7, 'Case Counts'!AB148, 'Case Counts'!AC148)) -> 20790.84413 | BO153: 3660.141307
BJ154: 145 | BK154: =VLOOKUP(BJ154, 'Calc - Base'!$H$35:$I$400, 2) -> 2020-10-25 | BL154: =IF($BK$5 = $BF$6, 'Case Counts'!W149, IF($BK$5 = $BF$7, 'Case Counts'!X149, 'Case Counts'!Y149)) -> 177.9718661 | BM154: ='Calc - SA_Case Counts'!L180 -> 8.621508919 | BN154: =IF($BK$5 = $BF$6, 'Case Counts'!AA149, IF($BK$5 = $BF$7, 'Case Counts'!AB149, 'Case Counts'!AC149)) -> 20968.816 | BO154: 3668.762816
BJ155: 146 | BK155: =VLOOKUP(BJ155, 'Calc - Base'!$H$35:$I$400, 2) -> 2020-10-26 | BL155: =IF($BK$5 = $BF$6, 'Case Counts'!W150, IF($BK$5 = $BF$7, 'Case Counts'!X150, 'Case Counts'!Y150)) -> 175.5196704 | BM155: ='Calc - SA_Case Counts'!L181 -> 8.487761355 | BN155: =IF($BK$5 = $BF$6, 'Case Counts'!AA150, IF($BK$5 = $BF$7, 'Case Counts'!AB150, 'Case Counts'!AC150)) -> 21144.33567 | BO155: 3677.250577
BJ156: 147 | BK156: =VLOOKUP(BJ156, 'Calc - Base'!$H$35:$I$400, 2) -> 2020-10-27 | BL156: =IF($BK$5 = $BF$6, 'Case Counts'!W151, IF($BK$5 = $BF$7, 'Case Counts'!X151, 'Case Counts'!Y151)) -> 173.0379258 | BM156: ='Calc - SA_Case Counts'!L182 -> 8.355942449 | BN156: =IF($BK$5 = $BF$6, 'Case Counts'!AA151, IF($BK$5 = $BF$7, 'Case Counts'!AB151, 'Case Counts'!AC151)) -> 21317.37359 | BO156: 3685.60652
BJ157: 148 | BK157: =VLOOKUP(BJ157, 'Calc - Base'!$H$35:$I$400, 2) -> 2020-10-28 | BL157: =IF($BK$5 = $BF$6, 'Case Counts'!W152, IF($BK$5 = $BF$7, 'Case Counts'!X152, 'Case Counts'!Y152)) -> 170.5296697 | BM157: ='Calc - SA_Case Counts'!L183 -> 8.226029478 | BN157: =IF($BK$5 = $BF$6, 'Case Counts'!AA152, IF($BK$5 = $BF$7, 'Case Counts'!AB152, 'Case Counts'!AC152)) -> 21487.90326 | BO157: 3693.832549
BJ158: 149 | BK158: =VLOOKUP(BJ158, 'Calc - Base'!$H$35:$I$400, 2) -> 2020-10-29 | BL158: =IF($BK$5 = $BF$6, 'Case Counts'!W153, IF($BK$5 = $BF$7, 'Case Counts'!X153, 'Case Counts'!Y153)) -> 167.9979007 | BM158: ='Calc - SA_Case Counts'!L184 -> 8.09799951 | BN158: =IF($BK$5 = $BF$6, 'Case Counts'!AA153, IF($BK$5 = $BF$7, 'Case Counts'!AB153, 'Case Counts'!AC153)) -> 21655.90116 | BO158: 3701.930549
BJ159: 150 | BK159: =VLOOKUP(BJ159, 'Calc - Base'!$H$35:$I$400, 2) -> 2020-10-30 | BL159: =IF($BK$5 = $BF$6, 'Case Counts'!W154, IF($BK$5 = $BF$7, 'Case Counts'!X154, 'Case Counts'!Y154)) -> 165.4455729 | BM159: ='Calc - SA_Case Counts'!L185 -> 7.971829345 | BN159: =IF($BK$5 = $BF$6, 'Case Counts'!AA154, IF($BK$5 = $BF$7, 'Case Counts'!AB154, 'Case Counts'!AC154)) -> 21821.34674 | BO159: 3709.902378
BJ160: 151 | BK160: =VLOOKUP(BJ160, 'Calc - Base'!$H$35:$I$400, 2) -> 2020-10-31 | BL160: =IF($BK$5 = $BF$6, 'Case Counts'!W155, IF($BK$5 = $BF$7, 'Case Counts'!X155, 'Case Counts'!Y155)) -> 162.8755898 | BM160: ='Calc - SA_Case Counts'!L186 -> 7.847496052 | BN160: =IF($BK$5 = $BF$6, 'Case Counts'!AA155, IF($BK$5 = $BF$7, 'Case Counts'!AB155, 'Case Counts'!AC155)) -> 21984.22233 | BO160: 3717.749874
BJ161: 152 | BK161: =VLOOKUP(BJ161, 'Calc - Base'!$H$35:$I$400, 2) -> 2020-11-01 | BL161: =IF($BK$5 = $BF$6, 'Case Counts'!W156, IF($BK$5 = $BF$7, 'Case Counts'!X156, 'Case Counts'!Y156)) -> 160.290799 | BM161: ='Calc - SA_Case Counts'!L187 -> 7.724977165 | BN161: =IF($BK$5 = $BF$6, 'Case Counts'!AA156, IF($BK$5 = $BF$7, 'Case Counts'!AB156, 'Case Counts'!AC156)) -> 22144.51313 | BO161: 3725.474851
BJ162: 153 | BK162: =VLOOKUP(BJ162, 'Calc - Base'!$H$35:$I$400, 2) -> 2020-11-02 | BL162: =IF($BK$5 = $BF$6, 'Case Counts'!W157, IF($BK$5 = $BF$7, 'Case Counts'!X157, 'Case Counts'!Y157)) -> 157.6939874 | BM162: ='Calc - SA_Case Counts'!L188 -> 7.604250352 | BN162: =IF($BK$5 = $BF$6, 'Case Counts'!AA157, IF($BK$5 = $BF$7, 'Case Counts'!AB157, 'Case Counts'!AC157)) -> 22302.20711 | BO162: 3733.079101
BJ163: 154 | BK163: =VLOOKUP(BJ163, 'Calc - Base'!$H$35:$I$400, 2) -> 2020-11-03 | BL163: =IF($BK$5 = $BF$6, 'Case Counts'!W158, IF($BK$5 = $BF$7, 'Case Counts'!X158, 'Case Counts'!Y158)) -> 155.0878762 | BM163: ='Calc - SA_Case Counts'!L189 -> 7.485293196 | BN163: =IF($BK$5 = $BF$6, 'Case Counts'!AA158, IF($BK$5 = $BF$7, 'Case Counts'!AB158, 'Case Counts'!AC158)) -> 22457.29499 | BO163: 3740.564395
BJ164: 155 | BK164: =VLOOKUP(BJ164, 'Calc - Base'!$H$35:$I$400, 2) -> 2020-11-04 | BL164: =IF($BK$5 = $BF$6, 'Case Counts'!W159, IF($BK$5 = $BF$7, 'Case Counts'!X159, 'Case Counts'!Y159)) -> 152.4751171 | BM164: ='Calc - SA_Case Counts'!L190 -> 7.36808337 | BN164: =IF($BK$5 = $BF$6, 'Case Counts'!AA159, IF($BK$5 = $BF$7, 'Case Counts'!AB159, 'Case Counts'!AC159)) -> 22609.77011 | BO164: 3747.932478
BJ165: 156 | BK165: =VLOOKUP(BJ165, 'Calc - Base'!$H$35:$I$400, 2) -> 2020-11-05 | BL165: =IF($BK$5 = $BF$6, 'Case Counts'!W160, IF($BK$5 = $BF$7, 'Case Counts'!X160, 'Case Counts'!Y160)) -> 149.8582882 | BM165: ='Calc - SA_Case Counts'!L191 -> 7.252598857 | BN165: =IF($BK$5 = $BF$6, 'Case Counts'!AA160, IF($BK$5 = $BF$7, 'Case Counts'!AB160, 'Case Counts'!AC160)) -> 22759.62839 | BO165: 3755.185077
BJ166: 157 | BK166: =VLOOKUP(BJ166, 'Calc - Base'!$H$35:$I$400, 2) -> 2020-11-06 | BL166: =IF($BK$5 = $BF$6, 'Case Counts'!W161, IF($BK$5 = $BF$7, 'Case Counts'!X161, 'Case Counts'!Y161)) -> 147.2398912 | BM166: ='Calc - SA_Case Counts'!L192 -> 7.138817887 | BN166: =IF($BK$5 = $BF$6, 'Case Counts'!AA161, IF($BK$5 = $BF$7, 'Case Counts'!AB161, 'Case Counts'!AC161)) -> 22906.86829 | BO166: 3762.323895
BJ167: 158 | BK167: =VLOOKUP(BJ167, 'Calc - Base'!$H$35:$I$400, 2) -> 2020-11-07 | BL167: =IF($BK$5 = $BF$6, 'Case Counts'!W162, IF($BK$5 = $BF$7, 'Case Counts'!X162, 'Case Counts'!Y162)) -> 144.6223475 | BM167: ='Calc - SA_Case Counts'!L193 -> 7.026718761 | BN167: =IF($BK$5 = $BF$6, 'Case Counts'!AA162, IF($BK$5 = $BF$7, 'Case Counts'!AB162, 'Case Counts'!AC162)) -> 23051.49063 | BO167: 3769.350614
BJ168: 159 | BK168: =VLOOKUP(BJ168, 'Calc - Base'!$H$35:$I$400, 2) -> 2020-11-08 | BL168: =IF($BK$5 = $BF$6, 'Case Counts'!W163, IF($BK$5 = $BF$7, 'Case Counts'!X163, 'Case Counts'!Y163)) -> 142.0079967 | BM168: ='Calc - SA_Case Counts'!L194 -> 6.916279859 | BN168: =IF($BK$5 = $BF$6, 'Case Counts'!AA163, IF($BK$5 = $BF$7, 'Case Counts'!AB163, 'Case Counts'!AC163)) -> 23193.49863 | BO168: 3776.266893
BJ169: 160 | BK169: =VLOOKUP(BJ169, 'Calc - Base'!$H$35:$I$400, 2) -> 2020-11-09 | BL169: =IF($BK$5 = $BF$6, 'Case Counts'!W164, IF($BK$5 = $BF$7, 'Case Counts'!X164, 'Case Counts'!Y164)) -> 139.3990937 | BM169: ='Calc - SA_Case Counts'!L195 -> 6.807479771 | BN169: =IF($BK$5 = $BF$6, 'Case Counts'!AA164, IF($BK$5 = $BF$7, 'Case Counts'!AB164, 'Case Counts'!AC164)) -> 23332.89772 | BO169: 3783.074373
BJ170: 161 | BK170: =VLOOKUP(BJ170, 'Calc - Base'!$H$35:$I$400, 2) -> 2020-11-10 | BL170: =IF($BK$5 = $BF$6, 'Case Counts'!W165, IF($BK$5 = $BF$7, 'Case Counts'!X165, 'Case Counts'!Y165)) -> 136.7978069 | BM170: ='Calc - SA_Case Counts'!L196 -> 6.700297328 | BN170: =IF($BK$5 = $BF$6, 'Case Counts'!AA165, IF($BK$5 = $BF$7, 'Case Counts'!AB165, 'Case Counts'!AC165)) -> 23469.69553 | BO170: 3789.774671
BJ171: 162 | BK171: =VLOOKUP(BJ171, 'Calc - Base'!$H$35:$I$400, 2) -> 2020-11-11 | BL171: =IF($BK$5 = $BF$6, 'Case Counts'!W166, IF($BK$5 = $BF$7, 'Case Counts'!X166, 'Case Counts'!Y166)) -> 134.2062174 | BM171: ='Calc - SA_Case Counts'!L197 -> 6.594711527 | BN171: =IF($BK$5 = $BF$6, 'Case Counts'!AA166, IF($BK$5 = $BF$7, 'Case Counts'!AB166, 'Case Counts'!AC166)) -> 23603.90175 | BO171: 3796.369382
BJ172: 163 | BK172: =VLOOKUP(BJ172, 'Calc - Base'!$H$35:$I$400, 2) -> 2020-11-12 | BL172: =IF($BK$5 = $BF$6, 'Case Counts'!W167, IF($BK$5 = $BF$7, 'Case Counts'!X167, 'Case Counts'!Y167)) -> 131.626317 | BM172: ='Calc - SA_Case Counts'!L198 -> 6.490701483 | BN172: =IF($BK$5 = $BF$6, 'Case Counts'!AA167, IF($BK$5 = $BF$7, 'Case Counts'!AB167, 'Case Counts'!AC167)) -> 23735.52807 | BO172: 3802.860084
BJ173: 164 | BK173: =VLOOKUP(BJ173, 'Calc - Base'!$H$35:$I$400, 2) -> 2020-11-13 | BL173: =IF($BK$5 = $BF$6, 'Case Counts'!W168, IF($BK$5 = $BF$7, 'Case Counts'!X168, 'Case Counts'!Y168)) -> 129.0600082 | BM173: ='Calc - SA_Case Counts'!L199 -> 6.38824648 | BN173: =IF($BK$5 = $BF$6, 'Case Counts'!AA168, IF($BK$5 = $BF$7, 'Case Counts'!AB168, 'Case Counts'!AC168)) -> 23864.58807 | BO173: 3809.24833
BJ174: 165 | BK174: =VLOOKUP(BJ174, 'Calc - Base'!$H$35:$I$400, 2) -> 2020-11-14 | BL174: =IF($BK$5 = $BF$6, 'Case Counts'!W169, IF($BK$5 = $BF$7, 'Case Counts'!X169, 'Case Counts'!Y169)) -> 126.5091032 | BM174: ='Calc - SA_Case Counts'!L200 -> 6.287326019 | BN174: =IF($BK$5 = $BF$6, 'Case Counts'!AA169, IF($BK$5 = $BF$7, 'Case Counts'!AB169, 'Case Counts'!AC169)) -> 23991.09718 | BO174: 3815.535656
BJ175: 166 | BK175: =VLOOKUP(BJ175, 'Calc - Base'!$H$35:$I$400, 2) -> 2020-11-15 | BL175: =IF($BK$5 = $BF$6, 'Case Counts'!W170, IF($BK$5 = $BF$7, 'Case Counts'!X170, 'Case Counts'!Y170)) -> 123.9753243 | BM175: ='Calc - SA_Case Counts'!L201 -> 6.187919797 | BN175: =IF($BK$5 = $BF$6, 'Case Counts'!AA170, IF($BK$5 = $BF$7, 'Case Counts'!AB170, 'Case Counts'!AC170)) -> 24115.0725 | BO175: 3821.723576
BJ176: 167 | BK176: =VLOOKUP(BJ176, 'Calc - Base'!$H$35:$I$400, 2) -> 2020-11-16 | BL176: =IF($BK$5 = $BF$6, 'Case Counts'!W171, IF($BK$5 = $BF$7, 'Case Counts'!X171, 'Case Counts'!Y171)) -> 121.4603035 | BM176: ='Calc - SA_Case Counts'!L202 -> 6.090007672 | BN176: =IF($BK$5 = $BF$6, 'Case Counts'!AA171, IF($BK$5 = $BF$7, 'Case Counts'!AB171, 'Case Counts'!AC171)) -> 24236.5328 | BO176: 3827.813583
BJ177: 168 | BK177: =VLOOKUP(BJ177, 'Calc - Base'!$H$35:$I$400, 2) -> 2020-11-17 | BL177: =IF($BK$5 = $BF$6, 'Case Counts'!W172, IF($BK$5 = $BF$7, 'Case Counts'!X172, 'Case Counts'!Y172)) -> 118.9655834 | BM177: ='Calc - SA_Case Counts'!L203 -> 5.993569666 | BN177: =IF($BK$5 = $BF$6, 'Case Counts'!AA172, IF($BK$5 = $BF$7, 'Case Counts'!AB172, 'Case Counts'!AC172)) -> 24355.49839 | BO177: 3833.807153
BJ178: 169 | BK178: =VLOOKUP(BJ178, 'Calc - Base'!$H$35:$I$400, 2) -> 2020-11-18 | BL178: =IF($BK$5 = $BF$6, 'Case Counts'!W173, IF($BK$5 = $BF$7, 'Case Counts'!X173, 'Case Counts'!Y173)) -> 116.4926174 | BM178: ='Calc - SA_Case Counts'!L204 -> 5.898585998 | BN178: =IF($BK$5 = $BF$6, 'Case Counts'!AA173, IF($BK$5 = $BF$7, 'Case Counts'!AB173, 'Case Counts'!AC173)) -> 24471.99101 | BO178: 3839.705739
BJ179: 170 | BK179: =VLOOKUP(BJ179, 'Calc - Base'!$H$35:$I$400, 2) -> 2020-11-19 | BL179: =IF($BK$5 = $BF$6, 'Case Counts'!W174, IF($BK$5 = $BF$7, 'Case Counts'!X174, 'Case Counts'!Y174)) -> 114.0427713 | BM179: ='Calc - SA_Case Counts'!L205 -> 5.805037091 | BN179: =IF($BK$5 = $BF$6, 'Case Counts'!AA174, IF($BK$5 = $BF$7, 'Case Counts'!AB174, 'Case Counts'!AC174)) -> 24586.03378 | BO179: 3845.510776
BJ180: 171 | BK180: =VLOOKUP(BJ180, 'Calc - Base'!$H$35:$I$400, 2) -> 2020-11-20 | BL180: =IF($BK$5 = $BF$6, 'Case Counts'!W175, IF($BK$5 = $BF$7, 'Case Counts'!X175, 'Case Counts'!Y175)) -> 111.6173234 | BM180: ='Calc - SA_Case Counts'!L206 -> 5.712903548 | BN180: =IF($BK$5 = $BF$6, 'Case Counts'!AA175, IF($BK$5 = $BF$7, 'Case Counts'!AB175, 'Case Counts'!AC175)) -> 24697.6511 | BO180: 3851.22368
BJ181: 172 | BK181: =VLOOKUP(BJ181, 'Calc - Base'!$H$35:$I$400, 2) -> 2020-11-21 | BL181: =IF($BK$5 = $BF$6, 'Case Counts'!W176, IF($BK$5 = $BF$7, 'Case Counts'!X176, 'Case Counts'!Y176)) -> 109.217467 | BM181: ='Calc - SA_Case Counts'!L207 -> 5.62216615 | BN181: =IF($BK$5 = $BF$6, 'Case Counts'!AA176, IF($BK$5 = $BF$7, 'Case Counts'!AB176, 'Case Counts'!AC176)) -> 24806.86857 | BO181: 3856.845846
BJ182: 173 | BK182: =VLOOKUP(BJ182, 'Calc - Base'!$H$35:$I$400, 2) -> 2020-11-22 | BL182: =IF($BK$5 = $BF$6, 'Case Counts'!W177, IF($BK$5 = $BF$7, 'Case Counts'!X177, 'Case Counts'!Y177)) -> 106.844311 | BM182: ='Calc - SA_Case Counts'!L208 -> 5.532805866 | BN182: =IF($BK$5 = $BF$6, 'Case Counts'!AA177, IF($BK$5 = $BF$7, 'Case Counts'!AB177, 'Case Counts'!AC177)) -> 24913.71288 | BO182: 3862.378652
BJ183: 174 | BK183: =VLOOKUP(BJ183, 'Calc - Base'!$H$35:$I$400, 2) -> 2020-11-23 | BL183: =IF($BK$5 = $BF$6, 'Case Counts'!W178, IF($BK$5 = $BF$7, 'Case Counts'!X178, 'Case Counts'!Y178)) -> 104.498882 | BM183: ='Calc - SA_Case Counts'!L209 -> 5.444803861 | BN183: =IF($BK$5 = $BF$6, 'Case Counts'!AA178, IF($BK$5 = $BF$7, 'Case Counts'!AB178, 'Case Counts'!AC178)) -> 25018.21176 | BO183: 3867.823456
BJ184: 175 | BK184: =VLOOKUP(BJ184, 'Calc - Base'!$H$35:$I$400, 2) -> 2020-11-24 | BL184: =IF($BK$5 = $BF$6, 'Case Counts'!W179, IF($BK$5 = $BF$7, 'Case Counts'!X179, 'Case Counts'!Y179)) -> 102.1821259 | BM184: ='Calc - SA_Case Counts'!L210 -> 5.358141497 | BN184: =IF($BK$5 = $BF$6, 'Case Counts'!AA179, IF($BK$5 = $BF$7, 'Case Counts'!AB179, 'Case Counts'!AC179)) -> 25120.39389 | BO184: 3873.181597
BJ185: 176 | BK185: =VLOOKUP(BJ185, 'Calc - Base'!$H$35:$I$400, 2) -> 2020-11-25 | BL185: =IF($BK$5 = $BF$6, 'Case Counts'!W180, IF($BK$5 = $BF$7, 'Case Counts'!X180, 'Case Counts'!Y180)) -> 99.89491032 | BM185: ='Calc - SA_Case Counts'!L211 -> 5.272800317 | BN185: =IF($BK$5 = $BF$6, 'Case Counts'!AA180, IF($BK$5 = $BF$7, 'Case Counts'!AB180, 'Case Counts'!AC180)) -> 25220.2888 | BO185: 3878.454397
BJ186: 177 | BK186: =VLOOKUP(BJ186, 'Calc - Base'!$H$35:$I$400, 2) -> 2020-11-26 | BL186: =IF($BK$5 = $BF$6, 'Case Counts'!W181, IF($BK$5 = $BF$7, 'Case Counts'!X181, 'Case Counts'!Y181)) -> 97.63802599 | BM186: ='Calc - SA_Case Counts'!L212 -> 5.188762053 | BN186: =IF($BK$5 = $BF$6, 'Case Counts'!AA181, IF($BK$5 = $BF$7, 'Case Counts'!AB181, 'Case Counts'!AC181)) -> 25317.92682 | BO186: 3883.64316
BJ187: 178 | BK187: =VLOOKUP(BJ187, 'Calc - Base'!$H$35:$I$400, 2) -> 2020-11-27 | BL187: =IF($BK$5 = $BF$6, 'Case Counts'!W182, IF($BK$5 = $BF$7, 'Case Counts'!X182, 'Case Counts'!Y182)) -> 95.41218944 | BM187: ='Calc - SA_Case Counts'!L213 -> 5.106008632 | BN187: =IF($BK$5 = $BF$6, 'Case Counts'!AA182, IF($BK$5 = $BF$7, 'Case Counts'!AB182, 'Case Counts'!AC182)) -> 25413.33901 | BO187: 3888.749168
BJ188: 179 | BK188: =VLOOKUP(BJ188, 'Calc - Base'!$H$35:$I$400, 2) -> 2020-11-28 | BL188: =IF($BK$5 = $BF$6, 'Case Counts'!W183, IF($BK$5 = $BF$7, 'Case Counts'!X183, 'Case Counts'!Y183)) -> 93.21804507 | BM188: ='Calc - SA_Case Counts'!L214 -> 5.024522173 | BN188: =IF($BK$5 = $BF$6, 'Case Counts'!AA183, IF($BK$5 = $BF$7, 'Case Counts'!AB183, 'Case Counts'!AC183)) -> 25506.55706 | BO188: 3893.77369
BJ189: 180 | BK189: =VLOOKUP(BJ189, 'Calc - Base'!$H$35:$I$400, 2) -> 2020-11-29 | BL189: =IF($BK$5 = $BF$6, 'Case Counts'!W184, IF($BK$5 = $BF$7, 'Case Counts'!X184, 'Case Counts'!Y184)) -> 91.05616747 | BM189: ='Calc - SA_Case Counts'!L215 -> 4.944284987 | BN189: =IF($BK$5 = $BF$6, 'Case Counts'!AA184, IF($BK$5 = $BF$7, 'Case Counts'!AB184, 'Case Counts'!AC184)) -> 25597.61322 | BO189: 3898.717975
BJ190: 181 | BK190: =VLOOKUP(BJ190, 'Calc - Base'!$H$35:$I$400, 2) -> 2020-11-30 | BL190: =IF($BK$5 = $BF$6, 'Case Counts'!W185, IF($BK$5 = $BF$7, 'Case Counts'!X185, 'Case Counts'!Y185)) -> 88.92706388 | BM190: ='Calc - SA_Case Counts'!L216 -> 4.865279574 | BN190: =IF($BK$5 = $BF$6, 'Case Counts'!AA185, IF($BK$5 = $BF$7, 'Case Counts'!AB185, 'Case Counts'!AC185)) -> 25686.54029 | BO190: 3903.583255
BJ191: 182 | BK191: =VLOOKUP(BJ191, 'Calc - Base'!$H$35:$I$400, 2) -> 2020-12-01 | BL191: =IF($BK$5 = $BF$6, 'Case Counts'!W186, IF($BK$5 = $BF$7, 'Case Counts'!X186, 'Case Counts'!Y186)) -> 86.83117656 | BM191: ='Calc - SA_Case Counts'!L217 -> 4.787488622 | BN191: =IF($BK$5 = $BF$6, 'Case Counts'!AA186, IF($BK$5 = $BF$7, 'Case Counts'!AB186, 'Case Counts'!AC186)) -> 25773.37146 | BO191: 3908.370744
BJ192: 183 | BK192: =VLOOKUP(BJ192, 'Calc - Base'!$H$35:$I$400, 2) -> 2020-12-02 | BL192: =IF($BK$5 = $BF$6, 'Case Counts'!W187, IF($BK$5 = $BF$7, 'Case Counts'!X187, 'Case Counts'!Y187)) -> 84.7688853 | BM192: ='Calc - SA_Case Counts'!L218 -> 4.710895016 | BN192: =IF($BK$5 = $BF$6, 'Case Counts'!AA187, IF($BK$5 = $BF$7, 'Case Counts'!AB187, 'Case Counts'!AC187)) -> 25858.14035 | BO192: 3913.081639
BJ193: 184 | BK193: =VLOOKUP(BJ193, 'Calc - Base'!$H$35:$I$400, 2) -> 2020-12-03 | BL193: =IF($BK$5 = $BF$6, 'Case Counts'!W188, IF($BK$5 = $BF$7, 'Case Counts'!X188, 'Case Counts'!Y188)) -> 82.7405099 | BM193: ='Calc - SA_Case Counts'!L219 -> 4.635481828 | BN193: =IF($BK$5 = $BF$6, 'Case Counts'!AA188, IF($BK$5 = $BF$7, 'Case Counts'!AB188, 'Case Counts'!AC188)) -> 25940.88086 | BO193: 3917.71712
BJ194: 185 | BK194: =VLOOKUP(BJ194, 'Calc - Base'!$H$35:$I$400, 2) -> 2020-12-04 | BL194: =IF($BK$5 = $BF$6, 'Case Counts'!W189, IF($BK$5 = $BF$7, 'Case Counts'!X189, 'Case Counts'!Y189)) -> 80.74631268 | BM194: ='Calc - SA_Case Counts'!L220 -> 4.561232322 | BN194: =IF($BK$5 = $BF$6, 'Case Counts'!AA189, IF($BK$5 = $BF$7, 'Case Counts'!AB189, 'Case Counts'!AC189)) -> 26021.62717 | BO194: 3922.278353
BJ195: 186 | BK195: =VLOOKUP(BJ195, 'Calc - Base'!$H$35:$I$400, 2) -> 2020-12-05 | BL195: =IF($BK$5 = $BF$6, 'Case Counts'!W190, IF($BK$5 = $BF$7, 'Case Counts'!X190, 'Case Counts'!Y190)) -> 78.78650097 | BM195: ='Calc - SA_Case Counts'!L221 -> 4.488129949 | BN195: =IF($BK$5 = $BF$6, 'Case Counts'!AA190, IF($BK$5 = $BF$7, 'Case Counts'!AB190, 'Case Counts'!AC190)) -> 26100.41367 | BO195: 3926.766483
BJ196: 187 | BK196: =VLOOKUP(BJ196, 'Calc - Base'!$H$35:$I$400, 2) -> 2020-12-06 | BL196: =IF($BK$5 = $BF$6, 'Case Counts'!W191, IF($BK$5 = $BF$7, 'Case Counts'!X191, 'Case Counts'!Y191)) -> 76.86122965 | BM196: ='Calc - SA_Case Counts'!L222 -> 4.41615835 | BN196: =IF($BK$5 = $BF$6, 'Case Counts'!AA191, IF($BK$5 = $BF$7, 'Case Counts'!AB191, 'Case Counts'!AC191)) -> 26177.2749 | BO196: 3931.182641
BJ197: 188 | BK197: =VLOOKUP(BJ197, 'Calc - Base'!$H$35:$I$400, 2) -> 2020-12-07 | BL197: =IF($BK$5 = $BF$6, 'Case Counts'!W192, IF($BK$5 = $BF$7, 'Case Counts'!X192, 'Case Counts'!Y192)) -> 74.97060359 | BM197: ='Calc - SA_Case Counts'!L223 -> 4.345301357 | BN197: =IF($BK$5 = $BF$6, 'Case Counts'!AA192, IF($BK$5 = $BF$7, 'Case Counts'!AB192, 'Case Counts'!AC192)) -> 26252.24551 | BO197: 3935.527942
BJ198: 189 | BK198: =VLOOKUP(BJ198, 'Calc - Base'!$H$35:$I$400, 2) -> 2020-12-08 | BL198: =IF($BK$5 = $BF$6, 'Case Counts'!W193, IF($BK$5 = $BF$7, 'Case Counts'!X193, 'Case Counts'!Y193)) -> 73.11468015 | BM198: ='Calc - SA_Case Counts'!L224 -> 4.275542988 | BN198: =IF($BK$5 = $BF$6, 'Case Counts'!AA193, IF($BK$5 = $BF$7, 'Case Counts'!AB193, 'Case Counts'!AC193)) -> 26325.36019 | BO198: 3939.803485
BJ199: 190 | BK199: =VLOOKUP(BJ199, 'Calc - Base'!$H$35:$I$400, 2) -> 2020-12-09 | BL199: =IF($BK$5 = $BF$6, 'Case Counts'!W194, IF($BK$5 = $BF$7, 'Case Counts'!X194, 'Case Counts'!Y194)) -> 71.2934716 | BM199: ='Calc - SA_Case Counts'!L225 -> 4.206867449 | BN199: =IF($BK$5 = $BF$6, 'Case Counts'!AA194, IF($BK$5 = $BF$7, 'Case Counts'!AB194, 'Case Counts'!AC194)) -> 26396.65366 | BO199: 3944.010353
BJ200: 191 | BK200: =VLOOKUP(BJ200, 'Calc - Base'!$H$35:$I$400, 2) -> 2020-12-10 | BL200: =IF($BK$5 = $BF$6, 'Case Counts'!W195, IF($BK$5 = $BF$7, 'Case Counts'!X195, 'Case Counts'!Y195)) -> 69.50694753 | BM200: ='Calc - SA_Case Counts'!L226 -> 4.13925913 | BN200: =IF($BK$5 = $BF$6, 'Case Counts'!AA195, IF($BK$5 = $BF$7, 'Case Counts'!AB195, 'Case Counts'!AC195)) -> 26466.16061 | BO200: 3948.149612
BJ201: 192 | BK201: =VLOOKUP(BJ201, 'Calc - Base'!$H$35:$I$400, 2) -> 2020-12-11 | BL201: =IF($BK$5 = $BF$6, 'Case Counts'!W196, IF($BK$5 = $BF$7, 'Case Counts'!X196, 'Case Counts'!Y196)) -> 67.75503721 | BM201: ='Calc - SA_Case Counts'!L227 -> 4.072702611 | BN201: =IF($BK$5 = $BF$6, 'Case Counts'!AA196, IF($BK$5 = $BF$7, 'Case Counts'!AB196, 'Case Counts'!AC196)) -> 26533.91564 | BO201: 3952.222315
BJ202: 193 | BK202: =VLOOKUP(BJ202, 'Calc - Base'!$H$35:$I$400, 2) -> 2020-12-12 | BL202: =IF($BK$5 = $BF$6, 'Case Counts'!W197, IF($BK$5 = $BF$7, 'Case Counts'!X197, 'Case Counts'!Y197)) -> 66.03763188 | BM202: ='Calc - SA_Case Counts'!L228 -> 4.007182653 | BN202: =IF($BK$5 = $BF$6, 'Case Counts'!AA197, IF($BK$5 = $BF$7, 'Case Counts'!AB197, 'Case Counts'!AC197)) -> 26599.95328 | BO202: 3956.229497
BJ203: 194 | BK203: =VLOOKUP(BJ203, 'Calc - Base'!$H$35:$I$400, 2) -> 2020-12-13 | BL203: =IF($BK$5 = $BF$6, 'Case Counts'!W198, IF($BK$5 = $BF$7, 'Case Counts'!X198, 'Case Counts'!Y198)) -> 64.35458704 | BM203: ='Calc - SA_Case Counts'!L229 -> 3.942684203 | BN203: =IF($BK$5 = $BF$6, 'Case Counts'!AA198, IF($BK$5 = $BF$7, 'Case Counts'!AB198, 'Case Counts'!AC198)) -> 26664.30786 | BO203: =BO202+BM203 -> 3960.172181
BJ204: 195 | BK204: =VLOOKUP(BJ204, 'Calc - Base'!$H$35:$I$400, 2) -> 2020-12-14 | BL204: =IF($BK$5 = $BF$6, 'Case Counts'!W199, IF($BK$5 = $BF$7, 'Case Counts'!X199, 'Case Counts'!Y199)) -> 62.70572465 | BM204: ='Calc - SA_Case Counts'!L230 -> 3.87919239 | BN204: =IF($BK$5 = $BF$6, 'Case Counts'!AA199, IF($BK$5 = $BF$7, 'Case Counts'!AB199, 'Case Counts'!AC199)) -> 26727.01359 | BO204: 3964.051374
... 170 more rows

Sheet SA_Resources
B5: "What-If" Sensitivity Analysis: Staffing Needs | BA5: Chart Text | BF5: Scenario Options | BJ5: Chosen Scenario | BK5: =$E$9 -> Strategy 2 | BL5: =IF($BK$5 = $BF$6, 'B. Impact of contact tracing'!$F$19, IF($BK$5 = $BF$7, 'B. Impact of contact tracing'!$G$19, 'B. Impact of contact tracing'!$H$19)) -> Symptoms | BT5: Group 1 | BX5: Group 2
BA6: Maximum staff needed on a single day | BF6: ='B. Impact of contact tracing'!F16 -> Strategy 1 | BL6: =E11 -> Original Scenario | BN6: =G11 -> "What-If" Scenario | BT6: =$BL$6 -> Original Scenario | BV6: =$BN$6 -> "What-If" Scenario | BX6: =$BL$6 -> Original Scenario | BZ6: =$BN$6 -> "What-If" Scenario
BF7: ='B. Impact of contact tracing'!G16 -> Strategy 2 | BL7: Lower | BM7: Upper | BN7: Lower | BO7: Upper | BT7: Lower | BU7: Upper | BV7: Lower | BW7: Upper | BX7: Lower | BY7: Upper | BZ7: Lower | CA7: Upper
BA8: Chart Titles | BF8: ='B. Impact of contact tracing'!H16 -> Strategy 3 | BJ8: Day | BK8: Date
B9: Step 1: | C9: Choose A Contact Tracing Strategy | E9: Strategy 2 | K9: Staffing needs would change like this: | BA9: =IFERROR(_xlfn.CONCAT($BA$6, "(", $BK$5, " vs. 'What-If' Scenario)"), CONCATENATE($BA$6, "(", $BK$5, " vs. 'What-If' Scenario)")) -> Maximum staff needed on a single day (Strategy 2 vs. 'What-If' Scenario) | BJ9: 0 | BK9: =VLOOKUP(BJ9, 'Calc - Base'!$H$35:$I$400, 2) -> 2020-06-02 | BL9: =IF($BK$5=$BF$6, 'Staff Needed'!V5, IF($BK$5=$BF$7, 'Staff Needed'!X5, 'Staff Needed'!Z5)) -> 0 | BM9: =IF($BK$5=$BF$6, 'Staff Needed'!W5, IF($BK$5=$BF$7, 'Staff Needed'!Y5, 'Staff Needed'!AA5)) -> 0 | BN9: ='Calc - SA_Resources'!AT35 -> 0 | BO9: ='Calc - SA_Resources'!AU35 -> 0 | BT9: =IF($BK$5=$BF$6, 'Staff Needed'!AB5, IF($BK$5=$BF$7, 'Staff Needed'!AD5, 'Staff Needed'!AF5)) -> 0 | BU9: =IF($BK$5=$BF$6, 'Staff Needed'!AC5, IF($BK$5=$BF$7, 'Staff Needed'!AE5, 'Staff Needed'!AG5)) -> 0 | BV9: ='Calc - SA_Resources'!BA35 -> 0 | BW9: ='Calc - SA_Resources'!BB35 -> 0 | BX9: =IF($BK$5=$BF$6, 'Staff Needed'!AH5, IF($BK$5=$BF$7, 'Staff Needed'!AJ5, 'Staff Needed'!AL5)) -> 0 | BY9: =IF($BK$5=$BF$6, 'Staff Needed'!AI5, IF($BK$5=$BF$7, 'Staff Needed'!AK5, 'Staff Needed'!AM5)) -> 0 | BZ9: ='Calc - SA_Resources'!BG35 -> 0 | CA9: ='Calc - SA_Resources'!BH35 -> 0
BJ10: 1 | BK10: =VLOOKUP(BJ10, 'Calc - Base'!$H$35:$I$400, 2) -> 2020-06-03 | BL10: =IF($BK$5=$BF$6, 'Staff Needed'!V6, IF($BK$5=$BF$7, 'Staff Needed'!X6, 'Staff Needed'!Z6)) -> 0 | BM10: =IF($BK$5=$BF$6, 'Staff Needed'!W6, IF($BK$5=$BF$7, 'Staff Needed'!Y6, 'Staff Needed'!AA6)) -> 0 | BN10: ='Calc - SA_Resources'!AT36 -> 0 | BO10: ='Calc - SA_Resources'!AU36 -> 0 | BT10: =IF($BK$5=$BF$6, 'Staff Needed'!AB6, IF($BK$5=$BF$7, 'Staff Needed'!AD6, 'Staff Needed'!AF6)) -> 0 | BU10: =IF($BK$5=$BF$6, 'Staff Needed'!AC6, IF($BK$5=$BF$7, 'Staff Needed'!AE6, 'Staff Needed'!AG6)) -> 0 | BV10: ='Calc - SA_Resources'!BA36 -> 0 | BW10: ='Calc - SA_Resources'!BB36 -> 0 | BX10: =IF($BK$5=$BF$6, 'Staff Needed'!AH6, IF($BK$5=$BF$7, 'Staff Needed'!AJ6, 'Staff Needed'!AL6)) -> 0 | BY10: =IF($BK$5=$BF$6, 'Staff Needed'!AI6, IF($BK$5=$BF$7, 'Staff Needed'!AK6, 'Staff Needed'!AM6)) -> 0 | BZ10: ='Calc - SA_Resources'!BG36 -> 0 | CA10: ='Calc - SA_Resources'!BH36 -> 0
B11: Step 2: | C11: Set your "What-If" Scenario | E11: Original Scenario | G11: "What-If" Scenario | BJ11: 2 | BK11: =VLOOKUP(BJ11, 'Calc - Base'!$H$35:$I$400, 2) -> 2020-06-04 | BL11: =IF($BK$5=$BF$6, 'Staff Needed'!V7, IF($BK$5=$BF$7, 'Staff Needed'!X7, 'Staff Needed'!Z7)) -> 0 | BM11: =IF($BK$5=$BF$6, 'Staff Needed'!W7, IF($BK$5=$BF$7, 'Staff Needed'!Y7, 'Staff Needed'!AA7)) -> 0 | BN11: ='Calc - SA_Resources'!AT37 -> 0 | BO11: ='Calc - SA_Resources'!AU37 -> 0 | BT11: =IF($BK$5=$BF$6, 'Staff Needed'!AB7, IF($BK$5=$BF$7, 'Staff Needed'!AD7, 'Staff Needed'!AF7)) -> 0 | BU11: =IF($BK$5=$BF$6, 'Staff Needed'!AC7, IF($BK$5=$BF$7, 'Staff Needed'!AE7, 'Staff Needed'!AG7)) -> 0 | BV11: ='Calc - SA_Resources'!BA37 -> 0 | BW11: ='Calc - SA_Resources'!BB37 -> 0 | BX11: =IF($BK$5=$BF$6, 'Staff Needed'!AH7, IF($BK$5=$BF$7, 'Staff Needed'!AJ7, 'Staff Needed'!AL7)) -> 0 | BY11: =IF($BK$5=$BF$6, 'Staff Needed'!AI7, IF($BK$5=$BF$7, 'Staff Needed'!AK7, 'Staff Needed'!AM7)) -> 0 | BZ11: ='Calc - SA_Resources'!BG37 -> 0 | CA11: ='Calc - SA_Resources'!BH37 -> 0
E12: Lower | F12: Upper | G12: Lower | H12: Upper | BJ12: 3 | BK12: =VLOOKUP(BJ12, 'Calc - Base'!$H$35:$I$400, 2) -> 2020-06-05 | BL12: =IF($BK$5=$BF$6, 'Staff Needed'!V8, IF($BK$5=$BF$7, 'Staff Needed'!X8, 'Staff Needed'!Z8)) -> 0 | BM12: =IF($BK$5=$BF$6, 'Staff Needed'!W8, IF($BK$5=$BF$7, 'Staff Needed'!Y8, 'Staff Needed'!AA8)) -> 0 | BN12: ='Calc - SA_Resources'!AT38 -> 0 | BO12: ='Calc - SA_Resources'!AU38 -> 0 | BT12: =IF($BK$5=$BF$6, 'Staff Needed'!AB8, IF($BK$5=$BF$7, 'Staff Needed'!AD8, 'Staff Needed'!AF8)) -> 0 | BU12: =IF($BK$5=$BF$6, 'Staff Needed'!AC8, IF($BK$5=$BF$7, 'Staff Needed'!AE8, 'Staff Needed'!AG8)) -> 0 | BV12: ='Calc - SA_Resources'!BA38 -> 0 | BW12: ='Calc - SA_Resources'!BB38 -> 0 | BX12: =IF($BK$5=$BF$6, 'Staff Needed'!AH8, IF($BK$5=$BF$7, 'Staff Needed'!AJ8, 'Staff Needed'!AL8)) -> 0 | BY12: =IF($BK$5=$BF$6, 'Staff Needed'!AI8, IF($BK$5=$BF$7, 'Staff Needed'!AK8, 'Staff Needed'!AM8)) -> 0 | BZ12: ='Calc - SA_Resources'!BG38 -> 0 | CA12: ='Calc - SA_Resources'!BH38 -> 0
C13: Contacts per Case | E13: ='C. Tracing Resources'!D9 -> 5 | F13: ='C. Tracing Resources'!E9 -> 20 | G13: 3 | H13: 10 | BJ13: 4 | BK13: =VLOOKUP(BJ13, 'Calc - Base'!$H$35:$I$400, 2) -> 2020-06-06 | BL13: =IF($BK$5=$BF$6, 'Staff Needed'!V9, IF($BK$5=$BF$7, 'Staff Needed'!X9, 'Staff Needed'!Z9)) -> 0 | BM13: =IF($BK$5=$BF$6, 'Staff Needed'!W9, IF($BK$5=$BF$7, 'Staff Needed'!Y9, 'Staff Needed'!AA9)) -> 0 | BN13: ='Calc - SA_Resources'!AT39 -> 0 | BO13: ='Calc - SA_Resources'!AU39 -> 0 | BT13: =IF($BK$5=$BF$6, 'Staff Needed'!AB9, IF($BK$5=$BF$7, 'Staff Needed'!AD9, 'Staff Needed'!AF9)) -> 0 | BU13: =IF($BK$5=$BF$6, 'Staff Needed'!AC9, IF($BK$5=$BF$7, 'Staff Needed'!AE9, 'Staff Needed'!AG9)) -> 0 | BV13: ='Calc - SA_Resources'!BA39 -> 0 | BW13: ='Calc - SA_Resources'!BB39 -> 0 | BX13: =IF($BK$5=$BF$6, 'Staff Needed'!AH9, IF($BK$5=$BF$7, 'Staff Needed'!AJ9, 'Staff Needed'!AL9)) -> 0 | BY13: =IF($BK$5=$BF$6, 'Staff Needed'!AI9, IF($BK$5=$BF$7, 'Staff Needed'!AK9, 'Staff Needed'!AM9)) -> 0 | BZ13: ='Calc - SA_Resources'!BG39 -> 0 | CA13: ='Calc - SA_Resources'!BH39 -> 0
C14: Daily shift length (hours) | E14: ='C. Tracing Resources'!D14 -> 8 | F14: ='C. Tracing Resources'!E14 -> 12 | G14: 8 | H14: 12 | BJ14: 5 | BK14: =VLOOKUP(BJ14, 'Calc - Base'!$H$35:$I$400, 2) -> 2020-06-07 | BL14: =IF($BK$5=$BF$6, 'Staff Needed'!V10, IF($BK$5=$BF$7, 'Staff Needed'!X10, 'Staff Needed'!Z10)) -> 0 | BM14: =IF($BK$5=$BF$6, 'Staff Needed'!W10, IF($BK$5=$BF$7, 'Staff Needed'!Y10, 'Staff Needed'!AA10)) -> 0 | BN14: ='Calc - SA_Resources'!AT40 -> 0 | BO14: ='Calc - SA_Resources'!AU40 -> 0 | BQ14: Lower | BR14: Upper | BT14: =IF($BK$5=$BF$6, 'Staff Needed'!AB10, IF($BK$5=$BF$7, 'Staff Needed'!AD10, 'Staff Needed'!AF10)) -> 0 | BU14: =IF($BK$5=$BF$6, 'Staff Needed'!AC10, IF($BK$5=$BF$7, 'Staff Needed'!AE10, 'Staff Needed'!AG10)) -> 0 | BV14: ='Calc - SA_Resources'!BA40 -> 0 | BW14: ='Calc - SA_Resources'!BB40 -> 0 | BX14: =IF($BK$5=$BF$6, 'Staff Needed'!AH10, IF($BK$5=$BF$7, 'Staff Needed'!AJ10, 'Staff Needed'!AL10)) -> 0 | BY14: =IF($BK$5=$BF$6, 'Staff Needed'!AI10, IF($BK$5=$BF$7, 'Staff Needed'!AK10, 'Staff Needed'!AM10)) -> 0 | BZ14: ='Calc - SA_Resources'!BG40 -> 0 | CA14: ='Calc - SA_Resources'!BH40 -> 0
C15: Overhead hours (e.g., prep time, supervisory time, support staff) | E15: ='C. Tracing Resources'!D15 -> 0.05 | F15: ='C. Tracing Resources'!E15 -> 0.05 | G15: 0.05 | H15: 0.05 | BB15: =E11 -> Original Scenario | BD15: =G11 -> "What-If" Scenario | BJ15: 6 | BK15: =VLOOKUP(BJ15, 'Calc - Base'!$H$35:$I$400, 2) -> 2020-06-08 | BL15: =IF($BK$5=$BF$6, 'Staff Needed'!V11, IF($BK$5=$BF$7, 'Staff Needed'!X11, 'Staff Needed'!Z11)) -> 0 | BM15: =IF($BK$5=$BF$6, 'Staff Needed'!W11, IF($BK$5=$BF$7, 'Staff Needed'!Y11, 'Staff Needed'!AA11)) -> 0 | BN15: ='Calc - SA_Resources'!AT41 -> 0 | BO15: ='Calc - SA_Resources'!AU41 -> 0 | BP15: =BL6 -> Original Scenario | BQ15: =MAX(BL9:BL374) -> 454.6620381 | BR15: =MAX(BM9:BM374) -> 4286.813502 | BT15: =IF($BK$5=$BF$6, 'Staff Needed'!AB11, IF($BK$5=$BF$7, 'Staff Needed'!AD11, 'Staff Needed'!AF11)) -> 0 | BU15: =IF($BK$5=$BF$6, 'Staff Needed'!AC11, IF($BK$5=$BF$7, 'Staff Needed'!AE11, 'Staff Needed'!AG11)) -> 0 | BV15: ='Calc - SA_Resources'!BA41 -> 0 | BW15: ='Calc - SA_Resources'!BB41 -> 0 | BX15: =IF($BK$5=$BF$6, 'Staff Needed'!AH11, IF($BK$5=$BF$7, 'Staff Needed'!AJ11, 'Staff Needed'!AL11)) -> 0 | BY15: =IF($BK$5=$BF$6, 'Staff Needed'!AI11, IF($BK$5=$BF$7, 'Staff Needed'!AK11, 'Staff Needed'!AM11)) -> 0 | BZ15: ='Calc - SA_Resources'!BG41 -> 0 | CA15: ='Calc - SA_Resources'!BH41 -> 0
C16: Alerts per case | E16: ='C. Tracing Resources'!D10 -> 0 | F16: ='C. Tracing Resources'!E10 -> 0 | G16: 0 | H16: 0 | BB16: Lower | BC16: Upper | BD16: Lower | BE16: Upper | BJ16: 7 | BK16: =VLOOKUP(BJ16, 'Calc - Base'!$H$35:$I$400, 2) -> 2020-06-09 | BL16: =IF($BK$5=$BF$6, 'Staff Needed'!V12, IF($BK$5=$BF$7, 'Staff Needed'!X12, 'Staff Needed'!Z12)) -> 0 | BM16: =IF($BK$5=$BF$6, 'Staff Needed'!W12, IF($BK$5=$BF$7, 'Staff Needed'!Y12, 'Staff Needed'!AA12)) -> 0 | BN16: ='Calc - SA_Resources'!AT42 -> 0 | BO16: ='Calc - SA_Resources'!AU42 -> 0 | BP16: =BN6 -> "What-If" Scenario | BQ16: =MAX(BN9:BN374) -> 324.7585987 | BR16: =MAX(BO9:BO374) -> 2338.26191 | BT16: =IF($BK$5=$BF$6, 'Staff Needed'!AB12, IF($BK$5=$BF$7, 'Staff Needed'!AD12, 'Staff Needed'!AF12)) -> 0 | BU16: =IF($BK$5=$BF$6, 'Staff Needed'!AC12, IF($BK$5=$BF$7, 'Staff Needed'!AE12, 'Staff Needed'!AG12)) -> 0 | BV16: ='Calc - SA_Resources'!BA42 -> 0 | BW16: ='Calc - SA_Resources'!BB42 -> 0 | BX16: =IF($BK$5=$BF$6, 'Staff Needed'!AH12, IF($BK$5=$BF$7, 'Staff Needed'!AJ12, 'Staff Needed'!AL12)) -> 0 | BY16: =IF($BK$5=$BF$6, 'Staff Needed'!AI12, IF($BK$5=$BF$7, 'Staff Needed'!AK12, 'Staff Needed'!AM12)) -> 0 | BZ16: ='Calc - SA_Resources'!BG42 -> 0 | CA16: ='Calc - SA_Resources'!BH42 -> 0
C17: Time needed for alert screening interview (hours) | E17: ='C. Tracing Resources'!E20 -> 2 | F17: ='C. Tracing Resources'!F20 -> 4 | G17: 5 | H17: 10 | BA17: Group 1 | BB17: =SUM(BT9:BT374)/SUM(BL9:BL374) -> 1 | BC17: =SUM(BU9:BU374)/SUM(BM9:BM374) -> 1 | BD17: =SUM(BV9:BV374)/SUM(BN9:BN374) -> 1 | BE17: =SUM(BW9:BW374)/SUM(BO9:BO374) -> 1 | BJ17: 8 | BK17: =VLOOKUP(BJ17, 'Calc - Base'!$H$35:$I$400, 2) -> 2020-06-10 | BL17: =IF($BK$5=$BF$6, 'Staff Needed'!V13, IF($BK$5=$BF$7, 'Staff Needed'!X13, 'Staff Needed'!Z13)) -> 0 | BM17: =IF($BK$5=$BF$6, 'Staff Needed'!W13, IF($BK$5=$BF$7, 'Staff Needed'!Y13, 'Staff Needed'!AA13)) -> 0 | BN17: ='Calc - SA_Resources'!AT43 -> 0 | BO17: ='Calc - SA_Resources'!AU43 -> 0 | BT17: =IF($BK$5=$BF$6, 'Staff Needed'!AB13, IF($BK$5=$BF$7, 'Staff Needed'!AD13, 'Staff Needed'!AF13)) -> 0 | BU17: =IF($BK$5=$BF$6, 'Staff Needed'!AC13, IF($BK$5=$BF$7, 'Staff Needed'!AE13, 'Staff Needed'!AG13)) -> 0 | BV17: ='Calc - SA_Resources'!BA43 -> 0 | BW17: ='Calc - SA_Resources'!BB43 -> 0 | BX17: =IF($BK$5=$BF$6, 'Staff Needed'!AH13, IF($BK$5=$BF$7, 'Staff Needed'!AJ13, 'Staff Needed'!AL13)) -> 0 | BY17: =IF($BK$5=$BF$6, 'Staff Needed'!AI13, IF($BK$5=$BF$7, 'Staff Needed'!AK13, 'Staff Needed'!AM13)) -> 0 | BZ17: ='Calc - SA_Resources'!BG43 -> 0 | CA17: ='Calc - SA_Resources'!BH43 -> 0
C18: Initial case interview (hours) | E18: ='C. Tracing Resources'!E19 -> 1 | F18: ='C. Tracing Resources'!F19 -> 2 | G18: 1 | H18: 2 | BA18: Group 2 | BB18: =SUM(BX9:BX374)/SUM(BL9:BL374) -> 0 | BC18: =SUM(BY9:BY374)/SUM(BM9:BM374) -> 0 | BD18: =SUM(BZ9:BZ374)/SUM(BN9:BN374) -> 0 | BE18: 0 | BJ18: 9 | BK18: =VLOOKUP(BJ18, 'Calc - Base'!$H$35:$I$400, 2) -> 2020-06-11 | BL18: =IF($BK$5=$BF$6, 'Staff Needed'!V14, IF($BK$5=$BF$7, 'Staff Needed'!X14, 'Staff Needed'!Z14)) -> 0 | BM18: =IF($BK$5=$BF$6, 'Staff Needed'!W14, IF($BK$5=$BF$7, 'Staff Needed'!Y14, 'Staff Needed'!AA14)) -> 0 | BN18: ='Calc - SA_Resources'!AT44 -> 0 | BO18: ='Calc - SA_Resources'!AU44 -> 0 | BT18: =IF($BK$5=$BF$6, 'Staff Needed'!AB14, IF($BK$5=$BF$7, 'Staff Needed'!AD14, 'Staff Needed'!AF14)) -> 0 | BU18: =IF($BK$5=$BF$6, 'Staff Needed'!AC14, IF($BK$5=$BF$7, 'Staff Needed'!AE14, 'Staff Needed'!AG14)) -> 0 | BV18: ='Calc - SA_Resources'!BA44 -> 0 | BW18: ='Calc - SA_Resources'!BB44 -> 0 | BX18: =IF($BK$5=$BF$6, 'Staff Needed'!AH14, IF($BK$5=$BF$7, 'Staff Needed'!AJ14, 'Staff Needed'!AL14)) -> 0 | BY18: =IF($BK$5=$BF$6, 'Staff Needed'!AI14, IF($BK$5=$BF$7, 'Staff Needed'!AK14, 'Staff Needed'!AM14)) -> 0 | BZ18: ='Calc - SA_Resources'!BG44 -> 0 | CA18: ='Calc - SA_Resources'!BH44 -> 0
C19: Initial contact interview (hours) | E19: ='C. Tracing Resources'!E21 -> 0.5 | F19: ='C. Tracing Resources'!F21 -> 1 | G19: 0.5 | H19: 1 | BJ19: 10 | BK19: =VLOOKUP(BJ19, 'Calc - Base'!$H$35:$I$400, 2) -> 2020-06-12 | BL19: =IF($BK$5=$BF$6, 'Staff Needed'!V15, IF($BK$5=$BF$7, 'Staff Needed'!X15, 'Staff Needed'!Z15)) -> 0 | BM19: =IF($BK$5=$BF$6, 'Staff Needed'!W15, IF($BK$5=$BF$7, 'Staff Needed'!Y15, 'Staff Needed'!AA15)) -> 0 | BN19: ='Calc - SA_Resources'!AT45 -> 0 | BO19: ='Calc - SA_Resources'!AU45 -> 0 | BT19: =IF($BK$5=$BF$6, 'Staff Needed'!AB15, IF($BK$5=$BF$7, 'Staff Needed'!AD15, 'Staff Needed'!AF15)) -> 0 | BU19: =IF($BK$5=$BF$6, 'Staff Needed'!AC15, IF($BK$5=$BF$7, 'Staff Needed'!AE15, 'Staff Needed'!AG15)) -> 0 | BV19: ='Calc - SA_Resources'!BA45 -> 0 | BW19: ='Calc - SA_Resources'!BB45 -> 0 | BX19: =IF($BK$5=$BF$6, 'Staff Needed'!AH15, IF($BK$5=$BF$7, 'Staff Needed'!AJ15, 'Staff Needed'!AL15)) -> 0 | BY19: =IF($BK$5=$BF$6, 'Staff Needed'!AI15, IF($BK$5=$BF$7, 'Staff Needed'!AK15, 'Staff Needed'!AM15)) -> 0 | BZ19: ='Calc - SA_Resources'!BG45 -> 0 | CA19: ='Calc - SA_Resources'!BH45 -> 0
C20: Monitoring Hours for Cases + Contacts† | E20: ='C. Tracing Resources'!E22 -> 0.25 | F20: ='C. Tracing Resources'!F22 -> 1 | G20: 0.25 | H20: 1 | BJ20: 11 | BK20: =VLOOKUP(BJ20, 'Calc - Base'!$H$35:$I$400, 2) -> 2020-06-13 | BL20: =IF($BK$5=$BF$6, 'Staff Needed'!V16, IF($BK$5=$BF$7, 'Staff Needed'!X16, 'Staff Needed'!Z16)) -> 0 | BM20: =IF($BK$5=$BF$6, 'Staff Needed'!W16, IF($BK$5=$BF$7, 'Staff Needed'!Y16, 'Staff Needed'!AA16)) -> 0 | BN20: ='Calc - SA_Resources'!AT46 -> 0 | BO20: ='Calc - SA_Resources'!AU46 -> 0 | BT20: =IF($BK$5=$BF$6, 'Staff Needed'!AB16, IF($BK$5=$BF$7, 'Staff Needed'!AD16, 'Staff Needed'!AF16)) -> 0 | BU20: =IF($BK$5=$BF$6, 'Staff Needed'!AC16, IF($BK$5=$BF$7, 'Staff Needed'!AE16, 'Staff Needed'!AG16)) -> 0 | BV20: ='Calc - SA_Resources'!BA46 -> 0 | BW20: ='Calc - SA_Resources'!BB46 -> 0 | BX20: =IF($BK$5=$BF$6, 'Staff Needed'!AH16, IF($BK$5=$BF$7, 'Staff Needed'!AJ16, 'Staff Needed'!AL16)) -> 0 | BY20: =IF($BK$5=$BF$6, 'Staff Needed'!AI16, IF($BK$5=$BF$7, 'Staff Needed'!AK16, 'Staff Needed'!AM16)) -> 0 | BZ20: ='Calc - SA_Resources'!BG46 -> 0 | CA20: ='Calc - SA_Resources'!BH46 -> 0
C21: Number of days monitored | E21: ='C. Tracing Resources'!D11 -> 14 | F21: ='C. Tracing Resources'!E11 -> 14 | G21: 14 | H21: 21 | BJ21: 12 | BK21: =VLOOKUP(BJ21, 'Calc - Base'!$H$35:$I$400, 2) -> 2020-06-14 | BL21: =IF($BK$5=$BF$6, 'Staff Needed'!V17, IF($BK$5=$BF$7, 'Staff Needed'!X17, 'Staff Needed'!Z17)) -> 0 | BM21: =IF($BK$5=$BF$6, 'Staff Needed'!W17, IF($BK$5=$BF$7, 'Staff Needed'!Y17, 'Staff Needed'!AA17)) -> 0 | BN21: ='Calc - SA_Resources'!AT47 -> 0 | BO21: ='Calc - SA_Resources'!AU47 -> 0 | BT21: =IF($BK$5=$BF$6, 'Staff Needed'!AB17, IF($BK$5=$BF$7, 'Staff Needed'!AD17, 'Staff Needed'!AF17)) -> 0 | BU21: =IF($BK$5=$BF$6, 'Staff Needed'!AC17, IF($BK$5=$BF$7, 'Staff Needed'!AE17, 'Staff Needed'!AG17)) -> 0 | BV21: ='Calc - SA_Resources'!BA47 -> 0 | BW21: ='Calc - SA_Resources'!BB47 -> 0 | BX21: =IF($BK$5=$BF$6, 'Staff Needed'!AH17, IF($BK$5=$BF$7, 'Staff Needed'!AJ17, 'Staff Needed'!AL17)) -> 0 | BY21: =IF($BK$5=$BF$6, 'Staff Needed'!AI17, IF($BK$5=$BF$7, 'Staff Needed'!AK17, 'Staff Needed'!AM17)) -> 0 | BZ21: ='Calc - SA_Resources'!BG47 -> 0 | CA21: ='Calc - SA_Resources'!BH47 -> 0
BJ22: 13 | BK22: =VLOOKUP(BJ22, 'Calc - Base'!$H$35:$I$400, 2) -> 2020-06-15 | BL22: =IF($BK$5=$BF$6, 'Staff Needed'!V18, IF($BK$5=$BF$7, 'Staff Needed'!X18, 'Staff Needed'!Z18)) -> 0 | BM22: =IF($BK$5=$BF$6, 'Staff Needed'!W18, IF($BK$5=$BF$7, 'Staff Needed'!Y18, 'Staff Needed'!AA18)) -> 0 | BN22: ='Calc - SA_Resources'!AT48 -> 0 | BO22: ='Calc - SA_Resources'!AU48 -> 0 | BT22: =IF($BK$5=$BF$6, 'Staff Needed'!AB18, IF($BK$5=$BF$7, 'Staff Needed'!AD18, 'Staff Needed'!AF18)) -> 0 | BU22: =IF($BK$5=$BF$6, 'Staff Needed'!AC18, IF($BK$5=$BF$7, 'Staff Needed'!AE18, 'Staff Needed'!AG18)) -> 0 | BV22: ='Calc - SA_Resources'!BA48 -> 0 | BW22: ='Calc - SA_Resources'!BB48 -> 0 | BX22: =IF($BK$5=$BF$6, 'Staff Needed'!AH18, IF($BK$5=$BF$7, 'Staff Needed'!AJ18, 'Staff Needed'!AL18)) -> 0 | BY22: =IF($BK$5=$BF$6, 'Staff Needed'!AI18, IF($BK$5=$BF$7, 'Staff Needed'!AK18, 'Staff Needed'!AM18)) -> 0 | BZ22: ='Calc - SA_Resources'!BG48 -> 0 | CA22: ='Calc - SA_Resources'!BH48 -> 0
BJ23: 14 | BK23: =VLOOKUP(BJ23, 'Calc - Base'!$H$35:$I$400, 2) -> 2020-06-16 | BL23: =IF($BK$5=$BF$6, 'Staff Needed'!V19, IF($BK$5=$BF$7, 'Staff Needed'!X19, 'Staff Needed'!Z19)) -> 19.89120207 | BM23: =IF($BK$5=$BF$6, 'Staff Needed'!W19, IF($BK$5=$BF$7, 'Staff Needed'!Y19, 'Staff Needed'!AA19)) -> 187.5456195 | BN23: ='Calc - SA_Resources'!AT49 -> 14.20800148 | BO23: ='Calc - SA_Resources'!AU49 -> 102.2976107 | BT23: =IF($BK$5=$BF$6, 'Staff Needed'!AB19, IF($BK$5=$BF$7, 'Staff Needed'!AD19, 'Staff Needed'!AF19)) -> 19.89120207 | BU23: =IF($BK$5=$BF$6, 'Staff Needed'!AC19, IF($BK$5=$BF$7, 'Staff Needed'!AE19, 'Staff Needed'!AG19)) -> 187.5456195 | BV23: ='Calc - SA_Resources'!BA49 -> 14.20800148 | BW23: ='Calc - SA_Resources'!BB49 -> 102.2976107 | BX23: =IF($BK$5=$BF$6, 'Staff Needed'!AH19, IF($BK$5=$BF$7, 'Staff Needed'!AJ19, 'Staff Needed'!AL19)) -> 0 | BY23: =IF($BK$5=$BF$6, 'Staff Needed'!AI19, IF($BK$5=$BF$7, 'Staff Needed'!AK19, 'Staff Needed'!AM19)) -> 0 | BZ23: ='Calc - SA_Resources'!BG49 -> 0 | CA23: ='Calc - SA_Resources'!BH49 -> 0
BJ24: 15 | BK24: =VLOOKUP(BJ24, 'Calc - Base'!$H$35:$I$400, 2) -> 2020-06-17 | BL24: =IF($BK$5=$BF$6, 'Staff Needed'!V20, IF($BK$5=$BF$7, 'Staff Needed'!X20, 'Staff Needed'!Z20)) -> 19.80167661 | BM24: =IF($BK$5=$BF$6, 'Staff Needed'!W20, IF($BK$5=$BF$7, 'Staff Needed'!Y20, 'Staff Needed'!AA20)) -> 186.7015223 | BN24: ='Calc - SA_Resources'!AT50 -> 14.14405472 | BO24: ='Calc - SA_Resources'!AU50 -> 101.837194 | BT24: =IF($BK$5=$BF$6, 'Staff Needed'!AB20, IF($BK$5=$BF$7, 'Staff Needed'!AD20, 'Staff Needed'!AF20)) -> 19.80167661 | BU24: =IF($BK$5=$BF$6, 'Staff Needed'!AC20, IF($BK$5=$BF$7, 'Staff Needed'!AE20, 'Staff Needed'!AG20)) -> 186.7015223 | BV24: ='Calc - SA_Resources'!BA50 -> 14.14405472 | BW24: ='Calc - SA_Resources'!BB50 -> 101.837194 | BX24: =IF($BK$5=$BF$6, 'Staff Needed'!AH20, IF($BK$5=$BF$7, 'Staff Needed'!AJ20, 'Staff Needed'!AL20)) -> 0 | BY24: =IF($BK$5=$BF$6, 'Staff Needed'!AI20, IF($BK$5=$BF$7, 'Staff Needed'!AK20, 'Staff Needed'!AM20)) -> 0 | BZ24: ='Calc - SA_Resources'!BG50 -> 0 | CA24: ='Calc - SA_Resources'!BH50 -> 0
BJ25: 16 | BK25: =VLOOKUP(BJ25, 'Calc - Base'!$H$35:$I$400, 2) -> 2020-06-18 | BL25: =IF($BK$5=$BF$6, 'Staff Needed'!V21, IF($BK$5=$BF$7, 'Staff Needed'!X21, 'Staff Needed'!Z21)) -> 19.7085722 | BM25: =IF($BK$5=$BF$6, 'Staff Needed'!W21, IF($BK$5=$BF$7, 'Staff Needed'!Y21, 'Staff Needed'!AA21)) -> 185.8236807 | BN25: ='Calc - SA_Resources'!AT51 -> 14.07755157 | BO25: ='Calc - SA_Resources'!AU51 -> 101.3583713 | BT25: =IF($BK$5=$BF$6, 'Staff Needed'!AB21, IF($BK$5=$BF$7, 'Staff Needed'!AD21, 'Staff Needed'!AF21)) -> 19.7085722 | BU25: =IF($BK$5=$BF$6, 'Staff Needed'!AC21, IF($BK$5=$BF$7, 'Staff Needed'!AE21, 'Staff Needed'!AG21)) -> 185.8236807 | BV25: ='Calc - SA_Resources'!BA51 -> 14.07755157 | BW25: ='Calc - SA_Resources'!BB51 -> 101.3583713 | BX25: =IF($BK$5=$BF$6, 'Staff Needed'!AH21, IF($BK$5=$BF$7, 'Staff Needed'!AJ21, 'Staff Needed'!AL21)) -> 0 | BY25: =IF($BK$5=$BF$6, 'Staff Needed'!AI21, IF($BK$5=$BF$7, 'Staff Needed'!AK21, 'Staff Needed'!AM21)) -> 0 | BZ25: ='Calc - SA_Resources'!BG51 -> 0 | CA25: ='Calc - SA_Resources'!BH51 -> 0
BJ26: 17 | BK26: =VLOOKUP(BJ26, 'Calc - Base'!$H$35:$I$400, 2) -> 2020-06-19 | BL26: =IF($BK$5=$BF$6, 'Staff Needed'!V22, IF($BK$5=$BF$7, 'Staff Needed'!X22, 'Staff Needed'!Z22)) -> 19.61773951 | BM26: =IF($BK$5=$BF$6, 'Staff Needed'!W22, IF($BK$5=$BF$7, 'Staff Needed'!Y22, 'Staff Needed'!AA22)) -> 184.9672583 | BN26: ='Calc - SA_Resources'!AT52 -> 14.01267108 | BO26: ='Calc - SA_Resources'!AU52 -> 100.8912318 | BT26: =IF($BK$5=$BF$6, 'Staff Needed'!AB22, IF($BK$5=$BF$7, 'Staff Needed'!AD22, 'Staff Needed'!AF22)) -> 19.61773951 | BU26: =IF($BK$5=$BF$6, 'Staff Needed'!AC22, IF($BK$5=$BF$7, 'Staff Needed'!AE22, 'Staff Needed'!AG22)) -> 184.9672583 | BV26: ='Calc - SA_Resources'!BA52 -> 14.01267108 | BW26: ='Calc - SA_Resources'!BB52 -> 100.8912318 | BX26: =IF($BK$5=$BF$6, 'Staff Needed'!AH22, IF($BK$5=$BF$7, 'Staff Needed'!AJ22, 'Staff Needed'!AL22)) -> 0 | BY26: =IF($BK$5=$BF$6, 'Staff Needed'!AI22, IF($BK$5=$BF$7, 'Staff Needed'!AK22, 'Staff Needed'!AM22)) -> 0 | BZ26: ='Calc - SA_Resources'!BG52 -> 0 | CA26: ='Calc - SA_Resources'!BH52 -> 0
BJ27: 18 | BK27: =VLOOKUP(BJ27, 'Calc - Base'!$H$35:$I$400, 2) -> 2020-06-20 | BL27: =IF($BK$5=$BF$6, 'Staff Needed'!V23, IF($BK$5=$BF$7, 'Staff Needed'!X23, 'Staff Needed'!Z23)) -> 22.56386586 | BM27: =IF($BK$5=$BF$6, 'Staff Needed'!W23, IF($BK$5=$BF$7, 'Staff Needed'!Y23, 'Staff Needed'!AA23)) -> 212.745021 | BN27: ='Calc - SA_Resources'!AT53 -> 16.11704704 | BO27: ='Calc - SA_Resources'!AU53 -> 116.0427387 | BT27: =IF($BK$5=$BF$6, 'Staff Needed'!AB23, IF($BK$5=$BF$7, 'Staff Needed'!AD23, 'Staff Needed'!AF23)) -> 22.56386586 | BU27: =IF($BK$5=$BF$6, 'Staff Needed'!AC23, IF($BK$5=$BF$7, 'Staff Needed'!AE23, 'Staff Needed'!AG23)) -> 212.745021 | BV27: ='Calc - SA_Resources'!BA53 -> 16.11704704 | BW27: ='Calc - SA_Resources'!BB53 -> 116.0427387 | BX27: =IF($BK$5=$BF$6, 'Staff Needed'!AH23, IF($BK$5=$BF$7, 'Staff Needed'!AJ23, 'Staff Needed'!AL23)) -> 0 | BY27: =IF($BK$5=$BF$6, 'Staff Needed'!AI23, IF($BK$5=$BF$7, 'Staff Needed'!AK23, 'Staff Needed'!AM23)) -> 0 | BZ27: ='Calc - SA_Resources'!BG53 -> 0 | CA27: ='Calc - SA_Resources'!BH53 -> 0
BJ28: 19 | BK28: =VLOOKUP(BJ28, 'Calc - Base'!$H$35:$I$400, 2) -> 2020-06-21 | BL28: =IF($BK$5=$BF$6, 'Staff Needed'!V24, IF($BK$5=$BF$7, 'Staff Needed'!X24, 'Staff Needed'!Z24)) -> 25.48587228 | BM28: =IF($BK$5=$BF$6, 'Staff Needed'!W24, IF($BK$5=$BF$7, 'Staff Needed'!Y24, 'Staff Needed'!AA24)) -> 240.2953672 | BN28: ='Calc - SA_Resources'!AT54 -> 18.20419448 | BO28: ='Calc - SA_Resources'!AU54 -> 131.0702003 | BT28: =IF($BK$5=$BF$6, 'Staff Needed'!AB24, IF($BK$5=$BF$7, 'Staff Needed'!AD24, 'Staff Needed'!AF24)) -> 25.48587228 | BU28: =IF($BK$5=$BF$6, 'Staff Needed'!AC24, IF($BK$5=$BF$7, 'Staff Needed'!AE24, 'Staff Needed'!AG24)) -> 240.2953672 | BV28: ='Calc - SA_Resources'!BA54 -> 18.20419448 | BW28: ='Calc - SA_Resources'!BB54 -> 131.0702003 | BX28: =IF($BK$5=$BF$6, 'Staff Needed'!AH24, IF($BK$5=$BF$7, 'Staff Needed'!AJ24, 'Staff Needed'!AL24)) -> 0 | BY28: =IF($BK$5=$BF$6, 'Staff Needed'!AI24, IF($BK$5=$BF$7, 'Staff Needed'!AK24, 'Staff Needed'!AM24)) -> 0 | BZ28: ='Calc - SA_Resources'!BG54 -> 0 | CA28: ='Calc - SA_Resources'!BH54 -> 0
BJ29: 20 | BK29: =VLOOKUP(BJ29, 'Calc - Base'!$H$35:$I$400, 2) -> 2020-06-22 | BL29: =IF($BK$5=$BF$6, 'Staff Needed'!V25, IF($BK$5=$BF$7, 'Staff Needed'!X25, 'Staff Needed'!Z25)) -> 27.49545699 | BM29: =IF($BK$5=$BF$6, 'Staff Needed'!W25, IF($BK$5=$BF$7, 'Staff Needed'!Y25, 'Staff Needed'!AA25)) -> 259.2428802 | BN29: ='Calc - SA_Resources'!AT55 -> 19.63961214 | BO29: ='Calc - SA_Resources'!AU55 -> 141.4052074 | BT29: =IF($BK$5=$BF$6, 'Staff Needed'!AB25, IF($BK$5=$BF$7, 'Staff Needed'!AD25, 'Staff Needed'!AF25)) -> 27.49545699 | BU29: =IF($BK$5=$BF$6, 'Staff Needed'!AC25, IF($BK$5=$BF$7, 'Staff Needed'!AE25, 'Staff Needed'!AG25)) -> 259.2428802 | BV29: ='Calc - SA_Resources'!BA55 -> 19.63961214 | BW29: ='Calc - SA_Resources'!BB55 -> 141.4052074 | BX29: =IF($BK$5=$BF$6, 'Staff Needed'!AH25, IF($BK$5=$BF$7, 'Staff Needed'!AJ25, 'Staff Needed'!AL25)) -> 0 | BY29: =IF($BK$5=$BF$6, 'Staff Needed'!AI25, IF($BK$5=$BF$7, 'Staff Needed'!AK25, 'Staff Needed'!AM25)) -> 0 | BZ29: ='Calc - SA_Resources'!BG55 -> 0 | CA29: ='Calc - SA_Resources'!BH55 -> 0
BJ30: 21 | BK30: =VLOOKUP(BJ30, 'Calc - Base'!$H$35:$I$400, 2) -> 2020-06-23 | BL30: =IF($BK$5=$BF$6, 'Staff Needed'!V26, IF($BK$5=$BF$7, 'Staff Needed'!X26, 'Staff Needed'!Z26)) -> 29.49118202 | BM30: =IF($BK$5=$BF$6, 'Staff Needed'!W26, IF($BK$5=$BF$7, 'Staff Needed'!Y26, 'Staff Needed'!AA26)) -> 278.0597162 | BN30: ='Calc - SA_Resources'!AT56 -> 21.06513002 | BO30: ='Calc - SA_Resources'!AU56 -> 151.6689361 | BT30: =IF($BK$5=$BF$6, 'Staff Needed'!AB26, IF($BK$5=$BF$7, 'Staff Needed'!AD26, 'Staff Needed'!AF26)) -> 29.49118202 | BU30: =IF($BK$5=$BF$6, 'Staff Needed'!AC26, IF($BK$5=$BF$7, 'Staff Needed'!AE26, 'Staff Needed'!AG26)) -> 278.0597162 | BV30: ='Calc - SA_Resources'!BA56 -> 21.06513002 | BW30: ='Calc - SA_Resources'!BB56 -> 151.6689361 | BX30: =IF($BK$5=$BF$6, 'Staff Needed'!AH26, IF($BK$5=$BF$7, 'Staff Needed'!AJ26, 'Staff Needed'!AL26)) -> 0 | BY30: =IF($BK$5=$BF$6, 'Staff Needed'!AI26, IF($BK$5=$BF$7, 'Staff Needed'!AK26, 'Staff Needed'!AM26)) -> 0 | BZ30: ='Calc - SA_Resources'!BG56 -> 0 | CA30: ='Calc - SA_Resources'!BH56 -> 0
BJ31: 22 | BK31: =VLOOKUP(BJ31, 'Calc - Base'!$H$35:$I$400, 2) -> 2020-06-24 | BL31: =IF($BK$5=$BF$6, 'Staff Needed'!V27, IF($BK$5=$BF$7, 'Staff Needed'!X27, 'Staff Needed'!Z27)) -> 32.64926581 | BM31: =IF($BK$5=$BF$6, 'Staff Needed'!W27, IF($BK$5=$BF$7, 'Staff Needed'!Y27, 'Staff Needed'!AA27)) -> 307.8359348 | BN31: ='Calc - SA_Resources'!AT57 -> 23.32090415 | BO31: ='Calc - SA_Resources'!AU57 -> 167.9105099 | BT31: =IF($BK$5=$BF$6, 'Staff Needed'!AB27, IF($BK$5=$BF$7, 'Staff Needed'!AD27, 'Staff Needed'!AF27)) -> 32.64926581 | BU31: =IF($BK$5=$BF$6, 'Staff Needed'!AC27, IF($BK$5=$BF$7, 'Staff Needed'!AE27, 'Staff Needed'!AG27)) -> 307.8359348 | BV31: ='Calc - SA_Resources'!BA57 -> 23.32090415 | BW31: ='Calc - SA_Resources'!BB57 -> 167.9105099 | BX31: =IF($BK$5=$BF$6, 'Staff Needed'!AH27, IF($BK$5=$BF$7, 'Staff Needed'!AJ27, 'Staff Needed'!AL27)) -> 0 | BY31: =IF($BK$5=$BF$6, 'Staff Needed'!AI27, IF($BK$5=$BF$7, 'Staff Needed'!AK27, 'Staff Needed'!AM27)) -> 0 | BZ31: ='Calc - SA_Resources'!BG57 -> 0 | CA31: ='Calc - SA_Resources'!BH57 -> 0
BJ32: 23 | BK32: =VLOOKUP(BJ32, 'Calc - Base'!$H$35:$I$400, 2) -> 2020-06-25 | BL32: =IF($BK$5=$BF$6, 'Staff Needed'!V28, IF($BK$5=$BF$7, 'Staff Needed'!X28, 'Staff Needed'!Z28)) -> 34.81112064 | BM32: =IF($BK$5=$BF$6, 'Staff Needed'!W28, IF($BK$5=$BF$7, 'Staff Needed'!Y28, 'Staff Needed'!AA28)) -> 328.2191375 | BN32: ='Calc - SA_Resources'!AT58 -> 24.86508617 | BO32: ='Calc - SA_Resources'!AU58 -> 179.0286205 | BT32: =IF($BK$5=$BF$6, 'Staff Needed'!AB28, IF($BK$5=$BF$7, 'Staff Needed'!AD28, 'Staff Needed'!AF28)) -> 34.81112064 | BU32: =IF($BK$5=$BF$6, 'Staff Needed'!AC28, IF($BK$5=$BF$7, 'Staff Needed'!AE28, 'Staff Needed'!AG28)) -> 328.2191375 | BV32: ='Calc - SA_Resources'!BA58 -> 24.86508617 | BW32: ='Calc - SA_Resources'!BB58 -> 179.0286205 | BX32: =IF($BK$5=$BF$6, 'Staff Needed'!AH28, IF($BK$5=$BF$7, 'Staff Needed'!AJ28, 'Staff Needed'!AL28)) -> 0 | BY32: =IF($BK$5=$BF$6, 'Staff Needed'!AI28, IF($BK$5=$BF$7, 'Staff Needed'!AK28, 'Staff Needed'!AM28)) -> 0 | BZ32: ='Calc - SA_Resources'!BG58 -> 0 | CA32: ='Calc - SA_Resources'!BH58 -> 0
BJ33: 24 | BK33: =VLOOKUP(BJ33, 'Calc - Base'!$H$35:$I$400, 2) -> 2020-06-26 | BL33: =IF($BK$5=$BF$6, 'Staff Needed'!V29, IF($BK$5=$BF$7, 'Staff Needed'!X29, 'Staff Needed'!Z29)) -> 37.43397106 | BM33: =IF($BK$5=$BF$6, 'Staff Needed'!W29, IF($BK$5=$BF$7, 'Staff Needed'!Y29, 'Staff Needed'!AA29)) -> 352.94887 | BN33: ='Calc - SA_Resources'!AT59 -> 26.73855076 | BO33: ='Calc - SA_Resources'!AU59 -> 192.5175654 | BT33: =IF($BK$5=$BF$6, 'Staff Needed'!AB29, IF($BK$5=$BF$7, 'Staff Needed'!AD29, 'Staff Needed'!AF29)) -> 37.43397106 | BU33: =IF($BK$5=$BF$6, 'Staff Needed'!AC29, IF($BK$5=$BF$7, 'Staff Needed'!AE29, 'Staff Needed'!AG29)) -> 352.94887 | BV33: ='Calc - SA_Resources'!BA59 -> 26.73855076 | BW33: ='Calc - SA_Resources'!BB59 -> 192.5175654 | BX33: =IF($BK$5=$BF$6, 'Staff Needed'!AH29, IF($BK$5=$BF$7, 'Staff Needed'!AJ29, 'Staff Needed'!AL29)) -> 0 | BY33: =IF($BK$5=$BF$6, 'Staff Needed'!AI29, IF($BK$5=$BF$7, 'Staff Needed'!AK29, 'Staff Needed'!AM29)) -> 0 | BZ33: ='Calc - SA_Resources'!BG59 -> 0 | CA33: ='Calc - SA_Resources'!BH59 -> 0
BJ34: 25 | BK34: =VLOOKUP(BJ34, 'Calc - Base'!$H$35:$I$400, 2) -> 2020-06-27 | BL34: =IF($BK$5=$BF$6, 'Staff Needed'!V30, IF($BK$5=$BF$7, 'Staff Needed'!X30, 'Staff Needed'!Z30)) -> 40.51329957 | BM34: =IF($BK$5=$BF$6, 'Staff Needed'!W30, IF($BK$5=$BF$7, 'Staff Needed'!Y30, 'Staff Needed'!AA30)) -> 381.9825388 | BN34: ='Calc - SA_Resources'!AT60 -> 28.93807112 | BO34: ='Calc - SA_Resources'!AU60 -> 208.3541121 | BT34: =IF($BK$5=$BF$6, 'Staff Needed'!AB30, IF($BK$5=$BF$7, 'Staff Needed'!AD30, 'Staff Needed'!AF30)) -> 40.51329957 | BU34: =IF($BK$5=$BF$6, 'Staff Needed'!AC30, IF($BK$5=$BF$7, 'Staff Needed'!AE30, 'Staff Needed'!AG30)) -> 381.9825388 | BV34: ='Calc - SA_Resources'!BA60 -> 28.93807112 | BW34: ='Calc - SA_Resources'!BB60 -> 208.3541121 | BX34: =IF($BK$5=$BF$6, 'Staff Needed'!AH30, IF($BK$5=$BF$7, 'Staff Needed'!AJ30, 'Staff Needed'!AL30)) -> 0 | BY34: =IF($BK$5=$BF$6, 'Staff Needed'!AI30, IF($BK$5=$BF$7, 'Staff Needed'!AK30, 'Staff Needed'!AM30)) -> 0 | BZ34: ='Calc - SA_Resources'!BG60 -> 0 | CA34: ='Calc - SA_Resources'!BH60 -> 0
BJ35: 26 | BK35: =VLOOKUP(BJ35, 'Calc - Base'!$H$35:$I$400, 2) -> 2020-06-28 | BL35: =IF($BK$5=$BF$6, 'Staff Needed'!V31, IF($BK$5=$BF$7, 'Staff Needed'!X31, 'Staff Needed'!Z31)) -> 44.59663626 | BM35: =IF($BK$5=$BF$6, 'Staff Needed'!W31, IF($BK$5=$BF$7, 'Staff Needed'!Y31, 'Staff Needed'!AA31)) -> 420.4825705 | BN35: ='Calc - SA_Resources'!AT61 -> 31.85474019 | BO35: ='Calc - SA_Resources'!AU61 -> 229.3541293 | BT35: =IF($BK$5=$BF$6, 'Staff Needed'!AB31, IF($BK$5=$BF$7, 'Staff Needed'!AD31, 'Staff Needed'!AF31)) -> 44.59663626 | BU35: =IF($BK$5=$BF$6, 'Staff Needed'!AC31, IF($BK$5=$BF$7, 'Staff Needed'!AE31, 'Staff Needed'!AG31)) -> 420.4825705 | BV35: ='Calc - SA_Resources'!BA61 -> 31.85474019 | BW35: ='Calc - SA_Resources'!BB61 -> 229.3541293 | BX35: =IF($BK$5=$BF$6, 'Staff Needed'!AH31, IF($BK$5=$BF$7, 'Staff Needed'!AJ31, 'Staff Needed'!AL31)) -> 0 | BY35: =IF($BK$5=$BF$6, 'Staff Needed'!AI31, IF($BK$5=$BF$7, 'Staff Needed'!AK31, 'Staff Needed'!AM31)) -> 0 | BZ35: ='Calc - SA_Resources'!BG61 -> 0 | CA35: ='Calc - SA_Resources'!BH61 -> 0
BJ36: 27 | BK36: =VLOOKUP(BJ36, 'Calc - Base'!$H$35:$I$400, 2) -> 2020-06-29 | BL36: =IF($BK$5=$BF$6, 'Staff Needed'!V32, IF($BK$5=$BF$7, 'Staff Needed'!X32, 'Staff Needed'!Z32)) -> 48.46684468 | BM36: =IF($BK$5=$BF$6, 'Staff Needed'!W32, IF($BK$5=$BF$7, 'Staff Needed'!Y32, 'Staff Needed'!AA32)) -> 456.973107 | BN36: ='Calc - SA_Resources'!AT62 -> 34.61917477 | BO36: ='Calc - SA_Resources'!AU62 -> 249.2580583 | BT36: =IF($BK$5=$BF$6, 'Staff Needed'!AB32, IF($BK$5=$BF$7, 'Staff Needed'!AD32, 'Staff Needed'!AF32)) -> 48.46684468 | BU36: =IF($BK$5=$BF$6, 'Staff Needed'!AC32, IF($BK$5=$BF$7, 'Staff Needed'!AE32, 'Staff Needed'!AG32)) -> 456.973107 | BV36: ='Calc - SA_Resources'!BA62 -> 34.61917477 | BW36: ='Calc - SA_Resources'!BB62 -> 249.2580583 | BX36: =IF($BK$5=$BF$6, 'Staff Needed'!AH32, IF($BK$5=$BF$7, 'Staff Needed'!AJ32, 'Staff Needed'!AL32)) -> 0 | BY36: =IF($BK$5=$BF$6, 'Staff Needed'!AI32, IF($BK$5=$BF$7, 'Staff Needed'!AK32, 'Staff Needed'!AM32)) -> 0 | BZ36: ='Calc - SA_Resources'!BG62 -> 0 | CA36: ='Calc - SA_Resources'!BH62 -> 0
BJ37: 28 | BK37: =VLOOKUP(BJ37, 'Calc - Base'!$H$35:$I$400, 2) -> 2020-06-30 | BL37: =IF($BK$5=$BF$6, 'Staff Needed'!V33, IF($BK$5=$BF$7, 'Staff Needed'!X33, 'Staff Needed'!Z33)) -> 52.1766542 | BM37: =IF($BK$5=$BF$6, 'Staff Needed'!W33, IF($BK$5=$BF$7, 'Staff Needed'!Y33, 'Staff Needed'!AA33)) -> 491.9513111 | BN37: ='Calc - SA_Resources'!AT63 -> 37.26903872 | BO37: ='Calc - SA_Resources'!AU63 -> 268.3370788 | BT37: =IF($BK$5=$BF$6, 'Staff Needed'!AB33, IF($BK$5=$BF$7, 'Staff Needed'!AD33, 'Staff Needed'!AF33)) -> 52.1766542 | BU37: =IF($BK$5=$BF$6, 'Staff Needed'!AC33, IF($BK$5=$BF$7, 'Staff Needed'!AE33, 'Staff Needed'!AG33)) -> 491.9513111 | BV37: ='Calc - SA_Resources'!BA63 -> 37.26903872 | BW37: ='Calc - SA_Resources'!BB63 -> 268.3370788 | BX37: =IF($BK$5=$BF$6, 'Staff Needed'!AH33, IF($BK$5=$BF$7, 'Staff Needed'!AJ33, 'Staff Needed'!AL33)) -> 0 | BY37: =IF($BK$5=$BF$6, 'Staff Needed'!AI33, IF($BK$5=$BF$7, 'Staff Needed'!AK33, 'Staff Needed'!AM33)) -> 0 | BZ37: ='Calc - SA_Resources'!BG63 -> 0 | CA37: ='Calc - SA_Resources'!BH63 -> 0
BJ38: 29 | BK38: =VLOOKUP(BJ38, 'Calc - Base'!$H$35:$I$400, 2) -> 2020-07-01 | BL38: =IF($BK$5=$BF$6, 'Staff Needed'!V34, IF($BK$5=$BF$7, 'Staff Needed'!X34, 'Staff Needed'!Z34)) -> 56.26054005 | BM38: =IF($BK$5=$BF$6, 'Staff Needed'!W34, IF($BK$5=$BF$7, 'Staff Needed'!Y34, 'Staff Needed'!AA34)) -> 530.4565205 | BN38: ='Calc - SA_Resources'!AT64 -> 40.18610004 | BO38: ='Calc - SA_Resources'!AU64 -> 289.3399203 | BT38: =IF($BK$5=$BF$6, 'Staff Needed'!AB34, IF($BK$5=$BF$7, 'Staff Needed'!AD34, 'Staff Needed'!AF34)) -> 56.26054005 | BU38: =IF($BK$5=$BF$6, 'Staff Needed'!AC34, IF($BK$5=$BF$7, 'Staff Needed'!AE34, 'Staff Needed'!AG34)) -> 530.4565205 | BV38: ='Calc - SA_Resources'!BA64 -> 40.18610004 | BW38: ='Calc - SA_Resources'!BB64 -> 289.3399203 | BX38: =IF($BK$5=$BF$6, 'Staff Needed'!AH34, IF($BK$5=$BF$7, 'Staff Needed'!AJ34, 'Staff Needed'!AL34)) -> 0 | BY38: =IF($BK$5=$BF$6, 'Staff Needed'!AI34, IF($BK$5=$BF$7, 'Staff Needed'!AK34, 'Staff Needed'!AM34)) -> 0 | BZ38: ='Calc - SA_Resources'!BG64 -> 0 | CA38: ='Calc - SA_Resources'!BH64 -> 0
BJ39: 30 | BK39: =VLOOKUP(BJ39, 'Calc - Base'!$H$35:$I$400, 2) -> 2020-07-02 | BL39: =IF($BK$5=$BF$6, 'Staff Needed'!V35, IF($BK$5=$BF$7, 'Staff Needed'!X35, 'Staff Needed'!Z35)) -> 61.05086437 | BM39: =IF($BK$5=$BF$6, 'Staff Needed'!W35, IF($BK$5=$BF$7, 'Staff Needed'!Y35, 'Staff Needed'!AA35)) -> 575.6224354 | BN39: ='Calc - SA_Resources'!AT65 -> 43.60776026 | BO39: ='Calc - SA_Resources'!AU65 -> 313.9758739 | BT39: =IF($BK$5=$BF$6, 'Staff Needed'!AB35, IF($BK$5=$BF$7, 'Staff Needed'!AD35, 'Staff Needed'!AF35)) -> 61.05086437 | BU39: =IF($BK$5=$BF$6, 'Staff Needed'!AC35, IF($BK$5=$BF$7, 'Staff Needed'!AE35, 'Staff Needed'!AG35)) -> 575.6224354 | BV39: ='Calc - SA_Resources'!BA65 -> 43.60776026 | BW39: ='Calc - SA_Resources'!BB65 -> 313.9758739 | BX39: =IF($BK$5=$BF$6, 'Staff Needed'!AH35, IF($BK$5=$BF$7, 'Staff Needed'!AJ35, 'Staff Needed'!AL35)) -> 0 | BY39: =IF($BK$5=$BF$6, 'Staff Needed'!AI35, IF($BK$5=$BF$7, 'Staff Needed'!AK35, 'Staff Needed'!AM35)) -> 0 | BZ39: ='Calc - SA_Resources'!BG65 -> 0 | CA39: ='Calc - SA_Resources'!BH65 -> 0
BJ40: 31 | BK40: =VLOOKUP(BJ40, 'Calc - Base'!$H$35:$I$400, 2) -> 2020-07-03 | BL40: =IF($BK$5=$BF$6, 'Staff Needed'!V36, IF($BK$5=$BF$7, 'Staff Needed'!X36, 'Staff Needed'!Z36)) -> 66.09275495 | BM40: =IF($BK$5=$BF$6, 'Staff Needed'!W36, IF($BK$5=$BF$7, 'Staff Needed'!Y36, 'Staff Needed'!AA36)) -> 623.160261 | BN40: ='Calc - SA_Resources'!AT66 -> 47.20911068 | BO40: ='Calc - SA_Resources'!AU66 -> 339.9055969 | BT40: =IF($BK$5=$BF$6, 'Staff Needed'!AB36, IF($BK$5=$BF$7, 'Staff Needed'!AD36, 'Staff Needed'!AF36)) -> 66.09275495 | BU40: =IF($BK$5=$BF$6, 'Staff Needed'!AC36, IF($BK$5=$BF$7, 'Staff Needed'!AE36, 'Staff Needed'!AG36)) -> 623.160261 | BV40: ='Calc - SA_Resources'!BA66 -> 47.20911068 | BW40: ='Calc - SA_Resources'!BB66 -> 339.9055969 | BX40: =IF($BK$5=$BF$6, 'Staff Needed'!AH36, IF($BK$5=$BF$7, 'Staff Needed'!AJ36, 'Staff Needed'!AL36)) -> 0 | BY40: =IF($BK$5=$BF$6, 'Staff Needed'!AI36, IF($BK$5=$BF$7, 'Staff Needed'!AK36, 'Staff Needed'!AM36)) -> 0 | BZ40: ='Calc - SA_Resources'!BG66 -> 0 | CA40: ='Calc - SA_Resources'!BH66 -> 0
BJ41: 32 | BK41: =VLOOKUP(BJ41, 'Calc - Base'!$H$35:$I$400, 2) -> 2020-07-04 | BL41: =IF($BK$5=$BF$6, 'Staff Needed'!V37, IF($BK$5=$BF$7, 'Staff Needed'!X37, 'Staff Needed'!Z37)) -> 71.47697376 | BM41: =IF($BK$5=$BF$6, 'Staff Needed'!W37, IF($BK$5=$BF$7, 'Staff Needed'!Y37, 'Staff Needed'!AA37)) -> 673.9257526 | BN41: ='Calc - SA_Resources'!AT67 -> 51.05498125 | BO41: ='Calc - SA_Resources'!AU67 -> 367.595865 | BT41: =IF($BK$5=$BF$6, 'Staff Needed'!AB37, IF($BK$5=$BF$7, 'Staff Needed'!AD37, 'Staff Needed'!AF37)) -> 71.47697376 | BU41: =IF($BK$5=$BF$6, 'Staff Needed'!AC37, IF($BK$5=$BF$7, 'Staff Needed'!AE37, 'Staff Needed'!AG37)) -> 673.9257526 | BV41: ='Calc - SA_Resources'!BA67 -> 51.05498125 | BW41: ='Calc - SA_Resources'!BB67 -> 367.595865 | BX41: =IF($BK$5=$BF$6, 'Staff Needed'!AH37, IF($BK$5=$BF$7, 'Staff Needed'!AJ37, 'Staff Needed'!AL37)) -> 0 | BY41: =IF($BK$5=$BF$6, 'Staff Needed'!AI37, IF($BK$5=$BF$7, 'Staff Needed'!AK37, 'Staff Needed'!AM37)) -> 0 | BZ41: ='Calc - SA_Resources'!BG67 -> 0 | CA41: ='Calc - SA_Resources'!BH67 -> 0
BJ42: 33 | BK42: =VLOOKUP(BJ42, 'Calc - Base'!$H$35:$I$400, 2) -> 2020-07-05 | BL42: =IF($BK$5=$BF$6, 'Staff Needed'!V38, IF($BK$5=$BF$7, 'Staff Needed'!X38, 'Staff Needed'!Z38)) -> 77.23916055 | BM42: =IF($BK$5=$BF$6, 'Staff Needed'!W38, IF($BK$5=$BF$7, 'Staff Needed'!Y38, 'Staff Needed'!AA38)) -> 728.2549423 | BN42: ='Calc - SA_Resources'!AT68 -> 55.17082896 | BO42: ='Calc - SA_Resources'!AU68 -> 397.2299685 | BT42: =IF($BK$5=$BF$6, 'Staff Needed'!AB38, IF($BK$5=$BF$7, 'Staff Needed'!AD38, 'Staff Needed'!AF38)) -> 77.23916055 | BU42: =IF($BK$5=$BF$6, 'Staff Needed'!AC38, IF($BK$5=$BF$7, 'Staff Needed'!AE38, 'Staff Needed'!AG38)) -> 728.2549423 | BV42: ='Calc - SA_Resources'!BA68 -> 55.17082896 | BW42: ='Calc - SA_Resources'!BB68 -> 397.2299685 | BX42: =IF($BK$5=$BF$6, 'Staff Needed'!AH38, IF($BK$5=$BF$7, 'Staff Needed'!AJ38, 'Staff Needed'!AL38)) -> 0 | BY42: =IF($BK$5=$BF$6, 'Staff Needed'!AI38, IF($BK$5=$BF$7, 'Staff Needed'!AK38, 'Staff Needed'!AM38)) -> 0 | BZ42: ='Calc - SA_Resources'!BG68 -> 0 | CA42: ='Calc - SA_Resources'!BH68 -> 0
BJ43: 34 | BK43: =VLOOKUP(BJ43, 'Calc - Base'!$H$35:$I$400, 2) -> 2020-07-06 | BL43: =IF($BK$5=$BF$6, 'Staff Needed'!V39, IF($BK$5=$BF$7, 'Staff Needed'!X39, 'Staff Needed'!Z39)) -> 83.53524288 | BM43: =IF($BK$5=$BF$6, 'Staff Needed'!W39, IF($BK$5=$BF$7, 'Staff Needed'!Y39, 'Staff Needed'!AA39)) -> 787.6180043 | BN43: ='Calc - SA_Resources'!AT69 -> 59.66803063 | BO43: ='Calc - SA_Resources'!AU69 -> 429.6098205 | BT43: =IF($BK$5=$BF$6, 'Staff Needed'!AB39, IF($BK$5=$BF$7, 'Staff Needed'!AD39, 'Staff Needed'!AF39)) -> 83.53524288 | BU43: =IF($BK$5=$BF$6, 'Staff Needed'!AC39, IF($BK$5=$BF$7, 'Staff Needed'!AE39, 'Staff Needed'!AG39)) -> 787.6180043 | BV43: ='Calc - SA_Resources'!BA69 -> 59.66803063 | BW43: ='Calc - SA_Resources'!BB69 -> 429.6098205 | BX43: =IF($BK$5=$BF$6, 'Staff Needed'!AH39, IF($BK$5=$BF$7, 'Staff Needed'!AJ39, 'Staff Needed'!AL39)) -> 0 | BY43: =IF($BK$5=$BF$6, 'Staff Needed'!AI39, IF($BK$5=$BF$7, 'Staff Needed'!AK39, 'Staff Needed'!AM39)) -> 0 | BZ43: ='Calc - SA_Resources'!BG69 -> 0 | CA43: ='Calc - SA_Resources'!BH69 -> 0
BJ44: 35 | BK44: =VLOOKUP(BJ44, 'Calc - Base'!$H$35:$I$400, 2) -> 2020-07-07 | BL44: =IF($BK$5=$BF$6, 'Staff Needed'!V40, IF($BK$5=$BF$7, 'Staff Needed'!X40, 'Staff Needed'!Z40)) -> 90.14001271 | BM44: =IF($BK$5=$BF$6, 'Staff Needed'!W40, IF($BK$5=$BF$7, 'Staff Needed'!Y40, 'Staff Needed'!AA40)) -> 849.8915484 | BN44: ='Calc - SA_Resources'!AT70 -> 64.38572337 | BO44: ='Calc - SA_Resources'!AU70 -> 463.5772082 | BT44: =IF($BK$5=$BF$6, 'Staff Needed'!AB40, IF($BK$5=$BF$7, 'Staff Needed'!AD40, 'Staff Needed'!AF40)) -> 90.14001271 | BU44: =IF($BK$5=$BF$6, 'Staff Needed'!AC40, IF($BK$5=$BF$7, 'Staff Needed'!AE40, 'Staff Needed'!AG40)) -> 849.8915484 | BV44: ='Calc - SA_Resources'!BA70 -> 64.38572337 | BW44: ='Calc - SA_Resources'!BB70 -> 463.5772082 | BX44: =IF($BK$5=$BF$6, 'Staff Needed'!AH40, IF($BK$5=$BF$7, 'Staff Needed'!AJ40, 'Staff Needed'!AL40)) -> 0 | BY44: =IF($BK$5=$BF$6, 'Staff Needed'!AI40, IF($BK$5=$BF$7, 'Staff Needed'!AK40, 'Staff Needed'!AM40)) -> 0 | BZ44: ='Calc - SA_Resources'!BG70 -> 0 | CA44: ='Calc - SA_Resources'!BH70 -> 0
BJ45: 36 | BK45: =VLOOKUP(BJ45, 'Calc - Base'!$H$35:$I$400, 2) -> 2020-07-08 | BL45: =IF($BK$5=$BF$6, 'Staff Needed'!V41, IF($BK$5=$BF$7, 'Staff Needed'!X41, 'Staff Needed'!Z41)) -> 97.15292997 | BM45: =IF($BK$5=$BF$6, 'Staff Needed'!W41, IF($BK$5=$BF$7, 'Staff Needed'!Y41, 'Staff Needed'!AA41)) -> 916.0133398 | BN45: ='Calc - SA_Resources'!AT71 -> 69.39494998 | BO45: ='Calc - SA_Resources'!AU71 -> 499.6436399 | BT45: =IF($BK$5=$BF$6, 'Staff Needed'!AB41, IF($BK$5=$BF$7, 'Staff Needed'!AD41, 'Staff Needed'!AF41)) -> 97.15292997 | BU45: =IF($BK$5=$BF$6, 'Staff Needed'!AC41, IF($BK$5=$BF$7, 'Staff Needed'!AE41, 'Staff Needed'!AG41)) -> 916.0133398 | BV45: ='Calc - SA_Resources'!BA71 -> 69.39494998 | BW45: ='Calc - SA_Resources'!BB71 -> 499.6436399 | BX45: =IF($BK$5=$BF$6, 'Staff Needed'!AH41, IF($BK$5=$BF$7, 'Staff Needed'!AJ41, 'Staff Needed'!AL41)) -> 0 | BY45: =IF($BK$5=$BF$6, 'Staff Needed'!AI41, IF($BK$5=$BF$7, 'Staff Needed'!AK41, 'Staff Needed'!AM41)) -> 0 | BZ45: ='Calc - SA_Resources'!BG71 -> 0 | CA45: ='Calc - SA_Resources'!BH71 -> 0
BJ46: 37 | BK46: =VLOOKUP(BJ46, 'Calc - Base'!$H$35:$I$400, 2) -> 2020-07-09 | BL46: =IF($BK$5=$BF$6, 'Staff Needed'!V42, IF($BK$5=$BF$7, 'Staff Needed'!X42, 'Staff Needed'!Z42)) -> 104.7202518 | BM46: =IF($BK$5=$BF$6, 'Staff Needed'!W42, IF($BK$5=$BF$7, 'Staff Needed'!Y42, 'Staff Needed'!AA42)) -> 987.3623739 | BN46: ='Calc - SA_Resources'!AT72 -> 74.80017984 | BO46: ='Calc - SA_Resources'!AU72 -> 538.5612949 | BT46: =IF($BK$5=$BF$6, 'Staff Needed'!AB42, IF($BK$5=$BF$7, 'Staff Needed'!AD42, 'Staff Needed'!AF42)) -> 104.7202518 | BU46: =IF($BK$5=$BF$6, 'Staff Needed'!AC42, IF($BK$5=$BF$7, 'Staff Needed'!AE42, 'Staff Needed'!AG42)) -> 987.3623739 | BV46: ='Calc - SA_Resources'!BA72 -> 74.80017984 | BW46: ='Calc - SA_Resources'!BB72 -> 538.5612949 | BX46: =IF($BK$5=$BF$6, 'Staff Needed'!AH42, IF($BK$5=$BF$7, 'Staff Needed'!AJ42, 'Staff Needed'!AL42)) -> 0 | BY46: =IF($BK$5=$BF$6, 'Staff Needed'!AI42, IF($BK$5=$BF$7, 'Staff Needed'!AK42, 'Staff Needed'!AM42)) -> 0 | BZ46: ='Calc - SA_Resources'!BG72 -> 0 | CA46: ='Calc - SA_Resources'!BH72 -> 0
BJ47: 38 | BK47: =VLOOKUP(BJ47, 'Calc - Base'!$H$35:$I$400, 2) -> 2020-07-10 | BL47: =IF($BK$5=$BF$6, 'Staff Needed'!V43, IF($BK$5=$BF$7, 'Staff Needed'!X43, 'Staff Needed'!Z43)) -> 112.8910602 | BM47: =IF($BK$5=$BF$6, 'Staff Needed'!W43, IF($BK$5=$BF$7, 'Staff Needed'!Y43, 'Staff Needed'!AA43)) -> 1064.401424 | BN47: ='Calc - SA_Resources'!AT73 -> 80.63647155 | BO47: ='Calc - SA_Resources'!AU73 -> 580.5825952 | BT47: =IF($BK$5=$BF$6, 'Staff Needed'!AB43, IF($BK$5=$BF$7, 'Staff Needed'!AD43, 'Staff Needed'!AF43)) -> 112.8910602 | BU47: =IF($BK$5=$BF$6, 'Staff Needed'!AC43, IF($BK$5=$BF$7, 'Staff Needed'!AE43, 'Staff Needed'!AG43)) -> 1064.401424 | BV47: ='Calc - SA_Resources'!BA73 -> 80.63647155 | BW47: ='Calc - SA_Resources'!BB73 -> 580.5825952 | BX47: =IF($BK$5=$BF$6, 'Staff Needed'!AH43, IF($BK$5=$BF$7, 'Staff Needed'!AJ43, 'Staff Needed'!AL43)) -> 0 | BY47: =IF($BK$5=$BF$6, 'Staff Needed'!AI43, IF($BK$5=$BF$7, 'Staff Needed'!AK43, 'Staff Needed'!AM43)) -> 0 | BZ47: ='Calc - SA_Resources'!BG73 -> 0 | CA47: ='Calc - SA_Resources'!BH73 -> 0
BJ48: 39 | BK48: =VLOOKUP(BJ48, 'Calc - Base'!$H$35:$I$400, 2) -> 2020-07-11 | BL48: =IF($BK$5=$BF$6, 'Staff Needed'!V44, IF($BK$5=$BF$7, 'Staff Needed'!X44, 'Staff Needed'!Z44)) -> 121.5359149 | BM48: =IF($BK$5=$BF$6, 'Staff Needed'!W44, IF($BK$5=$BF$7, 'Staff Needed'!Y44, 'Staff Needed'!AA44)) -> 1145.910055 | BN48: ='Calc - SA_Resources'!AT74 -> 86.81136777 | BO48: ='Calc - SA_Resources'!AU74 -> 625.0418479 | BT48: =IF($BK$5=$BF$6, 'Staff Needed'!AB44, IF($BK$5=$BF$7, 'Staff Needed'!AD44, 'Staff Needed'!AF44)) -> 121.5359149 | BU48: =IF($BK$5=$BF$6, 'Staff Needed'!AC44, IF($BK$5=$BF$7, 'Staff Needed'!AE44, 'Staff Needed'!AG44)) -> 1145.910055 | BV48: ='Calc - SA_Resources'!BA74 -> 86.81136777 | BW48: ='Calc - SA_Resources'!BB74 -> 625.0418479 | BX48: =IF($BK$5=$BF$6, 'Staff Needed'!AH44, IF($BK$5=$BF$7, 'Staff Needed'!AJ44, 'Staff Needed'!AL44)) -> 0 | BY48: =IF($BK$5=$BF$6, 'Staff Needed'!AI44, IF($BK$5=$BF$7, 'Staff Needed'!AK44, 'Staff Needed'!AM44)) -> 0 | BZ48: ='Calc - SA_Resources'!BG74 -> 0 | CA48: ='Calc - SA_Resources'!BH74 -> 0
BJ49: 40 | BK49: =VLOOKUP(BJ49, 'Calc - Base'!$H$35:$I$400, 2) -> 2020-07-12 | BL49: =IF($BK$5=$BF$6, 'Staff Needed'!V45, IF($BK$5=$BF$7, 'Staff Needed'!X45, 'Staff Needed'!Z45)) -> 130.6655732 | BM49: =IF($BK$5=$BF$6, 'Staff Needed'!W45, IF($BK$5=$BF$7, 'Staff Needed'!Y45, 'Staff Needed'!AA45)) -> 1231.98969 | BN49: ='Calc - SA_Resources'!AT75 -> 93.33255225 | BO49: ='Calc - SA_Resources'!AU75 -> 671.9943762 | BT49: =IF($BK$5=$BF$6, 'Staff Needed'!AB45, IF($BK$5=$BF$7, 'Staff Needed'!AD45, 'Staff Needed'!AF45)) -> 130.6655732 | BU49: =IF($BK$5=$BF$6, 'Staff Needed'!AC45, IF($BK$5=$BF$7, 'Staff Needed'!AE45, 'Staff Needed'!AG45)) -> 1231.98969 | BV49: ='Calc - SA_Resources'!BA75 -> 93.33255225 | BW49: ='Calc - SA_Resources'!BB75 -> 671.9943762 | BX49: =IF($BK$5=$BF$6, 'Staff Needed'!AH45, IF($BK$5=$BF$7, 'Staff Needed'!AJ45, 'Staff Needed'!AL45)) -> 0 | BY49: =IF($BK$5=$BF$6, 'Staff Needed'!AI45, IF($BK$5=$BF$7, 'Staff Needed'!AK45, 'Staff Needed'!AM45)) -> 0 | BZ49: ='Calc - SA_Resources'!BG75 -> 0 | CA49: ='Calc - SA_Resources'!BH75 -> 0
BJ50: 41 | BK50: =VLOOKUP(BJ50, 'Calc - Base'!$H$35:$I$400, 2) -> 2020-07-13 | BL50: =IF($BK$5=$BF$6, 'Staff Needed'!V46, IF($BK$5=$BF$7, 'Staff Needed'!X46, 'Staff Needed'!Z46)) -> 140.3432913 | BM50: =IF($BK$5=$BF$6, 'Staff Needed'!W46, IF($BK$5=$BF$7, 'Staff Needed'!Y46, 'Staff Needed'!AA46)) -> 1323.236747 | BN50: ='Calc - SA_Resources'!AT76 -> 100.2452081 | BO50: ='Calc - SA_Resources'!AU76 -> 721.7654983 | BT50: =IF($BK$5=$BF$6, 'Staff Needed'!AB46, IF($BK$5=$BF$7, 'Staff Needed'!AD46, 'Staff Needed'!AF46)) -> 140.3432913 | BU50: =IF($BK$5=$BF$6, 'Staff Needed'!AC46, IF($BK$5=$BF$7, 'Staff Needed'!AE46, 'Staff Needed'!AG46)) -> 1323.236747 | BV50: ='Calc - SA_Resources'!BA76 -> 100.2452081 | BW50: ='Calc - SA_Resources'!BB76 -> 721.7654983 | BX50: =IF($BK$5=$BF$6, 'Staff Needed'!AH46, IF($BK$5=$BF$7, 'Staff Needed'!AJ46, 'Staff Needed'!AL46)) -> 0 | BY50: =IF($BK$5=$BF$6, 'Staff Needed'!AI46, IF($BK$5=$BF$7, 'Staff Needed'!AK46, 'Staff Needed'!AM46)) -> 0 | BZ50: ='Calc - SA_Resources'!BG76 -> 0 | CA50: ='Calc - SA_Resources'!BH76 -> 0
BJ51: 42 | BK51: =VLOOKUP(BJ51, 'Calc - Base'!$H$35:$I$400, 2) -> 2020-07-14 | BL51: =IF($BK$5=$BF$6, 'Staff Needed'!V47, IF($BK$5=$BF$7, 'Staff Needed'!X47, 'Staff Needed'!Z47)) -> 150.6266124 | BM51: =IF($BK$5=$BF$6, 'Staff Needed'!W47, IF($BK$5=$BF$7, 'Staff Needed'!Y47, 'Staff Needed'!AA47)) -> 1420.193774 | BN51: ='Calc - SA_Resources'!AT77 -> 107.5904374 | BO51: ='Calc - SA_Resources'!AU77 -> 774.6511496 | BT51: =IF($BK$5=$BF$6, 'Staff Needed'!AB47, IF($BK$5=$BF$7, 'Staff Needed'!AD47, 'Staff Needed'!AF47)) -> 150.6266124 | BU51: =IF($BK$5=$BF$6, 'Staff Needed'!AC47, IF($BK$5=$BF$7, 'Staff Needed'!AE47, 'Staff Needed'!AG47)) -> 1420.193774 | BV51: ='Calc - SA_Resources'!BA77 -> 107.5904374 | BW51: ='Calc - SA_Resources'!BB77 -> 774.6511496 | BX51: =IF($BK$5=$BF$6, 'Staff Needed'!AH47, IF($BK$5=$BF$7, 'Staff Needed'!AJ47, 'Staff Needed'!AL47)) -> 0 | BY51: =IF($BK$5=$BF$6, 'Staff Needed'!AI47, IF($BK$5=$BF$7, 'Staff Needed'!AK47, 'Staff Needed'!AM47)) -> 0 | BZ51: ='Calc - SA_Resources'!BG77 -> 0 | CA51: ='Calc - SA_Resources'!BH77 -> 0
BJ52: 43 | BK52: =VLOOKUP(BJ52, 'Calc - Base'!$H$35:$I$400, 2) -> 2020-07-15 | BL52: =IF($BK$5=$BF$6, 'Staff Needed'!V48, IF($BK$5=$BF$7, 'Staff Needed'!X48, 'Staff Needed'!Z48)) -> 161.4653953 | BM52: =IF($BK$5=$BF$6, 'Staff Needed'!W48, IF($BK$5=$BF$7, 'Staff Needed'!Y48, 'Staff Needed'!AA48)) -> 1522.388013 | BN52: ='Calc - SA_Resources'!AT78 -> 115.3324252 | BO52: ='Calc - SA_Resources'!AU78 -> 830.3934614 | BT52: =IF($BK$5=$BF$6, 'Staff Needed'!AB48, IF($BK$5=$BF$7, 'Staff Needed'!AD48, 'Staff Needed'!AF48)) -> 161.4653953 | BU52: =IF($BK$5=$BF$6, 'Staff Needed'!AC48, IF($BK$5=$BF$7, 'Staff Needed'!AE48, 'Staff Needed'!AG48)) -> 1522.388013 | BV52: ='Calc - SA_Resources'!BA78 -> 115.3324252 | BW52: ='Calc - SA_Resources'!BB78 -> 830.3934614 | BX52: =IF($BK$5=$BF$6, 'Staff Needed'!AH48, IF($BK$5=$BF$7, 'Staff Needed'!AJ48, 'Staff Needed'!AL48)) -> 0 | BY52: =IF($BK$5=$BF$6, 'Staff Needed'!AI48, IF($BK$5=$BF$7, 'Staff Needed'!AK48, 'Staff Needed'!AM48)) -> 0 | BZ52: ='Calc - SA_Resources'!BG78 -> 0 | CA52: ='Calc - SA_Resources'!BH78 -> 0
BJ53: 44 | BK53: =VLOOKUP(BJ53, 'Calc - Base'!$H$35:$I$400, 2) -> 2020-07-16 | BL53: =IF($BK$5=$BF$6, 'Staff Needed'!V49, IF($BK$5=$BF$7, 'Staff Needed'!X49, 'Staff Needed'!Z49)) -> 172.8644314 | BM53: =IF($BK$5=$BF$6, 'Staff Needed'!W49, IF($BK$5=$BF$7, 'Staff Needed'!Y49, 'Staff Needed'!AA49)) -> 1629.864638 | BN53: ='Calc - SA_Resources'!AT79 -> 123.4745938 | BO53: ='Calc - SA_Resources'!AU79 -> 889.0170755 | BT53: =IF($BK$5=$BF$6, 'Staff Needed'!AB49, IF($BK$5=$BF$7, 'Staff Needed'!AD49, 'Staff Needed'!AF49)) -> 172.8644314 | BU53: =IF($BK$5=$BF$6, 'Staff Needed'!AC49, IF($BK$5=$BF$7, 'Staff Needed'!AE49, 'Staff Needed'!AG49)) -> 1629.864638 | BV53: ='Calc - SA_Resources'!BA79 -> 123.4745938 | BW53: ='Calc - SA_Resources'!BB79 -> 889.0170755 | BX53: =IF($BK$5=$BF$6, 'Staff Needed'!AH49, IF($BK$5=$BF$7, 'Staff Needed'!AJ49, 'Staff Needed'!AL49)) -> 0 | BY53: =IF($BK$5=$BF$6, 'Staff Needed'!AI49, IF($BK$5=$BF$7, 'Staff Needed'!AK49, 'Staff Needed'!AM49)) -> 0 | BZ53: ='Calc - SA_Resources'!BG79 -> 0 | CA53: ='Calc - SA_Resources'!BH79 -> 0
BJ54: 45 | BK54: =VLOOKUP(BJ54, 'Calc - Base'!$H$35:$I$400, 2) -> 2020-07-17 | BL54: =IF($BK$5=$BF$6, 'Staff Needed'!V50, IF($BK$5=$BF$7, 'Staff Needed'!X50, 'Staff Needed'!Z50)) -> 184.8361611 | BM54: =IF($BK$5=$BF$6, 'Staff Needed'!W50, IF($BK$5=$BF$7, 'Staff Needed'!Y50, 'Staff Needed'!AA50)) -> 1742.740948 | BN54: ='Calc - SA_Resources'!AT80 -> 132.0258294 | BO54: ='Calc - SA_Resources'!AU80 -> 950.5859714 | BT54: =IF($BK$5=$BF$6, 'Staff Needed'!AB50, IF($BK$5=$BF$7, 'Staff Needed'!AD50, 'Staff Needed'!AF50)) -> 184.8361611 | BU54: =IF($BK$5=$BF$6, 'Staff Needed'!AC50, IF($BK$5=$BF$7, 'Staff Needed'!AE50, 'Staff Needed'!AG50)) -> 1742.740948 | BV54: ='Calc - SA_Resources'!BA80 -> 132.0258294 | BW54: ='Calc - SA_Resources'!BB80 -> 950.5859714 | BX54: =IF($BK$5=$BF$6, 'Staff Needed'!AH50, IF($BK$5=$BF$7, 'Staff Needed'!AJ50, 'Staff Needed'!AL50)) -> 0 | BY54: =IF($BK$5=$BF$6, 'Staff Needed'!AI50, IF($BK$5=$BF$7, 'Staff Needed'!AK50, 'Staff Needed'!AM50)) -> 0 | BZ54: ='Calc - SA_Resources'!BG80 -> 0 | CA54: ='Calc - SA_Resources'!BH80 -> 0
BJ55: 46 | BK55: =VLOOKUP(BJ55, 'Calc - Base'!$H$35:$I$400, 2) -> 2020-07-18 | BL55: =IF($BK$5=$BF$6, 'Staff Needed'!V51, IF($BK$5=$BF$7, 'Staff Needed'!X51, 'Staff Needed'!Z51)) -> 197.3712667 | BM55: =IF($BK$5=$BF$6, 'Staff Needed'!W51, IF($BK$5=$BF$7, 'Staff Needed'!Y51, 'Staff Needed'!AA51)) -> 1860.929086 | BN55: ='Calc - SA_Resources'!AT81 -> 140.9794762 | BO55: ='Calc - SA_Resources'!AU81 -> 1015.052229 | BT55: =IF($BK$5=$BF$6, 'Staff Needed'!AB51, IF($BK$5=$BF$7, 'Staff Needed'!AD51, 'Staff Needed'!AF51)) -> 197.3712667 | BU55: =IF($BK$5=$BF$6, 'Staff Needed'!AC51, IF($BK$5=$BF$7, 'Staff Needed'!AE51, 'Staff Needed'!AG51)) -> 1860.929086 | BV55: ='Calc - SA_Resources'!BA81 -> 140.9794762 | BW55: ='Calc - SA_Resources'!BB81 -> 1015.052229 | BX55: =IF($BK$5=$BF$6, 'Staff Needed'!AH51, IF($BK$5=$BF$7, 'Staff Needed'!AJ51, 'Staff Needed'!AL51)) -> 0 | BY55: =IF($BK$5=$BF$6, 'Staff Needed'!AI51, IF($BK$5=$BF$7, 'Staff Needed'!AK51, 'Staff Needed'!AM51)) -> 0 | BZ55: ='Calc - SA_Resources'!BG81 -> 0 | CA55: ='Calc - SA_Resources'!BH81 -> 0
BJ56: 47 | BK56: =VLOOKUP(BJ56, 'Calc - Base'!$H$35:$I$400, 2) -> 2020-07-19 | BL56: =IF($BK$5=$BF$6, 'Staff Needed'!V52, IF($BK$5=$BF$7, 'Staff Needed'!X52, 'Staff Needed'!Z52)) -> 210.4197229 | BM56: =IF($BK$5=$BF$6, 'Staff Needed'!W52, IF($BK$5=$BF$7, 'Staff Needed'!Y52, 'Staff Needed'!AA52)) -> 1983.957388 | BN56: ='Calc - SA_Resources'!AT82 -> 150.2998021 | BO56: ='Calc - SA_Resources'!AU82 -> 1082.158575 | BT56: =IF($BK$5=$BF$6, 'Staff Needed'!AB52, IF($BK$5=$BF$7, 'Staff Needed'!AD52, 'Staff Needed'!AF52)) -> 210.4197229 | BU56: =IF($BK$5=$BF$6, 'Staff Needed'!AC52, IF($BK$5=$BF$7, 'Staff Needed'!AE52, 'Staff Needed'!AG52)) -> 1983.957388 | BV56: ='Calc - SA_Resources'!BA82 -> 150.2998021 | BW56: ='Calc - SA_Resources'!BB82 -> 1082.158575 | BX56: =IF($BK$5=$BF$6, 'Staff Needed'!AH52, IF($BK$5=$BF$7, 'Staff Needed'!AJ52, 'Staff Needed'!AL52)) -> 0 | BY56: =IF($BK$5=$BF$6, 'Staff Needed'!AI52, IF($BK$5=$BF$7, 'Staff Needed'!AK52, 'Staff Needed'!AM52)) -> 0 | BZ56: ='Calc - SA_Resources'!BG82 -> 0 | CA56: ='Calc - SA_Resources'!BH82 -> 0
BJ57: 48 | BK57: =VLOOKUP(BJ57, 'Calc - Base'!$H$35:$I$400, 2) -> 2020-07-20 | BL57: =IF($BK$5=$BF$6, 'Staff Needed'!V53, IF($BK$5=$BF$7, 'Staff Needed'!X53, 'Staff Needed'!Z53)) -> 223.9570449 | BM57: =IF($BK$5=$BF$6, 'Staff Needed'!W53, IF($BK$5=$BF$7, 'Staff Needed'!Y53, 'Staff Needed'!AA53)) -> 2111.594995 | BN57: ='Calc - SA_Resources'!AT83 -> 159.9693178 | BO57: ='Calc - SA_Resources'!AU83 -> 1151.779088 | BT57: =IF($BK$5=$BF$6, 'Staff Needed'!AB53, IF($BK$5=$BF$7, 'Staff Needed'!AD53, 'Staff Needed'!AF53)) -> 223.9570449 | BU57: =IF($BK$5=$BF$6, 'Staff Needed'!AC53, IF($BK$5=$BF$7, 'Staff Needed'!AE53, 'Staff Needed'!AG53)) -> 2111.594995 | BV57: ='Calc - SA_Resources'!BA83 -> 159.9693178 | BW57: ='Calc - SA_Resources'!BB83 -> 1151.779088 | BX57: =IF($BK$5=$BF$6, 'Staff Needed'!AH53, IF($BK$5=$BF$7, 'Staff Needed'!AJ53, 'Staff Needed'!AL53)) -> 0 | BY57: =IF($BK$5=$BF$6, 'Staff Needed'!AI53, IF($BK$5=$BF$7, 'Staff Needed'!AK53, 'Staff Needed'!AM53)) -> 0 | BZ57: ='Calc - SA_Resources'!BG83 -> 0 | CA57: ='Calc - SA_Resources'!BH83 -> 0
BJ58: 49 | BK58: =VLOOKUP(BJ58, 'Calc - Base'!$H$35:$I$400, 2) -> 2020-07-21 | BL58: =IF($BK$5=$BF$6, 'Staff Needed'!V54, IF($BK$5=$BF$7, 'Staff Needed'!X54, 'Staff Needed'!Z54)) -> 237.9618558 | BM58: =IF($BK$5=$BF$6, 'Staff Needed'!W54, IF($BK$5=$BF$7, 'Staff Needed'!Y54, 'Staff Needed'!AA54)) -> 2243.640355 | BN58: ='Calc - SA_Resources'!AT84 -> 169.9727542 | BO58: ='Calc - SA_Resources'!AU84 -> 1223.80383 | BT58: =IF($BK$5=$BF$6, 'Staff Needed'!AB54, IF($BK$5=$BF$7, 'Staff Needed'!AD54, 'Staff Needed'!AF54)) -> 237.9618558 | BU58: =IF($BK$5=$BF$6, 'Staff Needed'!AC54, IF($BK$5=$BF$7, 'Staff Needed'!AE54, 'Staff Needed'!AG54)) -> 2243.640355 | BV58: ='Calc - SA_Resources'!BA84 -> 169.9727542 | BW58: ='Calc - SA_Resources'!BB84 -> 1223.80383 | BX58: =IF($BK$5=$BF$6, 'Staff Needed'!AH54, IF($BK$5=$BF$7, 'Staff Needed'!AJ54, 'Staff Needed'!AL54)) -> 0 | BY58: =IF($BK$5=$BF$6, 'Staff Needed'!AI54, IF($BK$5=$BF$7, 'Staff Needed'!AK54, 'Staff Needed'!AM54)) -> 0 | BZ58: ='Calc - SA_Resources'!BG84 -> 0 | CA58: ='Calc - SA_Resources'!BH84 -> 0
BJ59: 50 | BK59: =VLOOKUP(BJ59, 'Calc - Base'!$H$35:$I$400, 2) -> 2020-07-22 | BL59: =IF($BK$5=$BF$6, 'Staff Needed'!V55, IF($BK$5=$BF$7, 'Staff Needed'!X55, 'Staff Needed'!Z55)) -> 252.3893064 | BM59: =IF($BK$5=$BF$6, 'Staff Needed'!W55, IF($BK$5=$BF$7, 'Staff Needed'!Y55, 'Staff Needed'!AA55)) -> 2379.670603 | BN59: ='Calc - SA_Resources'!AT85 -> 180.278076 | BO59: ='Calc - SA_Resources'!AU85 -> 1298.002147 | BT59: =IF($BK$5=$BF$6, 'Staff Needed'!AB55, IF($BK$5=$BF$7, 'Staff Needed'!AD55, 'Staff Needed'!AF55)) -> 252.3893064 | BU59: =IF($BK$5=$BF$6, 'Staff Needed'!AC55, IF($BK$5=$BF$7, 'Staff Needed'!AE55, 'Staff Needed'!AG55)) -> 2379.670603 | BV59: ='Calc - SA_Resources'!BA85 -> 180.278076 | BW59: ='Calc - SA_Resources'!BB85 -> 1298.002147 | BX59: =IF($BK$5=$BF$6, 'Staff Needed'!AH55, IF($BK$5=$BF$7, 'Staff Needed'!AJ55, 'Staff Needed'!AL55)) -> 0 | BY59: =IF($BK$5=$BF$6, 'Staff Needed'!AI55, IF($BK$5=$BF$7, 'Staff Needed'!AK55, 'Staff Needed'!AM55)) -> 0 | BZ59: ='Calc - SA_Resources'!BG85 -> 0 | CA59: ='Calc - SA_Resources'!BH85 -> 0
BJ60: 51 | BK60: =VLOOKUP(BJ60, 'Calc - Base'!$H$35:$I$400, 2) -> 2020-07-23 | BL60: =IF($BK$5=$BF$6, 'Staff Needed'!V56, IF($BK$5=$BF$7, 'Staff Needed'!X56, 'Staff Needed'!Z56)) -> 267.1586153 | BM60: =IF($BK$5=$BF$6, 'Staff Needed'!W56, IF($BK$5=$BF$7, 'Staff Needed'!Y56, 'Staff Needed'!AA56)) -> 2518.924087 | BN60: ='Calc - SA_Resources'!AT86 -> 190.8275823 | BO60: ='Calc - SA_Resources'!AU86 -> 1373.958593 | BT60: =IF($BK$5=$BF$6, 'Staff Needed'!AB56, IF($BK$5=$BF$7, 'Staff Needed'!AD56, 'Staff Needed'!AF56)) -> 267.1586153 | BU60: =IF($BK$5=$BF$6, 'Staff Needed'!AC56, IF($BK$5=$BF$7, 'Staff Needed'!AE56, 'Staff Needed'!AG56)) -> 2518.924087 | BV60: ='Calc - SA_Resources'!BA86 -> 190.8275823 | BW60: ='Calc - SA_Resources'!BB86 -> 1373.958593 | BX60: =IF($BK$5=$BF$6, 'Staff Needed'!AH56, IF($BK$5=$BF$7, 'Staff Needed'!AJ56, 'Staff Needed'!AL56)) -> 0 | BY60: =IF($BK$5=$BF$6, 'Staff Needed'!AI56, IF($BK$5=$BF$7, 'Staff Needed'!AK56, 'Staff Needed'!AM56)) -> 0 | BZ60: ='Calc - SA_Resources'!BG86 -> 0 | CA60: ='Calc - SA_Resources'!BH86 -> 0
BJ61: 52 | BK61: =VLOOKUP(BJ61, 'Calc - Base'!$H$35:$I$400, 2) -> 2020-07-24 | BL61: =IF($BK$5=$BF$6, 'Staff Needed'!V57, IF($BK$5=$BF$7, 'Staff Needed'!X57, 'Staff Needed'!Z57)) -> 282.1919702 | BM61: =IF($BK$5=$BF$6, 'Staff Needed'!W57, IF($BK$5=$BF$7, 'Staff Needed'!Y57, 'Staff Needed'!AA57)) -> 2660.667148 | BN61: ='Calc - SA_Resources'!AT87 -> 201.565693 | BO61: ='Calc - SA_Resources'!AU87 -> 1451.27299 | BT61: =IF($BK$5=$BF$6, 'Staff Needed'!AB57, IF($BK$5=$BF$7, 'Staff Needed'!AD57, 'Staff Needed'!AF57)) -> 282.1919702 | BU61: =IF($BK$5=$BF$6, 'Staff Needed'!AC57, IF($BK$5=$BF$7, 'Staff Needed'!AE57, 'Staff Needed'!AG57)) -> 2660.667148 | BV61: ='Calc - SA_Resources'!BA87 -> 201.565693 | BW61: ='Calc - SA_Resources'!BB87 -> 1451.27299 | BX61: =IF($BK$5=$BF$6, 'Staff Needed'!AH57, IF($BK$5=$BF$7, 'Staff Needed'!AJ57, 'Staff Needed'!AL57)) -> 0 | BY61: =IF($BK$5=$BF$6, 'Staff Needed'!AI57, IF($BK$5=$BF$7, 'Staff Needed'!AK57, 'Staff Needed'!AM57)) -> 0 | BZ61: ='Calc - SA_Resources'!BG87 -> 0 | CA61: ='Calc - SA_Resources'!BH87 -> 0
BJ62: 53 | BK62: =VLOOKUP(BJ62, 'Calc - Base'!$H$35:$I$400, 2) -> 2020-07-25 | BL62: =IF($BK$5=$BF$6, 'Staff Needed'!V58, IF($BK$5=$BF$7, 'Staff Needed'!X58, 'Staff Needed'!Z58)) -> 297.4065122 | BM62: =IF($BK$5=$BF$6, 'Staff Needed'!W58, IF($BK$5=$BF$7, 'Staff Needed'!Y58, 'Staff Needed'!AA58)) -> 2804.118543 | BN62: ='Calc - SA_Resources'!AT88 -> 212.433223 | BO62: ='Calc - SA_Resources'!AU88 -> 1529.519205 | BT62: =IF($BK$5=$BF$6, 'Staff Needed'!AB58, IF($BK$5=$BF$7, 'Staff Needed'!AD58, 'Staff Needed'!AF58)) -> 297.4065122 | BU62: =IF($BK$5=$BF$6, 'Staff Needed'!AC58, IF($BK$5=$BF$7, 'Staff Needed'!AE58, 'Staff Needed'!AG58)) -> 2804.118543 | BV62: ='Calc - SA_Resources'!BA88 -> 212.433223 | BW62: ='Calc - SA_Resources'!BB88 -> 1529.519205 | BX62: =IF($BK$5=$BF$6, 'Staff Needed'!AH58, IF($BK$5=$BF$7, 'Staff Needed'!AJ58, 'Staff Needed'!AL58)) -> 0 | BY62: =IF($BK$5=$BF$6, 'Staff Needed'!AI58, IF($BK$5=$BF$7, 'Staff Needed'!AK58, 'Staff Needed'!AM58)) -> 0 | BZ62: ='Calc - SA_Resources'!BG88 -> 0 | CA62: ='Calc - SA_Resources'!BH88 -> 0
BJ63: 54 | BK63: =VLOOKUP(BJ63, 'Calc - Base'!$H$35:$I$400, 2) -> 2020-07-26 | BL63: =IF($BK$5=$BF$6, 'Staff Needed'!V59, IF($BK$5=$BF$7, 'Staff Needed'!X59, 'Staff Needed'!Z59)) -> 312.7027886 | BM63: =IF($BK$5=$BF$6, 'Staff Needed'!W59, IF($BK$5=$BF$7, 'Staff Needed'!Y59, 'Staff Needed'!AA59)) -> 2948.340578 | BN63: ='Calc - SA_Resources'!AT89 -> 223.3591347 | BO63: ='Calc - SA_Resources'!AU89 -> 1608.18577 | BT63: =IF($BK$5=$BF$6, 'Staff Needed'!AB59, IF($BK$5=$BF$7, 'Staff Needed'!AD59, 'Staff Needed'!AF59)) -> 312.7027886 | BU63: =IF($BK$5=$BF$6, 'Staff Needed'!AC59, IF($BK$5=$BF$7, 'Staff Needed'!AE59, 'Staff Needed'!AG59)) -> 2948.340578 | BV63: ='Calc - SA_Resources'!BA89 -> 223.3591347 | BW63: ='Calc - SA_Resources'!BB89 -> 1608.18577 | BX63: =IF($BK$5=$BF$6, 'Staff Needed'!AH59, IF($BK$5=$BF$7, 'Staff Needed'!AJ59, 'Staff Needed'!AL59)) -> 0 | BY63: =IF($BK$5=$BF$6, 'Staff Needed'!AI59, IF($BK$5=$BF$7, 'Staff Needed'!AK59, 'Staff Needed'!AM59)) -> 0 | BZ63: ='Calc - SA_Resources'!BG89 -> 0 | CA63: ='Calc - SA_Resources'!BH89 -> 0
BJ64: 55 | BK64: =VLOOKUP(BJ64, 'Calc - Base'!$H$35:$I$400, 2) -> 2020-07-27 | BL64: =IF($BK$5=$BF$6, 'Staff Needed'!V60, IF($BK$5=$BF$7, 'Staff Needed'!X60, 'Staff Needed'!Z60)) -> 327.95925 | BM64: =IF($BK$5=$BF$6, 'Staff Needed'!W60, IF($BK$5=$BF$7, 'Staff Needed'!Y60, 'Staff Needed'!AA60)) -> 3092.187215 | BN64: ='Calc - SA_Resources'!AT90 -> 234.2566072 | BO64: ='Calc - SA_Resources'!AU90 -> 1686.647572 | BT64: =IF($BK$5=$BF$6, 'Staff Needed'!AB60, IF($BK$5=$BF$7, 'Staff Needed'!AD60, 'Staff Needed'!AF60)) -> 327.95925 | BU64: =IF($BK$5=$BF$6, 'Staff Needed'!AC60, IF($BK$5=$BF$7, 'Staff Needed'!AE60, 'Staff Needed'!AG60)) -> 3092.187215 | BV64: ='Calc - SA_Resources'!BA90 -> 234.2566072 | BW64: ='Calc - SA_Resources'!BB90 -> 1686.647572 | BX64: =IF($BK$5=$BF$6, 'Staff Needed'!AH60, IF($BK$5=$BF$7, 'Staff Needed'!AJ60, 'Staff Needed'!AL60)) -> 0 | BY64: =IF($BK$5=$BF$6, 'Staff Needed'!AI60, IF($BK$5=$BF$7, 'Staff Needed'!AK60, 'Staff Needed'!AM60)) -> 0 | BZ64: ='Calc - SA_Resources'!BG90 -> 0 | CA64: ='Calc - SA_Resources'!BH90 -> 0
BJ65: 56 | BK65: =VLOOKUP(BJ65, 'Calc - Base'!$H$35:$I$400, 2) -> 2020-07-28 | BL65: =IF($BK$5=$BF$6, 'Staff Needed'!V61, IF($BK$5=$BF$7, 'Staff Needed'!X61, 'Staff Needed'!Z61)) -> 343.0471691 | BM65: =IF($BK$5=$BF$6, 'Staff Needed'!W61, IF($BK$5=$BF$7, 'Staff Needed'!Y61, 'Staff Needed'!AA61)) -> 3234.444738 | BN65: ='Calc - SA_Resources'!AT91 -> 245.0336922 | BO65: ='Calc - SA_Resources'!AU91 -> 1764.242584 | BT65: =IF($BK$5=$BF$6, 'Staff Needed'!AB61, IF($BK$5=$BF$7, 'Staff Needed'!AD61, 'Staff Needed'!AF61)) -> 343.0471691 | BU65: =IF($BK$5=$BF$6, 'Staff Needed'!AC61, IF($BK$5=$BF$7, 'Staff Needed'!AE61, 'Staff Needed'!AG61)) -> 3234.444738 | BV65: ='Calc - SA_Resources'!BA91 -> 245.0336922 | BW65: ='Calc - SA_Resources'!BB91 -> 1764.242584 | BX65: =IF($BK$5=$BF$6, 'Staff Needed'!AH61, IF($BK$5=$BF$7, 'Staff Needed'!AJ61, 'Staff Needed'!AL61)) -> 0 | BY65: =IF($BK$5=$BF$6, 'Staff Needed'!AI61, IF($BK$5=$BF$7, 'Staff Needed'!AK61, 'Staff Needed'!AM61)) -> 0 | BZ65: ='Calc - SA_Resources'!BG91 -> 0 | CA65: ='Calc - SA_Resources'!BH91 -> 0
BJ66: 57 | BK66: =VLOOKUP(BJ66, 'Calc - Base'!$H$35:$I$400, 2) -> 2020-07-29 | BL66: =IF($BK$5=$BF$6, 'Staff Needed'!V62, IF($BK$5=$BF$7, 'Staff Needed'!X62, 'Staff Needed'!Z62)) -> 357.8282108 | BM66: =IF($BK$5=$BF$6, 'Staff Needed'!W62, IF($BK$5=$BF$7, 'Staff Needed'!Y62, 'Staff Needed'!AA62)) -> 3373.808844 | BN66: ='Calc - SA_Resources'!AT92 -> 255.5915791 | BO66: ='Calc - SA_Resources'!AU92 -> 1840.25937 | BT66: =IF($BK$5=$BF$6, 'Staff Needed'!AB62, IF($BK$5=$BF$7, 'Staff Needed'!AD62, 'Staff Needed'!AF62)) -> 357.8282108 | BU66: =IF($BK$5=$BF$6, 'Staff Needed'!AC62, IF($BK$5=$BF$7, 'Staff Needed'!AE62, 'Staff Needed'!AG62)) -> 3373.808844 | BV66: ='Calc - SA_Resources'!BA92 -> 255.5915791 | BW66: ='Calc - SA_Resources'!BB92 -> 1840.25937 | BX66: =IF($BK$5=$BF$6, 'Staff Needed'!AH62, IF($BK$5=$BF$7, 'Staff Needed'!AJ62, 'Staff Needed'!AL62)) -> 0 | BY66: =IF($BK$5=$BF$6, 'Staff Needed'!AI62, IF($BK$5=$BF$7, 'Staff Needed'!AK62, 'Staff Needed'!AM62)) -> 0 | BZ66: ='Calc - SA_Resources'!BG92 -> 0 | CA66: ='Calc - SA_Resources'!BH92 -> 0
BJ67: 58 | BK67: =VLOOKUP(BJ67, 'Calc - Base'!$H$35:$I$400, 2) -> 2020-07-30 | BL67: =IF($BK$5=$BF$6, 'Staff Needed'!V63, IF($BK$5=$BF$7, 'Staff Needed'!X63, 'Staff Needed'!Z63)) -> 372.1503166 | BM67: =IF($BK$5=$BF$6, 'Staff Needed'!W63, IF($BK$5=$BF$7, 'Staff Needed'!Y63, 'Staff Needed'!AA63)) -> 3508.845842 | BN67: ='Calc - SA_Resources'!AT93 -> 265.8216547 | BO67: ='Calc - SA_Resources'!AU93 -> 1913.915914 | BT67: =IF($BK$5=$BF$6, 'Staff Needed'!AB63, IF($BK$5=$BF$7, 'Staff Needed'!AD63, 'Staff Needed'!AF63)) -> 372.1503166 | BU67: =IF($BK$5=$BF$6, 'Staff Needed'!AC63, IF($BK$5=$BF$7, 'Staff Needed'!AE63, 'Staff Needed'!AG63)) -> 3508.845842 | BV67: ='Calc - SA_Resources'!BA93 -> 265.8216547 | BW67: ='Calc - SA_Resources'!BB93 -> 1913.915914 | BX67: =IF($BK$5=$BF$6, 'Staff Needed'!AH63, IF($BK$5=$BF$7, 'Staff Needed'!AJ63, 'Staff Needed'!AL63)) -> 0 | BY67: =IF($BK$5=$BF$6, 'Staff Needed'!AI63, IF($BK$5=$BF$7, 'Staff Needed'!AK63, 'Staff Needed'!AM63)) -> 0 | BZ67: ='Calc - SA_Resources'!BG93 -> 0 | CA67: ='Calc - SA_Resources'!BH93 -> 0
BJ68: 59 | BK68: =VLOOKUP(BJ68, 'Calc - Base'!$H$35:$I$400, 2) -> 2020-07-31 | BL68: =IF($BK$5=$BF$6, 'Staff Needed'!V64, IF($BK$5=$BF$7, 'Staff Needed'!X64, 'Staff Needed'!Z64)) -> 385.8492852 | BM68: =IF($BK$5=$BF$6, 'Staff Needed'!W64, IF($BK$5=$BF$7, 'Staff Needed'!Y64, 'Staff Needed'!AA64)) -> 3638.007546 | BN68: ='Calc - SA_Resources'!AT94 -> 275.6066323 | BO68: ='Calc - SA_Resources'!AU94 -> 1984.367753 | BT68: =IF($BK$5=$BF$6, 'Staff Needed'!AB64, IF($BK$5=$BF$7, 'Staff Needed'!AD64, 'Staff Needed'!AF64)) -> 385.8492852 | BU68: =IF($BK$5=$BF$6, 'Staff Needed'!AC64, IF($BK$5=$BF$7, 'Staff Needed'!AE64, 'Staff Needed'!AG64)) -> 3638.007546 | BV68: ='Calc - SA_Resources'!BA94 -> 275.6066323 | BW68: ='Calc - SA_Resources'!BB94 -> 1984.367753 | BX68: =IF($BK$5=$BF$6, 'Staff Needed'!AH64, IF($BK$5=$BF$7, 'Staff Needed'!AJ64, 'Staff Needed'!AL64)) -> 0 | BY68: =IF($BK$5=$BF$6, 'Staff Needed'!AI64, IF($BK$5=$BF$7, 'Staff Needed'!AK64, 'Staff Needed'!AM64)) -> 0 | BZ68: ='Calc - SA_Resources'!BG94 -> 0 | CA68: ='Calc - SA_Resources'!BH94 -> 0
BJ69: 60 | BK69: =VLOOKUP(BJ69, 'Calc - Base'!$H$35:$I$400, 2) -> 2020-08-01 | BL69: =IF($BK$5=$BF$6, 'Staff Needed'!V65, IF($BK$5=$BF$7, 'Staff Needed'!X65, 'Staff Needed'!Z65)) -> 398.7589839 | BM69: =IF($BK$5=$BF$6, 'Staff Needed'!W65, IF($BK$5=$BF$7, 'Staff Needed'!Y65, 'Staff Needed'!AA65)) -> 3759.727562 | BN69: ='Calc - SA_Resources'!AT95 -> 284.8278456 | BO69: ='Calc - SA_Resources'!AU95 -> 2050.760488 | BT69: =IF($BK$5=$BF$6, 'Staff Needed'!AB65, IF($BK$5=$BF$7, 'Staff Needed'!AD65, 'Staff Needed'!AF65)) -> 398.7589839 | BU69: =IF($BK$5=$BF$6, 'Staff Needed'!AC65, IF($BK$5=$BF$7, 'Staff Needed'!AE65, 'Staff Needed'!AG65)) -> 3759.727562 | BV69: ='Calc - SA_Resources'!BA95 -> 284.8278456 | BW69: ='Calc - SA_Resources'!BB95 -> 2050.760488 | BX69: =IF($BK$5=$BF$6, 'Staff Needed'!AH65, IF($BK$5=$BF$7, 'Staff Needed'!AJ65, 'Staff Needed'!AL65)) -> 0 | BY69: =IF($BK$5=$BF$6, 'Staff Needed'!AI65, IF($BK$5=$BF$7, 'Staff Needed'!AK65, 'Staff Needed'!AM65)) -> 0 | BZ69: ='Calc - SA_Resources'!BG95 -> 0 | CA69: ='Calc - SA_Resources'!BH95 -> 0
BJ70: 61 | BK70: =VLOOKUP(BJ70, 'Calc - Base'!$H$35:$I$400, 2) -> 2020-08-02 | BL70: =IF($BK$5=$BF$6, 'Staff Needed'!V66, IF($BK$5=$BF$7, 'Staff Needed'!X66, 'Staff Needed'!Z66)) -> 410.7123252 | BM70: =IF($BK$5=$BF$6, 'Staff Needed'!W66, IF($BK$5=$BF$7, 'Staff Needed'!Y66, 'Staff Needed'!AA66)) -> 3872.430494 | BN70: ='Calc - SA_Resources'!AT96 -> 293.3659465 | BO70: ='Calc - SA_Resources'!AU96 -> 2112.234815 | BT70: =IF($BK$5=$BF$6, 'Staff Needed'!AB66, IF($BK$5=$BF$7, 'Staff Needed'!AD66, 'Staff Needed'!AF66)) -> 410.7123252 | BU70: =IF($BK$5=$BF$6, 'Staff Needed'!AC66, IF($BK$5=$BF$7, 'Staff Needed'!AE66, 'Staff Needed'!AG66)) -> 3872.430494 | BV70: ='Calc - SA_Resources'!BA96 -> 293.3659465 | BW70: ='Calc - SA_Resources'!BB96 -> 2112.234815 | BX70: =IF($BK$5=$BF$6, 'Staff Needed'!AH66, IF($BK$5=$BF$7, 'Staff Needed'!AJ66, 'Staff Needed'!AL66)) -> 0 | BY70: =IF($BK$5=$BF$6, 'Staff Needed'!AI66, IF($BK$5=$BF$7, 'Staff Needed'!AK66, 'Staff Needed'!AM66)) -> 0 | BZ70: ='Calc - SA_Resources'!BG96 -> 0 | CA70: ='Calc - SA_Resources'!BH96 -> 0
BJ71: 62 | BK71: =VLOOKUP(BJ71, 'Calc - Base'!$H$35:$I$400, 2) -> 2020-08-03 | BL71: =IF($BK$5=$BF$6, 'Staff Needed'!V67, IF($BK$5=$BF$7, 'Staff Needed'!X67, 'Staff Needed'!Z67)) -> 421.541608 | BM71: =IF($BK$5=$BF$6, 'Staff Needed'!W67, IF($BK$5=$BF$7, 'Staff Needed'!Y67, 'Staff Needed'!AA67)) -> 3974.535161 | BN71: ='Calc - SA_Resources'!AT97 -> 301.1011486 | BO71: ='Calc - SA_Resources'!AU97 -> 2167.92827 | BT71: =IF($BK$5=$BF$6, 'Staff Needed'!AB67, IF($BK$5=$BF$7, 'Staff Needed'!AD67, 'Staff Needed'!AF67)) -> 421.541608 | BU71: =IF($BK$5=$BF$6, 'Staff Needed'!AC67, IF($BK$5=$BF$7, 'Staff Needed'!AE67, 'Staff Needed'!AG67)) -> 3974.535161 | BV71: ='Calc - SA_Resources'!BA97 -> 301.1011486 | BW71: ='Calc - SA_Resources'!BB97 -> 2167.92827 | BX71: =IF($BK$5=$BF$6, 'Staff Needed'!AH67, IF($BK$5=$BF$7, 'Staff Needed'!AJ67, 'Staff Needed'!AL67)) -> 0 | BY71: =IF($BK$5=$BF$6, 'Staff Needed'!AI67, IF($BK$5=$BF$7, 'Staff Needed'!AK67, 'Staff Needed'!AM67)) -> 0 | BZ71: ='Calc - SA_Resources'!BG97 -> 0 | CA71: ='Calc - SA_Resources'!BH97 -> 0
BJ72: 63 | BK72: =VLOOKUP(BJ72, 'Calc - Base'!$H$35:$I$400, 2) -> 2020-08-04 | BL72: =IF($BK$5=$BF$6, 'Staff Needed'!V68, IF($BK$5=$BF$7, 'Staff Needed'!X68, 'Staff Needed'!Z68)) -> 431.0821502 | BM72: =IF($BK$5=$BF$6, 'Staff Needed'!W68, IF($BK$5=$BF$7, 'Staff Needed'!Y68, 'Staff Needed'!AA68)) -> 4064.488845 | BN72: ='Calc - SA_Resources'!AT98 -> 307.9158216 | BO72: ='Calc - SA_Resources'!AU98 -> 2216.993915 | BT72: =IF($BK$5=$BF$6, 'Staff Needed'!AB68, IF($BK$5=$BF$7, 'Staff Needed'!AD68, 'Staff Needed'!AF68)) -> 431.0821502 | BU72: =IF($BK$5=$BF$6, 'Staff Needed'!AC68, IF($BK$5=$BF$7, 'Staff Needed'!AE68, 'Staff Needed'!AG68)) -> 4064.488845 | BV72: ='Calc - SA_Resources'!BA98 -> 307.9158216 | BW72: ='Calc - SA_Resources'!BB98 -> 2216.993915 | BX72: =IF($BK$5=$BF$6, 'Staff Needed'!AH68, IF($BK$5=$BF$7, 'Staff Needed'!AJ68, 'Staff Needed'!AL68)) -> 0 | BY72: =IF($BK$5=$BF$6, 'Staff Needed'!AI68, IF($BK$5=$BF$7, 'Staff Needed'!AK68, 'Staff Needed'!AM68)) -> 0 | BZ72: ='Calc - SA_Resources'!BG98 -> 0 | CA72: ='Calc - SA_Resources'!BH98 -> 0
BJ73: 64 | BK73: =VLOOKUP(BJ73, 'Calc - Base'!$H$35:$I$400, 2) -> 2020-08-05 | BL73: =IF($BK$5=$BF$6, 'Staff Needed'!V69, IF($BK$5=$BF$7, 'Staff Needed'!X69, 'Staff Needed'!Z69)) -> 439.1800721 | BM73: =IF($BK$5=$BF$6, 'Staff Needed'!W69, IF($BK$5=$BF$7, 'Staff Needed'!Y69, 'Staff Needed'!AA69)) -> 4140.84068 | BN73: ='Calc - SA_Resources'!AT99 -> 313.7000515 | BO73: ='Calc - SA_Resources'!AU99 -> 2258.640371 | BT73: =IF($BK$5=$BF$6, 'Staff Needed'!AB69, IF($BK$5=$BF$7, 'Staff Needed'!AD69, 'Staff Needed'!AF69)) -> 439.1800721 | BU73: =IF($BK$5=$BF$6, 'Staff Needed'!AC69, IF($BK$5=$BF$7, 'Staff Needed'!AE69, 'Staff Needed'!AG69)) -> 4140.84068 | BV73: ='Calc - SA_Resources'!BA99 -> 313.7000515 | BW73: ='Calc - SA_Resources'!BB99 -> 2258.640371 | BX73: =IF($BK$5=$BF$6, 'Staff Needed'!AH69, IF($BK$5=$BF$7, 'Staff Needed'!AJ69, 'Staff Needed'!AL69)) -> 0 | BY73: =IF($BK$5=$BF$6, 'Staff Needed'!AI69, IF($BK$5=$BF$7, 'Staff Needed'!AK69, 'Staff Needed'!AM69)) -> 0 | BZ73: ='Calc - SA_Resources'!BG99 -> 0 | CA73: ='Calc - SA_Resources'!BH99 -> 0
BJ74: 65 | BK74: =VLOOKUP(BJ74, 'Calc - Base'!$H$35:$I$400, 2) -> 2020-08-06 | BL74: =IF($BK$5=$BF$6, 'Staff Needed'!V70, IF($BK$5=$BF$7, 'Staff Needed'!X70, 'Staff Needed'!Z70)) -> 445.6963646 | BM74: =IF($BK$5=$BF$6, 'Staff Needed'!W70, IF($BK$5=$BF$7, 'Staff Needed'!Y70, 'Staff Needed'!AA70)) -> 4202.280009 | BN74: ='Calc - SA_Resources'!AT100 -> 318.3545462 | BO74: ='Calc - SA_Resources'!AU100 -> 2292.152732 | BT74: =IF($BK$5=$BF$6, 'Staff Needed'!AB70, IF($BK$5=$BF$7, 'Staff Needed'!AD70, 'Staff Needed'!AF70)) -> 445.6963646 | BU74: =IF($BK$5=$BF$6, 'Staff Needed'!AC70, IF($BK$5=$BF$7, 'Staff Needed'!AE70, 'Staff Needed'!AG70)) -> 4202.280009 | BV74: ='Calc - SA_Resources'!BA100 -> 318.3545462 | BW74: ='Calc - SA_Resources'!BB100 -> 2292.152732 | BX74: =IF($BK$5=$BF$6, 'Staff Needed'!AH70, IF($BK$5=$BF$7, 'Staff Needed'!AJ70, 'Staff Needed'!AL70)) -> 0 | BY74: =IF($BK$5=$BF$6, 'Staff Needed'!AI70, IF($BK$5=$BF$7, 'Staff Needed'!AK70, 'Staff Needed'!AM70)) -> 0 | BZ74: ='Calc - SA_Resources'!BG100 -> 0 | CA74: ='Calc - SA_Resources'!BH100 -> 0
BJ75: 66 | BK75: =VLOOKUP(BJ75, 'Calc - Base'!$H$35:$I$400, 2) -> 2020-08-07 | BL75: =IF($BK$5=$BF$6, 'Staff Needed'!V71, IF($BK$5=$BF$7, 'Staff Needed'!X71, 'Staff Needed'!Z71)) -> 450.5100728 | BM75: =IF($BK$5=$BF$6, 'Staff Needed'!W71, IF($BK$5=$BF$7, 'Staff Needed'!Y71, 'Staff Needed'!AA71)) -> 4247.666401 | BN75: ='Calc - SA_Resources'!AT101 -> 321.7929092 | BO75: ='Calc - SA_Resources'!AU101 -> 2316.908946 | BT75: =IF($BK$5=$BF$6, 'Staff Needed'!AB71, IF($BK$5=$BF$7, 'Staff Needed'!AD71, 'Staff Needed'!AF71)) -> 450.5100728 | BU75: =IF($BK$5=$BF$6, 'Staff Needed'!AC71, IF($BK$5=$BF$7, 'Staff Needed'!AE71, 'Staff Needed'!AG71)) -> 4247.666401 | BV75: ='Calc - SA_Resources'!BA101 -> 321.7929092 | BW75: ='Calc - SA_Resources'!BB101 -> 2316.908946 | BX75: =IF($BK$5=$BF$6, 'Staff Needed'!AH71, IF($BK$5=$BF$7, 'Staff Needed'!AJ71, 'Staff Needed'!AL71)) -> 0 | BY75: =IF($BK$5=$BF$6, 'Staff Needed'!AI71, IF($BK$5=$BF$7, 'Staff Needed'!AK71, 'Staff Needed'!AM71)) -> 0 | BZ75: ='Calc - SA_Resources'!BG101 -> 0 | CA75: ='Calc - SA_Resources'!BH101 -> 0
BJ76: 67 | BK76: =VLOOKUP(BJ76, 'Calc - Base'!$H$35:$I$400, 2) -> 2020-08-08 | BL76: =IF($BK$5=$BF$6, 'Staff Needed'!V72, IF($BK$5=$BF$7, 'Staff Needed'!X72, 'Staff Needed'!Z72)) -> 453.5224821 | BM76: =IF($BK$5=$BF$6, 'Staff Needed'!W72, IF($BK$5=$BF$7, 'Staff Needed'!Y72, 'Staff Needed'!AA72)) -> 4276.069117 | BN76: ='Calc - SA_Resources'!AT102 -> 323.9446301 | BO76: ='Calc - SA_Resources'!AU102 -> 2332.401336 | BT76: =IF($BK$5=$BF$6, 'Staff Needed'!AB72, IF($BK$5=$BF$7, 'Staff Needed'!AD72, 'Staff Needed'!AF72)) -> 453.5224821 | BU76: =IF($BK$5=$BF$6, 'Staff Needed'!AC72, IF($BK$5=$BF$7, 'Staff Needed'!AE72, 'Staff Needed'!AG72)) -> 4276.069117 | BV76: ='Calc - SA_Resources'!BA102 -> 323.9446301 | BW76: ='Calc - SA_Resources'!BB102 -> 2332.401336 | BX76: =IF($BK$5=$BF$6, 'Staff Needed'!AH72, IF($BK$5=$BF$7, 'Staff Needed'!AJ72, 'Staff Needed'!AL72)) -> 0 | BY76: =IF($BK$5=$BF$6, 'Staff Needed'!AI72, IF($BK$5=$BF$7, 'Staff Needed'!AK72, 'Staff Needed'!AM72)) -> 0 | BZ76: ='Calc - SA_Resources'!BG102 -> 0 | CA76: ='Calc - SA_Resources'!BH102 -> 0
BJ77: 68 | BK77: =VLOOKUP(BJ77, 'Calc - Base'!$H$35:$I$400, 2) -> 2020-08-09 | BL77: =IF($BK$5=$BF$6, 'Staff Needed'!V73, IF($BK$5=$BF$7, 'Staff Needed'!X73, 'Staff Needed'!Z73)) -> 454.6620381 | BM77: =IF($BK$5=$BF$6, 'Staff Needed'!W73, IF($BK$5=$BF$7, 'Staff Needed'!Y73, 'Staff Needed'!AA73)) -> 4286.813502 | BN77: ='Calc - SA_Resources'!AT103 -> 324.7585987 | BO77: ='Calc - SA_Resources'!AU103 -> 2338.26191 | BT77: =IF($BK$5=$BF$6, 'Staff Needed'!AB73, IF($BK$5=$BF$7, 'Staff Needed'!AD73, 'Staff Needed'!AF73)) -> 454.6620381 | BU77: =IF($BK$5=$BF$6, 'Staff Needed'!AC73, IF($BK$5=$BF$7, 'Staff Needed'!AE73, 'Staff Needed'!AG73)) -> 4286.813502 | BV77: ='Calc - SA_Resources'!BA103 -> 324.7585987 | BW77: ='Calc - SA_Resources'!BB103 -> 2338.26191 | BX77: =IF($BK$5=$BF$6, 'Staff Needed'!AH73, IF($BK$5=$BF$7, 'Staff Needed'!AJ73, 'Staff Needed'!AL73)) -> 0 | BY77: =IF($BK$5=$BF$6, 'Staff Needed'!AI73, IF($BK$5=$BF$7, 'Staff Needed'!AK73, 'Staff Needed'!AM73)) -> 0 | BZ77: ='Calc - SA_Resources'!BG103 -> 0 | CA77: ='Calc - SA_Resources'!BH103 -> 0
BJ78: 69 | BK78: =VLOOKUP(BJ78, 'Calc - Base'!$H$35:$I$400, 2) -> 2020-08-10 | BL78: =IF($BK$5=$BF$6, 'Staff Needed'!V74, IF($BK$5=$BF$7, 'Staff Needed'!X74, 'Staff Needed'!Z74)) -> 453.8869076 | BM78: =IF($BK$5=$BF$6, 'Staff Needed'!W74, IF($BK$5=$BF$7, 'Staff Needed'!Y74, 'Staff Needed'!AA74)) -> 4279.505128 | BN78: ='Calc - SA_Resources'!AT104 -> 324.204934 | BO78: ='Calc - SA_Resources'!AU104 -> 2334.275525 | BT78: =IF($BK$5=$BF$6, 'Staff Needed'!AB74, IF($BK$5=$BF$7, 'Staff Needed'!AD74, 'Staff Needed'!AF74)) -> 453.8869076 | BU78: =IF($BK$5=$BF$6, 'Staff Needed'!AC74, IF($BK$5=$BF$7, 'Staff Needed'!AE74, 'Staff Needed'!AG74)) -> 4279.505128 | BV78: ='Calc - SA_Resources'!BA104 -> 324.204934 | BW78: ='Calc - SA_Resources'!BB104 -> 2334.275525 | BX78: =IF($BK$5=$BF$6, 'Staff Needed'!AH74, IF($BK$5=$BF$7, 'Staff Needed'!AJ74, 'Staff Needed'!AL74)) -> 0 | BY78: =IF($BK$5=$BF$6, 'Staff Needed'!AI74, IF($BK$5=$BF$7, 'Staff Needed'!AK74, 'Staff Needed'!AM74)) -> 0 | BZ78: ='Calc - SA_Resources'!BG104 -> 0 | CA78: ='Calc - SA_Resources'!BH104 -> 0
BJ79: 70 | BK79: =VLOOKUP(BJ79, 'Calc - Base'!$H$35:$I$400, 2) -> 2020-08-11 | BL79: =IF($BK$5=$BF$6, 'Staff Needed'!V75, IF($BK$5=$BF$7, 'Staff Needed'!X75, 'Staff Needed'!Z75)) -> 451.1864972 | BM79: =IF($BK$5=$BF$6, 'Staff Needed'!W75, IF($BK$5=$BF$7, 'Staff Needed'!Y75, 'Staff Needed'!AA75)) -> 4254.044116 | BN79: ='Calc - SA_Resources'!AT105 -> 322.2760694 | BO79: ='Calc - SA_Resources'!AU105 -> 2320.3877 | BT79: =IF($BK$5=$BF$6, 'Staff Needed'!AB75, IF($BK$5=$BF$7, 'Staff Needed'!AD75, 'Staff Needed'!AF75)) -> 451.1864972 | BU79: =IF($BK$5=$BF$6, 'Staff Needed'!AC75, IF($BK$5=$BF$7, 'Staff Needed'!AE75, 'Staff Needed'!AG75)) -> 4254.044116 | BV79: ='Calc - SA_Resources'!BA105 -> 322.2760694 | BW79: ='Calc - SA_Resources'!BB105 -> 2320.3877 | BX79: =IF($BK$5=$BF$6, 'Staff Needed'!AH75, IF($BK$5=$BF$7, 'Staff Needed'!AJ75, 'Staff Needed'!AL75)) -> 0 | BY79: =IF($BK$5=$BF$6, 'Staff Needed'!AI75, IF($BK$5=$BF$7, 'Staff Needed'!AK75, 'Staff Needed'!AM75)) -> 0 | BZ79: ='Calc - SA_Resources'!BG105 -> 0 | CA79: ='Calc - SA_Resources'!BH105 -> 0
BJ80: 71 | BK80: =VLOOKUP(BJ80, 'Calc - Base'!$H$35:$I$400, 2) -> 2020-08-12 | BL80: =IF($BK$5=$BF$6, 'Staff Needed'!V76, IF($BK$5=$BF$7, 'Staff Needed'!X76, 'Staff Needed'!Z76)) -> 446.5826022 | BM80: =IF($BK$5=$BF$6, 'Staff Needed'!W76, IF($BK$5=$BF$7, 'Staff Needed'!Y76, 'Staff Needed'!AA76)) -> 4210.635963 | BN80: ='Calc - SA_Resources'!AT106 -> 318.987573 | BO80: ='Calc - SA_Resources'!AU106 -> 2296.710525 | BT80: =IF($BK$5=$BF$6, 'Staff Needed'!AB76, IF($BK$5=$BF$7, 'Staff Needed'!AD76, 'Staff Needed'!AF76)) -> 446.5826022 | BU80: =IF($BK$5=$BF$6, 'Staff Needed'!AC76, IF($BK$5=$BF$7, 'Staff Needed'!AE76, 'Staff Needed'!AG76)) -> 4210.635963 | BV80: ='Calc - SA_Resources'!BA106 -> 318.987573 | BW80: ='Calc - SA_Resources'!BB106 -> 2296.710525 | BX80: =IF($BK$5=$BF$6, 'Staff Needed'!AH76, IF($BK$5=$BF$7, 'Staff Needed'!AJ76, 'Staff Needed'!AL76)) -> 0 | BY80: =IF($BK$5=$BF$6, 'Staff Needed'!AI76, IF($BK$5=$BF$7, 'Staff Needed'!AK76, 'Staff Needed'!AM76)) -> 0 | BZ80: ='Calc - SA_Resources'!BG106 -> 0 | CA80: ='Calc - SA_Resources'!BH106 -> 0
BJ81: 72 | BK81: =VLOOKUP(BJ81, 'Calc - Base'!$H$35:$I$400, 2) -> 2020-08-13 | BL81: =IF($BK$5=$BF$6, 'Staff Needed'!V77, IF($BK$5=$BF$7, 'Staff Needed'!X77, 'Staff Needed'!Z77)) -> 440.1298413 | BM81: =IF($BK$5=$BF$6, 'Staff Needed'!W77, IF($BK$5=$BF$7, 'Staff Needed'!Y77, 'Staff Needed'!AA77)) -> 4149.795646 | BN81: ='Calc - SA_Resources'!AT107 -> 314.378458 | BO81: ='Calc - SA_Resources'!AU107 -> 2263.524898 | BT81: =IF($BK$5=$BF$6, 'Staff Needed'!AB77, IF($BK$5=$BF$7, 'Staff Needed'!AD77, 'Staff Needed'!AF77)) -> 440.1298413 | BU81: =IF($BK$5=$BF$6, 'Staff Needed'!AC77, IF($BK$5=$BF$7, 'Staff Needed'!AE77, 'Staff Needed'!AG77)) -> 4149.795646 | BV81: ='Calc - SA_Resources'!BA107 -> 314.378458 | BW81: ='Calc - SA_Resources'!BB107 -> 2263.524898 | BX81: =IF($BK$5=$BF$6, 'Staff Needed'!AH77, IF($BK$5=$BF$7, 'Staff Needed'!AJ77, 'Staff Needed'!AL77)) -> 0 | BY81: =IF($BK$5=$BF$6, 'Staff Needed'!AI77, IF($BK$5=$BF$7, 'Staff Needed'!AK77, 'Staff Needed'!AM77)) -> 0 | BZ81: ='Calc - SA_Resources'!BG107 -> 0 | CA81: ='Calc - SA_Resources'!BH107 -> 0
BJ82: 73 | BK82: =VLOOKUP(BJ82, 'Calc - Base'!$H$35:$I$400, 2) -> 2020-08-14 | BL82: =IF($BK$5=$BF$6, 'Staff Needed'!V78, IF($BK$5=$BF$7, 'Staff Needed'!X78, 'Staff Needed'!Z78)) -> 431.9141673 | BM82: =IF($BK$5=$BF$6, 'Staff Needed'!W78, IF($BK$5=$BF$7, 'Staff Needed'!Y78, 'Staff Needed'!AA78)) -> 4072.333577 | BN82: ='Calc - SA_Resources'!AT108 -> 308.5101195 | BO82: ='Calc - SA_Resources'!AU108 -> 2221.27286 | BT82: =IF($BK$5=$BF$6, 'Staff Needed'!AB78, IF($BK$5=$BF$7, 'Staff Needed'!AD78, 'Staff Needed'!AF78)) -> 431.9141673 | BU82: =IF($BK$5=$BF$6, 'Staff Needed'!AC78, IF($BK$5=$BF$7, 'Staff Needed'!AE78, 'Staff Needed'!AG78)) -> 4072.333577 | BV82: ='Calc - SA_Resources'!BA108 -> 308.5101195 | BW82: ='Calc - SA_Resources'!BB108 -> 2221.27286 | BX82: =IF($BK$5=$BF$6, 'Staff Needed'!AH78, IF($BK$5=$BF$7, 'Staff Needed'!AJ78, 'Staff Needed'!AL78)) -> 0 | BY82: =IF($BK$5=$BF$6, 'Staff Needed'!AI78, IF($BK$5=$BF$7, 'Staff Needed'!AK78, 'Staff Needed'!AM78)) -> 0 | BZ82: ='Calc - SA_Resources'!BG108 -> 0 | CA82: ='Calc - SA_Resources'!BH108 -> 0
BJ83: 74 | BK83: =VLOOKUP(BJ83, 'Calc - Base'!$H$35:$I$400, 2) -> 2020-08-15 | BL83: =IF($BK$5=$BF$6, 'Staff Needed'!V79, IF($BK$5=$BF$7, 'Staff Needed'!X79, 'Staff Needed'!Z79)) -> 422.0501394 | BM83: =IF($BK$5=$BF$6, 'Staff Needed'!W79, IF($BK$5=$BF$7, 'Staff Needed'!Y79, 'Staff Needed'!AA79)) -> 3979.329886 | BN83: ='Calc - SA_Resources'!AT109 -> 301.4643853 | BO83: ='Calc - SA_Resources'!AU109 -> 2170.543574 | BT83: =IF($BK$5=$BF$6, 'Staff Needed'!AB79, IF($BK$5=$BF$7, 'Staff Needed'!AD79, 'Staff Needed'!AF79)) -> 422.0501394 | BU83: =IF($BK$5=$BF$6, 'Staff Needed'!AC79, IF($BK$5=$BF$7, 'Staff Needed'!AE79, 'Staff Needed'!AG79)) -> 3979.329886 | BV83: ='Calc - SA_Resources'!BA109 -> 301.4643853 | BW83: ='Calc - SA_Resources'!BB109 -> 2170.543574 | BX83: =IF($BK$5=$BF$6, 'Staff Needed'!AH79, IF($BK$5=$BF$7, 'Staff Needed'!AJ79, 'Staff Needed'!AL79)) -> 0 | BY83: =IF($BK$5=$BF$6, 'Staff Needed'!AI79, IF($BK$5=$BF$7, 'Staff Needed'!AK79, 'Staff Needed'!AM79)) -> 0 | BZ83: ='Calc - SA_Resources'!BG109 -> 0 | CA83: ='Calc - SA_Resources'!BH109 -> 0
BJ84: 75 | BK84: =VLOOKUP(BJ84, 'Calc - Base'!$H$35:$I$400, 2) -> 2020-08-16 | BL84: =IF($BK$5=$BF$6, 'Staff Needed'!V80, IF($BK$5=$BF$7, 'Staff Needed'!X80, 'Staff Needed'!Z80)) -> 410.6774908 | BM84: =IF($BK$5=$BF$6, 'Staff Needed'!W80, IF($BK$5=$BF$7, 'Staff Needed'!Y80, 'Staff Needed'!AA80)) -> 3872.102056 | BN84: ='Calc - SA_Resources'!AT110 -> 293.3410649 | BO84: ='Calc - SA_Resources'!AU110 -> 2112.055667 | BT84: =IF($BK$5=$BF$6, 'Staff Needed'!AB80, IF($BK$5=$BF$7, 'Staff Needed'!AD80, 'Staff Needed'!AF80)) -> 410.6774908 | BU84: =IF($BK$5=$BF$6, 'Staff Needed'!AC80, IF($BK$5=$BF$7, 'Staff Needed'!AE80, 'Staff Needed'!AG80)) -> 3872.102056 | BV84: ='Calc - SA_Resources'!BA110 -> 293.3410649 | BW84: ='Calc - SA_Resources'!BB110 -> 2112.055667 | BX84: =IF($BK$5=$BF$6, 'Staff Needed'!AH80, IF($BK$5=$BF$7, 'Staff Needed'!AJ80, 'Staff Needed'!AL80)) -> 0 | BY84: =IF($BK$5=$BF$6, 'Staff Needed'!AI80, IF($BK$5=$BF$7, 'Staff Needed'!AK80, 'Staff Needed'!AM80)) -> 0 | BZ84: ='Calc - SA_Resources'!BG110 -> 0 | CA84: ='Calc - SA_Resources'!BH110 -> 0
BJ85: 76 | BK85: =VLOOKUP(BJ85, 'Calc - Base'!$H$35:$I$400, 2) -> 2020-08-17 | BL85: =IF($BK$5=$BF$6, 'Staff Needed'!V81, IF($BK$5=$BF$7, 'Staff Needed'!X81, 'Staff Needed'!Z81)) -> 397.9570259 | BM85: =IF($BK$5=$BF$6, 'Staff Needed'!W81, IF($BK$5=$BF$7, 'Staff Needed'!Y81, 'Staff Needed'!AA81)) -> 3752.166245 | BN85: ='Calc - SA_Resources'!AT111 -> 284.2550185 | BO85: ='Calc - SA_Resources'!AU111 -> 2046.636133 | BT85: =IF($BK$5=$BF$6, 'Staff Needed'!AB81, IF($BK$5=$BF$7, 'Staff Needed'!AD81, 'Staff Needed'!AF81)) -> 397.9570259 | BU85: =IF($BK$5=$BF$6, 'Staff Needed'!AC81, IF($BK$5=$BF$7, 'Staff Needed'!AE81, 'Staff Needed'!AG81)) -> 3752.166245 | BV85: ='Calc - SA_Resources'!BA111 -> 284.2550185 | BW85: ='Calc - SA_Resources'!BB111 -> 2046.636133 | BX85: =IF($BK$5=$BF$6, 'Staff Needed'!AH81, IF($BK$5=$BF$7, 'Staff Needed'!AJ81, 'Staff Needed'!AL81)) -> 0 | BY85: =IF($BK$5=$BF$6, 'Staff Needed'!AI81, IF($BK$5=$BF$7, 'Staff Needed'!AK81, 'Staff Needed'!AM81)) -> 0 | BZ85: ='Calc - SA_Resources'!BG111 -> 0 | CA85: ='Calc - SA_Resources'!BH111 -> 0
BJ86: 77 | BK86: =VLOOKUP(BJ86, 'Calc - Base'!$H$35:$I$400, 2) -> 2020-08-18 | BL86: =IF($BK$5=$BF$6, 'Staff Needed'!V82, IF($BK$5=$BF$7, 'Staff Needed'!X82, 'Staff Needed'!Z82)) -> 384.0656645 | BM86: =IF($BK$5=$BF$6, 'Staff Needed'!W82, IF($BK$5=$BF$7, 'Staff Needed'!Y82, 'Staff Needed'!AA82)) -> 3621.190551 | BN86: ='Calc - SA_Resources'!AT112 -> 274.3326175 | BO86: ='Calc - SA_Resources'!AU112 -> 1975.194846 | BT86: =IF($BK$5=$BF$6, 'Staff Needed'!AB82, IF($BK$5=$BF$7, 'Staff Needed'!AD82, 'Staff Needed'!AF82)) -> 384.0656645 | BU86: =IF($BK$5=$BF$6, 'Staff Needed'!AC82, IF($BK$5=$BF$7, 'Staff Needed'!AE82, 'Staff Needed'!AG82)) -> 3621.190551 | BV86: ='Calc - SA_Resources'!BA112 -> 274.3326175 | BW86: ='Calc - SA_Resources'!BB112 -> 1975.194846 | BX86: =IF($BK$5=$BF$6, 'Staff Needed'!AH82, IF($BK$5=$BF$7, 'Staff Needed'!AJ82, 'Staff Needed'!AL82)) -> 0 | BY86: =IF($BK$5=$BF$6, 'Staff Needed'!AI82, IF($BK$5=$BF$7, 'Staff Needed'!AK82, 'Staff Needed'!AM82)) -> 0 | BZ86: ='Calc - SA_Resources'!BG112 -> 0 | CA86: ='Calc - SA_Resources'!BH112 -> 0
BJ87: 78 | BK87: =VLOOKUP(BJ87, 'Calc - Base'!$H$35:$I$400, 2) -> 2020-08-19 | BL87: =IF($BK$5=$BF$6, 'Staff Needed'!V83, IF($BK$5=$BF$7, 'Staff Needed'!X83, 'Staff Needed'!Z83)) -> 369.191125 | BM87: =IF($BK$5=$BF$6, 'Staff Needed'!W83, IF($BK$5=$BF$7, 'Staff Needed'!Y83, 'Staff Needed'!AA83)) -> 3480.944893 | BN87: ='Calc - SA_Resources'!AT113 -> 263.7079464 | BO87: ='Calc - SA_Resources'!AU113 -> 1898.697214 | BT87: =IF($BK$5=$BF$6, 'Staff Needed'!AB83, IF($BK$5=$BF$7, 'Staff Needed'!AD83, 'Staff Needed'!AF83)) -> 369.191125 | BU87: =IF($BK$5=$BF$6, 'Staff Needed'!AC83, IF($BK$5=$BF$7, 'Staff Needed'!AE83, 'Staff Needed'!AG83)) -> 3480.944893 | BV87: ='Calc - SA_Resources'!BA113 -> 263.7079464 | BW87: ='Calc - SA_Resources'!BB113 -> 1898.697214 | BX87: =IF($BK$5=$BF$6, 'Staff Needed'!AH83, IF($BK$5=$BF$7, 'Staff Needed'!AJ83, 'Staff Needed'!AL83)) -> 0 | BY87: =IF($BK$5=$BF$6, 'Staff Needed'!AI83, IF($BK$5=$BF$7, 'Staff Needed'!AK83, 'Staff Needed'!AM83)) -> 0 | BZ87: ='Calc - SA_Resources'!BG113 -> 0 | CA87: ='Calc - SA_Resources'!BH113 -> 0
BJ88: 79 | BK88: =VLOOKUP(BJ88, 'Calc - Base'!$H$35:$I$400, 2) -> 2020-08-20 | BL88: =IF($BK$5=$BF$6, 'Staff Needed'!V84, IF($BK$5=$BF$7, 'Staff Needed'!X84, 'Staff Needed'!Z84)) -> 353.5266411 | BM88: =IF($BK$5=$BF$6, 'Staff Needed'!W84, IF($BK$5=$BF$7, 'Staff Needed'!Y84, 'Staff Needed'!AA84)) -> 3333.251187 | BN88: ='Calc - SA_Resources'!AT114 -> 252.5190293 | BO88: ='Calc - SA_Resources'!AU114 -> 1818.137011 | BT88: =IF($BK$5=$BF$6, 'Staff Needed'!AB84, IF($BK$5=$BF$7, 'Staff Needed'!AD84, 'Staff Needed'!AF84)) -> 353.5266411 | BU88: =IF($BK$5=$BF$6, 'Staff Needed'!AC84, IF($BK$5=$BF$7, 'Staff Needed'!AE84, 'Staff Needed'!AG84)) -> 3333.251187 | BV88: ='Calc - SA_Resources'!BA114 -> 252.5190293 | BW88: ='Calc - SA_Resources'!BB114 -> 1818.137011 | BX88: =IF($BK$5=$BF$6, 'Staff Needed'!AH84, IF($BK$5=$BF$7, 'Staff Needed'!AJ84, 'Staff Needed'!AL84)) -> 0 | BY88: =IF($BK$5=$BF$6, 'Staff Needed'!AI84, IF($BK$5=$BF$7, 'Staff Needed'!AK84, 'Staff Needed'!AM84)) -> 0 | BZ88: ='Calc - SA_Resources'!BG114 -> 0 | CA88: ='Calc - SA_Resources'!BH114 -> 0
BJ89: 80 | BK89: =VLOOKUP(BJ89, 'Calc - Base'!$H$35:$I$400, 2) -> 2020-08-21 | BL89: =IF($BK$5=$BF$6, 'Staff Needed'!V85, IF($BK$5=$BF$7, 'Staff Needed'!X85, 'Staff Needed'!Z85)) -> 337.2658855 | BM89: =IF($BK$5=$BF$6, 'Staff Needed'!W85, IF($BK$5=$BF$7, 'Staff Needed'!Y85, 'Staff Needed'!AA85)) -> 3179.935492 | BN89: ='Calc - SA_Resources'!AT115 -> 240.9042039 | BO89: ='Calc - SA_Resources'!AU115 -> 1734.510268 | BT89: =IF($BK$5=$BF$6, 'Staff Needed'!AB85, IF($BK$5=$BF$7, 'Staff Needed'!AD85, 'Staff Needed'!AF85)) -> 337.2658855 | BU89: =IF($BK$5=$BF$6, 'Staff Needed'!AC85, IF($BK$5=$BF$7, 'Staff Needed'!AE85, 'Staff Needed'!AG85)) -> 3179.935492 | BV89: ='Calc - SA_Resources'!BA115 -> 240.9042039 | BW89: ='Calc - SA_Resources'!BB115 -> 1734.510268 | BX89: =IF($BK$5=$BF$6, 'Staff Needed'!AH85, IF($BK$5=$BF$7, 'Staff Needed'!AJ85, 'Staff Needed'!AL85)) -> 0 | BY89: =IF($BK$5=$BF$6, 'Staff Needed'!AI85, IF($BK$5=$BF$7, 'Staff Needed'!AK85, 'Staff Needed'!AM85)) -> 0 | BZ89: ='Calc - SA_Resources'!BG115 -> 0 | CA89: ='Calc - SA_Resources'!BH115 -> 0
BJ90: 81 | BK90: =VLOOKUP(BJ90, 'Calc - Base'!$H$35:$I$400, 2) -> 2020-08-22 | BL90: =IF($BK$5=$BF$6, 'Staff Needed'!V86, IF($BK$5=$BF$7, 'Staff Needed'!X86, 'Staff Needed'!Z86)) -> 320.5981922 | BM90: =IF($BK$5=$BF$6, 'Staff Needed'!W86, IF($BK$5=$BF$7, 'Staff Needed'!Y86, 'Staff Needed'!AA86)) -> 3022.782955 | BN90: ='Calc - SA_Resources'!AT116 -> 228.9987087 | BO90: ='Calc - SA_Resources'!AU116 -> 1648.790703 | BT90: =IF($BK$5=$BF$6, 'Staff Needed'!AB86, IF($BK$5=$BF$7, 'Staff Needed'!AD86, 'Staff Needed'!AF86)) -> 320.5981922 | BU90: =IF($BK$5=$BF$6, 'Staff Needed'!AC86, IF($BK$5=$BF$7, 'Staff Needed'!AE86, 'Staff Needed'!AG86)) -> 3022.782955 | BV90: ='Calc - SA_Resources'!BA116 -> 228.9987087 | BW90: ='Calc - SA_Resources'!BB116 -> 1648.790703 | BX90: =IF($BK$5=$BF$6, 'Staff Needed'!AH86, IF($BK$5=$BF$7, 'Staff Needed'!AJ86, 'Staff Needed'!AL86)) -> 0 | BY90: =IF($BK$5=$BF$6, 'Staff Needed'!AI86, IF($BK$5=$BF$7, 'Staff Needed'!AK86, 'Staff Needed'!AM86)) -> 0 | BZ90: ='Calc - SA_Resources'!BG116 -> 0 | CA90: ='Calc - SA_Resources'!BH116 -> 0
BJ91: 82 | BK91: =VLOOKUP(BJ91, 'Calc - Base'!$H$35:$I$400, 2) -> 2020-08-23 | BL91: =IF($BK$5=$BF$6, 'Staff Needed'!V87, IF($BK$5=$BF$7, 'Staff Needed'!X87, 'Staff Needed'!Z87)) -> 303.7043572 | BM91: =IF($BK$5=$BF$6, 'Staff Needed'!W87, IF($BK$5=$BF$7, 'Staff Needed'!Y87, 'Staff Needed'!AA87)) -> 2863.498225 | BN91: ='Calc - SA_Resources'!AT117 -> 216.9316837 | BO91: ='Calc - SA_Resources'!AU117 -> 1561.908123 | BT91: =IF($BK$5=$BF$6, 'Staff Needed'!AB87, IF($BK$5=$BF$7, 'Staff Needed'!AD87, 'Staff Needed'!AF87)) -> 303.7043572 | BU91: =IF($BK$5=$BF$6, 'Staff Needed'!AC87, IF($BK$5=$BF$7, 'Staff Needed'!AE87, 'Staff Needed'!AG87)) -> 2863.498225 | BV91: ='Calc - SA_Resources'!BA117 -> 216.9316837 | BW91: ='Calc - SA_Resources'!BB117 -> 1561.908123 | BX91: =IF($BK$5=$BF$6, 'Staff Needed'!AH87, IF($BK$5=$BF$7, 'Staff Needed'!AJ87, 'Staff Needed'!AL87)) -> 0 | BY91: =IF($BK$5=$BF$6, 'Staff Needed'!AI87, IF($BK$5=$BF$7, 'Staff Needed'!AK87, 'Staff Needed'!AM87)) -> 0 | BZ91: ='Calc - SA_Resources'!BG117 -> 0 | CA91: ='Calc - SA_Resources'!BH117 -> 0
BJ92: 83 | BK92: =VLOOKUP(BJ92, 'Calc - Base'!$H$35:$I$400, 2) -> 2020-08-24 | BL92: =IF($BK$5=$BF$6, 'Staff Needed'!V88, IF($BK$5=$BF$7, 'Staff Needed'!X88, 'Staff Needed'!Z88)) -> 286.753191 | BM92: =IF($BK$5=$BF$6, 'Staff Needed'!W88, IF($BK$5=$BF$7, 'Staff Needed'!Y88, 'Staff Needed'!AA88)) -> 2703.672944 | BN92: ='Calc - SA_Resources'!AT118 -> 204.8237079 | BO92: ='Calc - SA_Resources'!AU118 -> 1474.730697 | BT92: =IF($BK$5=$BF$6, 'Staff Needed'!AB88, IF($BK$5=$BF$7, 'Staff Needed'!AD88, 'Staff Needed'!AF88)) -> 286.753191 | BU92: =IF($BK$5=$BF$6, 'Staff Needed'!AC88, IF($BK$5=$BF$7, 'Staff Needed'!AE88, 'Staff Needed'!AG88)) -> 2703.672944 | BV92: ='Calc - SA_Resources'!BA118 -> 204.8237079 | BW92: ='Calc - SA_Resources'!BB118 -> 1474.730697 | BX92: =IF($BK$5=$BF$6, 'Staff Needed'!AH88, IF($BK$5=$BF$7, 'Staff Needed'!AJ88, 'Staff Needed'!AL88)) -> 0 | BY92: =IF($BK$5=$BF$6, 'Staff Needed'!AI88, IF($BK$5=$BF$7, 'Staff Needed'!AK88, 'Staff Needed'!AM88)) -> 0 | BZ92: ='Calc - SA_Resources'!BG118 -> 0 | CA92: ='Calc - SA_Resources'!BH118 -> 0
BJ93: 84 | BK93: =VLOOKUP(BJ93, 'Calc - Base'!$H$35:$I$400, 2) -> 2020-08-25 | BL93: =IF($BK$5=$BF$6, 'Staff Needed'!V89, IF($BK$5=$BF$7, 'Staff Needed'!X89, 'Staff Needed'!Z89)) -> 269.8988522 | BM93: =IF($BK$5=$BF$6, 'Staff Needed'!W89, IF($BK$5=$BF$7, 'Staff Needed'!Y89, 'Staff Needed'!AA89)) -> 2544.760606 | BN93: ='Calc - SA_Resources'!AT119 -> 192.7848944 | BO93: ='Calc - SA_Resources'!AU119 -> 1388.05124 | BT93: =IF($BK$5=$BF$6, 'Staff Needed'!AB89, IF($BK$5=$BF$7, 'Staff Needed'!AD89, 'Staff Needed'!AF89)) -> 269.8988522 | BU93: =IF($BK$5=$BF$6, 'Staff Needed'!AC89, IF($BK$5=$BF$7, 'Staff Needed'!AE89, 'Staff Needed'!AG89)) -> 2544.760606 | BV93: ='Calc - SA_Resources'!BA119 -> 192.7848944 | BW93: ='Calc - SA_Resources'!BB119 -> 1388.05124 | BX93: =IF($BK$5=$BF$6, 'Staff Needed'!AH89, IF($BK$5=$BF$7, 'Staff Needed'!AJ89, 'Staff Needed'!AL89)) -> 0 | BY93: =IF($BK$5=$BF$6, 'Staff Needed'!AI89, IF($BK$5=$BF$7, 'Staff Needed'!AK89, 'Staff Needed'!AM89)) -> 0 | BZ93: ='Calc - SA_Resources'!BG119 -> 0 | CA93: ='Calc - SA_Resources'!BH119 -> 0
BJ94: 85 | BK94: =VLOOKUP(BJ94, 'Calc - Base'!$H$35:$I$400, 2) -> 2020-08-26 | BL94: =IF($BK$5=$BF$6, 'Staff Needed'!V90, IF($BK$5=$BF$7, 'Staff Needed'!X90, 'Staff Needed'!Z90)) -> 253.2789343 | BM94: =IF($BK$5=$BF$6, 'Staff Needed'!W90, IF($BK$5=$BF$7, 'Staff Needed'!Y90, 'Staff Needed'!AA90)) -> 2388.058523 | BN94: ='Calc - SA_Resources'!AT120 -> 180.9135245 | BO94: ='Calc - SA_Resources'!AU120 -> 1302.577376 | BT94: =IF($BK$5=$BF$6, 'Staff Needed'!AB90, IF($BK$5=$BF$7, 'Staff Needed'!AD90, 'Staff Needed'!AF90)) -> 253.2789343 | BU94: =IF($BK$5=$BF$6, 'Staff Needed'!AC90, IF($BK$5=$BF$7, 'Staff Needed'!AE90, 'Staff Needed'!AG90)) -> 2388.058523 | BV94: ='Calc - SA_Resources'!BA120 -> 180.9135245 | BW94: ='Calc - SA_Resources'!BB120 -> 1302.577376 | BX94: =IF($BK$5=$BF$6, 'Staff Needed'!AH90, IF($BK$5=$BF$7, 'Staff Needed'!AJ90, 'Staff Needed'!AL90)) -> 0 | BY94: =IF($BK$5=$BF$6, 'Staff Needed'!AI90, IF($BK$5=$BF$7, 'Staff Needed'!AK90, 'Staff Needed'!AM90)) -> 0 | BZ94: ='Calc - SA_Resources'!BG120 -> 0 | CA94: ='Calc - SA_Resources'!BH120 -> 0
BJ95: 86 | BK95: =VLOOKUP(BJ95, 'Calc - Base'!$H$35:$I$400, 2) -> 2020-08-27 | BL95: =IF($BK$5=$BF$6, 'Staff Needed'!V91, IF($BK$5=$BF$7, 'Staff Needed'!X91, 'Staff Needed'!Z91)) -> 237.0133156 | BM95: =IF($BK$5=$BF$6, 'Staff Needed'!W91, IF($BK$5=$BF$7, 'Staff Needed'!Y91, 'Staff Needed'!AA91)) -> 2234.696975 | BN95: ='Calc - SA_Resources'!AT121 -> 169.2952254 | BO95: ='Calc - SA_Resources'!AU121 -> 1218.925623 | BT95: =IF($BK$5=$BF$6, 'Staff Needed'!AB91, IF($BK$5=$BF$7, 'Staff Needed'!AD91, 'Staff Needed'!AF91)) -> 237.0133156 | BU95: =IF($BK$5=$BF$6, 'Staff Needed'!AC91, IF($BK$5=$BF$7, 'Staff Needed'!AE91, 'Staff Needed'!AG91)) -> 2234.696975 | BV95: ='Calc - SA_Resources'!BA121 -> 169.2952254 | BW95: ='Calc - SA_Resources'!BB121 -> 1218.925623 | BX95: =IF($BK$5=$BF$6, 'Staff Needed'!AH91, IF($BK$5=$BF$7, 'Staff Needed'!AJ91, 'Staff Needed'!AL91)) -> 0 | BY95: =IF($BK$5=$BF$6, 'Staff Needed'!AI91, IF($BK$5=$BF$7, 'Staff Needed'!AK91, 'Staff Needed'!AM91)) -> 0 | BZ95: ='Calc - SA_Resources'!BG121 -> 0 | CA95: ='Calc - SA_Resources'!BH121 -> 0
BJ96: 87 | BK96: =VLOOKUP(BJ96, 'Calc - Base'!$H$35:$I$400, 2) -> 2020-08-28 | BL96: =IF($BK$5=$BF$6, 'Staff Needed'!V92, IF($BK$5=$BF$7, 'Staff Needed'!X92, 'Staff Needed'!Z92)) -> 221.203722 | BM96: =IF($BK$5=$BF$6, 'Staff Needed'!W92, IF($BK$5=$BF$7, 'Staff Needed'!Y92, 'Staff Needed'!AA92)) -> 2085.635093 | BN96: ='Calc - SA_Resources'!AT122 -> 158.0026586 | BO96: ='Calc - SA_Resources'!AU122 -> 1137.619142 | BT96: =IF($BK$5=$BF$6, 'Staff Needed'!AB92, IF($BK$5=$BF$7, 'Staff Needed'!AD92, 'Staff Needed'!AF92)) -> 221.203722 | BU96: =IF($BK$5=$BF$6, 'Staff Needed'!AC92, IF($BK$5=$BF$7, 'Staff Needed'!AE92, 'Staff Needed'!AG92)) -> 2085.635093 | BV96: ='Calc - SA_Resources'!BA122 -> 158.0026586 | BW96: ='Calc - SA_Resources'!BB122 -> 1137.619142 | BX96: =IF($BK$5=$BF$6, 'Staff Needed'!AH92, IF($BK$5=$BF$7, 'Staff Needed'!AJ92, 'Staff Needed'!AL92)) -> 0 | BY96: =IF($BK$5=$BF$6, 'Staff Needed'!AI92, IF($BK$5=$BF$7, 'Staff Needed'!AK92, 'Staff Needed'!AM92)) -> 0 | BZ96: ='Calc - SA_Resources'!BG122 -> 0 | CA96: ='Calc - SA_Resources'!BH122 -> 0
BJ97: 88 | BK97: =VLOOKUP(BJ97, 'Calc - Base'!$H$35:$I$400, 2) -> 2020-08-29 | BL97: =IF($BK$5=$BF$6, 'Staff Needed'!V93, IF($BK$5=$BF$7, 'Staff Needed'!X93, 'Staff Needed'!Z93)) -> 205.9339001 | BM97: =IF($BK$5=$BF$6, 'Staff Needed'!W93, IF($BK$5=$BF$7, 'Staff Needed'!Y93, 'Staff Needed'!AA93)) -> 1941.662486 | BN97: ='Calc - SA_Resources'!AT123 -> 147.0956429 | BO97: ='Calc - SA_Resources'!AU123 -> 1059.088629 | BT97: =IF($BK$5=$BF$6, 'Staff Needed'!AB93, IF($BK$5=$BF$7, 'Staff Needed'!AD93, 'Staff Needed'!AF93)) -> 205.9339001 | BU97: =IF($BK$5=$BF$6, 'Staff Needed'!AC93, IF($BK$5=$BF$7, 'Staff Needed'!AE93, 'Staff Needed'!AG93)) -> 1941.662486 | BV97: ='Calc - SA_Resources'!BA123 -> 147.0956429 | BW97: ='Calc - SA_Resources'!BB123 -> 1059.088629 | BX97: =IF($BK$5=$BF$6, 'Staff Needed'!AH93, IF($BK$5=$BF$7, 'Staff Needed'!AJ93, 'Staff Needed'!AL93)) -> 0 | BY97: =IF($BK$5=$BF$6, 'Staff Needed'!AI93, IF($BK$5=$BF$7, 'Staff Needed'!AK93, 'Staff Needed'!AM93)) -> 0 | BZ97: ='Calc - SA_Resources'!BG123 -> 0 | CA97: ='Calc - SA_Resources'!BH123 -> 0
BJ98: 89 | BK98: =VLOOKUP(BJ98, 'Calc - Base'!$H$35:$I$400, 2) -> 2020-08-30 | BL98: =IF($BK$5=$BF$6, 'Staff Needed'!V94, IF($BK$5=$BF$7, 'Staff Needed'!X94, 'Staff Needed'!Z94)) -> 191.2702821 | BM98: =IF($BK$5=$BF$6, 'Staff Needed'!W94, IF($BK$5=$BF$7, 'Staff Needed'!Y94, 'Staff Needed'!AA94)) -> 1803.405517 | BN98: ='Calc - SA_Resources'!AT124 -> 136.6216301 | BO98: ='Calc - SA_Resources'!AU124 -> 983.6757368 | BT98: =IF($BK$5=$BF$6, 'Staff Needed'!AB94, IF($BK$5=$BF$7, 'Staff Needed'!AD94, 'Staff Needed'!AF94)) -> 191.2702821 | BU98: =IF($BK$5=$BF$6, 'Staff Needed'!AC94, IF($BK$5=$BF$7, 'Staff Needed'!AE94, 'Staff Needed'!AG94)) -> 1803.405517 | BV98: ='Calc - SA_Resources'!BA124 -> 136.6216301 | BW98: ='Calc - SA_Resources'!BB124 -> 983.6757368 | BX98: =IF($BK$5=$BF$6, 'Staff Needed'!AH94, IF($BK$5=$BF$7, 'Staff Needed'!AJ94, 'Staff Needed'!AL94)) -> 0 | BY98: =IF($BK$5=$BF$6, 'Staff Needed'!AI94, IF($BK$5=$BF$7, 'Staff Needed'!AK94, 'Staff Needed'!AM94)) -> 0 | BZ98: ='Calc - SA_Resources'!BG124 -> 0 | CA98: ='Calc - SA_Resources'!BH124 -> 0
BJ99: 90 | BK99: =VLOOKUP(BJ99, 'Calc - Base'!$H$35:$I$400, 2) -> 2020-08-31 | BL99: =IF($BK$5=$BF$6, 'Staff Needed'!V95, IF($BK$5=$BF$7, 'Staff Needed'!X95, 'Staff Needed'!Z95)) -> 177.2630458 | BM99: =IF($BK$5=$BF$6, 'Staff Needed'!W95, IF($BK$5=$BF$7, 'Staff Needed'!Y95, 'Staff Needed'!AA95)) -> 1671.337289 | BN99: ='Calc - SA_Resources'!AT125 -> 126.6164613 | BO99: ='Calc - SA_Resources'!AU125 -> 911.6385215 | BT99: =IF($BK$5=$BF$6, 'Staff Needed'!AB95, IF($BK$5=$BF$7, 'Staff Needed'!AD95, 'Staff Needed'!AF95)) -> 177.2630458 | BU99: =IF($BK$5=$BF$6, 'Staff Needed'!AC95, IF($BK$5=$BF$7, 'Staff Needed'!AE95, 'Staff Needed'!AG95)) -> 1671.337289 | BV99: ='Calc - SA_Resources'!BA125 -> 126.6164613 | BW99: ='Calc - SA_Resources'!BB125 -> 911.6385215 | BX99: =IF($BK$5=$BF$6, 'Staff Needed'!AH95, IF($BK$5=$BF$7, 'Staff Needed'!AJ95, 'Staff Needed'!AL95)) -> 0 | BY99: =IF($BK$5=$BF$6, 'Staff Needed'!AI95, IF($BK$5=$BF$7, 'Staff Needed'!AK95, 'Staff Needed'!AM95)) -> 0 | BZ99: ='Calc - SA_Resources'!BG125 -> 0 | CA99: ='Calc - SA_Resources'!BH125 -> 0
BJ100: 91 | BK100: =VLOOKUP(BJ100, 'Calc - Base'!$H$35:$I$400, 2) -> 2020-09-01 | BL100: =IF($BK$5=$BF$6, 'Staff Needed'!V96, IF($BK$5=$BF$7, 'Staff Needed'!X96, 'Staff Needed'!Z96)) -> 163.9474614 | BM100: =IF($BK$5=$BF$6, 'Staff Needed'!W96, IF($BK$5=$BF$7, 'Staff Needed'!Y96, 'Staff Needed'!AA96)) -> 1545.79035 | BN100: ='Calc - SA_Resources'!AT126 -> 117.1053296 | BO100: ='Calc - SA_Resources'!AU126 -> 843.1583729 | BT100: =IF($BK$5=$BF$6, 'Staff Needed'!AB96, IF($BK$5=$BF$7, 'Staff Needed'!AD96, 'Staff Needed'!AF96)) -> 163.9474614 | BU100: =IF($BK$5=$BF$6, 'Staff Needed'!AC96, IF($BK$5=$BF$7, 'Staff Needed'!AE96, 'Staff Needed'!AG96)) -> 1545.79035 | BV100: ='Calc - SA_Resources'!BA126 -> 117.1053296 | BW100: ='Calc - SA_Resources'!BB126 -> 843.1583729 | BX100: =IF($BK$5=$BF$6, 'Staff Needed'!AH96, IF($BK$5=$BF$7, 'Staff Needed'!AJ96, 'Staff Needed'!AL96)) -> 0 | BY100: =IF($BK$5=$BF$6, 'Staff Needed'!AI96, IF($BK$5=$BF$7, 'Staff Needed'!AK96, 'Staff Needed'!AM96)) -> 0 | BZ100: ='Calc - SA_Resources'!BG126 -> 0 | CA100: ='Calc - SA_Resources'!BH126 -> 0
BJ101: 92 | BK101: =VLOOKUP(BJ101, 'Calc - Base'!$H$35:$I$400, 2) -> 2020-09-02 | BL101: =IF($BK$5=$BF$6, 'Staff Needed'!V97, IF($BK$5=$BF$7, 'Staff Needed'!X97, 'Staff Needed'!Z97)) -> 151.345421 | BM101: =IF($BK$5=$BF$6, 'Staff Needed'!W97, IF($BK$5=$BF$7, 'Staff Needed'!Y97, 'Staff Needed'!AA97)) -> 1426.971112 | BN101: ='Calc - SA_Resources'!AT127 -> 108.1038722 | BO101: ='Calc - SA_Resources'!AU127 -> 778.3478795 | BT101: =IF($BK$5=$BF$6, 'Staff Needed'!AB97, IF($BK$5=$BF$7, 'Staff Needed'!AD97, 'Staff Needed'!AF97)) -> 151.345421 | BU101: =IF($BK$5=$BF$6, 'Staff Needed'!AC97, IF($BK$5=$BF$7, 'Staff Needed'!AE97, 'Staff Needed'!AG97)) -> 1426.971112 | BV101: ='Calc - SA_Resources'!BA127 -> 108.1038722 | BW101: ='Calc - SA_Resources'!BB127 -> 778.3478795 | BX101: =IF($BK$5=$BF$6, 'Staff Needed'!AH97, IF($BK$5=$BF$7, 'Staff Needed'!AJ97, 'Staff Needed'!AL97)) -> 0 | BY101: =IF($BK$5=$BF$6, 'Staff Needed'!AI97, IF($BK$5=$BF$7, 'Staff Needed'!AK97, 'Staff Needed'!AM97)) -> 0 | BZ101: ='Calc - SA_Resources'!BG127 -> 0 | CA101: ='Calc - SA_Resources'!BH127 -> 0
BJ102: 93 | BK102: =VLOOKUP(BJ102, 'Calc - Base'!$H$35:$I$400, 2) -> 2020-09-03 | BL102: =IF($BK$5=$BF$6, 'Staff Needed'!V98, IF($BK$5=$BF$7, 'Staff Needed'!X98, 'Staff Needed'!Z98)) -> 139.4670581 | BM102: =IF($BK$5=$BF$6, 'Staff Needed'!W98, IF($BK$5=$BF$7, 'Staff Needed'!Y98, 'Staff Needed'!AA98)) -> 1314.975119 | BN102: ='Calc - SA_Resources'!AT128 -> 99.61932721 | BO102: ='Calc - SA_Resources'!AU128 -> 717.2591559 | BT102: =IF($BK$5=$BF$6, 'Staff Needed'!AB98, IF($BK$5=$BF$7, 'Staff Needed'!AD98, 'Staff Needed'!AF98)) -> 139.4670581 | BU102: =IF($BK$5=$BF$6, 'Staff Needed'!AC98, IF($BK$5=$BF$7, 'Staff Needed'!AE98, 'Staff Needed'!AG98)) -> 1314.975119 | BV102: ='Calc - SA_Resources'!BA128 -> 99.61932721 | BW102: ='Calc - SA_Resources'!BB128 -> 717.2591559 | BX102: =IF($BK$5=$BF$6, 'Staff Needed'!AH98, IF($BK$5=$BF$7, 'Staff Needed'!AJ98, 'Staff Needed'!AL98)) -> 0 | BY102: =IF($BK$5=$BF$6, 'Staff Needed'!AI98, IF($BK$5=$BF$7, 'Staff Needed'!AK98, 'Staff Needed'!AM98)) -> 0 | BZ102: ='Calc - SA_Resources'!BG128 -> 0 | CA102: ='Calc - SA_Resources'!BH128 -> 0
BJ103: 94 | BK103: =VLOOKUP(BJ103, 'Calc - Base'!$H$35:$I$400, 2) -> 2020-09-04 | BL103: =IF($BK$5=$BF$6, 'Staff Needed'!V99, IF($BK$5=$BF$7, 'Staff Needed'!X99, 'Staff Needed'!Z99)) -> 128.3123868 | BM103: =IF($BK$5=$BF$6, 'Staff Needed'!W99, IF($BK$5=$BF$7, 'Staff Needed'!Y99, 'Staff Needed'!AA99)) -> 1209.802504 | BN103: ='Calc - SA_Resources'!AT129 -> 91.65170488 | BO103: ='Calc - SA_Resources'!AU129 -> 659.8922752 | BT103: =IF($BK$5=$BF$6, 'Staff Needed'!AB99, IF($BK$5=$BF$7, 'Staff Needed'!AD99, 'Staff Needed'!AF99)) -> 128.3123868 | BU103: =IF($BK$5=$BF$6, 'Staff Needed'!AC99, IF($BK$5=$BF$7, 'Staff Needed'!AE99, 'Staff Needed'!AG99)) -> 1209.802504 | BV103: ='Calc - SA_Resources'!BA129 -> 91.65170488 | BW103: ='Calc - SA_Resources'!BB129 -> 659.8922752 | BX103: =IF($BK$5=$BF$6, 'Staff Needed'!AH99, IF($BK$5=$BF$7, 'Staff Needed'!AJ99, 'Staff Needed'!AL99)) -> 0 | BY103: =IF($BK$5=$BF$6, 'Staff Needed'!AI99, IF($BK$5=$BF$7, 'Staff Needed'!AK99, 'Staff Needed'!AM99)) -> 0 | BZ103: ='Calc - SA_Resources'!BG129 -> 0 | CA103: ='Calc - SA_Resources'!BH129 -> 0
BJ104: 95 | BK104: =VLOOKUP(BJ104, 'Calc - Base'!$H$35:$I$400, 2) -> 2020-09-05 | BL104: =IF($BK$5=$BF$6, 'Staff Needed'!V100, IF($BK$5=$BF$7, 'Staff Needed'!X100, 'Staff Needed'!Z100)) -> 117.8729044 | BM104: =IF($BK$5=$BF$6, 'Staff Needed'!W100, IF($BK$5=$BF$7, 'Staff Needed'!Y100, 'Staff Needed'!AA100)) -> 1111.373099 | BN104: ='Calc - SA_Resources'!AT130 -> 84.19493175 | BO104: ='Calc - SA_Resources'!AU130 -> 606.2035086 | BT104: =IF($BK$5=$BF$6, 'Staff Needed'!AB100, IF($BK$5=$BF$7, 'Staff Needed'!AD100, 'Staff Needed'!AF100)) -> 117.8729044 | BU104: =IF($BK$5=$BF$6, 'Staff Needed'!AC100, IF($BK$5=$BF$7, 'Staff Needed'!AE100, 'Staff Needed'!AG100)) -> 1111.373099 | BV104: ='Calc - SA_Resources'!BA130 -> 84.19493175 | BW104: ='Calc - SA_Resources'!BB130 -> 606.2035086 | BX104: =IF($BK$5=$BF$6, 'Staff Needed'!AH100, IF($BK$5=$BF$7, 'Staff Needed'!AJ100, 'Staff Needed'!AL100)) -> 0 | BY104: =IF($BK$5=$BF$6, 'Staff Needed'!AI100, IF($BK$5=$BF$7, 'Staff Needed'!AK100, 'Staff Needed'!AM100)) -> 0 | BZ104: ='Calc - SA_Resources'!BG130 -> 0 | CA104: ='Calc - SA_Resources'!BH130 -> 0
BJ105: 96 | BK105: =VLOOKUP(BJ105, 'Calc - Base'!$H$35:$I$400, 2) -> 2020-09-06 | BL105: =IF($BK$5=$BF$6, 'Staff Needed'!V101, IF($BK$5=$BF$7, 'Staff Needed'!X101, 'Staff Needed'!Z101)) -> 108.1331096 | BM105: =IF($BK$5=$BF$6, 'Staff Needed'!W101, IF($BK$5=$BF$7, 'Staff Needed'!Y101, 'Staff Needed'!AA101)) -> 1019.540748 | BN105: ='Calc - SA_Resources'!AT131 -> 77.23793545 | BO105: ='Calc - SA_Resources'!AU131 -> 556.1131353 | BT105: =IF($BK$5=$BF$6, 'Staff Needed'!AB101, IF($BK$5=$BF$7, 'Staff Needed'!AD101, 'Staff Needed'!AF101)) -> 108.1331096 | BU105: =IF($BK$5=$BF$6, 'Staff Needed'!AC101, IF($BK$5=$BF$7, 'Staff Needed'!AE101, 'Staff Needed'!AG101)) -> 1019.540748 | BV105: ='Calc - SA_Resources'!BA131 -> 77.23793545 | BW105: ='Calc - SA_Resources'!BB131 -> 556.1131353 | BX105: =IF($BK$5=$BF$6, 'Staff Needed'!AH101, IF($BK$5=$BF$7, 'Staff Needed'!AJ101, 'Staff Needed'!AL101)) -> 0 | BY105: =IF($BK$5=$BF$6, 'Staff Needed'!AI101, IF($BK$5=$BF$7, 'Staff Needed'!AK101, 'Staff Needed'!AM101)) -> 0 | BZ105: ='Calc - SA_Resources'!BG131 -> 0 | CA105: ='Calc - SA_Resources'!BH131 -> 0
BJ106: 97 | BK106: =VLOOKUP(BJ106, 'Calc - Base'!$H$35:$I$400, 2) -> 2020-09-07 | BL106: =IF($BK$5=$BF$6, 'Staff Needed'!V102, IF($BK$5=$BF$7, 'Staff Needed'!X102, 'Staff Needed'!Z102)) -> 99.07190556 | BM106: =IF($BK$5=$BF$6, 'Staff Needed'!W102, IF($BK$5=$BF$7, 'Staff Needed'!Y102, 'Staff Needed'!AA102)) -> 934.1065382 | BN106: ='Calc - SA_Resources'!AT132 -> 70.76564683 | BO106: ='Calc - SA_Resources'!AU132 -> 509.5126572 | BT106: =IF($BK$5=$BF$6, 'Staff Needed'!AB102, IF($BK$5=$BF$7, 'Staff Needed'!AD102, 'Staff Needed'!AF102)) -> 99.07190556 | BU106: =IF($BK$5=$BF$6, 'Staff Needed'!AC102, IF($BK$5=$BF$7, 'Staff Needed'!AE102, 'Staff Needed'!AG102)) -> 934.1065382 | BV106: ='Calc - SA_Resources'!BA132 -> 70.76564683 | BW106: ='Calc - SA_Resources'!BB132 -> 509.5126572 | BX106: =IF($BK$5=$BF$6, 'Staff Needed'!AH102, IF($BK$5=$BF$7, 'Staff Needed'!AJ102, 'Staff Needed'!AL102)) -> 0 | BY106: =IF($BK$5=$BF$6, 'Staff Needed'!AI102, IF($BK$5=$BF$7, 'Staff Needed'!AK102, 'Staff Needed'!AM102)) -> 0 | BZ106: ='Calc - SA_Resources'!BG132 -> 0 | CA106: ='Calc - SA_Resources'!BH132 -> 0
BJ107: 98 | BK107: =VLOOKUP(BJ107, 'Calc - Base'!$H$35:$I$400, 2) -> 2020-09-08 | BL107: =IF($BK$5=$BF$6, 'Staff Needed'!V103, IF($BK$5=$BF$7, 'Staff Needed'!X103, 'Staff Needed'!Z103)) -> 90.66386912 | BM107: =IF($BK$5=$BF$6, 'Staff Needed'!W103, IF($BK$5=$BF$7, 'Staff Needed'!Y103, 'Staff Needed'!AA103)) -> 854.830766 | BN107: ='Calc - SA_Resources'!AT133 -> 64.75990652 | BO107: ='Calc - SA_Resources'!AU133 -> 466.2713269 | BT107: =IF($BK$5=$BF$6, 'Staff Needed'!AB103, IF($BK$5=$BF$7, 'Staff Needed'!AD103, 'Staff Needed'!AF103)) -> 90.66386912 | BU107: =IF($BK$5=$BF$6, 'Staff Needed'!AC103, IF($BK$5=$BF$7, 'Staff Needed'!AE103, 'Staff Needed'!AG103)) -> 854.830766 | BV107: ='Calc - SA_Resources'!BA133 -> 64.75990652 | BW107: ='Calc - SA_Resources'!BB133 -> 466.2713269 | BX107: =IF($BK$5=$BF$6, 'Staff Needed'!AH103, IF($BK$5=$BF$7, 'Staff Needed'!AJ103, 'Staff Needed'!AL103)) -> 0 | BY107: =IF($BK$5=$BF$6, 'Staff Needed'!AI103, IF($BK$5=$BF$7, 'Staff Needed'!AK103, 'Staff Needed'!AM103)) -> 0 | BZ107: ='Calc - SA_Resources'!BG133 -> 0 | CA107: ='Calc - SA_Resources'!BH133 -> 0
BJ108: 99 | BK108: =VLOOKUP(BJ108, 'Calc - Base'!$H$35:$I$400, 2) -> 2020-09-09 | BL108: =IF($BK$5=$BF$6, 'Staff Needed'!V104, IF($BK$5=$BF$7, 'Staff Needed'!X104, 'Staff Needed'!Z104)) -> 82.88037716 | BM108: =IF($BK$5=$BF$6, 'Staff Needed'!W104, IF($BK$5=$BF$7, 'Staff Needed'!Y104, 'Staff Needed'!AA104)) -> 781.4435561 | BN108: ='Calc - SA_Resources'!AT134 -> 59.2002694 | BO108: ='Calc - SA_Resources'!AU134 -> 426.2419397 | BT108: =IF($BK$5=$BF$6, 'Staff Needed'!AB104, IF($BK$5=$BF$7, 'Staff Needed'!AD104, 'Staff Needed'!AF104)) -> 82.88037716 | BU108: =IF($BK$5=$BF$6, 'Staff Needed'!AC104, IF($BK$5=$BF$7, 'Staff Needed'!AE104, 'Staff Needed'!AG104)) -> 781.4435561 | BV108: ='Calc - SA_Resources'!BA134 -> 59.2002694 | BW108: ='Calc - SA_Resources'!BB134 -> 426.2419397 | BX108: =IF($BK$5=$BF$6, 'Staff Needed'!AH104, IF($BK$5=$BF$7, 'Staff Needed'!AJ104, 'Staff Needed'!AL104)) -> 0 | BY108: =IF($BK$5=$BF$6, 'Staff Needed'!AI104, IF($BK$5=$BF$7, 'Staff Needed'!AK104, 'Staff Needed'!AM104)) -> 0 | BZ108: ='Calc - SA_Resources'!BG134 -> 0 | CA108: ='Calc - SA_Resources'!BH134 -> 0
BJ109: 100 | BK109: =VLOOKUP(BJ109, 'Calc - Base'!$H$35:$I$400, 2) -> 2020-09-10 | BL109: =IF($BK$5=$BF$6, 'Staff Needed'!V105, IF($BK$5=$BF$7, 'Staff Needed'!X105, 'Staff Needed'!Z105)) -> 75.69058693 | BM109: =IF($BK$5=$BF$6, 'Staff Needed'!W105, IF($BK$5=$BF$7, 'Staff Needed'!Y105, 'Staff Needed'!AA105)) -> 713.6541053 | BN109: ='Calc - SA_Resources'!AT135 -> 54.06470495 | BO109: ='Calc - SA_Resources'!AU135 -> 389.2658756 | BT109: =IF($BK$5=$BF$6, 'Staff Needed'!AB105, IF($BK$5=$BF$7, 'Staff Needed'!AD105, 'Staff Needed'!AF105)) -> 75.69058693 | BU109: =IF($BK$5=$BF$6, 'Staff Needed'!AC105, IF($BK$5=$BF$7, 'Staff Needed'!AE105, 'Staff Needed'!AG105)) -> 713.6541053 | BV109: ='Calc - SA_Resources'!BA135 -> 54.06470495 | BW109: ='Calc - SA_Resources'!BB135 -> 389.2658756 | BX109: =IF($BK$5=$BF$6, 'Staff Needed'!AH105, IF($BK$5=$BF$7, 'Staff Needed'!AJ105, 'Staff Needed'!AL105)) -> 0 | BY109: =IF($BK$5=$BF$6, 'Staff Needed'!AI105, IF($BK$5=$BF$7, 'Staff Needed'!AK105, 'Staff Needed'!AM105)) -> 0 | BZ109: ='Calc - SA_Resources'!BG135 -> 0 | CA109: ='Calc - SA_Resources'!BH135 -> 0
BJ110: 101 | BK110: =VLOOKUP(BJ110, 'Calc - Base'!$H$35:$I$400, 2) -> 2020-09-11 | BL110: =IF($BK$5=$BF$6, 'Staff Needed'!V106, IF($BK$5=$BF$7, 'Staff Needed'!X106, 'Staff Needed'!Z106)) -> 69.06227432 | BM110: =IF($BK$5=$BF$6, 'Staff Needed'!W106, IF($BK$5=$BF$7, 'Staff Needed'!Y106, 'Staff Needed'!AA106)) -> 651.1585865 | BN110: ='Calc - SA_Resources'!AT136 -> 49.33019594 | BO110: ='Calc - SA_Resources'!AU136 -> 355.1774108 | BT110: =IF($BK$5=$BF$6, 'Staff Needed'!AB106, IF($BK$5=$BF$7, 'Staff Needed'!AD106, 'Staff Needed'!AF106)) -> 69.06227432 | BU110: =IF($BK$5=$BF$6, 'Staff Needed'!AC106, IF($BK$5=$BF$7, 'Staff Needed'!AE106, 'Staff Needed'!AG106)) -> 651.1585865 | BV110: ='Calc - SA_Resources'!BA136 -> 49.33019594 | BW110: ='Calc - SA_Resources'!BB136 -> 355.1774108 | BX110: =IF($BK$5=$BF$6, 'Staff Needed'!AH106, IF($BK$5=$BF$7, 'Staff Needed'!AJ106, 'Staff Needed'!AL106)) -> 0 | BY110: =IF($BK$5=$BF$6, 'Staff Needed'!AI106, IF($BK$5=$BF$7, 'Staff Needed'!AK106, 'Staff Needed'!AM106)) -> 0 | BZ110: ='Calc - SA_Resources'!BG136 -> 0 | CA110: ='Calc - SA_Resources'!BH136 -> 0
BJ111: 102 | BK111: =VLOOKUP(BJ111, 'Calc - Base'!$H$35:$I$400, 2) -> 2020-09-12 | BL111: =IF($BK$5=$BF$6, 'Staff Needed'!V107, IF($BK$5=$BF$7, 'Staff Needed'!X107, 'Staff Needed'!Z107)) -> 62.96253816 | BM111: =IF($BK$5=$BF$6, 'Staff Needed'!W107, IF($BK$5=$BF$7, 'Staff Needed'!Y107, 'Staff Needed'!AA107)) -> 593.6467884 | BN111: ='Calc - SA_Resources'!AT137 -> 44.97324154 | BO111: ='Calc - SA_Resources'!AU137 -> 323.8073391 | BT111: =IF($BK$5=$BF$6, 'Staff Needed'!AB107, IF($BK$5=$BF$7, 'Staff Needed'!AD107, 'Staff Needed'!AF107)) -> 62.96253816 | BU111: =IF($BK$5=$BF$6, 'Staff Needed'!AC107, IF($BK$5=$BF$7, 'Staff Needed'!AE107, 'Staff Needed'!AG107)) -> 593.6467884 | BV111: ='Calc - SA_Resources'!BA137 -> 44.97324154 | BW111: ='Calc - SA_Resources'!BB137 -> 323.8073391 | BX111: =IF($BK$5=$BF$6, 'Staff Needed'!AH107, IF($BK$5=$BF$7, 'Staff Needed'!AJ107, 'Staff Needed'!AL107)) -> 0 | BY111: =IF($BK$5=$BF$6, 'Staff Needed'!AI107, IF($BK$5=$BF$7, 'Staff Needed'!AK107, 'Staff Needed'!AM107)) -> 0 | BZ111: ='Calc - SA_Resources'!BG137 -> 0 | CA111: ='Calc - SA_Resources'!BH137 -> 0
BJ112: 103 | BK112: =VLOOKUP(BJ112, 'Calc - Base'!$H$35:$I$400, 2) -> 2020-09-13 | BL112: =IF($BK$5=$BF$6, 'Staff Needed'!V108, IF($BK$5=$BF$7, 'Staff Needed'!X108, 'Staff Needed'!Z108)) -> 57.3583811 | BM112: =IF($BK$5=$BF$6, 'Staff Needed'!W108, IF($BK$5=$BF$7, 'Staff Needed'!Y108, 'Staff Needed'!AA108)) -> 540.8075933 | BN112: ='Calc - SA_Resources'!AT138 -> 40.97027222 | BO112: ='Calc - SA_Resources'!AU138 -> 294.98596 | BT112: =IF($BK$5=$BF$6, 'Staff Needed'!AB108, IF($BK$5=$BF$7, 'Staff Needed'!AD108, 'Staff Needed'!AF108)) -> 57.3583811 | BU112: =IF($BK$5=$BF$6, 'Staff Needed'!AC108, IF($BK$5=$BF$7, 'Staff Needed'!AE108, 'Staff Needed'!AG108)) -> 540.8075933 | BV112: ='Calc - SA_Resources'!BA138 -> 40.97027222 | BW112: ='Calc - SA_Resources'!BB138 -> 294.98596 | BX112: =IF($BK$5=$BF$6, 'Staff Needed'!AH108, IF($BK$5=$BF$7, 'Staff Needed'!AJ108, 'Staff Needed'!AL108)) -> 0 | BY112: =IF($BK$5=$BF$6, 'Staff Needed'!AI108, IF($BK$5=$BF$7, 'Staff Needed'!AK108, 'Staff Needed'!AM108)) -> 0 | BZ112: ='Calc - SA_Resources'!BG138 -> 0 | CA112: ='Calc - SA_Resources'!BH138 -> 0
BJ113: 104 | BK113: =VLOOKUP(BJ113, 'Calc - Base'!$H$35:$I$400, 2) -> 2020-09-14 | BL113: =IF($BK$5=$BF$6, 'Staff Needed'!V109, IF($BK$5=$BF$7, 'Staff Needed'!X109, 'Staff Needed'!Z109)) -> 52.21717906 | BM113: =IF($BK$5=$BF$6, 'Staff Needed'!W109, IF($BK$5=$BF$7, 'Staff Needed'!Y109, 'Staff Needed'!AA109)) -> 492.3334026 | BN113: ='Calc - SA_Resources'!AT139 -> 37.29798504 | BO113: ='Calc - SA_Resources'!AU139 -> 268.5454923 | BT113: =IF($BK$5=$BF$6, 'Staff Needed'!AB109, IF($BK$5=$BF$7, 'Staff Needed'!AD109, 'Staff Needed'!AF109)) -> 52.21717906 | BU113: =IF($BK$5=$BF$6, 'Staff Needed'!AC109, IF($BK$5=$BF$7, 'Staff Needed'!AE109, 'Staff Needed'!AG109)) -> 492.3334026 | BV113: ='Calc - SA_Resources'!BA139 -> 37.29798504 | BW113: ='Calc - SA_Resources'!BB139 -> 268.5454923 | BX113: =IF($BK$5=$BF$6, 'Staff Needed'!AH109, IF($BK$5=$BF$7, 'Staff Needed'!AJ109, 'Staff Needed'!AL109)) -> 0 | BY113: =IF($BK$5=$BF$6, 'Staff Needed'!AI109, IF($BK$5=$BF$7, 'Staff Needed'!AK109, 'Staff Needed'!AM109)) -> 0 | BZ113: ='Calc - SA_Resources'!BG139 -> 0 | CA113: ='Calc - SA_Resources'!BH139 -> 0
BJ114: 105 | BK114: =VLOOKUP(BJ114, 'Calc - Base'!$H$35:$I$400, 2) -> 2020-09-15 | BL114: =IF($BK$5=$BF$6, 'Staff Needed'!V110, IF($BK$5=$BF$7, 'Staff Needed'!X110, 'Staff Needed'!Z110)) -> 47.50705172 | BM114: =IF($BK$5=$BF$6, 'Staff Needed'!W110, IF($BK$5=$BF$7, 'Staff Needed'!Y110, 'Staff Needed'!AA110)) -> 447.9236305 | BN114: ='Calc - SA_Resources'!AT140 -> 33.93360837 | BO114: ='Calc - SA_Resources'!AU140 -> 244.3219803 | BT114: =IF($BK$5=$BF$6, 'Staff Needed'!AB110, IF($BK$5=$BF$7, 'Staff Needed'!AD110, 'Staff Needed'!AF110)) -> 47.50705172 | BU114: =IF($BK$5=$BF$6, 'Staff Needed'!AC110, IF($BK$5=$BF$7, 'Staff Needed'!AE110, 'Staff Needed'!AG110)) -> 447.9236305 | BV114: ='Calc - SA_Resources'!BA140 -> 33.93360837 | BW114: ='Calc - SA_Resources'!BB140 -> 244.3219803 | BX114: =IF($BK$5=$BF$6, 'Staff Needed'!AH110, IF($BK$5=$BF$7, 'Staff Needed'!AJ110, 'Staff Needed'!AL110)) -> 0 | BY114: =IF($BK$5=$BF$6, 'Staff Needed'!AI110, IF($BK$5=$BF$7, 'Staff Needed'!AK110, 'Staff Needed'!AM110)) -> 0 | BZ114: ='Calc - SA_Resources'!BG140 -> 0 | CA114: ='Calc - SA_Resources'!BH140 -> 0
BJ115: 106 | BK115: =VLOOKUP(BJ115, 'Calc - Base'!$H$35:$I$400, 2) -> 2020-09-16 | BL115: =IF($BK$5=$BF$6, 'Staff Needed'!V111, IF($BK$5=$BF$7, 'Staff Needed'!X111, 'Staff Needed'!Z111)) -> 43.1971471 | BM115: =IF($BK$5=$BF$6, 'Staff Needed'!W111, IF($BK$5=$BF$7, 'Staff Needed'!Y111, 'Staff Needed'!AA111)) -> 407.287387 | BN115: ='Calc - SA_Resources'!AT141 -> 30.85510507 | BO115: ='Calc - SA_Resources'!AU141 -> 222.1567565 | BT115: =IF($BK$5=$BF$6, 'Staff Needed'!AB111, IF($BK$5=$BF$7, 'Staff Needed'!AD111, 'Staff Needed'!AF111)) -> 43.1971471 | BU115: =IF($BK$5=$BF$6, 'Staff Needed'!AC111, IF($BK$5=$BF$7, 'Staff Needed'!AE111, 'Staff Needed'!AG111)) -> 407.287387 | BV115: ='Calc - SA_Resources'!BA141 -> 30.85510507 | BW115: ='Calc - SA_Resources'!BB141 -> 222.1567565 | BX115: =IF($BK$5=$BF$6, 'Staff Needed'!AH111, IF($BK$5=$BF$7, 'Staff Needed'!AJ111, 'Staff Needed'!AL111)) -> 0 | BY115: =IF($BK$5=$BF$6, 'Staff Needed'!AI111, IF($BK$5=$BF$7, 'Staff Needed'!AK111, 'Staff Needed'!AM111)) -> 0 | BZ115: ='Calc - SA_Resources'!BG141 -> 0 | CA115: ='Calc - SA_Resources'!BH141 -> 0
BJ116: 107 | BK116: =VLOOKUP(BJ116, 'Calc - Base'!$H$35:$I$400, 2) -> 2020-09-17 | BL116: =IF($BK$5=$BF$6, 'Staff Needed'!V112, IF($BK$5=$BF$7, 'Staff Needed'!X112, 'Staff Needed'!Z112)) -> 39.25785241 | BM116: =IF($BK$5=$BF$6, 'Staff Needed'!W112, IF($BK$5=$BF$7, 'Staff Needed'!Y112, 'Staff Needed'!AA112)) -> 370.1454655 | BN116: ='Calc - SA_Resources'!AT142 -> 28.04132315 | BO116: ='Calc - SA_Resources'!AU142 -> 201.8975267 | BT116: =IF($BK$5=$BF$6, 'Staff Needed'!AB112, IF($BK$5=$BF$7, 'Staff Needed'!AD112, 'Staff Needed'!AF112)) -> 39.25785241 | BU116: =IF($BK$5=$BF$6, 'Staff Needed'!AC112, IF($BK$5=$BF$7, 'Staff Needed'!AE112, 'Staff Needed'!AG112)) -> 370.1454655 | BV116: ='Calc - SA_Resources'!BA142 -> 28.04132315 | BW116: ='Calc - SA_Resources'!BB142 -> 201.8975267 | BX116: =IF($BK$5=$BF$6, 'Staff Needed'!AH112, IF($BK$5=$BF$7, 'Staff Needed'!AJ112, 'Staff Needed'!AL112)) -> 0 | BY116: =IF($BK$5=$BF$6, 'Staff Needed'!AI112, IF($BK$5=$BF$7, 'Staff Needed'!AK112, 'Staff Needed'!AM112)) -> 0 | BZ116: ='Calc - SA_Resources'!BG142 -> 0 | CA116: ='Calc - SA_Resources'!BH142 -> 0
BJ117: 108 | BK117: =VLOOKUP(BJ117, 'Calc - Base'!$H$35:$I$400, 2) -> 2020-09-18 | BL117: =IF($BK$5=$BF$6, 'Staff Needed'!V113, IF($BK$5=$BF$7, 'Staff Needed'!X113, 'Staff Needed'!Z113)) -> 35.66094239 | BM117: =IF($BK$5=$BF$6, 'Staff Needed'!W113, IF($BK$5=$BF$7, 'Staff Needed'!Y113, 'Staff Needed'!AA113)) -> 336.2317425 | BN117: ='Calc - SA_Resources'!AT143 -> 25.47210171 | BO117: ='Calc - SA_Resources'!AU143 -> 183.3991323 | BT117: =IF($BK$5=$BF$6, 'Staff Needed'!AB113, IF($BK$5=$BF$7, 'Staff Needed'!AD113, 'Staff Needed'!AF113)) -> 35.66094239 | BU117: =IF($BK$5=$BF$6, 'Staff Needed'!AC113, IF($BK$5=$BF$7, 'Staff Needed'!AE113, 'Staff Needed'!AG113)) -> 336.2317425 | BV117: ='Calc - SA_Resources'!BA143 -> 25.47210171 | BW117: ='Calc - SA_Resources'!BB143 -> 183.3991323 | BX117: =IF($BK$5=$BF$6, 'Staff Needed'!AH113, IF($BK$5=$BF$7, 'Staff Needed'!AJ113, 'Staff Needed'!AL113)) -> 0 | BY117: =IF($BK$5=$BF$6, 'Staff Needed'!AI113, IF($BK$5=$BF$7, 'Staff Needed'!AK113, 'Staff Needed'!AM113)) -> 0 | BZ117: ='Calc - SA_Resources'!BG143 -> 0 | CA117: ='Calc - SA_Resources'!BH143 -> 0
BJ118: 109 | BK118: =VLOOKUP(BJ118, 'Calc - Base'!$H$35:$I$400, 2) -> 2020-09-19 | BL118: =IF($BK$5=$BF$6, 'Staff Needed'!V114, IF($BK$5=$BF$7, 'Staff Needed'!X114, 'Staff Needed'!Z114)) -> 32.37967581 | BM118: =IF($BK$5=$BF$6, 'Staff Needed'!W114, IF($BK$5=$BF$7, 'Staff Needed'!Y114, 'Staff Needed'!AA114)) -> 305.2940862 | BN118: ='Calc - SA_Resources'!AT144 -> 23.12833986 | BO118: ='Calc - SA_Resources'!AU144 -> 166.524047 | BT118: =IF($BK$5=$BF$6, 'Staff Needed'!AB114, IF($BK$5=$BF$7, 'Staff Needed'!AD114, 'Staff Needed'!AF114)) -> 32.37967581 | BU118: =IF($BK$5=$BF$6, 'Staff Needed'!AC114, IF($BK$5=$BF$7, 'Staff Needed'!AE114, 'Staff Needed'!AG114)) -> 305.2940862 | BV118: ='Calc - SA_Resources'!BA144 -> 23.12833986 | BW118: ='Calc - SA_Resources'!BB144 -> 166.524047 | BX118: =IF($BK$5=$BF$6, 'Staff Needed'!AH114, IF($BK$5=$BF$7, 'Staff Needed'!AJ114, 'Staff Needed'!AL114)) -> 0 | BY118: =IF($BK$5=$BF$6, 'Staff Needed'!AI114, IF($BK$5=$BF$7, 'Staff Needed'!AK114, 'Staff Needed'!AM114)) -> 0 | BZ118: ='Calc - SA_Resources'!BG144 -> 0 | CA118: ='Calc - SA_Resources'!BH144 -> 0
BJ119: 110 | BK119: =VLOOKUP(BJ119, 'Calc - Base'!$H$35:$I$400, 2) -> 2020-09-20 | BL119: =IF($BK$5=$BF$6, 'Staff Needed'!V115, IF($BK$5=$BF$7, 'Staff Needed'!X115, 'Staff Needed'!Z115)) -> 29.3888492 | BM119: =IF($BK$5=$BF$6, 'Staff Needed'!W115, IF($BK$5=$BF$7, 'Staff Needed'!Y115, 'Staff Needed'!AA115)) -> 277.0948639 | BN119: ='Calc - SA_Resources'!AT145 -> 20.99203515 | BO119: ='Calc - SA_Resources'!AU145 -> 151.1426531 | BT119: =IF($BK$5=$BF$6, 'Staff Needed'!AB115, IF($BK$5=$BF$7, 'Staff Needed'!AD115, 'Staff Needed'!AF115)) -> 29.3888492 | BU119: =IF($BK$5=$BF$6, 'Staff Needed'!AC115, IF($BK$5=$BF$7, 'Staff Needed'!AE115, 'Staff Needed'!AG115)) -> 277.0948639 | BV119: ='Calc - SA_Resources'!BA145 -> 20.99203515 | BW119: ='Calc - SA_Resources'!BB145 -> 151.1426531 | BX119: =IF($BK$5=$BF$6, 'Staff Needed'!AH115, IF($BK$5=$BF$7, 'Staff Needed'!AJ115, 'Staff Needed'!AL115)) -> 0 | BY119: =IF($BK$5=$BF$6, 'Staff Needed'!AI115, IF($BK$5=$BF$7, 'Staff Needed'!AK115, 'Staff Needed'!AM115)) -> 0 | BZ119: ='Calc - SA_Resources'!BG145 -> 0 | CA119: ='Calc - SA_Resources'!BH145 -> 0
BJ120: 111 | BK120: =VLOOKUP(BJ120, 'Calc - Base'!$H$35:$I$400, 2) -> 2020-09-21 | BL120: =IF($BK$5=$BF$6, 'Staff Needed'!V116, IF($BK$5=$BF$7, 'Staff Needed'!X116, 'Staff Needed'!Z116)) -> 26.66481626 | BM120: =IF($BK$5=$BF$6, 'Staff Needed'!W116, IF($BK$5=$BF$7, 'Staff Needed'!Y116, 'Staff Needed'!AA116)) -> 251.4111247 | BN120: ='Calc - SA_Resources'!AT146 -> 19.04629733 | BO120: ='Calc - SA_Resources'!AU146 -> 137.1333407 | BT120: =IF($BK$5=$BF$6, 'Staff Needed'!AB116, IF($BK$5=$BF$7, 'Staff Needed'!AD116, 'Staff Needed'!AF116)) -> 26.66481626 | BU120: =IF($BK$5=$BF$6, 'Staff Needed'!AC116, IF($BK$5=$BF$7, 'Staff Needed'!AE116, 'Staff Needed'!AG116)) -> 251.4111247 | BV120: ='Calc - SA_Resources'!BA146 -> 19.04629733 | BW120: ='Calc - SA_Resources'!BB146 -> 137.1333407 | BX120: =IF($BK$5=$BF$6, 'Staff Needed'!AH116, IF($BK$5=$BF$7, 'Staff Needed'!AJ116, 'Staff Needed'!AL116)) -> 0 | BY120: =IF($BK$5=$BF$6, 'Staff Needed'!AI116, IF($BK$5=$BF$7, 'Staff Needed'!AK116, 'Staff Needed'!AM116)) -> 0 | BZ120: ='Calc - SA_Resources'!BG146 -> 0 | CA120: ='Calc - SA_Resources'!BH146 -> 0
BJ121: 112 | BK121: =VLOOKUP(BJ121, 'Calc - Base'!$H$35:$I$400, 2) -> 2020-09-22 | BL121: =IF($BK$5=$BF$6, 'Staff Needed'!V117, IF($BK$5=$BF$7, 'Staff Needed'!X117, 'Staff Needed'!Z117)) -> 24.1854798 | BM121: =IF($BK$5=$BF$6, 'Staff Needed'!W117, IF($BK$5=$BF$7, 'Staff Needed'!Y117, 'Staff Needed'!AA117)) -> 228.0345238 | BN121: ='Calc - SA_Resources'!AT147 -> 17.27534271 | BO121: ='Calc - SA_Resources'!AU147 -> 124.3824675 | BT121: =IF($BK$5=$BF$6, 'Staff Needed'!AB117, IF($BK$5=$BF$7, 'Staff Needed'!AD117, 'Staff Needed'!AF117)) -> 24.1854798 | BU121: =IF($BK$5=$BF$6, 'Staff Needed'!AC117, IF($BK$5=$BF$7, 'Staff Needed'!AE117, 'Staff Needed'!AG117)) -> 228.0345238 | BV121: ='Calc - SA_Resources'!BA147 -> 17.27534271 | BW121: ='Calc - SA_Resources'!BB147 -> 124.3824675 | BX121: =IF($BK$5=$BF$6, 'Staff Needed'!AH117, IF($BK$5=$BF$7, 'Staff Needed'!AJ117, 'Staff Needed'!AL117)) -> 0 | BY121: =IF($BK$5=$BF$6, 'Staff Needed'!AI117, IF($BK$5=$BF$7, 'Staff Needed'!AK117, 'Staff Needed'!AM117)) -> 0 | BZ121: ='Calc - SA_Resources'!BG147 -> 0 | CA121: ='Calc - SA_Resources'!BH147 -> 0
BJ122: 113 | BK122: =VLOOKUP(BJ122, 'Calc - Base'!$H$35:$I$400, 2) -> 2020-09-23 | BL122: =IF($BK$5=$BF$6, 'Staff Needed'!V118, IF($BK$5=$BF$7, 'Staff Needed'!X118, 'Staff Needed'!Z118)) -> 21.93026256 | BM122: =IF($BK$5=$BF$6, 'Staff Needed'!W118, IF($BK$5=$BF$7, 'Staff Needed'!Y118, 'Staff Needed'!AA118)) -> 206.771047 | BN122: ='Calc - SA_Resources'!AT148 -> 15.66447325 | BO122: ='Calc - SA_Resources'!AU148 -> 112.7842074 | BT122: =IF($BK$5=$BF$6, 'Staff Needed'!AB118, IF($BK$5=$BF$7, 'Staff Needed'!AD118, 'Staff Needed'!AF118)) -> 21.93026256 | BU122: =IF($BK$5=$BF$6, 'Staff Needed'!AC118, IF($BK$5=$BF$7, 'Staff Needed'!AE118, 'Staff Needed'!AG118)) -> 206.771047 | BV122: ='Calc - SA_Resources'!BA148 -> 15.66447325 | BW122: ='Calc - SA_Resources'!BB148 -> 112.7842074 | BX122: =IF($BK$5=$BF$6, 'Staff Needed'!AH118, IF($BK$5=$BF$7, 'Staff Needed'!AJ118, 'Staff Needed'!AL118)) -> 0 | BY122: =IF($BK$5=$BF$6, 'Staff Needed'!AI118, IF($BK$5=$BF$7, 'Staff Needed'!AK118, 'Staff Needed'!AM118)) -> 0 | BZ122: ='Calc - SA_Resources'!BG148 -> 0 | CA122: ='Calc - SA_Resources'!BH148 -> 0
BJ123: 114 | BK123: =VLOOKUP(BJ123, 'Calc - Base'!$H$35:$I$400, 2) -> 2020-09-24 | BL123: =IF($BK$5=$BF$6, 'Staff Needed'!V119, IF($BK$5=$BF$7, 'Staff Needed'!X119, 'Staff Needed'!Z119)) -> 19.88006183 | BM123: =IF($BK$5=$BF$6, 'Staff Needed'!W119, IF($BK$5=$BF$7, 'Staff Needed'!Y119, 'Staff Needed'!AA119)) -> 187.4405829 | BN123: ='Calc - SA_Resources'!AT149 -> 14.20004416 | BO123: ='Calc - SA_Resources'!AU149 -> 102.240318 | BT123: =IF($BK$5=$BF$6, 'Staff Needed'!AB119, IF($BK$5=$BF$7, 'Staff Needed'!AD119, 'Staff Needed'!AF119)) -> 19.88006183 | BU123: =IF($BK$5=$BF$6, 'Staff Needed'!AC119, IF($BK$5=$BF$7, 'Staff Needed'!AE119, 'Staff Needed'!AG119)) -> 187.4405829 | BV123: ='Calc - SA_Resources'!BA149 -> 14.20004416 | BW123: ='Calc - SA_Resources'!BB149 -> 102.240318 | BX123: =IF($BK$5=$BF$6, 'Staff Needed'!AH119, IF($BK$5=$BF$7, 'Staff Needed'!AJ119, 'Staff Needed'!AL119)) -> 0 | BY123: =IF($BK$5=$BF$6, 'Staff Needed'!AI119, IF($BK$5=$BF$7, 'Staff Needed'!AK119, 'Staff Needed'!AM119)) -> 0 | BZ123: ='Calc - SA_Resources'!BG149 -> 0 | CA123: ='Calc - SA_Resources'!BH149 -> 0
BJ124: 115 | BK124: =VLOOKUP(BJ124, 'Calc - Base'!$H$35:$I$400, 2) -> 2020-09-25 | BL124: =IF($BK$5=$BF$6, 'Staff Needed'!V120, IF($BK$5=$BF$7, 'Staff Needed'!X120, 'Staff Needed'!Z120)) -> 18.01719232 | BM124: =IF($BK$5=$BF$6, 'Staff Needed'!W120, IF($BK$5=$BF$7, 'Staff Needed'!Y120, 'Staff Needed'!AA120)) -> 169.8763847 | BN124: ='Calc - SA_Resources'!AT150 -> 12.86942309 | BO124: ='Calc - SA_Resources'!AU150 -> 92.65984622 | BT124: =IF($BK$5=$BF$6, 'Staff Needed'!AB120, IF($BK$5=$BF$7, 'Staff Needed'!AD120, 'Staff Needed'!AF120)) -> 18.01719232 | BU124: =IF($BK$5=$BF$6, 'Staff Needed'!AC120, IF($BK$5=$BF$7, 'Staff Needed'!AE120, 'Staff Needed'!AG120)) -> 169.8763847 | BV124: ='Calc - SA_Resources'!BA150 -> 12.86942309 | BW124: ='Calc - SA_Resources'!BB150 -> 92.65984622 | BX124: =IF($BK$5=$BF$6, 'Staff Needed'!AH120, IF($BK$5=$BF$7, 'Staff Needed'!AJ120, 'Staff Needed'!AL120)) -> 0 | BY124: =IF($BK$5=$BF$6, 'Staff Needed'!AI120, IF($BK$5=$BF$7, 'Staff Needed'!AK120, 'Staff Needed'!AM120)) -> 0 | BZ124: ='Calc - SA_Resources'!BG150 -> 0 | CA124: ='Calc - SA_Resources'!BH150 -> 0
BJ125: 116 | BK125: =VLOOKUP(BJ125, 'Calc - Base'!$H$35:$I$400, 2) -> 2020-09-26 | BL125: =IF($BK$5=$BF$6, 'Staff Needed'!V121, IF($BK$5=$BF$7, 'Staff Needed'!X121, 'Staff Needed'!Z121)) -> 16.32532078 | BM125: =IF($BK$5=$BF$6, 'Staff Needed'!W121, IF($BK$5=$BF$7, 'Staff Needed'!Y121, 'Staff Needed'!AA121)) -> 153.9244531 | BN125: ='Calc - SA_Resources'!AT151 -> 11.66094342 | BO125: ='Calc - SA_Resources'!AU151 -> 83.95879261 | BT125: =IF($BK$5=$BF$6, 'Staff Needed'!AB121, IF($BK$5=$BF$7, 'Staff Needed'!AD121, 'Staff Needed'!AF121)) -> 16.32532078 | BU125: =IF($BK$5=$BF$6, 'Staff Needed'!AC121, IF($BK$5=$BF$7, 'Staff Needed'!AE121, 'Staff Needed'!AG121)) -> 153.9244531 | BV125: ='Calc - SA_Resources'!BA151 -> 11.66094342 | BW125: ='Calc - SA_Resources'!BB151 -> 83.95879261 | BX125: =IF($BK$5=$BF$6, 'Staff Needed'!AH121, IF($BK$5=$BF$7, 'Staff Needed'!AJ121, 'Staff Needed'!AL121)) -> 0 | BY125: =IF($BK$5=$BF$6, 'Staff Needed'!AI121, IF($BK$5=$BF$7, 'Staff Needed'!AK121, 'Staff Needed'!AM121)) -> 0 | BZ125: ='Calc - SA_Resources'!BG151 -> 0 | CA125: ='Calc - SA_Resources'!BH151 -> 0
BJ126: 117 | BK126: =VLOOKUP(BJ126, 'Calc - Base'!$H$35:$I$400, 2) -> 2020-09-27 | BL126: =IF($BK$5=$BF$6, 'Staff Needed'!V122, IF($BK$5=$BF$7, 'Staff Needed'!X122, 'Staff Needed'!Z122)) -> 14.78939524 | BM126: =IF($BK$5=$BF$6, 'Staff Needed'!W122, IF($BK$5=$BF$7, 'Staff Needed'!Y122, 'Staff Needed'!AA122)) -> 139.4428694 | BN126: ='Calc - SA_Resources'!AT152 -> 10.56385375 | BO126: ='Calc - SA_Resources'!AU152 -> 76.05974696 | BT126: =IF($BK$5=$BF$6, 'Staff Needed'!AB122, IF($BK$5=$BF$7, 'Staff Needed'!AD122, 'Staff Needed'!AF122)) -> 14.78939524 | BU126: =IF($BK$5=$BF$6, 'Staff Needed'!AC122, IF($BK$5=$BF$7, 'Staff Needed'!AE122, 'Staff Needed'!AG122)) -> 139.4428694 | BV126: ='Calc - SA_Resources'!BA152 -> 10.56385375 | BW126: ='Calc - SA_Resources'!BB152 -> 76.05974696 | BX126: =IF($BK$5=$BF$6, 'Staff Needed'!AH122, IF($BK$5=$BF$7, 'Staff Needed'!AJ122, 'Staff Needed'!AL122)) -> 0 | BY126: =IF($BK$5=$BF$6, 'Staff Needed'!AI122, IF($BK$5=$BF$7, 'Staff Needed'!AK122, 'Staff Needed'!AM122)) -> 0 | BZ126: ='Calc - SA_Resources'!BG152 -> 0 | CA126: ='Calc - SA_Resources'!BH152 -> 0
BJ127: 118 | BK127: =VLOOKUP(BJ127, 'Calc - Base'!$H$35:$I$400, 2) -> 2020-09-28 | BL127: =IF($BK$5=$BF$6, 'Staff Needed'!V123, IF($BK$5=$BF$7, 'Staff Needed'!X123, 'Staff Needed'!Z123)) -> 13.39557122 | BM127: =IF($BK$5=$BF$6, 'Staff Needed'!W123, IF($BK$5=$BF$7, 'Staff Needed'!Y123, 'Staff Needed'!AA123)) -> 126.3011001 | BN127: ='Calc - SA_Resources'!AT153 -> 9.56826516 | BO127: ='Calc - SA_Resources'!AU153 -> 68.89150915 | BT127: =IF($BK$5=$BF$6, 'Staff Needed'!AB123, IF($BK$5=$BF$7, 'Staff Needed'!AD123, 'Staff Needed'!AF123)) -> 13.39557122 | BU127: =IF($BK$5=$BF$6, 'Staff Needed'!AC123, IF($BK$5=$BF$7, 'Staff Needed'!AE123, 'Staff Needed'!AG123)) -> 126.3011001 | BV127: ='Calc - SA_Resources'!BA153 -> 9.56826516 | BW127: ='Calc - SA_Resources'!BB153 -> 68.89150915 | BX127: =IF($BK$5=$BF$6, 'Staff Needed'!AH123, IF($BK$5=$BF$7, 'Staff Needed'!AJ123, 'Staff Needed'!AL123)) -> 0 | BY127: =IF($BK$5=$BF$6, 'Staff Needed'!AI123, IF($BK$5=$BF$7, 'Staff Needed'!AK123, 'Staff Needed'!AM123)) -> 0 | BZ127: ='Calc - SA_Resources'!BG153 -> 0 | CA127: ='Calc - SA_Resources'!BH153 -> 0
BJ128: 119 | BK128: =VLOOKUP(BJ128, 'Calc - Base'!$H$35:$I$400, 2) -> 2020-09-29 | BL128: =IF($BK$5=$BF$6, 'Staff Needed'!V124, IF($BK$5=$BF$7, 'Staff Needed'!X124, 'Staff Needed'!Z124)) -> 12.13113681 | BM128: =IF($BK$5=$BF$6, 'Staff Needed'!W124, IF($BK$5=$BF$7, 'Staff Needed'!Y124, 'Staff Needed'!AA124)) -> 114.37929 | BN128: ='Calc - SA_Resources'!AT154 -> 8.665097724 | BO128: ='Calc - SA_Resources'!AU154 -> 62.38870361 | BT128: =IF($BK$5=$BF$6, 'Staff Needed'!AB124, IF($BK$5=$BF$7, 'Staff Needed'!AD124, 'Staff Needed'!AF124)) -> 12.13113681 | BU128: =IF($BK$5=$BF$6, 'Staff Needed'!AC124, IF($BK$5=$BF$7, 'Staff Needed'!AE124, 'Staff Needed'!AG124)) -> 114.37929 | BV128: ='Calc - SA_Resources'!BA154 -> 8.665097724 | BW128: ='Calc - SA_Resources'!BB154 -> 62.38870361 | BX128: =IF($BK$5=$BF$6, 'Staff Needed'!AH124, IF($BK$5=$BF$7, 'Staff Needed'!AJ124, 'Staff Needed'!AL124)) -> 0 | BY128: =IF($BK$5=$BF$6, 'Staff Needed'!AI124, IF($BK$5=$BF$7, 'Staff Needed'!AK124, 'Staff Needed'!AM124)) -> 0 | BZ128: ='Calc - SA_Resources'!BG154 -> 0 | CA128: ='Calc - SA_Resources'!BH154 -> 0
BJ129: 120 | BK129: =VLOOKUP(BJ129, 'Calc - Base'!$H$35:$I$400, 2) -> 2020-09-30 | BL129: =IF($BK$5=$BF$6, 'Staff Needed'!V125, IF($BK$5=$BF$7, 'Staff Needed'!X125, 'Staff Needed'!Z125)) -> 10.98443796 | BM129: =IF($BK$5=$BF$6, 'Staff Needed'!W125, IF($BK$5=$BF$7, 'Staff Needed'!Y125, 'Staff Needed'!AA125)) -> 103.567558 | BN129: ='Calc - SA_Resources'!AT155 -> 7.846027118 | BO129: ='Calc - SA_Resources'!AU155 -> 56.49139525 | BT129: =IF($BK$5=$BF$6, 'Staff Needed'!AB125, IF($BK$5=$BF$7, 'Staff Needed'!AD125, 'Staff Needed'!AF125)) -> 10.98443796 | BU129: =IF($BK$5=$BF$6, 'Staff Needed'!AC125, IF($BK$5=$BF$7, 'Staff Needed'!AE125, 'Staff Needed'!AG125)) -> 103.567558 | BV129: ='Calc - SA_Resources'!BA155 -> 7.846027118 | BW129: ='Calc - SA_Resources'!BB155 -> 56.49139525 | BX129: =IF($BK$5=$BF$6, 'Staff Needed'!AH125, IF($BK$5=$BF$7, 'Staff Needed'!AJ125, 'Staff Needed'!AL125)) -> 0 | BY129: =IF($BK$5=$BF$6, 'Staff Needed'!AI125, IF($BK$5=$BF$7, 'Staff Needed'!AK125, 'Staff Needed'!AM125)) -> 0 | BZ129: ='Calc - SA_Resources'!BG155 -> 0 | CA129: ='Calc - SA_Resources'!BH155 -> 0
BJ130: 121 | BK130: =VLOOKUP(BJ130, 'Calc - Base'!$H$35:$I$400, 2) -> 2020-10-01 | BL130: =IF($BK$5=$BF$6, 'Staff Needed'!V126, IF($BK$5=$BF$7, 'Staff Needed'!X126, 'Staff Needed'!Z126)) -> 9.944805193 | BM130: =IF($BK$5=$BF$6, 'Staff Needed'!W126, IF($BK$5=$BF$7, 'Staff Needed'!Y126, 'Staff Needed'!AA126)) -> 93.76530611 | BN130: ='Calc - SA_Resources'!AT156 -> 7.103432281 | BO130: ='Calc - SA_Resources'!AU156 -> 51.14471242 | BT130: =IF($BK$5=$BF$6, 'Staff Needed'!AB126, IF($BK$5=$BF$7, 'Staff Needed'!AD126, 'Staff Needed'!AF126)) -> 9.944805193 | BU130: =IF($BK$5=$BF$6, 'Staff Needed'!AC126, IF($BK$5=$BF$7, 'Staff Needed'!AE126, 'Staff Needed'!AG126)) -> 93.76530611 | BV130: ='Calc - SA_Resources'!BA156 -> 7.103432281 | BW130: ='Calc - SA_Resources'!BB156 -> 51.14471242 | BX130: =IF($BK$5=$BF$6, 'Staff Needed'!AH126, IF($BK$5=$BF$7, 'Staff Needed'!AJ126, 'Staff Needed'!AL126)) -> 0 | BY130: =IF($BK$5=$BF$6, 'Staff Needed'!AI126, IF($BK$5=$BF$7, 'Staff Needed'!AK126, 'Staff Needed'!AM126)) -> 0 | BZ130: ='Calc - SA_Resources'!BG156 -> 0 | CA130: ='Calc - SA_Resources'!BH156 -> 0
BJ131: 122 | BK131: =VLOOKUP(BJ131, 'Calc - Base'!$H$35:$I$400, 2) -> 2020-10-02 | BL131: =IF($BK$5=$BF$6, 'Staff Needed'!V127, IF($BK$5=$BF$7, 'Staff Needed'!X127, 'Staff Needed'!Z127)) -> 9.002482462 | BM131: =IF($BK$5=$BF$6, 'Staff Needed'!W127, IF($BK$5=$BF$7, 'Staff Needed'!Y127, 'Staff Needed'!AA127)) -> 84.88054893 | BN131: ='Calc - SA_Resources'!AT157 -> 6.430344616 | BO131: ='Calc - SA_Resources'!AU157 -> 46.29848123 | BT131: =IF($BK$5=$BF$6, 'Staff Needed'!AB127, IF($BK$5=$BF$7, 'Staff Needed'!AD127, 'Staff Needed'!AF127)) -> 9.002482462 | BU131: =IF($BK$5=$BF$6, 'Staff Needed'!AC127, IF($BK$5=$BF$7, 'Staff Needed'!AE127, 'Staff Needed'!AG127)) -> 84.88054893 | BV131: ='Calc - SA_Resources'!BA157 -> 6.430344616 | BW131: ='Calc - SA_Resources'!BB157 -> 46.29848123 | BX131: =IF($BK$5=$BF$6, 'Staff Needed'!AH127, IF($BK$5=$BF$7, 'Staff Needed'!AJ127, 'Staff Needed'!AL127)) -> 0 | BY131: =IF($BK$5=$BF$6, 'Staff Needed'!AI127, IF($BK$5=$BF$7, 'Staff Needed'!AK127, 'Staff Needed'!AM127)) -> 0 | BZ131: ='Calc - SA_Resources'!BG157 -> 0 | CA131: ='Calc - SA_Resources'!BH157 -> 0
BJ132: 123 | BK132: =VLOOKUP(BJ132, 'Calc - Base'!$H$35:$I$400, 2) -> 2020-10-03 | BL132: =IF($BK$5=$BF$6, 'Staff Needed'!V128, IF($BK$5=$BF$7, 'Staff Needed'!X128, 'Staff Needed'!Z128)) -> 8.148558865 | BM132: =IF($BK$5=$BF$6, 'Staff Needed'!W128, IF($BK$5=$BF$7, 'Staff Needed'!Y128, 'Staff Needed'!AA128)) -> 76.82926929 | BN132: ='Calc - SA_Resources'!AT158 -> 5.820399189 | BO132: ='Calc - SA_Resources'!AU158 -> 41.90687416 | BT132: =IF($BK$5=$BF$6, 'Staff Needed'!AB128, IF($BK$5=$BF$7, 'Staff Needed'!AD128, 'Staff Needed'!AF128)) -> 8.148558865 | BU132: =IF($BK$5=$BF$6, 'Staff Needed'!AC128, IF($BK$5=$BF$7, 'Staff Needed'!AE128, 'Staff Needed'!AG128)) -> 76.82926929 | BV132: ='Calc - SA_Resources'!BA158 -> 5.820399189 | BW132: ='Calc - SA_Resources'!BB158 -> 41.90687416 | BX132: =IF($BK$5=$BF$6, 'Staff Needed'!AH128, IF($BK$5=$BF$7, 'Staff Needed'!AJ128, 'Staff Needed'!AL128)) -> 0 | BY132: =IF($BK$5=$BF$6, 'Staff Needed'!AI128, IF($BK$5=$BF$7, 'Staff Needed'!AK128, 'Staff Needed'!AM128)) -> 0 | BZ132: ='Calc - SA_Resources'!BG158 -> 0 | CA132: ='Calc - SA_Resources'!BH158 -> 0
BJ133: 124 | BK133: =VLOOKUP(BJ133, 'Calc - Base'!$H$35:$I$400, 2) -> 2020-10-04 | BL133: =IF($BK$5=$BF$6, 'Staff Needed'!V129, IF($BK$5=$BF$7, 'Staff Needed'!X129, 'Staff Needed'!Z129)) -> 7.374903517 | BM133: =IF($BK$5=$BF$6, 'Staff Needed'!W129, IF($BK$5=$BF$7, 'Staff Needed'!Y129, 'Staff Needed'!AA129)) -> 69.53480459 | BN133: ='Calc - SA_Resources'!AT159 -> 5.267788226 | BO133: ='Calc - SA_Resources'!AU159 -> 37.92807523 | BT133: =IF($BK$5=$BF$6, 'Staff Needed'!AB129, IF($BK$5=$BF$7, 'Staff Needed'!AD129, 'Staff Needed'!AF129)) -> 7.374903517 | BU133: =IF($BK$5=$BF$6, 'Staff Needed'!AC129, IF($BK$5=$BF$7, 'Staff Needed'!AE129, 'Staff Needed'!AG129)) -> 69.53480459 | BV133: ='Calc - SA_Resources'!BA159 -> 5.267788226 | BW133: ='Calc - SA_Resources'!BB159 -> 37.92807523 | BX133: =IF($BK$5=$BF$6, 'Staff Needed'!AH129, IF($BK$5=$BF$7, 'Staff Needed'!AJ129, 'Staff Needed'!AL129)) -> 0 | BY133: =IF($BK$5=$BF$6, 'Staff Needed'!AI129, IF($BK$5=$BF$7, 'Staff Needed'!AK129, 'Staff Needed'!AM129)) -> 0 | BZ133: ='Calc - SA_Resources'!BG159 -> 0 | CA133: ='Calc - SA_Resources'!BH159 -> 0
BJ134: 125 | BK134: =VLOOKUP(BJ134, 'Calc - Base'!$H$35:$I$400, 2) -> 2020-10-05 | BL134: =IF($BK$5=$BF$6, 'Staff Needed'!V130, IF($BK$5=$BF$7, 'Staff Needed'!X130, 'Staff Needed'!Z130)) -> 6.674103909 | BM134: =IF($BK$5=$BF$6, 'Staff Needed'!W130, IF($BK$5=$BF$7, 'Staff Needed'!Y130, 'Staff Needed'!AA130)) -> 62.92726543 | BN134: ='Calc - SA_Resources'!AT160 -> 4.767217078 | BO134: ='Calc - SA_Resources'!AU160 -> 34.32396296 | BT134: =IF($BK$5=$BF$6, 'Staff Needed'!AB130, IF($BK$5=$BF$7, 'Staff Needed'!AD130, 'Staff Needed'!AF130)) -> 6.674103909 | BU134: =IF($BK$5=$BF$6, 'Staff Needed'!AC130, IF($BK$5=$BF$7, 'Staff Needed'!AE130, 'Staff Needed'!AG130)) -> 62.92726543 | BV134: ='Calc - SA_Resources'!BA160 -> 4.767217078 | BW134: ='Calc - SA_Resources'!BB160 -> 34.32396296 | BX134: =IF($BK$5=$BF$6, 'Staff Needed'!AH130, IF($BK$5=$BF$7, 'Staff Needed'!AJ130, 'Staff Needed'!AL130)) -> 0 | BY134: =IF($BK$5=$BF$6, 'Staff Needed'!AI130, IF($BK$5=$BF$7, 'Staff Needed'!AK130, 'Staff Needed'!AM130)) -> 0 | BZ134: ='Calc - SA_Resources'!BG160 -> 0 | CA134: ='Calc - SA_Resources'!BH160 -> 0
BJ135: 126 | BK135: =VLOOKUP(BJ135, 'Calc - Base'!$H$35:$I$400, 2) -> 2020-10-06 | BL135: =IF($BK$5=$BF$6, 'Staff Needed'!V131, IF($BK$5=$BF$7, 'Staff Needed'!X131, 'Staff Needed'!Z131)) -> 6.039407871 | BM135: =IF($BK$5=$BF$6, 'Staff Needed'!W131, IF($BK$5=$BF$7, 'Staff Needed'!Y131, 'Staff Needed'!AA131)) -> 56.9429885 | BN135: ='Calc - SA_Resources'!AT161 -> 4.313862765 | BO135: ='Calc - SA_Resources'!AU161 -> 31.05981191 | BT135: =IF($BK$5=$BF$6, 'Staff Needed'!AB131, IF($BK$5=$BF$7, 'Staff Needed'!AD131, 'Staff Needed'!AF131)) -> 6.039407871 | BU135: =IF($BK$5=$BF$6, 'Staff Needed'!AC131, IF($BK$5=$BF$7, 'Staff Needed'!AE131, 'Staff Needed'!AG131)) -> 56.9429885 | BV135: ='Calc - SA_Resources'!BA161 -> 4.313862765 | BW135: ='Calc - SA_Resources'!BB161 -> 31.05981191 | BX135: =IF($BK$5=$BF$6, 'Staff Needed'!AH131, IF($BK$5=$BF$7, 'Staff Needed'!AJ131, 'Staff Needed'!AL131)) -> 0 | BY135: =IF($BK$5=$BF$6, 'Staff Needed'!AI131, IF($BK$5=$BF$7, 'Staff Needed'!AK131, 'Staff Needed'!AM131)) -> 0 | BZ135: ='Calc - SA_Resources'!BG161 -> 0 | CA135: ='Calc - SA_Resources'!BH161 -> 0
BJ136: 127 | BK136: =VLOOKUP(BJ136, 'Calc - Base'!$H$35:$I$400, 2) -> 2020-10-07 | BL136: =IF($BK$5=$BF$6, 'Staff Needed'!V132, IF($BK$5=$BF$7, 'Staff Needed'!X132, 'Staff Needed'!Z132)) -> 5.464669197 | BM136: =IF($BK$5=$BF$6, 'Staff Needed'!W132, IF($BK$5=$BF$7, 'Staff Needed'!Y132, 'Staff Needed'!AA132)) -> 51.52402386 | BN136: ='Calc - SA_Resources'!AT162 -> 3.903335141 | BO136: ='Calc - SA_Resources'!AU162 -> 28.10401301 | BT136: =IF($BK$5=$BF$6, 'Staff Needed'!AB132, IF($BK$5=$BF$7, 'Staff Needed'!AD132, 'Staff Needed'!AF132)) -> 5.464669197 | BU136: =IF($BK$5=$BF$6, 'Staff Needed'!AC132, IF($BK$5=$BF$7, 'Staff Needed'!AE132, 'Staff Needed'!AG132)) -> 51.52402386 | BV136: ='Calc - SA_Resources'!BA162 -> 3.903335141 | BW136: ='Calc - SA_Resources'!BB162 -> 28.10401301 | BX136: =IF($BK$5=$BF$6, 'Staff Needed'!AH132, IF($BK$5=$BF$7, 'Staff Needed'!AJ132, 'Staff Needed'!AL132)) -> 0 | BY136: =IF($BK$5=$BF$6, 'Staff Needed'!AI132, IF($BK$5=$BF$7, 'Staff Needed'!AK132, 'Staff Needed'!AM132)) -> 0 | BZ136: ='Calc - SA_Resources'!BG162 -> 0 | CA136: ='Calc - SA_Resources'!BH162 -> 0
BJ137: 128 | BK137: =VLOOKUP(BJ137, 'Calc - Base'!$H$35:$I$400, 2) -> 2020-10-08 | BL137: =IF($BK$5=$BF$6, 'Staff Needed'!V133, IF($BK$5=$BF$7, 'Staff Needed'!X133, 'Staff Needed'!Z133)) -> 4.944296907 | BM137: =IF($BK$5=$BF$6, 'Staff Needed'!W133, IF($BK$5=$BF$7, 'Staff Needed'!Y133, 'Staff Needed'!AA133)) -> 46.61765655 | BN137: ='Calc - SA_Resources'!AT163 -> 3.531640648 | BO137: ='Calc - SA_Resources'!AU163 -> 25.42781266 | BT137: =IF($BK$5=$BF$6, 'Staff Needed'!AB133, IF($BK$5=$BF$7, 'Staff Needed'!AD133, 'Staff Needed'!AF133)) -> 4.944296907 | BU137: =IF($BK$5=$BF$6, 'Staff Needed'!AC133, IF($BK$5=$BF$7, 'Staff Needed'!AE133, 'Staff Needed'!AG133)) -> 46.61765655 | BV137: ='Calc - SA_Resources'!BA163 -> 3.531640648 | BW137: ='Calc - SA_Resources'!BB163 -> 25.42781266 | BX137: =IF($BK$5=$BF$6, 'Staff Needed'!AH133, IF($BK$5=$BF$7, 'Staff Needed'!AJ133, 'Staff Needed'!AL133)) -> 0 | BY137: =IF($BK$5=$BF$6, 'Staff Needed'!AI133, IF($BK$5=$BF$7, 'Staff Needed'!AK133, 'Staff Needed'!AM133)) -> 0 | BZ137: ='Calc - SA_Resources'!BG163 -> 0 | CA137: ='Calc - SA_Resources'!BH163 -> 0
BJ138: 129 | BK138: =VLOOKUP(BJ138, 'Calc - Base'!$H$35:$I$400, 2) -> 2020-10-09 | BL138: =IF($BK$5=$BF$6, 'Staff Needed'!V134, IF($BK$5=$BF$7, 'Staff Needed'!X134, 'Staff Needed'!Z134)) -> 4.473208071 | BM138: =IF($BK$5=$BF$6, 'Staff Needed'!W134, IF($BK$5=$BF$7, 'Staff Needed'!Y134, 'Staff Needed'!AA134)) -> 42.17596182 | BN138: ='Calc - SA_Resources'!AT164 -> 3.195148622 | BO138: ='Calc - SA_Resources'!AU164 -> 23.00507008 | BT138: =IF($BK$5=$BF$6, 'Staff Needed'!AB134, IF($BK$5=$BF$7, 'Staff Needed'!AD134, 'Staff Needed'!AF134)) -> 4.473208071 | BU138: =IF($BK$5=$BF$6, 'Staff Needed'!AC134, IF($BK$5=$BF$7, 'Staff Needed'!AE134, 'Staff Needed'!AG134)) -> 42.17596182 | BV138: ='Calc - SA_Resources'!BA164 -> 3.195148622 | BW138: ='Calc - SA_Resources'!BB164 -> 23.00507008 | BX138: =IF($BK$5=$BF$6, 'Staff Needed'!AH134, IF($BK$5=$BF$7, 'Staff Needed'!AJ134, 'Staff Needed'!AL134)) -> 0 | BY138: =IF($BK$5=$BF$6, 'Staff Needed'!AI134, IF($BK$5=$BF$7, 'Staff Needed'!AK134, 'Staff Needed'!AM134)) -> 0 | BZ138: ='Calc - SA_Resources'!BG164 -> 0 | CA138: ='Calc - SA_Resources'!BH164 -> 0
BJ139: 130 | BK139: =VLOOKUP(BJ139, 'Calc - Base'!$H$35:$I$400, 2) -> 2020-10-10 | BL139: =IF($BK$5=$BF$6, 'Staff Needed'!V135, IF($BK$5=$BF$7, 'Staff Needed'!X135, 'Staff Needed'!Z135)) -> 4.046784089 | BM139: =IF($BK$5=$BF$6, 'Staff Needed'!W135, IF($BK$5=$BF$7, 'Staff Needed'!Y135, 'Staff Needed'!AA135)) -> 38.15539284 | BN139: ='Calc - SA_Resources'!AT165 -> 2.890560064 | BO139: ='Calc - SA_Resources'!AU165 -> 20.81203246 | BT139: =IF($BK$5=$BF$6, 'Staff Needed'!AB135, IF($BK$5=$BF$7, 'Staff Needed'!AD135, 'Staff Needed'!AF135)) -> 4.046784089 | BU139: =IF($BK$5=$BF$6, 'Staff Needed'!AC135, IF($BK$5=$BF$7, 'Staff Needed'!AE135, 'Staff Needed'!AG135)) -> 38.15539284 | BV139: ='Calc - SA_Resources'!BA165 -> 2.890560064 | BW139: ='Calc - SA_Resources'!BB165 -> 20.81203246 | BX139: =IF($BK$5=$BF$6, 'Staff Needed'!AH135, IF($BK$5=$BF$7, 'Staff Needed'!AJ135, 'Staff Needed'!AL135)) -> 0 | BY139: =IF($BK$5=$BF$6, 'Staff Needed'!AI135, IF($BK$5=$BF$7, 'Staff Needed'!AK135, 'Staff Needed'!AM135)) -> 0 | BZ139: ='Calc - SA_Resources'!BG165 -> 0 | CA139: ='Calc - SA_Resources'!BH165 -> 0
BJ140: 131 | BK140: =VLOOKUP(BJ140, 'Calc - Base'!$H$35:$I$400, 2) -> 2020-10-11 | BL140: =IF($BK$5=$BF$6, 'Staff Needed'!V136, IF($BK$5=$BF$7, 'Staff Needed'!X136, 'Staff Needed'!Z136)) -> 3.660830268 | BM140: =IF($BK$5=$BF$6, 'Staff Needed'!W136, IF($BK$5=$BF$7, 'Staff Needed'!Y136, 'Staff Needed'!AA136)) -> 34.51639967 | BN140: ='Calc - SA_Resources'!AT166 -> 2.614878763 | BO140: ='Calc - SA_Resources'!AU166 -> 18.82712709 | BT140: =IF($BK$5=$BF$6, 'Staff Needed'!AB136, IF($BK$5=$BF$7, 'Staff Needed'!AD136, 'Staff Needed'!AF136)) -> 3.660830268 | BU140: =IF($BK$5=$BF$6, 'Staff Needed'!AC136, IF($BK$5=$BF$7, 'Staff Needed'!AE136, 'Staff Needed'!AG136)) -> 34.51639967 | BV140: ='Calc - SA_Resources'!BA166 -> 2.614878763 | BW140: ='Calc - SA_Resources'!BB166 -> 18.82712709 | BX140: =IF($BK$5=$BF$6, 'Staff Needed'!AH136, IF($BK$5=$BF$7, 'Staff Needed'!AJ136, 'Staff Needed'!AL136)) -> 0 | BY140: =IF($BK$5=$BF$6, 'Staff Needed'!AI136, IF($BK$5=$BF$7, 'Staff Needed'!AK136, 'Staff Needed'!AM136)) -> 0 | BZ140: ='Calc - SA_Resources'!BG166 -> 0 | CA140: ='Calc - SA_Resources'!BH166 -> 0
BJ141: 132 | BK141: =VLOOKUP(BJ141, 'Calc - Base'!$H$35:$I$400, 2) -> 2020-10-12 | BL141: =IF($BK$5=$BF$6, 'Staff Needed'!V137, IF($BK$5=$BF$7, 'Staff Needed'!X137, 'Staff Needed'!Z137)) -> 3.311538554 | BM141: =IF($BK$5=$BF$6, 'Staff Needed'!W137, IF($BK$5=$BF$7, 'Staff Needed'!Y137, 'Staff Needed'!AA137)) -> 31.22307779 | BN141: ='Calc - SA_Resources'!AT167 -> 2.365384681 | BO141: ='Calc - SA_Resources'!AU167 -> 17.0307697 | BT141: =IF($BK$5=$BF$6, 'Staff Needed'!AB137, IF($BK$5=$BF$7, 'Staff Needed'!AD137, 'Staff Needed'!AF137)) -> 3.311538554 | BU141: =IF($BK$5=$BF$6, 'Staff Needed'!AC137, IF($BK$5=$BF$7, 'Staff Needed'!AE137, 'Staff Needed'!AG137)) -> 31.22307779 | BV141: ='Calc - SA_Resources'!BA167 -> 2.365384681 | BW141: ='Calc - SA_Resources'!BB167 -> 17.0307697 | BX141: =IF($BK$5=$BF$6, 'Staff Needed'!AH137, IF($BK$5=$BF$7, 'Staff Needed'!AJ137, 'Staff Needed'!AL137)) -> 0 | BY141: =IF($BK$5=$BF$6, 'Staff Needed'!AI137, IF($BK$5=$BF$7, 'Staff Needed'!AK137, 'Staff Needed'!AM137)) -> 0 | BZ141: ='Calc - SA_Resources'!BG167 -> 0 | CA141: ='Calc - SA_Resources'!BH167 -> 0
BJ142: 133 | BK142: =VLOOKUP(BJ142, 'Calc - Base'!$H$35:$I$400, 2) -> 2020-10-13 | BL142: =IF($BK$5=$BF$6, 'Staff Needed'!V138, IF($BK$5=$BF$7, 'Staff Needed'!X138, 'Staff Needed'!Z138)) -> 2.99545323 | BM142: =IF($BK$5=$BF$6, 'Staff Needed'!W138, IF($BK$5=$BF$7, 'Staff Needed'!Y138, 'Staff Needed'!AA138)) -> 28.24284474 | BN142: ='Calc - SA_Resources'!AT168 -> 2.13960945 | BO142: ='Calc - SA_Resources'!AU168 -> 15.40518804 | BT142: =IF($BK$5=$BF$6, 'Staff Needed'!AB138, IF($BK$5=$BF$7, 'Staff Needed'!AD138, 'Staff Needed'!AF138)) -> 2.99545323 | BU142: =IF($BK$5=$BF$6, 'Staff Needed'!AC138, IF($BK$5=$BF$7, 'Staff Needed'!AE138, 'Staff Needed'!AG138)) -> 28.24284474 | BV142: ='Calc - SA_Resources'!BA168 -> 2.13960945 | BW142: ='Calc - SA_Resources'!BB168 -> 15.40518804 | BX142: =IF($BK$5=$BF$6, 'Staff Needed'!AH138, IF($BK$5=$BF$7, 'Staff Needed'!AJ138, 'Staff Needed'!AL138)) -> 0 | BY142: =IF($BK$5=$BF$6, 'Staff Needed'!AI138, IF($BK$5=$BF$7, 'Staff Needed'!AK138, 'Staff Needed'!AM138)) -> 0 | BZ142: ='Calc - SA_Resources'!BG168 -> 0 | CA142: ='Calc - SA_Resources'!BH168 -> 0
BJ143: 134 | BK143: =VLOOKUP(BJ143, 'Calc - Base'!$H$35:$I$400, 2) -> 2020-10-14 | BL143: =IF($BK$5=$BF$6, 'Staff Needed'!V139, IF($BK$5=$BF$7, 'Staff Needed'!X139, 'Staff Needed'!Z139)) -> 2.709439416 | BM143: =IF($BK$5=$BF$6, 'Staff Needed'!W139, IF($BK$5=$BF$7, 'Staff Needed'!Y139, 'Staff Needed'!AA139)) -> 25.54614306 | BN143: ='Calc - SA_Resources'!AT169 -> 1.935313868 | BO143: ='Calc - SA_Resources'!AU169 -> 13.93425985 | BT143: =IF($BK$5=$BF$6, 'Staff Needed'!AB139, IF($BK$5=$BF$7, 'Staff Needed'!AD139, 'Staff Needed'!AF139)) -> 2.709439416 | BU143: =IF($BK$5=$BF$6, 'Staff Needed'!AC139, IF($BK$5=$BF$7, 'Staff Needed'!AE139, 'Staff Needed'!AG139)) -> 25.54614306 | BV143: ='Calc - SA_Resources'!BA169 -> 1.935313868 | BW143: ='Calc - SA_Resources'!BB169 -> 13.93425985 | BX143: =IF($BK$5=$BF$6, 'Staff Needed'!AH139, IF($BK$5=$BF$7, 'Staff Needed'!AJ139, 'Staff Needed'!AL139)) -> 0 | BY143: =IF($BK$5=$BF$6, 'Staff Needed'!AI139, IF($BK$5=$BF$7, 'Staff Needed'!AK139, 'Staff Needed'!AM139)) -> 0 | BZ143: ='Calc - SA_Resources'!BG169 -> 0 | CA143: ='Calc - SA_Resources'!BH169 -> 0
BJ144: 135 | BK144: =VLOOKUP(BJ144, 'Calc - Base'!$H$35:$I$400, 2) -> 2020-10-15 | BL144: =IF($BK$5=$BF$6, 'Staff Needed'!V140, IF($BK$5=$BF$7, 'Staff Needed'!X140, 'Staff Needed'!Z140)) -> 2.450654173 | BM144: =IF($BK$5=$BF$6, 'Staff Needed'!W140, IF($BK$5=$BF$7, 'Staff Needed'!Y140, 'Staff Needed'!AA140)) -> 23.10616792 | BN144: ='Calc - SA_Resources'!AT170 -> 1.750467267 | BO144: ='Calc - SA_Resources'!AU170 -> 12.60336432 | BT144: =IF($BK$5=$BF$6, 'Staff Needed'!AB140, IF($BK$5=$BF$7, 'Staff Needed'!AD140, 'Staff Needed'!AF140)) -> 2.450654173 | BU144: =IF($BK$5=$BF$6, 'Staff Needed'!AC140, IF($BK$5=$BF$7, 'Staff Needed'!AE140, 'Staff Needed'!AG140)) -> 23.10616792 | BV144: ='Calc - SA_Resources'!BA170 -> 1.750467267 | BW144: ='Calc - SA_Resources'!BB170 -> 12.60336432 | BX144: =IF($BK$5=$BF$6, 'Staff Needed'!AH140, IF($BK$5=$BF$7, 'Staff Needed'!AJ140, 'Staff Needed'!AL140)) -> 0 | BY144: =IF($BK$5=$BF$6, 'Staff Needed'!AI140, IF($BK$5=$BF$7, 'Staff Needed'!AK140, 'Staff Needed'!AM140)) -> 0 | BZ144: ='Calc - SA_Resources'!BG170 -> 0 | CA144: ='Calc - SA_Resources'!BH170 -> 0
BJ145: 136 | BK145: =VLOOKUP(BJ145, 'Calc - Base'!$H$35:$I$400, 2) -> 2020-10-16 | BL145: =IF($BK$5=$BF$6, 'Staff Needed'!V141, IF($BK$5=$BF$7, 'Staff Needed'!X141, 'Staff Needed'!Z141)) -> 2.216520055 | BM145: =IF($BK$5=$BF$6, 'Staff Needed'!W141, IF($BK$5=$BF$7, 'Staff Needed'!Y141, 'Staff Needed'!AA141)) -> 20.89861766 | BN145: ='Calc - SA_Resources'!AT171 -> 1.583228611 | BO145: ='Calc - SA_Resources'!AU171 -> 11.399246 | BT145: =IF($BK$5=$BF$6, 'Staff Needed'!AB141, IF($BK$5=$BF$7, 'Staff Needed'!AD141, 'Staff Needed'!AF141)) -> 2.216520055 | BU145: =IF($BK$5=$BF$6, 'Staff Needed'!AC141, IF($BK$5=$BF$7, 'Staff Needed'!AE141, 'Staff Needed'!AG141)) -> 20.89861766 | BV145: ='Calc - SA_Resources'!BA171 -> 1.583228611 | BW145: ='Calc - SA_Resources'!BB171 -> 11.399246 | BX145: =IF($BK$5=$BF$6, 'Staff Needed'!AH141, IF($BK$5=$BF$7, 'Staff Needed'!AJ141, 'Staff Needed'!AL141)) -> 0 | BY145: =IF($BK$5=$BF$6, 'Staff Needed'!AI141, IF($BK$5=$BF$7, 'Staff Needed'!AK141, 'Staff Needed'!AM141)) -> 0 | BZ145: ='Calc - SA_Resources'!BG171 -> 0 | CA145: ='Calc - SA_Resources'!BH171 -> 0
BJ146: 137 | BK146: =VLOOKUP(BJ146, 'Calc - Base'!$H$35:$I$400, 2) -> 2020-10-17 | BL146: =IF($BK$5=$BF$6, 'Staff Needed'!V142, IF($BK$5=$BF$7, 'Staff Needed'!X142, 'Staff Needed'!Z142)) -> 2.004700909 | BM146: =IF($BK$5=$BF$6, 'Staff Needed'!W142, IF($BK$5=$BF$7, 'Staff Needed'!Y142, 'Staff Needed'!AA142)) -> 18.90146571 | BN146: ='Calc - SA_Resources'!AT172 -> 1.431929221 | BO146: ='Calc - SA_Resources'!AU172 -> 10.30989039 | BT146: =IF($BK$5=$BF$6, 'Staff Needed'!AB142, IF($BK$5=$BF$7, 'Staff Needed'!AD142, 'Staff Needed'!AF142)) -> 2.004700909 | BU146: =IF($BK$5=$BF$6, 'Staff Needed'!AC142, IF($BK$5=$BF$7, 'Staff Needed'!AE142, 'Staff Needed'!AG142)) -> 18.90146571 | BV146: ='Calc - SA_Resources'!BA172 -> 1.431929221 | BW146: ='Calc - SA_Resources'!BB172 -> 10.30989039 | BX146: =IF($BK$5=$BF$6, 'Staff Needed'!AH142, IF($BK$5=$BF$7, 'Staff Needed'!AJ142, 'Staff Needed'!AL142)) -> 0 | BY146: =IF($BK$5=$BF$6, 'Staff Needed'!AI142, IF($BK$5=$BF$7, 'Staff Needed'!AK142, 'Staff Needed'!AM142)) -> 0 | BZ146: ='Calc - SA_Resources'!BG172 -> 0 | CA146: ='Calc - SA_Resources'!BH172 -> 0
BJ147: 138 | BK147: =VLOOKUP(BJ147, 'Calc - Base'!$H$35:$I$400, 2) -> 2020-10-18 | BL147: =IF($BK$5=$BF$6, 'Staff Needed'!V143, IF($BK$5=$BF$7, 'Staff Needed'!X143, 'Staff Needed'!Z143)) -> 1.813079781 | BM147: =IF($BK$5=$BF$6, 'Staff Needed'!W143, IF($BK$5=$BF$7, 'Staff Needed'!Y143, 'Staff Needed'!AA143)) -> 17.09475222 | BN147: ='Calc - SA_Resources'!AT173 -> 1.295056986 | BO147: ='Calc - SA_Resources'!AU173 -> 9.324410301 | BT147: =IF($BK$5=$BF$6, 'Staff Needed'!AB143, IF($BK$5=$BF$7, 'Staff Needed'!AD143, 'Staff Needed'!AF143)) -> 1.813079781 | BU147: =IF($BK$5=$BF$6, 'Staff Needed'!AC143, IF($BK$5=$BF$7, 'Staff Needed'!AE143, 'Staff Needed'!AG143)) -> 17.09475222 | BV147: ='Calc - SA_Resources'!BA173 -> 1.295056986 | BW147: ='Calc - SA_Resources'!BB173 -> 9.324410301 | BX147: =IF($BK$5=$BF$6, 'Staff Needed'!AH143, IF($BK$5=$BF$7, 'Staff Needed'!AJ143, 'Staff Needed'!AL143)) -> 0 | BY147: =IF($BK$5=$BF$6, 'Staff Needed'!AI143, IF($BK$5=$BF$7, 'Staff Needed'!AK143, 'Staff Needed'!AM143)) -> 0 | BZ147: ='Calc - SA_Resources'!BG173 -> 0 | CA147: ='Calc - SA_Resources'!BH173 -> 0
BJ148: 139 | BK148: =VLOOKUP(BJ148, 'Calc - Base'!$H$35:$I$400, 2) -> 2020-10-19 | BL148: =IF($BK$5=$BF$6, 'Staff Needed'!V144, IF($BK$5=$BF$7, 'Staff Needed'!X144, 'Staff Needed'!Z144)) -> 1.639738749 | BM148: =IF($BK$5=$BF$6, 'Staff Needed'!W144, IF($BK$5=$BF$7, 'Staff Needed'!Y144, 'Staff Needed'!AA144)) -> 15.46039392 | BN148: ='Calc - SA_Resources'!AT174 -> 1.171241964 | BO148: ='Calc - SA_Resources'!AU174 -> 8.432942139 | BT148: =IF($BK$5=$BF$6, 'Staff Needed'!AB144, IF($BK$5=$BF$7, 'Staff Needed'!AD144, 'Staff Needed'!AF144)) -> 1.639738749 | BU148: =IF($BK$5=$BF$6, 'Staff Needed'!AC144, IF($BK$5=$BF$7, 'Staff Needed'!AE144, 'Staff Needed'!AG144)) -> 15.46039392 | BV148: ='Calc - SA_Resources'!BA174 -> 1.171241964 | BW148: ='Calc - SA_Resources'!BB174 -> 8.432942139 | BX148: =IF($BK$5=$BF$6, 'Staff Needed'!AH144, IF($BK$5=$BF$7, 'Staff Needed'!AJ144, 'Staff Needed'!AL144)) -> 0 | BY148: =IF($BK$5=$BF$6, 'Staff Needed'!AI144, IF($BK$5=$BF$7, 'Staff Needed'!AK144, 'Staff Needed'!AM144)) -> 0 | BZ148: ='Calc - SA_Resources'!BG174 -> 0 | CA148: ='Calc - SA_Resources'!BH174 -> 0
BJ149: 140 | BK149: =VLOOKUP(BJ149, 'Calc - Base'!$H$35:$I$400, 2) -> 2020-10-20 | BL149: =IF($BK$5=$BF$6, 'Staff Needed'!V145, IF($BK$5=$BF$7, 'Staff Needed'!X145, 'Staff Needed'!Z145)) -> 1.482940541 | BM149: =IF($BK$5=$BF$6, 'Staff Needed'!W145, IF($BK$5=$BF$7, 'Staff Needed'!Y145, 'Staff Needed'!AA145)) -> 13.98201081 | BN149: ='Calc - SA_Resources'!AT175 -> 1.059243243 | BO149: ='Calc - SA_Resources'!AU175 -> 7.626551352 | BT149: =IF($BK$5=$BF$6, 'Staff Needed'!AB145, IF($BK$5=$BF$7, 'Staff Needed'!AD145, 'Staff Needed'!AF145)) -> 1.482940541 | BU149: =IF($BK$5=$BF$6, 'Staff Needed'!AC145, IF($BK$5=$BF$7, 'Staff Needed'!AE145, 'Staff Needed'!AG145)) -> 13.98201081 | BV149: ='Calc - SA_Resources'!BA175 -> 1.059243243 | BW149: ='Calc - SA_Resources'!BB175 -> 7.626551352 | BX149: =IF($BK$5=$BF$6, 'Staff Needed'!AH145, IF($BK$5=$BF$7, 'Staff Needed'!AJ145, 'Staff Needed'!AL145)) -> 0 | BY149: =IF($BK$5=$BF$6, 'Staff Needed'!AI145, IF($BK$5=$BF$7, 'Staff Needed'!AK145, 'Staff Needed'!AM145)) -> 0 | BZ149: ='Calc - SA_Resources'!BG175 -> 0 | CA149: ='Calc - SA_Resources'!BH175 -> 0
BJ150: 141 | BK150: =VLOOKUP(BJ150, 'Calc - Base'!$H$35:$I$400, 2) -> 2020-10-21 | BL150: =IF($BK$5=$BF$6, 'Staff Needed'!V146, IF($BK$5=$BF$7, 'Staff Needed'!X146, 'Staff Needed'!Z146)) -> 1.341111782 | BM150: =IF($BK$5=$BF$6, 'Staff Needed'!W146, IF($BK$5=$BF$7, 'Staff Needed'!Y146, 'Staff Needed'!AA146)) -> 12.64476823 | BN150: ='Calc - SA_Resources'!AT176 -> 0.9579369873 | BO150: ='Calc - SA_Resources'!AU176 -> 6.897146309 | BT150: =IF($BK$5=$BF$6, 'Staff Needed'!AB146, IF($BK$5=$BF$7, 'Staff Needed'!AD146, 'Staff Needed'!AF146)) -> 1.341111782 | BU150: =IF($BK$5=$BF$6, 'Staff Needed'!AC146, IF($BK$5=$BF$7, 'Staff Needed'!AE146, 'Staff Needed'!AG146)) -> 12.64476823 | BV150: ='Calc - SA_Resources'!BA176 -> 0.9579369873 | BW150: ='Calc - SA_Resources'!BB176 -> 6.897146309 | BX150: =IF($BK$5=$BF$6, 'Staff Needed'!AH146, IF($BK$5=$BF$7, 'Staff Needed'!AJ146, 'Staff Needed'!AL146)) -> 0 | BY150: =IF($BK$5=$BF$6, 'Staff Needed'!AI146, IF($BK$5=$BF$7, 'Staff Needed'!AK146, 'Staff Needed'!AM146)) -> 0 | BZ150: ='Calc - SA_Resources'!BG176 -> 0 | CA150: ='Calc - SA_Resources'!BH176 -> 0
BJ151: 142 | BK151: =VLOOKUP(BJ151, 'Calc - Base'!$H$35:$I$400, 2) -> 2020-10-22 | BL151: =IF($BK$5=$BF$6, 'Staff Needed'!V147, IF($BK$5=$BF$7, 'Staff Needed'!X147, 'Staff Needed'!Z147)) -> 1.21282776 | BM151: =IF($BK$5=$BF$6, 'Staff Needed'!W147, IF($BK$5=$BF$7, 'Staff Needed'!Y147, 'Staff Needed'!AA147)) -> 11.43523317 | BN151: ='Calc - SA_Resources'!AT177 -> 0.8663055431 | BO151: ='Calc - SA_Resources'!AU177 -> 6.23739991 | BT151: =IF($BK$5=$BF$6, 'Staff Needed'!AB147, IF($BK$5=$BF$7, 'Staff Needed'!AD147, 'Staff Needed'!AF147)) -> 1.21282776 | BU151: =IF($BK$5=$BF$6, 'Staff Needed'!AC147, IF($BK$5=$BF$7, 'Staff Needed'!AE147, 'Staff Needed'!AG147)) -> 11.43523317 | BV151: ='Calc - SA_Resources'!BA177 -> 0.8663055431 | BW151: ='Calc - SA_Resources'!BB177 -> 6.23739991 | BX151: =IF($BK$5=$BF$6, 'Staff Needed'!AH147, IF($BK$5=$BF$7, 'Staff Needed'!AJ147, 'Staff Needed'!AL147)) -> 0 | BY151: =IF($BK$5=$BF$6, 'Staff Needed'!AI147, IF($BK$5=$BF$7, 'Staff Needed'!AK147, 'Staff Needed'!AM147)) -> 0 | BZ151: ='Calc - SA_Resources'!BG177 -> 0 | CA151: ='Calc - SA_Resources'!BH177 -> 0
BJ152: 143 | BK152: =VLOOKUP(BJ152, 'Calc - Base'!$H$35:$I$400, 2) -> 2020-10-23 | BL152: =IF($BK$5=$BF$6, 'Staff Needed'!V148, IF($BK$5=$BF$7, 'Staff Needed'!X148, 'Staff Needed'!Z148)) -> 1.096798553 | BM152: =IF($BK$5=$BF$6, 'Staff Needed'!W148, IF($BK$5=$BF$7, 'Staff Needed'!Y148, 'Staff Needed'!AA148)) -> 10.3412435 | BN152: ='Calc - SA_Resources'!AT178 -> 0.7834275378 | BO152: ='Calc - SA_Resources'!AU178 -> 5.640678272 | BT152: =IF($BK$5=$BF$6, 'Staff Needed'!AB148, IF($BK$5=$BF$7, 'Staff Needed'!AD148, 'Staff Needed'!AF148)) -> 1.096798553 | BU152: =IF($BK$5=$BF$6, 'Staff Needed'!AC148, IF($BK$5=$BF$7, 'Staff Needed'!AE148, 'Staff Needed'!AG148)) -> 10.3412435 | BV152: ='Calc - SA_Resources'!BA178 -> 0.7834275378 | BW152: ='Calc - SA_Resources'!BB178 -> 5.640678272 | BX152: =IF($BK$5=$BF$6, 'Staff Needed'!AH148, IF($BK$5=$BF$7, 'Staff Needed'!AJ148, 'Staff Needed'!AL148)) -> 0 | BY152: =IF($BK$5=$BF$6, 'Staff Needed'!AI148, IF($BK$5=$BF$7, 'Staff Needed'!AK148, 'Staff Needed'!AM148)) -> 0 | BZ152: ='Calc - SA_Resources'!BG178 -> 0 | CA152: ='Calc - SA_Resources'!BH178 -> 0
BJ153: 144 | BK153: =VLOOKUP(BJ153, 'Calc - Base'!$H$35:$I$400, 2) -> 2020-10-24 | BL153: =IF($BK$5=$BF$6, 'Staff Needed'!V149, IF($BK$5=$BF$7, 'Staff Needed'!X149, 'Staff Needed'!Z149)) -> 0.9918564243 | BM153: =IF($BK$5=$BF$6, 'Staff Needed'!W149, IF($BK$5=$BF$7, 'Staff Needed'!Y149, 'Staff Needed'!AA149)) -> 9.351789143 | BN153: ='Calc - SA_Resources'!AT179 -> 0.7084688745 | BO153: ='Calc - SA_Resources'!AU179 -> 5.100975896 | BT153: =IF($BK$5=$BF$6, 'Staff Needed'!AB149, IF($BK$5=$BF$7, 'Staff Needed'!AD149, 'Staff Needed'!AF149)) -> 0.9918564243 | BU153: =IF($BK$5=$BF$6, 'Staff Needed'!AC149, IF($BK$5=$BF$7, 'Staff Needed'!AE149, 'Staff Needed'!AG149)) -> 9.351789143 | BV153: ='Calc - SA_Resources'!BA179 -> 0.7084688745 | BW153: ='Calc - SA_Resources'!BB179 -> 5.100975896 | BX153: =IF($BK$5=$BF$6, 'Staff Needed'!AH149, IF($BK$5=$BF$7, 'Staff Needed'!AJ149, 'Staff Needed'!AL149)) -> 0 | BY153: =IF($BK$5=$BF$6, 'Staff Needed'!AI149, IF($BK$5=$BF$7, 'Staff Needed'!AK149, 'Staff Needed'!AM149)) -> 0 | BZ153: ='Calc - SA_Resources'!BG179 -> 0 | CA153: ='Calc - SA_Resources'!BH179 -> 0
BJ154: 145 | BK154: =VLOOKUP(BJ154, 'Calc - Base'!$H$35:$I$400, 2) -> 2020-10-25 | BL154: =IF($BK$5=$BF$6, 'Staff Needed'!V150, IF($BK$5=$BF$7, 'Staff Needed'!X150, 'Staff Needed'!Z150)) -> 0.8969443718 | BM154: =IF($BK$5=$BF$6, 'Staff Needed'!W150, IF($BK$5=$BF$7, 'Staff Needed'!Y150, 'Staff Needed'!AA150)) -> 8.456904077 | BN154: ='Calc - SA_Resources'!AT180 -> 0.6406745513 | BO154: ='Calc - SA_Resources'!AU180 -> 4.612856769 | BT154: =IF($BK$5=$BF$6, 'Staff Needed'!AB150, IF($BK$5=$BF$7, 'Staff Needed'!AD150, 'Staff Needed'!AF150)) -> 0.8969443718 | BU154: =IF($BK$5=$BF$6, 'Staff Needed'!AC150, IF($BK$5=$BF$7, 'Staff Needed'!AE150, 'Staff Needed'!AG150)) -> 8.456904077 | BV154: ='Calc - SA_Resources'!BA180 -> 0.6406745513 | BW154: ='Calc - SA_Resources'!BB180 -> 4.612856769 | BX154: =IF($BK$5=$BF$6, 'Staff Needed'!AH150, IF($BK$5=$BF$7, 'Staff Needed'!AJ150, 'Staff Needed'!AL150)) -> 0 | BY154: =IF($BK$5=$BF$6, 'Staff Needed'!AI150, IF($BK$5=$BF$7, 'Staff Needed'!AK150, 'Staff Needed'!AM150)) -> 0 | BZ154: ='Calc - SA_Resources'!BG180 -> 0 | CA154: ='Calc - SA_Resources'!BH180 -> 0
BJ155: 146 | BK155: =VLOOKUP(BJ155, 'Calc - Base'!$H$35:$I$400, 2) -> 2020-10-26 | BL155: =IF($BK$5=$BF$6, 'Staff Needed'!V151, IF($BK$5=$BF$7, 'Staff Needed'!X151, 'Staff Needed'!Z151)) -> 0.8111057231 | BM155: =IF($BK$5=$BF$6, 'Staff Needed'!W151, IF($BK$5=$BF$7, 'Staff Needed'!Y151, 'Staff Needed'!AA151)) -> 7.647568246 | BN155: ='Calc - SA_Resources'!AT181 -> 0.5793612308 | BO155: ='Calc - SA_Resources'!AU181 -> 4.171400861 | BT155: =IF($BK$5=$BF$6, 'Staff Needed'!AB151, IF($BK$5=$BF$7, 'Staff Needed'!AD151, 'Staff Needed'!AF151)) -> 0.8111057231 | BU155: =IF($BK$5=$BF$6, 'Staff Needed'!AC151, IF($BK$5=$BF$7, 'Staff Needed'!AE151, 'Staff Needed'!AG151)) -> 7.647568246 | BV155: ='Calc - SA_Resources'!BA181 -> 0.5793612308 | BW155: ='Calc - SA_Resources'!BB181 -> 4.171400861 | BX155: =IF($BK$5=$BF$6, 'Staff Needed'!AH151, IF($BK$5=$BF$7, 'Staff Needed'!AJ151, 'Staff Needed'!AL151)) -> 0 | BY155: =IF($BK$5=$BF$6, 'Staff Needed'!AI151, IF($BK$5=$BF$7, 'Staff Needed'!AK151, 'Staff Needed'!AM151)) -> 0 | BZ155: ='Calc - SA_Resources'!BG181 -> 0 | CA155: ='Calc - SA_Resources'!BH181 -> 0
BJ156: 147 | BK156: =VLOOKUP(BJ156, 'Calc - Base'!$H$35:$I$400, 2) -> 2020-10-27 | BL156: =IF($BK$5=$BF$6, 'Staff Needed'!V152, IF($BK$5=$BF$7, 'Staff Needed'!X152, 'Staff Needed'!Z152)) -> 0.7334746935 | BM156: =IF($BK$5=$BF$6, 'Staff Needed'!W152, IF($BK$5=$BF$7, 'Staff Needed'!Y152, 'Staff Needed'!AA152)) -> 6.915618539 | BN156: ='Calc - SA_Resources'!AT182 -> 0.5239104954 | BO156: ='Calc - SA_Resources'!AU182 -> 3.772155567 | BT156: =IF($BK$5=$BF$6, 'Staff Needed'!AB152, IF($BK$5=$BF$7, 'Staff Needed'!AD152, 'Staff Needed'!AF152)) -> 0.7334746935 | BU156: =IF($BK$5=$BF$6, 'Staff Needed'!AC152, IF($BK$5=$BF$7, 'Staff Needed'!AE152, 'Staff Needed'!AG152)) -> 6.915618539 | BV156: ='Calc - SA_Resources'!BA182 -> 0.5239104954 | BW156: ='Calc - SA_Resources'!BB182 -> 3.772155567 | BX156: =IF($BK$5=$BF$6, 'Staff Needed'!AH152, IF($BK$5=$BF$7, 'Staff Needed'!AJ152, 'Staff Needed'!AL152)) -> 0 | BY156: =IF($BK$5=$BF$6, 'Staff Needed'!AI152, IF($BK$5=$BF$7, 'Staff Needed'!AK152, 'Staff Needed'!AM152)) -> 0 | BZ156: ='Calc - SA_Resources'!BG182 -> 0 | CA156: ='Calc - SA_Resources'!BH182 -> 0
BJ157: 148 | BK157: =VLOOKUP(BJ157, 'Calc - Base'!$H$35:$I$400, 2) -> 2020-10-28 | BL157: =IF($BK$5=$BF$6, 'Staff Needed'!V153, IF($BK$5=$BF$7, 'Staff Needed'!X153, 'Staff Needed'!Z153)) -> 0.6632678173 | BM157: =IF($BK$5=$BF$6, 'Staff Needed'!W153, IF($BK$5=$BF$7, 'Staff Needed'!Y153, 'Staff Needed'!AA153)) -> 6.253667991 | BN157: ='Calc - SA_Resources'!AT183 -> 0.4737627266 | BO157: ='Calc - SA_Resources'!AU183 -> 3.411091632 | BT157: =IF($BK$5=$BF$6, 'Staff Needed'!AB153, IF($BK$5=$BF$7, 'Staff Needed'!AD153, 'Staff Needed'!AF153)) -> 0.6632678173 | BU157: =IF($BK$5=$BF$6, 'Staff Needed'!AC153, IF($BK$5=$BF$7, 'Staff Needed'!AE153, 'Staff Needed'!AG153)) -> 6.253667991 | BV157: ='Calc - SA_Resources'!BA183 -> 0.4737627266 | BW157: ='Calc - SA_Resources'!BB183 -> 3.411091632 | BX157: =IF($BK$5=$BF$6, 'Staff Needed'!AH153, IF($BK$5=$BF$7, 'Staff Needed'!AJ153, 'Staff Needed'!AL153)) -> 0 | BY157: =IF($BK$5=$BF$6, 'Staff Needed'!AI153, IF($BK$5=$BF$7, 'Staff Needed'!AK153, 'Staff Needed'!AM153)) -> 0 | BZ157: ='Calc - SA_Resources'!BG183 -> 0 | CA157: ='Calc - SA_Resources'!BH183 -> 0
BJ158: 149 | BK158: =VLOOKUP(BJ158, 'Calc - Base'!$H$35:$I$400, 2) -> 2020-10-29 | BL158: =IF($BK$5=$BF$6, 'Staff Needed'!V154, IF($BK$5=$BF$7, 'Staff Needed'!X154, 'Staff Needed'!Z154)) -> 0.5997761738 | BM158: =IF($BK$5=$BF$6, 'Staff Needed'!W154, IF($BK$5=$BF$7, 'Staff Needed'!Y154, 'Staff Needed'!AA154)) -> 5.655032496 | BN158: ='Calc - SA_Resources'!AT184 -> 0.4284115527 | BO158: ='Calc - SA_Resources'!AU184 -> 3.08456318 | BT158: =IF($BK$5=$BF$6, 'Staff Needed'!AB154, IF($BK$5=$BF$7, 'Staff Needed'!AD154, 'Staff Needed'!AF154)) -> 0.5997761738 | BU158: =IF($BK$5=$BF$6, 'Staff Needed'!AC154, IF($BK$5=$BF$7, 'Staff Needed'!AE154, 'Staff Needed'!AG154)) -> 5.655032496 | BV158: ='Calc - SA_Resources'!BA184 -> 0.4284115527 | BW158: ='Calc - SA_Resources'!BB184 -> 3.08456318 | BX158: =IF($BK$5=$BF$6, 'Staff Needed'!AH154, IF($BK$5=$BF$7, 'Staff Needed'!AJ154, 'Staff Needed'!AL154)) -> 0 | BY158: =IF($BK$5=$BF$6, 'Staff Needed'!AI154, IF($BK$5=$BF$7, 'Staff Needed'!AK154, 'Staff Needed'!AM154)) -> 0 | BZ158: ='Calc - SA_Resources'!BG184 -> 0 | CA158: ='Calc - SA_Resources'!BH184 -> 0
BJ159: 150 | BK159: =VLOOKUP(BJ159, 'Calc - Base'!$H$35:$I$400, 2) -> 2020-10-30 | BL159: =IF($BK$5=$BF$6, 'Staff Needed'!V155, IF($BK$5=$BF$7, 'Staff Needed'!X155, 'Staff Needed'!Z155)) -> 0.5423583397 | BM159: =IF($BK$5=$BF$6, 'Staff Needed'!W155, IF($BK$5=$BF$7, 'Staff Needed'!Y155, 'Staff Needed'!AA155)) -> 5.113664345 | BN159: ='Calc - SA_Resources'!AT185 -> 0.387398814 | BO159: ='Calc - SA_Resources'!AU185 -> 2.789271461 | BT159: =IF($BK$5=$BF$6, 'Staff Needed'!AB155, IF($BK$5=$BF$7, 'Staff Needed'!AD155, 'Staff Needed'!AF155)) -> 0.5423583397 | BU159: =IF($BK$5=$BF$6, 'Staff Needed'!AC155, IF($BK$5=$BF$7, 'Staff Needed'!AE155, 'Staff Needed'!AG155)) -> 5.113664345 | BV159: ='Calc - SA_Resources'!BA185 -> 0.387398814 | BW159: ='Calc - SA_Resources'!BB185 -> 2.789271461 | BX159: =IF($BK$5=$BF$6, 'Staff Needed'!AH155, IF($BK$5=$BF$7, 'Staff Needed'!AJ155, 'Staff Needed'!AL155)) -> 0 | BY159: =IF($BK$5=$BF$6, 'Staff Needed'!AI155, IF($BK$5=$BF$7, 'Staff Needed'!AK155, 'Staff Needed'!AM155)) -> 0 | BZ159: ='Calc - SA_Resources'!BG185 -> 0 | CA159: ='Calc - SA_Resources'!BH185 -> 0
BJ160: 151 | BK160: =VLOOKUP(BJ160, 'Calc - Base'!$H$35:$I$400, 2) -> 2020-10-31 | BL160: =IF($BK$5=$BF$6, 'Staff Needed'!V156, IF($BK$5=$BF$7, 'Staff Needed'!X156, 'Staff Needed'!Z156)) -> 0.4904339973 | BM160: =IF($BK$5=$BF$6, 'Staff Needed'!W156, IF($BK$5=$BF$7, 'Staff Needed'!Y156, 'Staff Needed'!AA156)) -> 4.624091974 | BN160: ='Calc - SA_Resources'!AT186 -> 0.350309998 | BO160: ='Calc - SA_Resources'!AU186 -> 2.522231986 | BT160: =IF($BK$5=$BF$6, 'Staff Needed'!AB156, IF($BK$5=$BF$7, 'Staff Needed'!AD156, 'Staff Needed'!AF156)) -> 0.4904339973 | BU160: =IF($BK$5=$BF$6, 'Staff Needed'!AC156, IF($BK$5=$BF$7, 'Staff Needed'!AE156, 'Staff Needed'!AG156)) -> 4.624091974 | BV160: ='Calc - SA_Resources'!BA186 -> 0.350309998 | BW160: ='Calc - SA_Resources'!BB186 -> 2.522231986 | BX160: =IF($BK$5=$BF$6, 'Staff Needed'!AH156, IF($BK$5=$BF$7, 'Staff Needed'!AJ156, 'Staff Needed'!AL156)) -> 0 | BY160: =IF($BK$5=$BF$6, 'Staff Needed'!AI156, IF($BK$5=$BF$7, 'Staff Needed'!AK156, 'Staff Needed'!AM156)) -> 0 | BZ160: ='Calc - SA_Resources'!BG186 -> 0 | CA160: ='Calc - SA_Resources'!BH186 -> 0
BJ161: 152 | BK161: =VLOOKUP(BJ161, 'Calc - Base'!$H$35:$I$400, 2) -> 2020-11-01 | BL161: =IF($BK$5=$BF$6, 'Staff Needed'!V157, IF($BK$5=$BF$7, 'Staff Needed'!X157, 'Staff Needed'!Z157)) -> 0.4434781435 | BM161: =IF($BK$5=$BF$6, 'Staff Needed'!W157, IF($BK$5=$BF$7, 'Staff Needed'!Y157, 'Staff Needed'!AA157)) -> 4.181365353 | BN161: ='Calc - SA_Resources'!AT187 -> 0.3167701025 | BO161: ='Calc - SA_Resources'!AU187 -> 2.280744738 | BT161: =IF($BK$5=$BF$6, 'Staff Needed'!AB157, IF($BK$5=$BF$7, 'Staff Needed'!AD157, 'Staff Needed'!AF157)) -> 0.4434781435 | BU161: =IF($BK$5=$BF$6, 'Staff Needed'!AC157, IF($BK$5=$BF$7, 'Staff Needed'!AE157, 'Staff Needed'!AG157)) -> 4.181365353 | BV161: ='Calc - SA_Resources'!BA187 -> 0.3167701025 | BW161: ='Calc - SA_Resources'!BB187 -> 2.280744738 | BX161: =IF($BK$5=$BF$6, 'Staff Needed'!AH157, IF($BK$5=$BF$7, 'Staff Needed'!AJ157, 'Staff Needed'!AL157)) -> 0 | BY161: =IF($BK$5=$BF$6, 'Staff Needed'!AI157, IF($BK$5=$BF$7, 'Staff Needed'!AK157, 'Staff Needed'!AM157)) -> 0 | BZ161: ='Calc - SA_Resources'!BG187 -> 0 | CA161: ='Calc - SA_Resources'!BH187 -> 0
BJ162: 153 | BK162: =VLOOKUP(BJ162, 'Calc - Base'!$H$35:$I$400, 2) -> 2020-11-02 | BL162: =IF($BK$5=$BF$6, 'Staff Needed'!V158, IF($BK$5=$BF$7, 'Staff Needed'!X158, 'Staff Needed'!Z158)) -> 0.4010158411 | BM162: =IF($BK$5=$BF$6, 'Staff Needed'!W158, IF($BK$5=$BF$7, 'Staff Needed'!Y158, 'Staff Needed'!AA158)) -> 3.781006502 | BN162: ='Calc - SA_Resources'!AT188 -> 0.2864398865 | BO162: ='Calc - SA_Resources'!AU188 -> 2.062367183 | BT162: =IF($BK$5=$BF$6, 'Staff Needed'!AB158, IF($BK$5=$BF$7, 'Staff Needed'!AD158, 'Staff Needed'!AF158)) -> 0.4010158411 | BU162: =IF($BK$5=$BF$6, 'Staff Needed'!AC158, IF($BK$5=$BF$7, 'Staff Needed'!AE158, 'Staff Needed'!AG158)) -> 3.781006502 | BV162: ='Calc - SA_Resources'!BA188 -> 0.2864398865 | BW162: ='Calc - SA_Resources'!BB188 -> 2.062367183 | BX162: =IF($BK$5=$BF$6, 'Staff Needed'!AH158, IF($BK$5=$BF$7, 'Staff Needed'!AJ158, 'Staff Needed'!AL158)) -> 0 | BY162: =IF($BK$5=$BF$6, 'Staff Needed'!AI158, IF($BK$5=$BF$7, 'Staff Needed'!AK158, 'Staff Needed'!AM158)) -> 0 | BZ162: ='Calc - SA_Resources'!BG188 -> 0 | CA162: ='Calc - SA_Resources'!BH188 -> 0
BJ163: 154 | BK163: =VLOOKUP(BJ163, 'Calc - Base'!$H$35:$I$400, 2) -> 2020-11-03 | BL163: =IF($BK$5=$BF$6, 'Staff Needed'!V159, IF($BK$5=$BF$7, 'Staff Needed'!X159, 'Staff Needed'!Z159)) -> 0.3626174639 | BM163: =IF($BK$5=$BF$6, 'Staff Needed'!W159, IF($BK$5=$BF$7, 'Staff Needed'!Y159, 'Staff Needed'!AA159)) -> 3.418964659 | BN163: ='Calc - SA_Resources'!AT189 -> 0.2590124742 | BO163: ='Calc - SA_Resources'!AU189 -> 1.864889814 | BT163: =IF($BK$5=$BF$6, 'Staff Needed'!AB159, IF($BK$5=$BF$7, 'Staff Needed'!AD159, 'Staff Needed'!AF159)) -> 0.3626174639 | BU163: =IF($BK$5=$BF$6, 'Staff Needed'!AC159, IF($BK$5=$BF$7, 'Staff Needed'!AE159, 'Staff Needed'!AG159)) -> 3.418964659 | BV163: ='Calc - SA_Resources'!BA189 -> 0.2590124742 | BW163: ='Calc - SA_Resources'!BB189 -> 1.864889814 | BX163: =IF($BK$5=$BF$6, 'Staff Needed'!AH159, IF($BK$5=$BF$7, 'Staff Needed'!AJ159, 'Staff Needed'!AL159)) -> 0 | BY163: =IF($BK$5=$BF$6, 'Staff Needed'!AI159, IF($BK$5=$BF$7, 'Staff Needed'!AK159, 'Staff Needed'!AM159)) -> 0 | BZ163: ='Calc - SA_Resources'!BG189 -> 0 | CA163: ='Calc - SA_Resources'!BH189 -> 0
BJ164: 155 | BK164: =VLOOKUP(BJ164, 'Calc - Base'!$H$35:$I$400, 2) -> 2020-11-04 | BL164: =IF($BK$5=$BF$6, 'Staff Needed'!V160, IF($BK$5=$BF$7, 'Staff Needed'!X160, 'Staff Needed'!Z160)) -> 0.32789439 | BM164: =IF($BK$5=$BF$6, 'Staff Needed'!W160, IF($BK$5=$BF$7, 'Staff Needed'!Y160, 'Staff Needed'!AA160)) -> 3.091575677 | BN164: ='Calc - SA_Resources'!AT190 -> 0.2342102786 | BO164: ='Calc - SA_Resources'!AU190 -> 1.686314006 | BT164: =IF($BK$5=$BF$6, 'Staff Needed'!AB160, IF($BK$5=$BF$7, 'Staff Needed'!AD160, 'Staff Needed'!AF160)) -> 0.32789439 | BU164: =IF($BK$5=$BF$6, 'Staff Needed'!AC160, IF($BK$5=$BF$7, 'Staff Needed'!AE160, 'Staff Needed'!AG160)) -> 3.091575677 | BV164: ='Calc - SA_Resources'!BA190 -> 0.2342102786 | BW164: ='Calc - SA_Resources'!BB190 -> 1.686314006 | BX164: =IF($BK$5=$BF$6, 'Staff Needed'!AH160, IF($BK$5=$BF$7, 'Staff Needed'!AJ160, 'Staff Needed'!AL160)) -> 0 | BY164: =IF($BK$5=$BF$6, 'Staff Needed'!AI160, IF($BK$5=$BF$7, 'Staff Needed'!AK160, 'Staff Needed'!AM160)) -> 0 | BZ164: ='Calc - SA_Resources'!BG190 -> 0 | CA164: ='Calc - SA_Resources'!BH190 -> 0
BJ165: 156 | BK165: =VLOOKUP(BJ165, 'Calc - Base'!$H$35:$I$400, 2) -> 2020-11-05 | BL165: =IF($BK$5=$BF$6, 'Staff Needed'!V161, IF($BK$5=$BF$7, 'Staff Needed'!X161, 'Staff Needed'!Z161)) -> 0.2964951017 | BM165: =IF($BK$5=$BF$6, 'Staff Needed'!W161, IF($BK$5=$BF$7, 'Staff Needed'!Y161, 'Staff Needed'!AA161)) -> 2.795525244 | BN165: ='Calc - SA_Resources'!AT191 -> 0.2117822155 | BO165: ='Calc - SA_Resources'!AU191 -> 1.524831951 | BT165: =IF($BK$5=$BF$6, 'Staff Needed'!AB161, IF($BK$5=$BF$7, 'Staff Needed'!AD161, 'Staff Needed'!AF161)) -> 0.2964951017 | BU165: =IF($BK$5=$BF$6, 'Staff Needed'!AC161, IF($BK$5=$BF$7, 'Staff Needed'!AE161, 'Staff Needed'!AG161)) -> 2.795525244 | BV165: ='Calc - SA_Resources'!BA191 -> 0.2117822155 | BW165: ='Calc - SA_Resources'!BB191 -> 1.524831951 | BX165: =IF($BK$5=$BF$6, 'Staff Needed'!AH161, IF($BK$5=$BF$7, 'Staff Needed'!AJ161, 'Staff Needed'!AL161)) -> 0 | BY165: =IF($BK$5=$BF$6, 'Staff Needed'!AI161, IF($BK$5=$BF$7, 'Staff Needed'!AK161, 'Staff Needed'!AM161)) -> 0 | BZ165: ='Calc - SA_Resources'!BG191 -> 0 | CA165: ='Calc - SA_Resources'!BH191 -> 0
BJ166: 157 | BK166: =VLOOKUP(BJ166, 'Calc - Base'!$H$35:$I$400, 2) -> 2020-11-06 | BL166: =IF($BK$5=$BF$6, 'Staff Needed'!V162, IF($BK$5=$BF$7, 'Staff Needed'!X162, 'Staff Needed'!Z162)) -> 0.268101653 | BM166: =IF($BK$5=$BF$6, 'Staff Needed'!W162, IF($BK$5=$BF$7, 'Staff Needed'!Y162, 'Staff Needed'!AA162)) -> 2.527815585 | BN166: ='Calc - SA_Resources'!AT192 -> 0.1915011807 | BO166: ='Calc - SA_Resources'!AU192 -> 1.378808501 | BT166: =IF($BK$5=$BF$6, 'Staff Needed'!AB162, IF($BK$5=$BF$7, 'Staff Needed'!AD162, 'Staff Needed'!AF162)) -> 0.268101653 | BU166: =IF($BK$5=$BF$6, 'Staff Needed'!AC162, IF($BK$5=$BF$7, 'Staff Needed'!AE162, 'Staff Needed'!AG162)) -> 2.527815585 | BV166: ='Calc - SA_Resources'!BA192 -> 0.1915011807 | BW166: ='Calc - SA_Resources'!BB192 -> 1.378808501 | BX166: =IF($BK$5=$BF$6, 'Staff Needed'!AH162, IF($BK$5=$BF$7, 'Staff Needed'!AJ162, 'Staff Needed'!AL162)) -> 0 | BY166: =IF($BK$5=$BF$6, 'Staff Needed'!AI162, IF($BK$5=$BF$7, 'Staff Needed'!AK162, 'Staff Needed'!AM162)) -> 0 | BZ166: ='Calc - SA_Resources'!BG192 -> 0 | CA166: ='Calc - SA_Resources'!BH192 -> 0
BJ167: 158 | BK167: =VLOOKUP(BJ167, 'Calc - Base'!$H$35:$I$400, 2) -> 2020-11-07 | BL167: =IF($BK$5=$BF$6, 'Staff Needed'!V163, IF($BK$5=$BF$7, 'Staff Needed'!X163, 'Staff Needed'!Z163)) -> 0.2424264728 | BM167: =IF($BK$5=$BF$6, 'Staff Needed'!W163, IF($BK$5=$BF$7, 'Staff Needed'!Y163, 'Staff Needed'!AA163)) -> 2.285735315 | BN167: ='Calc - SA_Resources'!AT193 -> 0.1731617663 | BO167: ='Calc - SA_Resources'!AU193 -> 1.246764717 | BT167: =IF($BK$5=$BF$6, 'Staff Needed'!AB163, IF($BK$5=$BF$7, 'Staff Needed'!AD163, 'Staff Needed'!AF163)) -> 0.2424264728 | BU167: =IF($BK$5=$BF$6, 'Staff Needed'!AC163, IF($BK$5=$BF$7, 'Staff Needed'!AE163, 'Staff Needed'!AG163)) -> 2.285735315 | BV167: ='Calc - SA_Resources'!BA193 -> 0.1731617663 | BW167: ='Calc - SA_Resources'!BB193 -> 1.246764717 | BX167: =IF($BK$5=$BF$6, 'Staff Needed'!AH163, IF($BK$5=$BF$7, 'Staff Needed'!AJ163, 'Staff Needed'!AL163)) -> 0 | BY167: =IF($BK$5=$BF$6, 'Staff Needed'!AI163, IF($BK$5=$BF$7, 'Staff Needed'!AK163, 'Staff Needed'!AM163)) -> 0 | BZ167: ='Calc - SA_Resources'!BG193 -> 0 | CA167: ='Calc - SA_Resources'!BH193 -> 0
BJ168: 159 | BK168: =VLOOKUP(BJ168, 'Calc - Base'!$H$35:$I$400, 2) -> 2020-11-08 | BL168: =IF($BK$5=$BF$6, 'Staff Needed'!V164, IF($BK$5=$BF$7, 'Staff Needed'!X164, 'Staff Needed'!Z164)) -> 0.21920947 | BM168: =IF($BK$5=$BF$6, 'Staff Needed'!W164, IF($BK$5=$BF$7, 'Staff Needed'!Y164, 'Staff Needed'!AA164)) -> 2.066832146 | BN168: ='Calc - SA_Resources'!AT194 -> 0.1565781929 | BO168: ='Calc - SA_Resources'!AU194 -> 1.127362989 | BT168: =IF($BK$5=$BF$6, 'Staff Needed'!AB164, IF($BK$5=$BF$7, 'Staff Needed'!AD164, 'Staff Needed'!AF164)) -> 0.21920947 | BU168: =IF($BK$5=$BF$6, 'Staff Needed'!AC164, IF($BK$5=$BF$7, 'Staff Needed'!AE164, 'Staff Needed'!AG164)) -> 2.066832146 | BV168: ='Calc - SA_Resources'!BA194 -> 0.1565781929 | BW168: ='Calc - SA_Resources'!BB194 -> 1.127362989 | BX168: =IF($BK$5=$BF$6, 'Staff Needed'!AH164, IF($BK$5=$BF$7, 'Staff Needed'!AJ164, 'Staff Needed'!AL164)) -> 0 | BY168: =IF($BK$5=$BF$6, 'Staff Needed'!AI164, IF($BK$5=$BF$7, 'Staff Needed'!AK164, 'Staff Needed'!AM164)) -> 0 | BZ168: ='Calc - SA_Resources'!BG194 -> 0 | CA168: ='Calc - SA_Resources'!BH194 -> 0
BJ169: 160 | BK169: =VLOOKUP(BJ169, 'Calc - Base'!$H$35:$I$400, 2) -> 2020-11-09 | BL169: =IF($BK$5=$BF$6, 'Staff Needed'!V165, IF($BK$5=$BF$7, 'Staff Needed'!X165, 'Staff Needed'!Z165)) -> 0.1982154133 | BM169: =IF($BK$5=$BF$6, 'Staff Needed'!W165, IF($BK$5=$BF$7, 'Staff Needed'!Y165, 'Staff Needed'!AA165)) -> 1.868888183 | BN169: ='Calc - SA_Resources'!AT195 -> 0.1415824381 | BO169: ='Calc - SA_Resources'!AU195 -> 1.019393554 | BT169: =IF($BK$5=$BF$6, 'Staff Needed'!AB165, IF($BK$5=$BF$7, 'Staff Needed'!AD165, 'Staff Needed'!AF165)) -> 0.1982154133 | BU169: =IF($BK$5=$BF$6, 'Staff Needed'!AC165, IF($BK$5=$BF$7, 'Staff Needed'!AE165, 'Staff Needed'!AG165)) -> 1.868888183 | BV169: ='Calc - SA_Resources'!BA195 -> 0.1415824381 | BW169: ='Calc - SA_Resources'!BB195 -> 1.019393554 | BX169: =IF($BK$5=$BF$6, 'Staff Needed'!AH165, IF($BK$5=$BF$7, 'Staff Needed'!AJ165, 'Staff Needed'!AL165)) -> 0 | BY169: =IF($BK$5=$BF$6, 'Staff Needed'!AI165, IF($BK$5=$BF$7, 'Staff Needed'!AK165, 'Staff Needed'!AM165)) -> 0 | BZ169: ='Calc - SA_Resources'!BG195 -> 0 | CA169: ='Calc - SA_Resources'!BH195 -> 0
BJ170: 161 | BK170: =VLOOKUP(BJ170, 'Calc - Base'!$H$35:$I$400, 2) -> 2020-11-10 | BL170: =IF($BK$5=$BF$6, 'Staff Needed'!V166, IF($BK$5=$BF$7, 'Staff Needed'!X166, 'Staff Needed'!Z166)) -> 0.1792315599 | BM170: =IF($BK$5=$BF$6, 'Staff Needed'!W166, IF($BK$5=$BF$7, 'Staff Needed'!Y166, 'Staff Needed'!AA166)) -> 1.689897564 | BN170: ='Calc - SA_Resources'!AT196 -> 0.1280225428 | BO170: ='Calc - SA_Resources'!AU196 -> 0.9217623079 | BT170: =IF($BK$5=$BF$6, 'Staff Needed'!AB166, IF($BK$5=$BF$7, 'Staff Needed'!AD166, 'Staff Needed'!AF166)) -> 0.1792315599 | BU170: =IF($BK$5=$BF$6, 'Staff Needed'!AC166, IF($BK$5=$BF$7, 'Staff Needed'!AE166, 'Staff Needed'!AG166)) -> 1.689897564 | BV170: ='Calc - SA_Resources'!BA196 -> 0.1280225428 | BW170: ='Calc - SA_Resources'!BB196 -> 0.9217623079 | BX170: =IF($BK$5=$BF$6, 'Staff Needed'!AH166, IF($BK$5=$BF$7, 'Staff Needed'!AJ166, 'Staff Needed'!AL166)) -> 0 | BY170: =IF($BK$5=$BF$6, 'Staff Needed'!AI166, IF($BK$5=$BF$7, 'Staff Needed'!AK166, 'Staff Needed'!AM166)) -> 0 | BZ170: ='Calc - SA_Resources'!BG196 -> 0 | CA170: ='Calc - SA_Resources'!BH196 -> 0
BJ171: 162 | BK171: =VLOOKUP(BJ171, 'Calc - Base'!$H$35:$I$400, 2) -> 2020-11-11 | BL171: =IF($BK$5=$BF$6, 'Staff Needed'!V167, IF($BK$5=$BF$7, 'Staff Needed'!X167, 'Staff Needed'!Z167)) -> 0.1620655095 | BM171: =IF($BK$5=$BF$6, 'Staff Needed'!W167, IF($BK$5=$BF$7, 'Staff Needed'!Y167, 'Staff Needed'!AA167)) -> 1.528046233 | BN171: ='Calc - SA_Resources'!AT197 -> 0.1157610782 | BO171: ='Calc - SA_Resources'!AU197 -> 0.8334797632 | BT171: =IF($BK$5=$BF$6, 'Staff Needed'!AB167, IF($BK$5=$BF$7, 'Staff Needed'!AD167, 'Staff Needed'!AF167)) -> 0.1620655095 | BU171: =IF($BK$5=$BF$6, 'Staff Needed'!AC167, IF($BK$5=$BF$7, 'Staff Needed'!AE167, 'Staff Needed'!AG167)) -> 1.528046233 | BV171: ='Calc - SA_Resources'!BA197 -> 0.1157610782 | BW171: ='Calc - SA_Resources'!BB197 -> 0.8334797632 | BX171: =IF($BK$5=$BF$6, 'Staff Needed'!AH167, IF($BK$5=$BF$7, 'Staff Needed'!AJ167, 'Staff Needed'!AL167)) -> 0 | BY171: =IF($BK$5=$BF$6, 'Staff Needed'!AI167, IF($BK$5=$BF$7, 'Staff Needed'!AK167, 'Staff Needed'!AM167)) -> 0 | BZ171: ='Calc - SA_Resources'!BG197 -> 0 | CA171: ='Calc - SA_Resources'!BH197 -> 0
BJ172: 163 | BK172: =VLOOKUP(BJ172, 'Calc - Base'!$H$35:$I$400, 2) -> 2020-11-12 | BL172: =IF($BK$5=$BF$6, 'Staff Needed'!V168, IF($BK$5=$BF$7, 'Staff Needed'!X168, 'Staff Needed'!Z168)) -> 0.1465432626 | BM172: =IF($BK$5=$BF$6, 'Staff Needed'!W168, IF($BK$5=$BF$7, 'Staff Needed'!Y168, 'Staff Needed'!AA168)) -> 1.381693619 | BN172: ='Calc - SA_Resources'!AT198 -> 0.104673759 | BO172: ='Calc - SA_Resources'!AU198 -> 0.7536510649 | BT172: =IF($BK$5=$BF$6, 'Staff Needed'!AB168, IF($BK$5=$BF$7, 'Staff Needed'!AD168, 'Staff Needed'!AF168)) -> 0.1465432626 | BU172: =IF($BK$5=$BF$6, 'Staff Needed'!AC168, IF($BK$5=$BF$7, 'Staff Needed'!AE168, 'Staff Needed'!AG168)) -> 1.381693619 | BV172: ='Calc - SA_Resources'!BA198 -> 0.104673759 | BW172: ='Calc - SA_Resources'!BB198 -> 0.7536510649 | BX172: =IF($BK$5=$BF$6, 'Staff Needed'!AH168, IF($BK$5=$BF$7, 'Staff Needed'!AJ168, 'Staff Needed'!AL168)) -> 0 | BY172: =IF($BK$5=$BF$6, 'Staff Needed'!AI168, IF($BK$5=$BF$7, 'Staff Needed'!AK168, 'Staff Needed'!AM168)) -> 0 | BZ172: ='Calc - SA_Resources'!BG198 -> 0 | CA172: ='Calc - SA_Resources'!BH198 -> 0
BJ173: 164 | BK173: =VLOOKUP(BJ173, 'Calc - Base'!$H$35:$I$400, 2) -> 2020-11-13 | BL173: =IF($BK$5=$BF$6, 'Staff Needed'!V169, IF($BK$5=$BF$7, 'Staff Needed'!X169, 'Staff Needed'!Z169)) -> 0.132507463 | BM173: =IF($BK$5=$BF$6, 'Staff Needed'!W169, IF($BK$5=$BF$7, 'Staff Needed'!Y169, 'Staff Needed'!AA169)) -> 1.24935608 | BN173: ='Calc - SA_Resources'!AT199 -> 0.09464818785 | BO173: ='Calc - SA_Resources'!AU199 -> 0.6814669525 | BT173: =IF($BK$5=$BF$6, 'Staff Needed'!AB169, IF($BK$5=$BF$7, 'Staff Needed'!AD169, 'Staff Needed'!AF169)) -> 0.132507463 | BU173: =IF($BK$5=$BF$6, 'Staff Needed'!AC169, IF($BK$5=$BF$7, 'Staff Needed'!AE169, 'Staff Needed'!AG169)) -> 1.24935608 | BV173: ='Calc - SA_Resources'!BA199 -> 0.09464818785 | BW173: ='Calc - SA_Resources'!BB199 -> 0.6814669525 | BX173: =IF($BK$5=$BF$6, 'Staff Needed'!AH169, IF($BK$5=$BF$7, 'Staff Needed'!AJ169, 'Staff Needed'!AL169)) -> 0 | BY173: =IF($BK$5=$BF$6, 'Staff Needed'!AI169, IF($BK$5=$BF$7, 'Staff Needed'!AK169, 'Staff Needed'!AM169)) -> 0 | BZ173: ='Calc - SA_Resources'!BG199 -> 0 | CA173: ='Calc - SA_Resources'!BH199 -> 0
BJ174: 165 | BK174: =VLOOKUP(BJ174, 'Calc - Base'!$H$35:$I$400, 2) -> 2020-11-14 | BL174: =IF($BK$5=$BF$6, 'Staff Needed'!V170, IF($BK$5=$BF$7, 'Staff Needed'!X170, 'Staff Needed'!Z170)) -> 0.119815808 | BM174: =IF($BK$5=$BF$6, 'Staff Needed'!W170, IF($BK$5=$BF$7, 'Staff Needed'!Y170, 'Staff Needed'!AA170)) -> 1.129691904 | BN174: ='Calc - SA_Resources'!AT200 -> 0.08558272001 | BO174: ='Calc - SA_Resources'!AU200 -> 0.6161955841 | BT174: =IF($BK$5=$BF$6, 'Staff Needed'!AB170, IF($BK$5=$BF$7, 'Staff Needed'!AD170, 'Staff Needed'!AF170)) -> 0.119815808 | BU174: =IF($BK$5=$BF$6, 'Staff Needed'!AC170, IF($BK$5=$BF$7, 'Staff Needed'!AE170, 'Staff Needed'!AG170)) -> 1.129691904 | BV174: ='Calc - SA_Resources'!BA200 -> 0.08558272001 | BW174: ='Calc - SA_Resources'!BB200 -> 0.6161955841 | BX174: =IF($BK$5=$BF$6, 'Staff Needed'!AH170, IF($BK$5=$BF$7, 'Staff Needed'!AJ170, 'Staff Needed'!AL170)) -> 0 | BY174: =IF($BK$5=$BF$6, 'Staff Needed'!AI170, IF($BK$5=$BF$7, 'Staff Needed'!AK170, 'Staff Needed'!AM170)) -> 0 | BZ174: ='Calc - SA_Resources'!BG200 -> 0 | CA174: ='Calc - SA_Resources'!BH200 -> 0
BJ175: 166 | BK175: =VLOOKUP(BJ175, 'Calc - Base'!$H$35:$I$400, 2) -> 2020-11-15 | BL175: =IF($BK$5=$BF$6, 'Staff Needed'!V171, IF($BK$5=$BF$7, 'Staff Needed'!X171, 'Staff Needed'!Z171)) -> 0.1083396103 | BM175: =IF($BK$5=$BF$6, 'Staff Needed'!W171, IF($BK$5=$BF$7, 'Staff Needed'!Y171, 'Staff Needed'!AA171)) -> 1.021487755 | BN175: ='Calc - SA_Resources'!AT201 -> 0.07738543596 | BO175: ='Calc - SA_Resources'!AU201 -> 0.5571751389 | BT175: =IF($BK$5=$BF$6, 'Staff Needed'!AB171, IF($BK$5=$BF$7, 'Staff Needed'!AD171, 'Staff Needed'!AF171)) -> 0.1083396103 | BU175: =IF($BK$5=$BF$6, 'Staff Needed'!AC171, IF($BK$5=$BF$7, 'Staff Needed'!AE171, 'Staff Needed'!AG171)) -> 1.021487755 | BV175: ='Calc - SA_Resources'!BA201 -> 0.07738543596 | BW175: ='Calc - SA_Resources'!BB201 -> 0.5571751389 | BX175: =IF($BK$5=$BF$6, 'Staff Needed'!AH171, IF($BK$5=$BF$7, 'Staff Needed'!AJ171, 'Staff Needed'!AL171)) -> 0 | BY175: =IF($BK$5=$BF$6, 'Staff Needed'!AI171, IF($BK$5=$BF$7, 'Staff Needed'!AK171, 'Staff Needed'!AM171)) -> 0 | BZ175: ='Calc - SA_Resources'!BG201 -> 0 | CA175: ='Calc - SA_Resources'!BH201 -> 0
BJ176: 167 | BK176: =VLOOKUP(BJ176, 'Calc - Base'!$H$35:$I$400, 2) -> 2020-11-16 | BL176: =IF($BK$5=$BF$6, 'Staff Needed'!V172, IF($BK$5=$BF$7, 'Staff Needed'!X172, 'Staff Needed'!Z172)) -> 0.09796249661 | BM176: =IF($BK$5=$BF$6, 'Staff Needed'!W172, IF($BK$5=$BF$7, 'Staff Needed'!Y172, 'Staff Needed'!AA172)) -> 0.9236463966 | BN176: ='Calc - SA_Resources'!AT202 -> 0.06997321187 | BO176: ='Calc - SA_Resources'!AU202 -> 0.5038071254 | BT176: =IF($BK$5=$BF$6, 'Staff Needed'!AB172, IF($BK$5=$BF$7, 'Staff Needed'!AD172, 'Staff Needed'!AF172)) -> 0.09796249661 | BU176: =IF($BK$5=$BF$6, 'Staff Needed'!AC172, IF($BK$5=$BF$7, 'Staff Needed'!AE172, 'Staff Needed'!AG172)) -> 0.9236463966 | BV176: ='Calc - SA_Resources'!BA202 -> 0.06997321187 | BW176: ='Calc - SA_Resources'!BB202 -> 0.5038071254 | BX176: =IF($BK$5=$BF$6, 'Staff Needed'!AH172, IF($BK$5=$BF$7, 'Staff Needed'!AJ172, 'Staff Needed'!AL172)) -> 0 | BY176: =IF($BK$5=$BF$6, 'Staff Needed'!AI172, IF($BK$5=$BF$7, 'Staff Needed'!AK172, 'Staff Needed'!AM172)) -> 0 | BZ176: ='Calc - SA_Resources'!BG202 -> 0 | CA176: ='Calc - SA_Resources'!BH202 -> 0
BJ177: 168 | BK177: =VLOOKUP(BJ177, 'Calc - Base'!$H$35:$I$400, 2) -> 2020-11-17 | BL177: =IF($BK$5=$BF$6, 'Staff Needed'!V173, IF($BK$5=$BF$7, 'Staff Needed'!X173, 'Staff Needed'!Z173)) -> 0.0885792303 | BM177: =IF($BK$5=$BF$6, 'Staff Needed'!W173, IF($BK$5=$BF$7, 'Staff Needed'!Y173, 'Staff Needed'!AA173)) -> 0.8351756 | BN177: ='Calc - SA_Resources'!AT203 -> 0.06327087879 | BO177: ='Calc - SA_Resources'!AU203 -> 0.4555503273 | BT177: =IF($BK$5=$BF$6, 'Staff Needed'!AB173, IF($BK$5=$BF$7, 'Staff Needed'!AD173, 'Staff Needed'!AF173)) -> 0.0885792303 | BU177: =IF($BK$5=$BF$6, 'Staff Needed'!AC173, IF($BK$5=$BF$7, 'Staff Needed'!AE173, 'Staff Needed'!AG173)) -> 0.8351756 | BV177: ='Calc - SA_Resources'!BA203 -> 0.06327087879 | BW177: ='Calc - SA_Resources'!BB203 -> 0.4555503273 | BX177: =IF($BK$5=$BF$6, 'Staff Needed'!AH173, IF($BK$5=$BF$7, 'Staff Needed'!AJ173, 'Staff Needed'!AL173)) -> 0 | BY177: =IF($BK$5=$BF$6, 'Staff Needed'!AI173, IF($BK$5=$BF$7, 'Staff Needed'!AK173, 'Staff Needed'!AM173)) -> 0 | BZ177: ='Calc - SA_Resources'!BG203 -> 0 | CA177: ='Calc - SA_Resources'!BH203 -> 0
BJ178: 169 | BK178: =VLOOKUP(BJ178, 'Calc - Base'!$H$35:$I$400, 2) -> 2020-11-18 | BL178: =IF($BK$5=$BF$6, 'Staff Needed'!V174, IF($BK$5=$BF$7, 'Staff Needed'!X174, 'Staff Needed'!Z174)) -> 0.08009464694 | BM178: =IF($BK$5=$BF$6, 'Staff Needed'!W174, IF($BK$5=$BF$7, 'Staff Needed'!Y174, 'Staff Needed'!AA174)) -> 0.7551780997 | BN178: ='Calc - SA_Resources'!AT204 -> 0.0572104621 | BO178: ='Calc - SA_Resources'!AU204 -> 0.4119153271 | BT178: =IF($BK$5=$BF$6, 'Staff Needed'!AB174, IF($BK$5=$BF$7, 'Staff Needed'!AD174, 'Staff Needed'!AF174)) -> 0.08009464694 | BU178: =IF($BK$5=$BF$6, 'Staff Needed'!AC174, IF($BK$5=$BF$7, 'Staff Needed'!AE174, 'Staff Needed'!AG174)) -> 0.7551780997 | BV178: ='Calc - SA_Resources'!BA204 -> 0.0572104621 | BW178: ='Calc - SA_Resources'!BB204 -> 0.4119153271 | BX178: =IF($BK$5=$BF$6, 'Staff Needed'!AH174, IF($BK$5=$BF$7, 'Staff Needed'!AJ174, 'Staff Needed'!AL174)) -> 0 | BY178: =IF($BK$5=$BF$6, 'Staff Needed'!AI174, IF($BK$5=$BF$7, 'Staff Needed'!AK174, 'Staff Needed'!AM174)) -> 0 | BZ178: ='Calc - SA_Resources'!BG204 -> 0 | CA178: ='Calc - SA_Resources'!BH204 -> 0
BJ179: 170 | BK179: =VLOOKUP(BJ179, 'Calc - Base'!$H$35:$I$400, 2) -> 2020-11-19 | BL179: =IF($BK$5=$BF$6, 'Staff Needed'!V175, IF($BK$5=$BF$7, 'Staff Needed'!X175, 'Staff Needed'!Z175)) -> 0.07242269085 | BM179: =IF($BK$5=$BF$6, 'Staff Needed'!W175, IF($BK$5=$BF$7, 'Staff Needed'!Y175, 'Staff Needed'!AA175)) -> 0.6828425137 | BN179: ='Calc - SA_Resources'!AT205 -> 0.05173049346 | BO179: ='Calc - SA_Resources'!AU205 -> 0.3724595529 | BT179: =IF($BK$5=$BF$6, 'Staff Needed'!AB175, IF($BK$5=$BF$7, 'Staff Needed'!AD175, 'Staff Needed'!AF175)) -> 0.07242269085 | BU179: =IF($BK$5=$BF$6, 'Staff Needed'!AC175, IF($BK$5=$BF$7, 'Staff Needed'!AE175, 'Staff Needed'!AG175)) -> 0.6828425137 | BV179: ='Calc - SA_Resources'!BA205 -> 0.05173049346 | BW179: ='Calc - SA_Resources'!BB205 -> 0.3724595529 | BX179: =IF($BK$5=$BF$6, 'Staff Needed'!AH175, IF($BK$5=$BF$7, 'Staff Needed'!AJ175, 'Staff Needed'!AL175)) -> 0 | BY179: =IF($BK$5=$BF$6, 'Staff Needed'!AI175, IF($BK$5=$BF$7, 'Staff Needed'!AK175, 'Staff Needed'!AM175)) -> 0 | BZ179: ='Calc - SA_Resources'!BG205 -> 0 | CA179: ='Calc - SA_Resources'!BH205 -> 0
BJ180: 171 | BK180: =VLOOKUP(BJ180, 'Calc - Base'!$H$35:$I$400, 2) -> 2020-11-20 | BL180: =IF($BK$5=$BF$6, 'Staff Needed'!V176, IF($BK$5=$BF$7, 'Staff Needed'!X176, 'Staff Needed'!Z176)) -> 0.06548554398 | BM180: =IF($BK$5=$BF$6, 'Staff Needed'!W176, IF($BK$5=$BF$7, 'Staff Needed'!Y176, 'Staff Needed'!AA176)) -> 0.6174351289 | BN180: ='Calc - SA_Resources'!AT206 -> 0.04677538856 | BO180: ='Calc - SA_Resources'!AU206 -> 0.3367827976 | BT180: =IF($BK$5=$BF$6, 'Staff Needed'!AB176, IF($BK$5=$BF$7, 'Staff Needed'!AD176, 'Staff Needed'!AF176)) -> 0.06548554398 | BU180: =IF($BK$5=$BF$6, 'Staff Needed'!AC176, IF($BK$5=$BF$7, 'Staff Needed'!AE176, 'Staff Needed'!AG176)) -> 0.6174351289 | BV180: ='Calc - SA_Resources'!BA206 -> 0.04677538856 | BW180: ='Calc - SA_Resources'!BB206 -> 0.3367827976 | BX180: =IF($BK$5=$BF$6, 'Staff Needed'!AH176, IF($BK$5=$BF$7, 'Staff Needed'!AJ176, 'Staff Needed'!AL176)) -> 0 | BY180: =IF($BK$5=$BF$6, 'Staff Needed'!AI176, IF($BK$5=$BF$7, 'Staff Needed'!AK176, 'Staff Needed'!AM176)) -> 0 | BZ180: ='Calc - SA_Resources'!BG206 -> 0 | CA180: ='Calc - SA_Resources'!BH206 -> 0
BJ181: 172 | BK181: =VLOOKUP(BJ181, 'Calc - Base'!$H$35:$I$400, 2) -> 2020-11-21 | BL181: =IF($BK$5=$BF$6, 'Staff Needed'!V177, IF($BK$5=$BF$7, 'Staff Needed'!X177, 'Staff Needed'!Z177)) -> 0.05921283787 | BM181: =IF($BK$5=$BF$6, 'Staff Needed'!W177, IF($BK$5=$BF$7, 'Staff Needed'!Y177, 'Staff Needed'!AA177)) -> 0.5582924713 | BN181: ='Calc - SA_Resources'!AT207 -> 0.04229488419 | BO181: ='Calc - SA_Resources'!AU207 -> 0.3045231662 | BT181: =IF($BK$5=$BF$6, 'Staff Needed'!AB177, IF($BK$5=$BF$7, 'Staff Needed'!AD177, 'Staff Needed'!AF177)) -> 0.05921283787 | BU181: =IF($BK$5=$BF$6, 'Staff Needed'!AC177, IF($BK$5=$BF$7, 'Staff Needed'!AE177, 'Staff Needed'!AG177)) -> 0.5582924713 | BV181: ='Calc - SA_Resources'!BA207 -> 0.04229488419 | BW181: ='Calc - SA_Resources'!BB207 -> 0.3045231662 | BX181: =IF($BK$5=$BF$6, 'Staff Needed'!AH177, IF($BK$5=$BF$7, 'Staff Needed'!AJ177, 'Staff Needed'!AL177)) -> 0 | BY181: =IF($BK$5=$BF$6, 'Staff Needed'!AI177, IF($BK$5=$BF$7, 'Staff Needed'!AK177, 'Staff Needed'!AM177)) -> 0 | BZ181: ='Calc - SA_Resources'!BG207 -> 0 | CA181: ='Calc - SA_Resources'!BH207 -> 0
BJ182: 173 | BK182: =VLOOKUP(BJ182, 'Calc - Base'!$H$35:$I$400, 2) -> 2020-11-22 | BL182: =IF($BK$5=$BF$6, 'Staff Needed'!V178, IF($BK$5=$BF$7, 'Staff Needed'!X178, 'Staff Needed'!Z178)) -> 0.05354094091 | BM182: =IF($BK$5=$BF$6, 'Staff Needed'!W178, IF($BK$5=$BF$7, 'Staff Needed'!Y178, 'Staff Needed'!AA178)) -> 0.5048145857 | BN182: ='Calc - SA_Resources'!AT208 -> 0.03824352922 | BO182: ='Calc - SA_Resources'!AU208 -> 0.2753534104 | BT182: =IF($BK$5=$BF$6, 'Staff Needed'!AB178, IF($BK$5=$BF$7, 'Staff Needed'!AD178, 'Staff Needed'!AF178)) -> 0.05354094091 | BU182: =IF($BK$5=$BF$6, 'Staff Needed'!AC178, IF($BK$5=$BF$7, 'Staff Needed'!AE178, 'Staff Needed'!AG178)) -> 0.5048145857 | BV182: ='Calc - SA_Resources'!BA208 -> 0.03824352922 | BW182: ='Calc - SA_Resources'!BB208 -> 0.2753534104 | BX182: =IF($BK$5=$BF$6, 'Staff Needed'!AH178, IF($BK$5=$BF$7, 'Staff Needed'!AJ178, 'Staff Needed'!AL178)) -> 0 | BY182: =IF($BK$5=$BF$6, 'Staff Needed'!AI178, IF($BK$5=$BF$7, 'Staff Needed'!AK178, 'Staff Needed'!AM178)) -> 0 | BZ182: ='Calc - SA_Resources'!BG208 -> 0 | CA182: ='Calc - SA_Resources'!BH208 -> 0
BJ183: 174 | BK183: =VLOOKUP(BJ183, 'Calc - Base'!$H$35:$I$400, 2) -> 2020-11-23 | BL183: =IF($BK$5=$BF$6, 'Staff Needed'!V179, IF($BK$5=$BF$7, 'Staff Needed'!X179, 'Staff Needed'!Z179)) -> 0.04841231374 | BM183: =IF($BK$5=$BF$6, 'Staff Needed'!W179, IF($BK$5=$BF$7, 'Staff Needed'!Y179, 'Staff Needed'!AA179)) -> 0.4564589581 | BN183: ='Calc - SA_Resources'!AT209 -> 0.0345802241 | BO183: ='Calc - SA_Resources'!AU209 -> 0.2489776135 | BT183: =IF($BK$5=$BF$6, 'Staff Needed'!AB179, IF($BK$5=$BF$7, 'Staff Needed'!AD179, 'Staff Needed'!AF179)) -> 0.04841231374 | BU183: =IF($BK$5=$BF$6, 'Staff Needed'!AC179, IF($BK$5=$BF$7, 'Staff Needed'!AE179, 'Staff Needed'!AG179)) -> 0.4564589581 | BV183: ='Calc - SA_Resources'!BA209 -> 0.0345802241 | BW183: ='Calc - SA_Resources'!BB209 -> 0.2489776135 | BX183: =IF($BK$5=$BF$6, 'Staff Needed'!AH179, IF($BK$5=$BF$7, 'Staff Needed'!AJ179, 'Staff Needed'!AL179)) -> 0 | BY183: =IF($BK$5=$BF$6, 'Staff Needed'!AI179, IF($BK$5=$BF$7, 'Staff Needed'!AK179, 'Staff Needed'!AM179)) -> 0 | BZ183: ='Calc - SA_Resources'!BG209 -> 0 | CA183: ='Calc - SA_Resources'!BH209 -> 0
BJ184: 175 | BK184: =VLOOKUP(BJ184, 'Calc - Base'!$H$35:$I$400, 2) -> 2020-11-24 | BL184: =IF($BK$5=$BF$6, 'Staff Needed'!V180, IF($BK$5=$BF$7, 'Staff Needed'!X180, 'Staff Needed'!Z180)) -> 0.04377492627 | BM184: =IF($BK$5=$BF$6, 'Staff Needed'!W180, IF($BK$5=$BF$7, 'Staff Needed'!Y180, 'Staff Needed'!AA180)) -> 0.4127350191 | BN184: ='Calc - SA_Resources'!AT210 -> 0.03126780448 | BO184: ='Calc - SA_Resources'!AU210 -> 0.2251281922 | BT184: =IF($BK$5=$BF$6, 'Staff Needed'!AB180, IF($BK$5=$BF$7, 'Staff Needed'!AD180, 'Staff Needed'!AF180)) -> 0.04377492627 | BU184: =IF($BK$5=$BF$6, 'Staff Needed'!AC180, IF($BK$5=$BF$7, 'Staff Needed'!AE180, 'Staff Needed'!AG180)) -> 0.4127350191 | BV184: ='Calc - SA_Resources'!BA210 -> 0.03126780448 | BW184: ='Calc - SA_Resources'!BB210 -> 0.2251281922 | BX184: =IF($BK$5=$BF$6, 'Staff Needed'!AH180, IF($BK$5=$BF$7, 'Staff Needed'!AJ180, 'Staff Needed'!AL180)) -> 0 | BY184: =IF($BK$5=$BF$6, 'Staff Needed'!AI180, IF($BK$5=$BF$7, 'Staff Needed'!AK180, 'Staff Needed'!AM180)) -> 0 | BZ184: ='Calc - SA_Resources'!BG210 -> 0 | CA184: ='Calc - SA_Resources'!BH210 -> 0
BJ185: 176 | BK185: =VLOOKUP(BJ185, 'Calc - Base'!$H$35:$I$400, 2) -> 2020-11-25 | BL185: =IF($BK$5=$BF$6, 'Staff Needed'!V181, IF($BK$5=$BF$7, 'Staff Needed'!X181, 'Staff Needed'!Z181)) -> 0.03958173035 | BM185: =IF($BK$5=$BF$6, 'Staff Needed'!W181, IF($BK$5=$BF$7, 'Staff Needed'!Y181, 'Staff Needed'!AA181)) -> 0.3731991719 | BN185: ='Calc - SA_Resources'!AT211 -> 0.02827266454 | BO185: ='Calc - SA_Resources'!AU211 -> 0.2035631847 | BT185: =IF($BK$5=$BF$6, 'Staff Needed'!AB181, IF($BK$5=$BF$7, 'Staff Needed'!AD181, 'Staff Needed'!AF181)) -> 0.03958173035 | BU185: =IF($BK$5=$BF$6, 'Staff Needed'!AC181, IF($BK$5=$BF$7, 'Staff Needed'!AE181, 'Staff Needed'!AG181)) -> 0.3731991719 | BV185: ='Calc - SA_Resources'!BA211 -> 0.02827266454 | BW185: ='Calc - SA_Resources'!BB211 -> 0.2035631847 | BX185: =IF($BK$5=$BF$6, 'Staff Needed'!AH181, IF($BK$5=$BF$7, 'Staff Needed'!AJ181, 'Staff Needed'!AL181)) -> 0 | BY185: =IF($BK$5=$BF$6, 'Staff Needed'!AI181, IF($BK$5=$BF$7, 'Staff Needed'!AK181, 'Staff Needed'!AM181)) -> 0 | BZ185: ='Calc - SA_Resources'!BG211 -> 0 | CA185: ='Calc - SA_Resources'!BH211 -> 0
BJ186: 177 | BK186: =VLOOKUP(BJ186, 'Calc - Base'!$H$35:$I$400, 2) -> 2020-11-26 | BL186: =IF($BK$5=$BF$6, 'Staff Needed'!V182, IF($BK$5=$BF$7, 'Staff Needed'!X182, 'Staff Needed'!Z182)) -> 0.03579018301 | BM186: =IF($BK$5=$BF$6, 'Staff Needed'!W182, IF($BK$5=$BF$7, 'Staff Needed'!Y182, 'Staff Needed'!AA182)) -> 0.337450297 | BN186: ='Calc - SA_Resources'!AT212 -> 0.02556441644 | BO186: ='Calc - SA_Resources'!AU212 -> 0.1840637984 | BT186: =IF($BK$5=$BF$6, 'Staff Needed'!AB182, IF($BK$5=$BF$7, 'Staff Needed'!AD182, 'Staff Needed'!AF182)) -> 0.03579018301 | BU186: =IF($BK$5=$BF$6, 'Staff Needed'!AC182, IF($BK$5=$BF$7, 'Staff Needed'!AE182, 'Staff Needed'!AG182)) -> 0.337450297 | BV186: ='Calc - SA_Resources'!BA212 -> 0.02556441644 | BW186: ='Calc - SA_Resources'!BB212 -> 0.1840637984 | BX186: =IF($BK$5=$BF$6, 'Staff Needed'!AH182, IF($BK$5=$BF$7, 'Staff Needed'!AJ182, 'Staff Needed'!AL182)) -> 0 | BY186: =IF($BK$5=$BF$6, 'Staff Needed'!AI182, IF($BK$5=$BF$7, 'Staff Needed'!AK182, 'Staff Needed'!AM182)) -> 0 | BZ186: ='Calc - SA_Resources'!BG212 -> 0 | CA186: ='Calc - SA_Resources'!BH212 -> 0
BJ187: 178 | BK187: =VLOOKUP(BJ187, 'Calc - Base'!$H$35:$I$400, 2) -> 2020-11-27 | BL187: =IF($BK$5=$BF$6, 'Staff Needed'!V183, IF($BK$5=$BF$7, 'Staff Needed'!X183, 'Staff Needed'!Z183)) -> 0.03236181518 | BM187: =IF($BK$5=$BF$6, 'Staff Needed'!W183, IF($BK$5=$BF$7, 'Staff Needed'!Y183, 'Staff Needed'!AA183)) -> 0.305125686 | BN187: ='Calc - SA_Resources'!AT213 -> 0.02311558227 | BO187: ='Calc - SA_Resources'!AU213 -> 0.1664321923 | BT187: =IF($BK$5=$BF$6, 'Staff Needed'!AB183, IF($BK$5=$BF$7, 'Staff Needed'!AD183, 'Staff Needed'!AF183)) -> 0.03236181518 | BU187: =IF($BK$5=$BF$6, 'Staff Needed'!AC183, IF($BK$5=$BF$7, 'Staff Needed'!AE183, 'Staff Needed'!AG183)) -> 0.305125686 | BV187: ='Calc - SA_Resources'!BA213 -> 0.02311558227 | BW187: ='Calc - SA_Resources'!BB213 -> 0.1664321923 | BX187: =IF($BK$5=$BF$6, 'Staff Needed'!AH183, IF($BK$5=$BF$7, 'Staff Needed'!AJ183, 'Staff Needed'!AL183)) -> 0 | BY187: =IF($BK$5=$BF$6, 'Staff Needed'!AI183, IF($BK$5=$BF$7, 'Staff Needed'!AK183, 'Staff Needed'!AM183)) -> 0 | BZ187: ='Calc - SA_Resources'!BG213 -> 0 | CA187: ='Calc - SA_Resources'!BH213 -> 0
BJ188: 179 | BK188: =VLOOKUP(BJ188, 'Calc - Base'!$H$35:$I$400, 2) -> 2020-11-28 | BL188: =IF($BK$5=$BF$6, 'Staff Needed'!V184, IF($BK$5=$BF$7, 'Staff Needed'!X184, 'Staff Needed'!Z184)) -> 0.02926184168 | BM188: =IF($BK$5=$BF$6, 'Staff Needed'!W184, IF($BK$5=$BF$7, 'Staff Needed'!Y184, 'Staff Needed'!AA184)) -> 0.2758973644 | BN188: ='Calc - SA_Resources'!AT214 -> 0.02090131548 | BO188: ='Calc - SA_Resources'!AU214 -> 0.1504894715 | BT188: =IF($BK$5=$BF$6, 'Staff Needed'!AB184, IF($BK$5=$BF$7, 'Staff Needed'!AD184, 'Staff Needed'!AF184)) -> 0.02926184168 | BU188: =IF($BK$5=$BF$6, 'Staff Needed'!AC184, IF($BK$5=$BF$7, 'Staff Needed'!AE184, 'Staff Needed'!AG184)) -> 0.2758973644 | BV188: ='Calc - SA_Resources'!BA214 -> 0.02090131548 | BW188: ='Calc - SA_Resources'!BB214 -> 0.1504894715 | BX188: =IF($BK$5=$BF$6, 'Staff Needed'!AH184, IF($BK$5=$BF$7, 'Staff Needed'!AJ184, 'Staff Needed'!AL184)) -> 0 | BY188: =IF($BK$5=$BF$6, 'Staff Needed'!AI184, IF($BK$5=$BF$7, 'Staff Needed'!AK184, 'Staff Needed'!AM184)) -> 0 | BZ188: ='Calc - SA_Resources'!BG214 -> 0 | CA188: ='Calc - SA_Resources'!BH214 -> 0
BJ189: 180 | BK189: =VLOOKUP(BJ189, 'Calc - Base'!$H$35:$I$400, 2) -> 2020-11-29 | BL189: =IF($BK$5=$BF$6, 'Staff Needed'!V185, IF($BK$5=$BF$7, 'Staff Needed'!X185, 'Staff Needed'!Z185)) -> 0.02645880858 | BM189: =IF($BK$5=$BF$6, 'Staff Needed'!W185, IF($BK$5=$BF$7, 'Staff Needed'!Y185, 'Staff Needed'!AA185)) -> 0.2494687666 | BN189: ='Calc - SA_Resources'!AT215 -> 0.01889914899 | BO189: ='Calc - SA_Resources'!AU215 -> 0.1360738727 | BT189: =IF($BK$5=$BF$6, 'Staff Needed'!AB185, IF($BK$5=$BF$7, 'Staff Needed'!AD185, 'Staff Needed'!AF185)) -> 0.02645880858 | BU189: =IF($BK$5=$BF$6, 'Staff Needed'!AC185, IF($BK$5=$BF$7, 'Staff Needed'!AE185, 'Staff Needed'!AG185)) -> 0.2494687666 | BV189: ='Calc - SA_Resources'!BA215 -> 0.01889914899 | BW189: ='Calc - SA_Resources'!BB215 -> 0.1360738727 | BX189: =IF($BK$5=$BF$6, 'Staff Needed'!AH185, IF($BK$5=$BF$7, 'Staff Needed'!AJ185, 'Staff Needed'!AL185)) -> 0 | BY189: =IF($BK$5=$BF$6, 'Staff Needed'!AI185, IF($BK$5=$BF$7, 'Staff Needed'!AK185, 'Staff Needed'!AM185)) -> 0 | BZ189: ='Calc - SA_Resources'!BG215 -> 0 | CA189: ='Calc - SA_Resources'!BH215 -> 0
